Workbook

Sheet Disclaimer
B1: Mid West and South West Gas Distribution Systems - Tariff Model
B4: Model Disclaimer

Sheet Model Outline
B2: Mid West and South West Gas Distribution Systems - Tariff Model
B3: Model Outline
B5: General
B6: Solve for X macro | C6: When inputs are final go to the Rate_path tab and run the Solve X macro to set the tariff path so that the NPV of Tariff Revenue equals the NPV of Total Revenue.
B8: Worksheet Name | C8: Description
B10: Assumptions | C10: Summary of key assumptions
B11: Inputs | C11: All model inputs
B12: Rate_path | C12: Summary of outputs showing Total Revenue, Tariff Revenue and includes a macro button to calculate the price path "-X" being the nominal annual percentage increase in tariffs.
B13: Output | C13: Summary of outputs
B14: Tariff | C14: Calculation of Total Revenue and tariffs under the following method: - assets at 30 June 2014 are inflated and depreciated under a current cost accounting method (CCA); - and additions are treated on a historical cost nominal method.
B15: Tax_Depcn | C15: Summary of Tax Asset Base for depreciation purposes and tax depreciation to be used in calculation of tax payable for Revenue Building Blocks (Total Revenue).
B16: RAB_Summary | C16: High level summary of Regulated Asset Base
B17: RAB Scenarios | C17: Summary of Regulated Asset Base by asset category. Also includes RAB based on historic cost which is used to calculate the interest tax deduction to determine tax payable for Revenue Building Blocks (Total Revenue)
B18: ICB_at Jun_2014 | C18: Summary of Capital Base at 30 Jun 2014.
B19: ICB_at_2000 | C19: Calculations of depreciation and RAB on Initial Capital Base at 2000
B20: Vines | C20: Calculations of depreciation and RAB on Vines capex additions
B21: WestNet | C21: Calculations of depreciation and RAB on WestNet capex additions
B22: Capex_to_ Jun_2014 | C22: Summary of RAB for all capex additions from 2000 to 30 Jun 2014 (in Jun 2014 $)
B23: Capex_from_ Jul_2014 | C23: Summary of RAB for all capex additions form 1 Jul 2014 (in Jun 2014 $)
B24: 2000 | C24: Calculations of depreciation and RAB on capex additions in the 2000 calendar year
B25: 2001 | C25: Calculations of depreciation and RAB on capex additions in the 2001 calendar year
B26: 2002 | C26: Calculations of depreciation and RAB on capex additions in the 2002 calendar year
B27: 2003 | C27: Calculations of depreciation and RAB on capex additions in the 2003 calendar year
B28: 2004 | C28: Calculations of depreciation and RAB on capex additions in the 2004 calendar year
B29: 2005 | C29: Calculations of depreciation and RAB on capex additions in the 2005 calendar year
B30: 2006 | C30: Calculations of depreciation and RAB on capex additions in the 2006 calendar year
B31: 2007 | C31: Calculations of depreciation and RAB on capex additions in the 2007 calendar year
B32: 2008 | C32: Calculations of depreciation and RAB on capex additions in the 2008 calendar year
B33: 2009 | C33: Calculations of depreciation and RAB on capex additions in the 2009 calendar year
B34: 2010 Jan-Jun | C34: Calculations of depreciation and RAB on capex additions in Jan to Jun 2010
B35: 2011 | C35: Calculations of depreciation and RAB on capex additions in 2010/11 financial year
B36: 2012 | C36: Calculations of depreciation and RAB on capex additions in 2011/12 financial year
B37: 2013 | C37: Calculations of depreciation and RAB on capex additions in 2012/13 financial year
B38: 2014 | C38: Calculations of depreciation and RAB on capex additions in 2013/14 financial year
B39: 2014_Jul-Dec | C39: Calculations of depreciation and RAB on capex additions in Jul to Dec 2014
B40: 2015_Jan-Jun | C40: Calculations of depreciation and RAB on capex additions in Jan to Jun 2015
B41: 2015_Jul-Dec | C41: Calculations of depreciation and RAB on capex additions in Jul to Dec 2015
B42: 2016 | C42: Calculations of depreciation and RAB on capex additions in the 2016 calendar year
B43: 2017 | C43: Calculations of depreciation and RAB on capex additions in the 2017 calendar year
B44: 2018 | C44: Calculations of depreciation and RAB on capex additions in the 2018 calendar year
B45: 2019 | C45: Calculations of depreciation and RAB on capex additions in the 2019 calendar year

Sheet Assumptions
B1: Mid West and South West Gas Distribution Systems - Tariff Model
B2: Key Assumptions
B5: Opex and capex inputs are in nominal dollars have been converted to real dollars, where applicable, as if spent on the last day of the period to be consistent with the ERA cash flow assumption that all money is spent on the last day of the period.
B7: Nominal After Tax Cost of Equity (EAn) | C7: =Inputs!T66 -> 0.1051
B8: Nominal Cost of Debt (DPn) | C8: =Inputs!T63 -> 0.0573
B9: Nominal After Tax WACC | C9: =Inputs!T69 -> 0.07642
B10: Debt funded portion of asset base | C10: 0.6
B11: Equity funded portion of asset base | C11: =1-C10 -> 0.4
B13: Inflation
B14: Actual inflation to 30 June 2014.
B15: Annual inflation post June 2014 | C15: =Inputs!T73 -> 0.025 | D15: pa
B17: Delivery point numbers based on actual data to October 2014 and Core Energy consultants' forecast thereafter.
B19: Volumes based on average consumption per delivery point per Core Energy consultants' forecast for all tariff classes. Additional analysis has been done to reconcile volumes for large industrial customer to the Core Energy forecast.
B21: Tax depreciation assumes regulatory capital expenditure is grossed up for capital contributions. Actual tax depreciation rates used. Capital contributions are assumed to be taxable in the year received.
B23: Imputation (franking) credits are based on: | C23: =Inputs!T60 -> 0.25 | D23: of tax payable
B24: The corporate tax is assumed to be: | C24: =Inputs!T59 -> 0.3
B26: Amended tariffs begin | C26: =Inputs!$C$40 -> 2015-07-01

Sheet Inputs
O1: Jan - Jun | T1: Jul - Dec | U1: Jan - Jun | V1: Jul - Dec
B2: Mid West and South West Gas Distribution Systems | D2: =E2-1 -> 1999 | E2: 2000 | F2: =E2+1 -> 2001 | G2: 2002 | H2: 2003 | I2: 2004 | J2: 2005 | K2: 2006 | L2: 2007 | M2: 2008 | N2: 2009 | O2: 2010 | P2: 2010/11 | Q2: 2011/12 | R2: 2012/13 | S2: 2013/14 | T2: =YEAR(T4) -> 2014 | U2: =YEAR(U4) -> 2015 | V2: 2015 | W2: 2016 | X2: 2017 | Y2: 2018 | Z2: 2019
B3: Access Arrangement Revisions 2014 | E3: Actual | F3: Actual | G3: Actual | H3: Actual | I3: Actual | J3: Actual | K3: Actual | L3: Actual | M3: Actual | N3: Actual | O3: Actual | P3: Actual | Q3: Actual | R3: Actual | S3: Actual | T3: Forecast | U3: Forecast | V3: Forecast | W3: Forecast | X3: Forecast | Y3: Forecast | Z3: Forecast
B4: Period ending | D4: =C36 -> 1999-12-31 | E4: =EOMONTH(D4,$C$38) -> 2000-12-31 | F4: 2001-12-31 | G4: 2002-12-31 | H4: 2003-12-31 | I4: 2004-12-31 | J4: 2005-12-31 | K4: 2006-12-31 | L4: 2007-12-31 | M4: 2008-12-31 | N4: 2009-12-31 | O4: =EOMONTH(N4,6) -> 2010-06-30 | P4: =EOMONTH(O4,$C$38) -> 2011-06-30 | Q4: =EOMONTH(P4,$C$38) -> 2012-06-30 | R4: =EOMONTH(Q4,$C$38) -> 2013-06-30 | S4: =EOMONTH(R4,$C$38) -> 2014-06-30 | T4: =EOMONTH(S4,6) -> 2014-12-31 | U4: =EOMONTH(T4,6) -> 2015-06-30 | V4: =EOMONTH(T4,$C$38) -> 2015-12-31 | W4: =EOMONTH(V4,$C$38) -> 2016-12-31 | X4: 2017-12-31 | Y4: 2018-12-31 | Z4: 2019-12-31
B5: Days in period | E5: =E4-D4 -> 366 | F5: =F4-E4 -> 365 | G5: =G4-F4 -> 365 | H5: 365 | I5: 366 | J5: 365 | K5: 365 | L5: 365 | M5: 366 | N5: 365 | O5: 181 | P5: 365 | Q5: 366 | R5: 365 | S5: 365 | T5: 184 | U5: 181 | V5: 184 | W5: 366 | X5: 365 | Y5: 365 | Z5: 365
B6: Year fraction for depreciation | E6: =ROUND(E$5/$C$37,1) -> 1 | F6: 1 | G6: 1 | H6: 1 | I6: 1 | J6: 1 | K6: 1 | L6: 1 | M6: 1 | N6: 1 | O6: 0.5 | P6: 1 | Q6: 1 | R6: 1 | S6: 1 | T6: 0.5 | U6: 0.5 | V6: 0.5 | W6: 1 | X6: 1 | Y6: 1 | Z6: 1
B7: Access Arrangement | E7: AA1 | F7: =E7 -> AA1 | G7: =F7 -> AA1 | H7: =G7 -> AA1 | I7: =H7 -> AA1 | J7: AA2 | K7: =J7 -> AA2 | L7: =K7 -> AA2 | M7: =L7 -> AA2 | N7: =M7 -> AA2 | O7: AA3 | P7: =O7 -> AA3 | Q7: =P7 -> AA3 | R7: =Q7 -> AA3 | S7: =R7 -> AA3 | T7: AA4 | U7: =T7 -> AA4 | V7: AA4 | W7: AA4 | X7: AA4 | Y7: AA4 | Z7: AA4
B13: Checks
B14: Closing Assets Base - ICB | C14: =SUM(N14:Z14) -> 0 | E14: =ICB_at_2000!E746 -> 0 | F14: =ICB_at_2000!F746 -> 0 | G14: =ICB_at_2000!G746 -> 0 | H14: =ICB_at_2000!H746 -> 0 | I14: =ICB_at_2000!I746 -> 0 | J14: =ICB_at_2000!J746 -> 0 | K14: =ICB_at_2000!K746 -> 0 | L14: =ICB_at_2000!L746 -> 0 | M14: =ICB_at_2000!M746 -> 0 | N14: =ICB_at_2000!N746 -> 0 | O14: =ICB_at_2000!O746 -> 0 | P14: =ICB_at_2000!P746 -> 0 | Q14: =ICB_at_2000!Q746 -> 0 | R14: =ICB_at_2000!R746 -> 0 | S14: =ICB_at_2000!S746 -> 0 | T14: =ICB_at_2000!T746 -> 0 | U14: =ICB_at_2000!U746 -> 0 | V14: =ICB_at_2000!V746 -> 0 | W14: =ICB_at_2000!W746 -> 0 | X14: =ICB_at_2000!X746 -> 0 | Y14: =ICB_at_2000!Y746 -> 0 | Z14: =ICB_at_2000!Z746 -> 0
B15: Closing Assets Base - Vines | C15: =SUM(N15:Z15) -> 0 | E15: =Vines!E746 -> 0 | F15: =Vines!F746 -> 0 | G15: =Vines!G746 -> 0 | H15: =Vines!H746 -> 0 | I15: =Vines!I746 -> 0 | J15: =Vines!J746 -> 0 | K15: =Vines!K746 -> 0 | L15: =Vines!L746 -> 0 | M15: =Vines!M746 -> 0 | N15: =Vines!N746 -> 0 | O15: =Vines!O746 -> 0 | P15: =Vines!P746 -> 0 | Q15: =Vines!Q746 -> 0 | R15: =Vines!R746 -> 0 | S15: =Vines!S746 -> 0 | T15: =Vines!T746 -> 0 | U15: =Vines!U746 -> 0 | V15: =Vines!V746 -> 0 | W15: =Vines!W746 -> 0 | X15: =Vines!X746 -> 0 | Y15: =Vines!Y746 -> 0 | Z15: =Vines!Z746 -> 0
B16: Closing Assets Base - WestNet | C16: =SUM(N16:Z16) -> 0 | E16: =WestNet!E746 -> 0 | F16: =WestNet!F746 -> 0 | G16: =WestNet!G746 -> 0 | H16: =WestNet!H746 -> 0 | I16: =WestNet!I746 -> 0 | J16: =WestNet!J746 -> 0 | K16: =WestNet!K746 -> 0 | L16: =WestNet!L746 -> 0 | M16: =WestNet!M746 -> 0 | N16: =WestNet!N746 -> 0 | O16: =WestNet!O746 -> 0 | P16: =WestNet!P746 -> 0 | Q16: =WestNet!Q746 -> 0 | R16: =WestNet!R746 -> 0 | S16: =WestNet!S746 -> 0 | T16: =WestNet!T746 -> 0 | U16: =WestNet!U746 -> 0 | V16: =WestNet!V746 -> 0 | W16: =WestNet!W746 -> 0 | X16: =WestNet!X746 -> 0 | Y16: =WestNet!Y746 -> 0 | Z16: =WestNet!Z746 -> 0
B17: Closing Assets Base - Capex 2000 to 2019 | C17: =SUM(E17:Z17) -> 0 | E17: ='2000'!$C$746 -> 0 | F17: ='2001'!$C$746 -> 0 | G17: ='2002'!$C$746 -> 0 | H17: ='2003'!$C$746 -> 0 | I17: ='2004'!$C$746 -> 0 | J17: ='2005'!$C$746 -> 0 | K17: ='2006'!$C$746 -> 0 | L17: ='2007'!$C$746 -> 0 | M17: ='2008'!$C$746 -> 0 | N17: ='2009'!$C$746 -> 0 | O17: ='2010 Jan-Jun'!C746 -> 0 | P17: ='2011'!$C$746 -> 0 | Q17: ='2012'!$C$746 -> 0 | R17: ='2013'!$C$746 -> 0 | S17: ='2014'!$C$746 -> 0 | T17: ='2014_Jul-Dec'!C746 -> 0 | U17: ='2015_Jan-Jun'!C746 -> 0 | V17: ='2015_Jan-Jun'!C746 -> 0 | W17: ='2016'!$C$746 -> 0 | X17: ='2017'!$C$746 -> 0 | Y17: ='2018'!$C$746 -> 0 | Z17: ='2019'!$C$746 -> 0
B21: Legend
B22: Input cells | C22: xxxx
B23: Formulae | C23: xxxx
B24: Cell linked to external files | C24: xxxx
B25: Cell contains hard-coding or intended inconsistent formula
B26: Cell value the result of running a macro or goal seek function
B27: No formula required
B29: Reconciliation to Closing RAB in AA3
B30: Closing RAB - from ERA Final Approval tariff model (AA3) | D30: $, Dec 2009 | I30: 762.0265987 | J30: 760.893918 | K30: 763.5753744 | L30: 766.2632103 | M30: 768.2306242 | N30: 781.8594427
D31: $, Jun 2014 | I31: =I30*$N$80 -> 855.7647594 | J31: 854.4927457 | K31: 857.5040524 | L31: 860.5225236 | M31: 862.7319523 | N31: 878.0372744
B32: Closing RAB - from this model | I32: =RAB_Summary!I21 -> 855.7647594 | J32: =RAB_Summary!J21 -> 854.4927457 | K32: =RAB_Summary!K21 -> 857.5040524 | L32: =RAB_Summary!L21 -> 860.5225236 | M32: =RAB_Summary!M21 -> 862.7319523 | N32: =RAB_Summary!N21 -> 878.0372744
B33: Variance | I33: =I32-I31 -> 0 | J33: 0 | K33: 0 | L33: 0 | M33: 0 | N33: 0
B35: General Assumptions
B36: Model start | C36: 1999-12-31
B37: Days in year | C37: 365
B38: Months in year | C38: 12
B40: AA4 Tariff start | C40: 2015-07-01
B48: Rate Path Proportion Applied per Period
B49: Rate Path Proportion Applied per Period | U49: 0 | V49: 1 | W49: 1 | X49: 1 | Y49: 1 | Z49: 1
B51: Weighted Average Cost of Capital (WACC)
B53: Weighted Average Cost of Capital (WACC)
T54: Proposed AA4
B56: Inflation Rate (I) | T56: 0.025
B57: Debt Proportion (D) | T57: 0.6
B58: Equity Proportion (E) | T58: =1-T57 -> 0.4
B59: Corporate Tax Rate (T) | T59: 0.3
B60: Franking Credit (g) | T60: 0.25
B62: Debt
B63: Nominal Cost of Debt (DPn) | T63: 0.0573
B65: Equity
B66: Nominal After Tax Cost of Equity (EAn) | T66: 0.1051
B68: WACC: Vanilla
B69: Nominal After Tax WACC | T69: =T57*T63+T58*T66 -> 0.07642
B72: Inflation
B73: Forecast Inflation | T73: 0.025 | U73: =T73 -> 0.025 | V73: =U73 -> 0.025 | W73: =V73 -> 0.025 | X73: 0.025 | Y73: 0.025 | Z73: 0.025
E74: =YEAR(E4) -> 2000 | F74: 2001 | G74: 2002 | H74: 2003 | I74: 2004 | J74: 2005 | K74: 2006 | L74: 2007 | M74: 2008 | N74: 2009 | O74: 2010 | P74: 2011 | Q74: 2012 | R74: 2013 | S74: 2014 | T74: 2014 | U74: 2015 | V74: 2015 | W74: 2016 | X74: 2017 | Y74: 2018 | Z74: 2019
B75: June CPI All Groups, 8 Capital Cities | E75: 126.2 | F75: 133.8 | G75: 137.6 | H75: 141.3 | I75: 144.8 | J75: 148.4 | K75: 154.3 | L75: 157.5 | M75: 164.6 | N75: 167 | O75: 172.1 | P75: 178.3 | Q75: 180.4
B76: June CPI All Groups, 8 Capital Cities - referenced Sep 2012 | E76: 70.2 | F76: 74.5 | G76: 76.6 | H76: 78.6 | I76: 80.6 | J76: 82.6 | K76: 85.9 | L76: 87.7 | M76: 91.6 | N76: 92.9 | O76: 95.8 | P76: 99.2 | Q76: 100.4 | R76: 102.8 | S76: 105.9 | U76: =S76*(1+$U$73) -> 108.5475 | W76: =U76*(1+W$73) -> 111.2611875 | X76: =W76*(1+X$73) -> 114.0427172 | Y76: =X76*(1+Y$73) -> 116.8937851 | Z76: 119.8161297
B77: Escalation/de-escalation factor to 30 June 2014 | E77: =$N$75/E75*$N$77 -> 1.508472379 | F77: 1.422789344 | G77: 1.383497196 | H77: 1.34726974 | I77: 1.314704518 | J77: 1.282811417 | K77: 1.233760299 | L77: 1.208693424 | M77: =$N$75/M75*$N$77 -> 1.156556587 | N77: =$S$76/N76 -> 1.139935414 | O77: 1.105427975 | P77: 1.067540323 | Q77: 1.054780876 | R77: 1.030155642 | S77: =$S$76/S76 -> 1 | U77: =$S$76/U76 -> 0.9756097561 | W77: =$S$76/W76 -> 0.9518143962 | X77: 0.9285994109 | Y77: 0.9059506448 | Z77: 0.8838542876
B78: December CPI All Groups, 8 Capital Cities | D78: 124.1 | E78: 131.3 | F78: 135.4 | G78: 139.5 | H78: 142.8 | I78: 146.5 | J78: 150.6 | K78: 155.5 | L78: 160.1 | M78: 166 | N78: 169.5
B79: December CPI All Groups, 8 Capital Cities - referenced Sep 2012 | D79: 69.1 | E79: 73.1 | F79: 75.4 | G79: 77.6 | H79: 79.5 | I79: 81.5 | J79: 83.8 | K79: 86.6 | L79: 89.1 | M79: 92.4 | N79: 94.3 | O79: 96.9 | P79: 99.8 | Q79: 102 | R79: 104.8 | T79: =S76*(1+$T$73)^0.5 -> 107.2155784 | V79: =T79*(1+V$73) -> 109.8959679 | W79: =V79*(1+W$73) -> 112.643367 | X79: =W79*(1+X$73) -> 115.4594512 | Y79: 118.3459375 | Z79: 121.3045859
B80: Escalation/de-escalation factor to 30 June 2014 | D80: =$N$78/D78*$N$80 -> 1.53384752 | E80: 1.449737069 | F80: 1.405838089 | G80: 1.36451955 | H80: 1.332986535 | I80: 1.299320663 | J80: =$N$78/J78*$N$80 -> 1.263947392 | K80: =$N$78/K78*$N$80 -> 1.224118824 | L80: =$N$78/L78*$N$80 -> 1.18894739 | M80: =$N$78/M78*N80 -> 1.146689622 | N80: =$S$76/N79 -> 1.123011665 | O80: 1.092879257 | P80: 1.061122244 | Q80: 1.038235294 | R80: 1.010496183 | S80: =S77 -> 1 | T80: =$S$76/T79 -> 0.9877295966 | U80: =V80 -> 0.9636386309 | V80: =$S$76/V79 -> 0.9636386309 | W80: 0.9401352496 | X80: 0.9172051216 | Y80: 0.894834265 | Z80: 0.873009039
B82: Net connections
B84: Net Connections (including customers receiving prudent discounts)
B85: (Number)
B87: Tariff class A1 | J87: =SUM(J97+J108) -> 70.5 | K87: 72.5 | L87: 71.75 | M87: 74.08333333 | N87: 75.16666667 | O87: 75.33333333 | P87: 75.16666667 | Q87: 72.91666667 | R87: 75.66666667 | S87: 74.5 | T87: =T97+T108 -> 73 | U87: 73.22259347 | V87: 73.66778041 | W87: 73.83564191 | X87: 73.72625894 | Y87: 73.61703779 | Z87: 73.50797823
B88: Tariff class A2 | J88: =SUM(J98+J109) -> 93 | K88: 96 | L88: 95.75 | M88: 98.41666667 | N88: 99.66666667 | O88: 102.1666667 | P88: 105 | Q88: 112.5 | R88: 109.0833333 | S88: 107.5 | T88: 106.5 | U88: 109.0213537 | V88: 113.0640611 | W88: 117.1485238 | X88: 121.2955428 | Y88: 125.4845704 | Z88: 129.7164287
B89: Tariff class B1 | J89: 1074 | K89: 1084.5 | L89: 1109.666667 | M89: 1135 | N89: 1187.25 | O89: 1225.166667 | P89: 1258.833333 | Q89: 1298.916667 | R89: 1335.416667 | S89: 1365 | T89: 1399.709674 | U89: 1425.891022 | V89: 1450.834373 | W89: 1489.007194 | X89: 1541.192307 | Y89: 1594.968923 | Z89: 1650.389608
B90: Tariff class B2 | J90: 5988 | K90: 5810 | L90: 6211.75 | M90: 6660.833333 | N90: 7250.166667 | O90: 7702.5 | P90: 8110.083333 | Q90: 8713.75 | R90: 9267.25 | S90: 9801.5 | T90: 10228.96011 | U90: 10457.26229 | V90: 10625.94643 | W90: 10873.25475 | X90: 11192.98775 | Y90: 11499.89579 | Z90: 11793.18225
B91: Tariff class B3 | J91: 515677.5 | K91: 536107.5 | L91: 556833.0833 | M91: 574250.25 | N91: 589879.8333 | O91: 601247 | P91: 614525 | Q91: 629900.5833 | R91: 642710.8333 | S91: 657672.5 | T91: 670359.0245 | U91: 678372.8157 | V91: 686430.3489 | W91: 698689.0845 | X91: 715146.815 | Y91: 730154.1387 | Z91: 743577.9673
J92: =SUM(J87:J91) -> 522903 | K92: 543170.5 | L92: 564322 | M92: 582218.5833 | N92: 598492.0833 | O92: 610352.1667 | P92: 624074.0833 | Q92: 640098.6667 | R92: 653498.25 | S92: 669021 | T92: =SUM(T87:T91) -> 682167.1943 | U92: =SUM(U87:U91) -> 690438.2129 | V92: 698693.8615 | W92: 711242.3306 | X92: 728076.0169 | Y92: 743448.1051 | Z92: 757224.7636
B94: Delivery points (excluding customers receiving prudent discounts)
B95: (Average for period)
B97: Tariff class A1 | J97: 41.5 | K97: 42 | L97: 42.25 | M97: 46.08333333 | N97: 48.16666667 | O97: 50.33333333 | P97: 53.16666667 | Q97: 55.91666667 | R97: 62.66666667 | S97: 64.5 | T97: 65 | U97: 65.22259347 | V97: 65.66778041 | W97: 65.83564191 | X97: 65.72625894 | Y97: 65.61703779 | Z97: 65.50797823
B98: Tariff class A2 | J98: 81 | K98: 84.5 | L98: 85.75 | M98: 90.91666667 | N98: 94.66666667 | O98: 97.16666667 | P98: 101 | Q98: 109.5 | R98: 106.5833333 | S98: 104.5 | T98: 102.5 | U98: 105.0213537 | V98: 109.0640611 | W98: 113.1485238 | X98: 117.2955428 | Y98: 121.4845704 | Z98: 125.7164287
B99: Tariff class B1 | J99: 1070 | K99: 1080.5 | L99: 1105.666667 | M99: 1131 | N99: 1183.75 | O99: 1222.166667 | P99: 1256.333333 | Q99: 1297.416667 | R99: 1334.416667 | S99: 1364 | T99: 1398.709674 | U99: 1424.891022 | V99: 1449.834373 | W99: 1488.007194 | X99: 1540.192307 | Y99: 1593.968923 | Z99: 1649.389608
B100: Tariff class B2 | J100: 5983 | K100: 5805 | L100: 6206.75 | M100: 6655.833333 | N100: 7245.160987 | O100: 7697.5 | P100: 8105.083333 | Q100: 8708.75 | R100: 9262.25 | S100: 9797 | T100: 10225.96011 | U100: 10455.26229 | V100: 10623.94643 | W100: 10871.25475 | X100: 11190.98775 | Y100: 11497.89579 | Z100: 11791.18225
B101: Tariff class B3 | J101: 515676.5 | K101: 536106.5 | L101: 556832.0833 | M101: 574249.25 | N101: 589878.8333 | O101: 601246 | P101: 614524 | Q101: 629899.5833 | R101: 642709.8333 | S101: 657671.5 | T101: 670358.0245 | U101: 678371.8157 | V101: 686429.3489 | W101: 698688.0845 | X101: 715145.815 | Y101: 730153.1387 | Z101: 743576.9673
J103: 522852 | K103: 543118.5 | L103: 563559.5 | M103: =SUM(M97:M101) -> 582173.0833 | N103: =SUM(N97:N102) -> 598450.5777 | O103: 610313.1667 | P103: 624039.5833 | Q103: 640071.1667 | R103: 653475.75 | S103: 669001.5 | T103: 682150.1943 | U103: 690422.2129 | V103: 698677.8615 | W103: 711226.3306 | X103: 728060.0169 | Y103: 743432.1051 | Z103: 757208.7636
B105: Customers receiving prudent discounts
B106: (Average for period)
B108: Tariff class A1 | J108: 29 | K108: 30.5 | L108: 29.5 | M108: 28 | N108: 27 | O108: 25 | P108: 22 | Q108: 17 | R108: 13 | S108: 10 | T108: 8 | U108: 8 | V108: 8 | W108: 8 | X108: 8 | Y108: 8 | Z108: 8
B109: Tariff class A2 | J109: 12 | K109: 11.5 | L109: 10 | M109: 7.5 | N109: 5 | O109: 5 | P109: 4 | Q109: 3 | R109: 2.5 | S109: 3 | T109: 4 | U109: 4 | V109: 4 | W109: 4 | X109: 4 | Y109: 4 | Z109: 4
B110: Tariff class B1 | J110: 4 | K110: 4 | L110: 4 | M110: 4 | N110: 3.5 | O110: 3 | P110: 2.5 | Q110: 1.5 | R110: 1 | S110: 1 | T110: 1 | U110: 1 | V110: 1 | W110: 1 | X110: 1 | Y110: 1 | Z110: 1
B111: Tariff class B2 | J111: 5 | K111: 5 | L111: 5 | M111: 5 | N111: 5.005679466 | O111: 5 | P111: 5 | Q111: 5 | R111: 5 | S111: 4.5 | T111: 3 | U111: 2 | V111: 2 | W111: 2 | X111: 2 | Y111: 2 | Z111: 2
B112: Tariff class B3 | J112: 1 | K112: 1 | L112: 1 | M112: 1 | N112: 1 | O112: 1 | P112: 1 | Q112: 1 | R112: 1 | S112: 1 | T112: 1 | U112: 1 | V112: 1 | W112: 1 | X112: 1 | Y112: 1 | Z112: 1
J114: =SUM(J108:J113) -> 51 | K114: 52 | L114: 49.5 | M114: 45.5 | N114: 41.50567947 | O114: 39 | P114: 34.5 | Q114: 27.5 | R114: 22.5 | S114: 19.5 | T114: 17 | U114: 16 | V114: 16 | W114: 16 | X114: 16 | Y114: 16 | Z114: 16
B116: Gas volumes
B118: Gas volumes (including customers receiving prudent discounts)
B119: Tariff class A1 | C119: TJ | J119: 16191.68504 | K119: 15869.0038 | L119: 15598.22976 | M119: 12346.21771 | N119: 12468.62562 | O119: 6031.337349 | P119: 12506.98168 | Q119: 12071.65486 | R119: 11296.60722 | S119: =S129+S139 -> 11362.13068 | T119: 6016.711231 | U119: 5711.222971 | V119: 5861.545558 | W119: 11720.09339 | X119: 11883.21186 | Y119: 12105.15747 | Z119: 12350.31262
B120: Tariff class A2 | C120: TJ | J120: 2239.295585 | K120: 2067.887482 | L120: 2102.575494 | M120: 1952.50204 | N120: 1895.69783 | O120: 936.9033746 | P120: 1923.253069 | Q120: 2092.299763 | R120: 2040.058109 | S120: 1927.568029 | T120: 995.5267172 | U120: 951.9922836 | V120: 1030.752961 | W120: 2092.394469 | X120: 2184.156772 | Y120: 2288.724423 | Z120: 2400.154616
B121: Tariff class B1 | C121: TJ | J121: 1890.602 | K121: 1703.088083 | L121: 1694.774471 | M121: 1606.85742 | N121: 1607.679236 | O121: 745.5632319 | P121: 1594.631345 | Q121: 1553.663922 | R121: 1640.269951 | S121: 1629.429407 | T121: 874.6517102 | U121: 759.3064831 | V121: 912.3203037 | W121: 1706.344925 | X121: 1754.091464 | Y121: 1808.694335 | Z121: 1866.278421
B122: Tariff class B2 | C122: TJ | J122: 1068.909 | K122: 1109.032828 | L122: 1137.421684 | M122: 1161.745532 | N122: 1168.14537 | O122: 552.7825543 | P122: 1168.679282 | Q122: 1189.664699 | R122: 1232.063588 | S122: 1255.113315 | T122: 647.0438672 | U122: 581.5602193 | V122: 668.2232323 | W122: 1242.812497 | X122: 1242.745921 | Y122: 1244.571965 | Z122: 1245.361551
B123: Tariff class B3 | C123: TJ | J123: 10302.854 | K123: 9974.977966 | L123: 10179.50593 | M123: 10455.39623 | N123: 10539.64858 | O123: 4589.274683 | P123: 9769.765074 | Q123: 9645.962254 | R123: 9905.950696 | S123: 9840.84139 | T123: 5153.601739 | U123: 4278.385285 | V123: 5580.336359 | W123: 10007.80418 | X123: 10188.28275 | Y123: 10372.8119 | Z123: 10530.47206
C125: TJ | J125: =SUM(J119:J124) -> 31693.34562 | K125: 30723.99016 | L125: 30712.50734 | M125: 27522.71894 | N125: 27679.79664 | O125: 12855.86119 | P125: 26963.31045 | Q125: 26553.2455 | R125: 26114.94957 | S125: 26015.08283 | T125: =SUM(T119:T124) -> 13687.53526 | U125: 12282.46724 | V125: 14053.17841 | W125: 26769.44947 | X125: 27252.48876 | Y125: 27819.9601 | Z125: 28392.57927
D126: check | J126: =J135+J145-J125 -> 0 | K126: 0 | L126: 0 | M126: 0 | N126: 0 | O126: 0 | P126: 0 | Q126: 0 | R126: 0 | S126: 0 | T126: =T135+T145-T125 -> 0 | U126: 0 | V126: 0 | W126: 0 | X126: 0 | Y126: 0 | Z126: 0
B128: Volumes delivered to customers receiving prudent discounts
B129: Tariff class A1 | C129: TJ | J129: 11296.79104 | K129: 10770.79694 | L129: 10046.80686 | M129: 6706.363037 | N129: 6698.016096 | O129: 3042.31029 | P129: 5445.208718 | Q129: 3509.122373 | R129: 2818.078397 | S129: 2692.272436 | T129: 1431.873289 | U129: 1277.806875 | V129: 1270.225033 | W129: 1924.518392 | X129: 1916.771167 | Y129: 1954.628082 | Z129: 1996.443811
B130: Tariff class A2 | C130: TJ | J130: 365.01537 | K130: 329.50928 | L130: 350.3708742 | M130: 243.118209 | N130: 152.90018 | O130: 49.906037 | P130: 107.037905 | Q130: 72.247343 | R130: 56.564383 | S130: 43.053627 | T130: 26.49412399 | U130: 24.51092675 | V130: 25.75786884 | W130: 51.10681828 | X130: 42.06514565 | Y130: 43.11646099 | Z130: 44.65072134
B131: Tariff class B1 | C131: TJ | J131: 10.517 | K131: 10.376937 | L131: 9.848621 | M131: 8.315272 | N131: 6.231327 | O131: 1.809206 | P131: 2.437706 | Q131: 7.6e-05 | R131: 0 | S131: 0 | T131: 0 | U131: 0 | V131: 0 | W131: 0 | X131: 0 | Y131: 0 | Z131: 0
B132: Tariff class B2 | C132: TJ | J132: 4.309 | K132: 2.181383 | L132: 1.49993363 | M132: 1.762489236 | N132: 1.362318657 | O132: 0.6762485319 | P132: 1.552011171 | Q132: 1.196401906 | R132: 0.4597468801 | S132: 0.4452877621 | T132: 0.3682131392 | U132: 0.5595693524 | V132: 0.503193348 | W132: 1.06617085 | X132: 1.062764693 | Y132: 1.062764163 | Z132: 1.062789987
B133: Tariff class B3 | C133: TJ | J133: 0.5 | K133: 0 | L133: 8.302330608 | M133: 0.1301428462 | N133: 0.000747 | O133: 0.003496266667 | P133: -0.001665266667 | Q133: 0.001401 | R133: 0.000307 | S133: 0.000113 | T133: 0.002366478195 | U133: 0.00700426576 | V133: 0.007099335477 | W133: 0.01414240787 | X133: 0.01410360124 | Y133: 0.01410360124 | Z133: 0.01410360124
C135: TJ | J135: =SUM(J129:J134) -> 11677.13241 | K135: 11112.86454 | L135: 10416.82861 | M135: 6959.68915 | N135: 6858.510668 | O135: 3094.705278 | P135: 5556.234675 | Q135: 3582.567595 | R135: 2875.102834 | S135: 2735.771464 | T135: =SUM(T129:T134) -> 1458.737993 | U135: 1302.884375 | V135: 1296.493195 | W135: 1976.705523 | X135: 1959.913181 | Y135: 1998.821411 | Z135: 2042.171426
B137: Gas volumes (excluding customers receiving prudent discounts)
B139: Tariff class A1 | C139: TJ | J139: =J119-J129 -> 4894.893999 | K139: 5098.206856 | L139: 5551.422909 | M139: 5639.854677 | N139: 5770.609523 | O139: 2989.027059 | P139: 7061.772958 | Q139: 8562.532485 | R139: 8478.528824 | S139: 8669.858249 | T139: =T119-T129 -> 4584.837941 | U139: 4433.416096 | V139: 4591.320525 | W139: 9795.575002 | X139: 9966.440689 | Y139: 10150.52939 | Z139: 10353.86881
B140: Tariff class A2 | C140: TJ | J140: 1874.280215 | K140: 1738.378202 | L140: 1752.20462 | M140: 1709.383831 | N140: 1742.79765 | O140: 886.9973376 | P140: 1816.215164 | Q140: 2020.05242 | R140: 1983.493726 | S140: 1884.514402 | T140: 969.0325932 | U140: 927.4813569 | V140: 1004.995092 | W140: 2041.28765 | X140: 2142.091626 | Y140: 2245.607962 | Z140: 2355.503895
B141: Tariff class B1 | C141: TJ | J141: 1880.085 | K141: 1692.711146 | L141: 1684.92585 | M141: 1598.542148 | N141: 1601.447909 | O141: 743.7540259 | P141: 1592.193639 | Q141: 1553.663846 | R141: 1640.269951 | S141: 1629.429407 | T141: 874.6517102 | U141: 759.3064831 | V141: 912.3203037 | W141: 1706.344925 | X141: 1754.091464 | Y141: 1808.694335 | Z141: 1866.278421
B142: Tariff class B2 | C142: TJ | J142: 1064.6 | K142: 1106.851445 | L142: 1135.92175 | M142: 1159.983043 | N142: 1166.783051 | O142: 552.1063057 | P142: 1167.127271 | Q142: 1188.468297 | R142: 1231.603841 | S142: 1254.668028 | T142: 646.6756541 | U142: 581.00065 | V142: 667.7200389 | W142: 1241.746326 | X142: 1241.683156 | Y142: 1243.509201 | Z142: 1244.298761
B143: Tariff class B3 | C143: TJ | J143: 10302.354 | K143: 9974.977966 | L143: 10171.2036 | M143: 10455.26609 | N143: 10539.64783 | O143: 4589.271187 | P143: 9769.766739 | Q143: 9645.960853 | R143: 9905.950389 | S143: 9840.841277 | T143: 5153.599373 | U143: 4278.37828 | V143: 5580.32926 | W143: 10007.79004 | X143: 10188.26864 | Y143: 10372.7978 | Z143: 10530.45796
C145: TJ | J145: =SUM(J139:J144) -> 20016.21321 | K145: 19611.12562 | L145: 20295.67873 | M145: 20563.02979 | N145: 20821.28597 | O145: 9761.155915 | P145: 21407.07577 | Q145: 22970.6779 | R145: 23239.84673 | S145: 23279.31136 | T145: =SUM(T139:T144) -> 12228.79727 | U145: 10979.58287 | V145: 12756.68522 | W145: 24792.74395 | X145: 25292.57558 | Y145: 25821.13869 | Z145: 26350.40785
B147: Average consumption (excl customers receiving prudent discounts)
B148: (Terajoules per reference tariff customer per annum)
B149: Tariff class A1 | C149: TJ | J149: N/A | K149: N/A | L149: N/A | M149: N/A | N149: N/A | O149: N/A | P149: N/A | Q149: N/A | R149: N/A | S149: N/A | T149: N/A | U149: N/A | V149: N/A | W149: N/A | X149: N/A | Y149: N/A | Z149: N/A
B150: Tariff class A2 | C150: TJ | J150: =J140/J98 -> 23.13926191 | K150: 20.5725231 | L150: 20.43387312 | M150: 18.80165534 | N150: 18.40983433 | O150: 9.12861754 | P150: 17.98232836 | Q150: 18.44796731 | R150: 18.60979258 | S150: 18.03363064 | T150: 9.453976519 | U150: 8.83135976 | V150: 9.214722819 | W150: 18.04078022 | X150: 18.26234463 | Y150: 18.48471748 | Z150: 18.73664341
B151: Tariff class B1 | C151: TJ | J151: =J141/J99 -> 1.757088785 | K151: 1.566599857 | L151: 1.523900376 | M151: 1.413388283 | N151: 1.352859902 | O151: 0.6085536827 | P151: 1.267333753 | Q151: 1.197505694 | R151: 1.229203735 | S151: 1.19459634 | T151: 0.6253275621 | U151: 0.5328874076 | V151: 0.6292582936 | W151: 1.146731637 | X151: 1.138878214 | Y151: 1.134711165 | Z151: 1.13149641
B152: Tariff class B2 | C152: TJ | J152: =J142/J100 -> 0.1779374896 | K152: 0.1906720836 | L152: 0.1830139365 | M152: 0.1742806625 | N152: 0.1610430815 | O152: 0.0717254051 | P152: 0.1439994165 | Q152: 0.1364682988 | R152: 0.1329702655 | S152: 0.1280665538 | T152: 0.06323862476 | U152: 0.05557016494 | V152: 0.06285047116 | W152: 0.1142229076 | X152: 0.1109538482 | Y152: 0.1081510238 | Z152: 0.1055279051
B153: Tariff class B3 | C153: TJ | J153: =J143/J101 -> 0.0199783275 | K153: 0.01860633655 | L153: 0.01826619533 | M153: 0.01820684326 | N153: 0.01786747928 | O153: 0.007632934251 | P153: 0.01589810445 | Q153: 0.01531348981 | R153: 0.01541278797 | S153: 0.01496315604 | T153: 0.007687831255 | U153: 0.006306833777 | V153: 0.008129502722 | W153: 0.01432368787 | X153: 0.0142464214 | Y153: 0.01420633186 | Z153: 0.01416189368
B155: Reference tariff
S156: As at 1 Jul 2013 | T156: As at 1 Jan 2014 | U156: As at 1 July 2014 | V156: As at 1 Jan 2015
B157: Reference tariff A1 | S157: excl carbon tax | T157: incl carbon tax | U157: No carbon tax | V157: No carbon tax
B158: Standing charge | C158: $/year | J158: 44263.05 | K158: 44734.3 | L158: 44286.96 | M158: 44286.96 | N158: 44286.96 | O158: 44286.96 | P158: 44286.96 | Q158: 41283.45 | R158: 45308.99444 | S158: 46738.99 | T158: 46742.54 | U158: 46742.47 | V158: 46742.47
B159: Demand charge
B160: First 10 km | C160: $/GJ km | J160: 182.73 | K160: 184.71 | L160: 182.86 | M160: 182.86 | N160: 182.86 | O160: 182.86 | P160: 182.86 | Q160: 174.02 | R160: 190.9826186 | S160: 197.0028843 | T160: 197.0028843 | U160: 197.0028843 | V160: 197.0028843
B161: Distance > 10 km | C161: $/GJ km | J161: 91.36 | K161: 92.35 | L161: 91.43 | M161: 91.43 | N161: 91.43 | O161: 91.43 | P161: 91.43 | Q161: 91.59 | R161: 100.5221915 | S161: 103.6909149 | T161: 103.6909149 | U161: 103.6909149 | V161: 103.6909149
B162: Usage charge
B163: First 10 km | C163: $/GJ km | J163: 0.04454 | K163: 0.04502 | L163: 0.0446 | M163: 0.0446 | N163: 0.0446 | O163: 0.0446 | P163: 0.0446 | Q163: 0.03691 | R163: 0.04051864027 | S163: 0.0417958996 | T163: 0.0417958996 | U163: 0.0417958996 | V163: 0.0417958996
B164: Distance > 10 km | C164: $/GJ km | J164: 0.02225 | K164: 0.02249 | L164: 0.0223 | M164: 0.0223 | N164: 0.0223 | O164: 0.0223 | P164: 0.0223 | Q164: 0.01845 | R164: 0.02024331861 | S164: 0.02088143965 | T164: 0.02088143965 | U164: 0.02088143965 | V164: 0.02088143965
B165: Carbon Tax | C165: $/GJ | T165: 0.02098 | U165: 0 | V165: 0
B167: Reference tariff A2
B168: Standing charge | C168: $/Year | J168: 502.98 | K168: 508.18 | L168: 526.04 | M168: 526.04 | N168: 556.13 | O168: 556.13 | P168: 556.13 | Q168: 22854.58 | R168: 25083.20134 | S168: 25875.63257 | T168: 25879.18 | U168: 25879.11 | V168: 25879.11
B169: First 10 TJ | C169: $/GJ | J169: 4.64 | K169: 4.69 | L169: 4.85 | M169: 4.85 | N169: 4.89 | O169: 4.89 | P169: 4.89 | Q169: 2.2 | R169: 2.441348541 | S169: 2.498241459 | T169: 2.52 | U169: 2.5 | V169: 2.5
B170: Volume > 10 TJ | C170: $/GJ | J170: 1.16 | K170: 1.17 | L170: 1.21 | M170: 1.21 | N170: 1.21 | O170: 1.21 | P170: 1.21 | Q170: 1.19 | R170: 1.31534932 | S170: 1.336739347 | T170: 1.36 | U170: 1.34 | V170: 1.34
B172: Reference tariff B1
B173: Standing charge | C173: $/Year | J173: 502.98 | K173: 508.18 | L173: 526.04 | M173: 526.04 | N173: 556.13 | O173: 556.13 | P173: 556.13 | Q173: 1146.76 | R173: 1258.749874 | S173: 1300.172191 | T173: 1303.72 | U173: 1303.65 | V173: 1303.65
B174: First 5 TJ | C174: $/GJ | J174: 4.64 | K174: 4.69 | L174: 4.85 | M174: 4.85 | N174: 4.89 | O174: 4.89 | P174: 4.89 | Q174: 4.41 | R174: 4.948251373 | S174: 4.983678433 | T174: 5.1 | U174: 4.98 | V174: 4.98
B175: Volume > 5 TJ | C175: $/GJ | J175: 1.16 | K175: 4.45 | L175: 4.6 | M175: 4.6 | N175: 4.6 | O175: 4.6 | P175: 4.6 | Q175: 3.78 | R175: 4.262628522 | S175: 4.276447971 | T175: 4.39 | U175: 4.27 | V175: 4.27
B177: Reference tariff B2
B178: Standing charge | C178: $/Year | P178: 223.02 | Q178: 283.78 | R178: 311.6321006 | S178: 323.1987957 | T178: 326.74 | U178: 326.67 | V178: 326.67 | W178: 332.77 | X178: new standing charge based on connection cost
B179: First 100 GJ | C179: $/GJ | P179: 5.66 | Q179: 7.33 | R179: 8.1775679 | S179: 8.31470743 | T179: 8.42 | U179: 8.31 | V179: 8.31
B180: Volume > 100 GJ | C180: $/GJ | P180: 4.84 | Q180: 4.36 | R180: 4.913136703 | S180: 4.947367672 | T180: 5.06 | U180: 4.95 | V180: 4.95
B182: Reference tariff B3
B183: Standing charge | C183: $/Year | J183: 25.15 | K183: 25.91 | L183: 26.82 | M183: 27.05 | N183: 28.59 | O183: 28.59 | P183: 28.59 | Q183: 57.93 | R183: 63.74723504 | S183: 67.49994326 | T183: 71.05 | U183: 70.98 | V183: 70.98 | W183: 128.3 | X183: new standing charge based on connection cost
B184: First 2 GJ | C184: $/GJ | J184: 6.01 | K184: 6.07 | L184: 5.69 | M184: 5.69 | N184: 5.69 | O184: 5.69 | P184: 9.5 | Q184: 12.32 | R184: 13.73754879 | S184: 13.95964359 | T184: 14.15 | U184: 13.95 | V184: 13.95 | W184: 0 | X184: first 1.825 GJ now included in standing charge
B185: Volume 2 to 10 GJ | C185: $/GJ | J185: 6.01 | K185: 6.07 | L185: 5.69 | M185: 5.69 | N185: 5.69 | O185: 5.69 | P185: 9.5 | Q185: 12.32 | R185: 13.73754879 | S185: 13.95964359 | T185: 14.15 | U185: 13.95 | V185: 13.95
B186: Volume > 10 GJ | C186: $/GJ | J186: 3.95 | K186: 3.73 | L186: 3.86 | M186: 3.86 | N186: 3.86 | O186: 3.86 | P186: 3.86 | Q186: 5.32 | R186: 6.047572501 | S186: 6.027250697 | T186: 6.22 | U186: 6.02 | V186: 6.02
B189: Volume forecast by tariff class
B190: (Non Discounted Customers only)
B191: Reference tariff A1
B192: Demand
B193: First 10 km | C193: GJ km | T193: 7136.487095 | U193: 7276.011259 | V193: 7157.380641 | W193: 16918.98082 | X193: 17082.16802 | Y193: 17082.16802 | Z193: 17082.16802
B194: Distance > 10 km | C194: GJ km | T194: 3830.210104 | U194: 3750.566268 | V194: 3689.415732 | W194: 7879.982 | X194: 8334.982 | Y194: 8334.982 | Z194: 8334.982
B195: Usage
B196: First 10 km | C196: TJ km | T196: 16057.99581 | U196: 16672.40719 | V196: 16113.01119 | W196: 39509.14515 | X196: 40021.25633 | Y196: 40690.14231 | Z196: 41428.97576
B197: Distance > 10 km | C197: TJ km | P197: Band Splits: | T197: 6038.082809 | U197: 7030.935794 | V197: 5697.728366 | W197: 15342.06746 | X197: 15520.67105 | Y197: 15780.3731 | Z197: 16067.233
M198: =T1 -> Jul - Dec | N198: Jan - Jun | O198: Jul - Dec
B199: Reference tariff A2 | M199: 2014 | N199: 2015 | O199: 2015 | P199: =W2 -> 2016 | Q199: =X2 -> 2017 | R199: =Y2 -> 2018 | S199: =Z2 -> 2019
B200: Usage | M200: Forecast | N200: Forecast | O200: Forecast | P200: Forecast | Q200: Forecast | R200: Forecast | S200: Forecast
B201: First 10 TJ | C201: GJ | M201: 0.4586762291 | N201: 0.5147638745 | O201: 0.5296448878 | P201: 0.530080668 | Q201: 0.5303069401 | R201: 0.5275139746 | S201: 0.5114608366 | T201: =T$140*M201*1000 -> 444472.2157 | U201: 477433.8968 | V201: 532290.5129 | W201: 1082047.121 | X201: 1135966.056 | Y201: 1184589.581 | Z201: 1204747.993
B202: Volume > 10 TJ | C202: GJ | M202: 0.5413237709 | N202: 0.4852361255 | O202: 0.4703551122 | P202: 0.469919332 | Q202: 0.4696930599 | R202: 0.4724860254 | S202: 0.4885391634 | T202: 524560.3775 | U202: 450047.4601 | V202: 472704.5795 | W202: 959240.5292 | X202: 1006125.57 | Y202: 1061018.381 | Z202: 1150755.902
T203: =SUM(T201:T202) -> 969032.5932 | U203: 927481.3569 | V203: 1004995.092 | W203: 2041287.65 | X203: 2142091.626 | Y203: 2245607.962 | Z203: 2355503.895
B204: Reference tariff B1 | S204: Check to volumes delivered to customers | T204: =T140*1000-T203 -> 0 | U204: 0 | V204: 0 | W204: 0 | X204: 0 | Y204: 0 | Z204: 0
B205: Usage
B206: First 5 TJ | C206: GJ | M206: 0.890852952 | N206: 0.910111272 | O206: 0.8966503233 | P206: 0.9070572167 | Q206: 0.9109754515 | R206: 0.9145924642 | S206: 0.9180923755 | T206: =T$141*M206*1000 -> 779186.058 | U206: 691053.3891 | V206: 818032.2953 | W206: 1547752.479 | X206: 1597934.264 | Y206: 1654218.209 | Z206: 1713415.988
B207: Volume > 5 TJ | C207: GJ | M207: 0.109147048 | N207: 0.08988872802 | O207: 0.1033496767 | P207: 0.09294278326 | Q207: 0.08902454846 | R207: 0.08540753577 | S207: 0.08190762452 | T207: 95465.6522 | U207: 68253.09394 | V207: 94288.00845 | W207: 158592.4466 | X207: 156157.2006 | Y207: 154476.1261 | Z207: 152862.4321
T208: =SUM(T206:T207) -> 874651.7102 | U208: 759306.4831 | V208: 912320.3037 | W208: 1706344.925 | X208: 1754091.464 | Y208: 1808694.335 | Z208: 1866278.421
B209: Reference tariff B2 | S209: Check to volumes delivered to customers | T209: =T141*1000-T208 -> 0 | U209: 0 | V209: 0 | W209: 0 | X209: 0 | Y209: 0 | Z209: 0
B210: Usage
B211: First 100 GJ | C211: GJ | M211: 0.3523613653 | N211: 0.3700525615 | O211: 0.370204639 | P211: 0.3833540775 | Q211: 0.3961857364 | R211: 0.4085181664 | S211: 0.4204085737 | T211: =T$142*M211*1000 -> 227863.5164 | U211: 215000.7787 | V211: 247193.0559 | W211: 476028.5175 | X211: 491937.1556 | Y211: 507996.0988 | Z211: 523113.8673
B212: Volume > 100 GJ | C212: GJ | M212: 0.6476386347 | N212: 0.6299474385 | O212: 0.629795361 | P212: 0.6166459225 | Q212: 0.6038142636 | R212: 0.5914818336 | S212: 0.5795914263 | T212: 418812.1377 | U212: 365999.8712 | V212: 420526.983 | W212: 765717.8089 | X212: 749746.0006 | Y212: 735513.1024 | Z212: 721184.8934
T213: =SUM(T211:T212) -> 646675.6541 | U213: 581000.65 | V213: 667720.0389 | W213: 1241746.326 | X213: 1241683.156 | Y213: 1243509.201 | Z213: 1244298.761
B214: Reference tariff B3 | S214: Check to volumes delivered to customers | T214: =T142*1000-T213 -> 0 | U214: 0 | V214: 0 | W214: 0 | X214: 0 | Y214: 0 | Z214: 0
B215: Usage
B216: First 2GJ in standing charge | M216: 0 | N216: 0 | O216: 0.1079843687 | P216: 0.1224643334 | Q216: 0.1228816941 | R216: 0.1232672554 | S216: 0.1236957829 | T216: =T$143*M216*1000 -> 0 | U216: =U$143*N216*1000 -> 0 | V216: 602588.3324 | W216: 1225597.337 | X216: 1251951.71 | Y216: 1278626.316 | Z216: 1302573.241
B217: 2 to 10 GJ | C217: GJ | M217: 0.5237002913 | N217: 0.5716375593 | O217: 0.37485233 | P217: 0.404368139 | Q217: 0.4056820648 | R217: 0.4070053756 | S217: 0.4082244995 | T217: 2698941.493 | U217: 2445681.718 | V217: 2091799.426 | W217: 4046831.435 | X217: 4133197.86 | Y217: 4221784.465 | Z217: 4298790.93
B218: Volume > 10 GJ | C218: GJ | M218: 0.4762997087 | N218: 0.4283624407 | O218: 0.5171633012 | P218: 0.4731675275 | Q218: 0.4714362411 | R218: 0.4697273689 | S218: 0.4680797176 | T218: 2454657.88 | U218: 1832696.562 | V218: 2885941.502 | W218: 4735361.27 | X218: 4803119.072 | Y218: 4872387.02 | Z218: 4929093.787
T219: =SUM(T216:T218) -> 5153599.373 | U219: 4278378.28 | V219: 5580329.26 | W219: 10007790.04 | X219: 10188268.64 | Y219: 10372797.8 | Z219: 10530457.96
S220: Check to volumes delivered to customers | T220: =(T143*1000)-T219 -> 0 | U220: 0 | V220: 0 | W220: 0 | X220: 0 | Y220: 0 | Z220: 0
B222: Forecast revenue from customers receiving prudent discounts
B224: $ Nominal | C224: $m | T224: 0.6783418187 | U224: 0.6769615407 | V224: 0.6769615407 | W224: 0.840861557 | X224: 0.5588642674 | Y224: 0.6170488767 | Z224: 0.6788106136
B226: $, June-2014 | C226: $m | T226: =T224*T$80 -> 0.6700182909 | U226: 0.6523462922 | V226: 0.6523462922 | W226: 0.7905235898 | X226: 0.5125931684 | Y226: 0.552156478 | Z226: 0.5926078014
B228: Operating expenditure
B230: Operating expenditure
B231: $ Nominal
B232: Network | C232: $m | O232: 20.48541362 | P232: 21.20503805 | Q232: 25.18809809 | R232: 24.11720901 | S232: 27.06180847 | T232: 13.85508648 | V232: 32.4644837 | W232: 35.20851129 | X232: 36.72861039 | Y232: 38.64534047 | Z232: 40.58590272
B233: Marketing | C233: $m | O233: 0 | P233: 0 | Q233: 0 | R233: 0 | S233: 0 | T233: 1.53129702 | V233: 3.932451195 | W233: 4.061034256 | X233: 4.194375369 | Y233: 4.332672045 | Z233: 4.476130724
B234: Corporate | C234: $m | O234: 4.009924122 | P234: 12.02482405 | Q234: 12.07196972 | R234: 12.41244581 | S234: 17.15097064 | T234: 5.195905249 | V234: 10.62574024 | W234: 11.11825383 | X234: 11.99347377 | Y234: 12.27634368 | Z234: 13.01331867
B235: Information technology | C235: $m | O235: 2.204110256 | P235: 6.828992142 | Q235: 6.95709973 | R235: 8.605838593 | S235: 9.159785335 | T235: 4.382172825 | V235: 11.00093853 | W235: 11.37477787 | X235: 11.67353341 | Y235: 11.77788784 | Z235: 11.87208217
B236: Licence Fees | C236: $m | O236: 1.14154245 | P236: 2.39695988 | Q236: 2.1485658 | R236: 2.1260509 | S236: 2.32503586 | T236: 1.476634889 | V236: 2.78262208 | W236: 2.692636121 | X236: 2.759952024 | Y236: 2.828950824 | Z236: 3.071494122
B237: Full retail contestability | C237: $m | O237: 0 | P237: 0 | Q237: 0 | R237: 0 | S237: 0
B238: Regulatory Cost | C238: $m | O238: 0 | P238: 0 | Q238: 0 | R238: 0 | S238: 0 | T238: 1.782232579 | V238: 5.917590138 | W238: 4.776675432 | X238: 5.013590489 | Y238: 6.410211784 | Z238: 7.623409197
B239: Ancillary Services | C239: $m | O239: 0.3679208 | P239: 0.6032310486 | Q239: 0.56417283 | R239: 0.79426668 | S239: 0.70306902 | T239: 0.3125440584 | V239: 0.5889878788 | W239: 0.6272488677 | X239: 0.6604128822 | Y239: 0.6953483423 | Z239: 0.7321233624
B240: Unaccounted for gas | C240: $m | O240: 5.17127198 | P240: 10.76881426 | Q240: 10.29482884 | R240: 10.72591925 | S240: 10.97846185 | T240: 4.074612069 | V240: 7.511998878 | W240: 7.848496115 | X240: 8.189870647 | Y240: 8.502254711 | Z240: 8.823959593
B242: Total Opex (excl debt raising costs) | C242: $m | O242: =SUM(O232:O240) -> 33.38018323 | P242: 53.82785943 | Q242: 57.22473501 | R242: 58.78173023 | S242: 67.37913117 | T242: 32.61048517 | U242: 0 | V242: 74.82481264 | W242: 77.70763378 | X242: 81.21381899 | Y242: 85.46900971 | Z242: 90.19842055
B244: Operating expenditure
B245: $ Real Jun 2014
B246: Network | C246: $m | E246: 35.58238803 | F246: 31.7392548 | G246: 27.9974232 | H246: 30.87238739 | I246: 30.69744686 | J246: 27.86755508 | K246: 29.34440043 | L246: 26.9606527 | M246: 26.19036198 | N246: 27.29045276 | O246: =O232*O$77 -> 22.6451493 | P246: 22.63723316 | Q246: 26.56792418 | R246: 24.84447893 | S246: 27.06180847 | T246: =T232*T$80 -> 13.68507898 | V246: 31.28403062 | W246: 33.10076255 | X246: 33.68766956 | Y246: 34.58117484 | Z246: 35.43185993
B247: Marketing | C247: $m | E247: 2.446606716 | F247: 3.280852109 | G247: 1.684838261 | H247: 1.570334728 | I247: 1.789296548 | J247: 0.361804254 | K247: 0.4050783121 | L247: 0.3887658756 | M247: 0.2660832151 | N247: 0.4438000588 | O247: 0 | P247: 0 | Q247: 0 | R247: 0 | S247: 0 | T247: =T233*T$80 -> 1.512507388 | V247: 3.789461885 | W247: 3.817921454 | X247: 3.847102571 | Y247: 3.877023405 | Z247: 3.907702581
B248: Corporate | C248: $m | E248: 11.54100393 | F248: 10.94184045 | G248: 10.97929352 | H248: 9.575598306 | I248: 8.684970168 | J248: 6.473581345 | K248: 6.524438346 | L248: 7.487992398 | M248: 5.07794869 | N248: 7.049500861 | O248: 4.432682302 | P248: 12.83698454 | Q248: 12.7332828 | R248: 12.78675108 | S248: 17.15097064 | T248: =T234*T$80 -> 5.132149396 | V248: 10.23937377 | W248: 10.45266234 | X248: 11.00047557 | Y248: 10.98529298 | Z248: 11.36074482
B249: Information technology | C249: $m | E249: 7.705933627 | F249: 6.593647258 | G249: 5.868917977 | H249: 6.8117224 | I249: 6.676828888 | J249: 5.47960795 | K249: 5.491950648 | L249: 5.905250677 | M249: 3.4679171 | N249: 4.216629766 | O249: 2.436485137 | P249: 7.290224474 | Q249: 7.338215751 | R249: 8.865353181 | S249: 9.159785335 | T249: =T235*T$80 -> 4.328401797 | V249: 10.60092934 | W249: 10.69382963 | X249: 10.70702463 | Y249: 10.53925761 | Z249: 10.36443505
B250: Licence Fees | C250: $m | O250: 1.261892959 | P250: 2.558851324 | Q250: 2.266266118 | R250: 2.19016333 | S250: 2.32503586 | T250: 1.458515983 | V250: 2.681442131 | W250: 2.531442131 | X250: 2.531442131 | Y250: 2.531442131 | Z250: 2.681442131
B251: Full retail contestability | C251: $m | E251: 0 | F251: 0 | G251: 0 | H251: 0 | I251: 0.8946482741 | J251: 1.389362991 | K251: 1.399297207 | L251: 1.448223002 | M251: 1.483385097 | N251: 2.187727201 | O251: =O237*O$77 -> 0 | P251: 0 | Q251: 0 | R251: 0 | S251: 0 | T251: =T237*T$80 -> 0 | V251: 0 | W251: 0 | X251: 0 | Y251: 0 | Z251: 0
B252: Regulatory Cost | C252: $m | E252: 0 | F252: 0 | G252: 0 | H252: 0 | I252: 0 | J252: 1.211031517 | K252: 1.321318497 | L252: 1.484216547 | M252: 3.460917125 | N252: 4.477914393 | O252: 0 | P252: 0 | Q252: 0 | R252: 0 | S252: 0 | T252: =T238*T$80 -> 1.760363867 | V252: 5.702418459 | W252: 4.49072095 | X252: 4.598490874 | Y252: 5.73607715 | Z252: 6.655305137
B253: Ancillary Services | C253: $m | E253: 0 | F253: 0 | G253: 0 | H253: 0 | I253: 0 | J253: 0.6698921176 | K253: 0.6426623828 | L253: 0.6515431699 | M253: 0.8130029418 | N253: 0.7928462354 | O253: 0.4067099449 | P253: 0.6439734682 | Q253: 0.5950787121 | R253: 0.8182183017 | S253: 0.70306902 | T253: =T239*T$80 -> 0.3087090167 | V253: 0.5675714731 | W253: 0.5896987709 | X253: 0.6057340779 | Y253: 0.6222215228 | Z253: 0.6391503131
B254: Unaccounted for gas | C254: $m | E254: 3.378487905 | F254: 3.697530793 | G254: 3.929057686 | H254: 3.933138078 | I254: 4.090607185 | J254: 3.951409589 | K254: 4.043250787 | L254: 4.977036905 | M254: 7.231698066 | N254: 6.856401825 | O254: 5.716468713 | P254: 11.49614345 | Q254: 10.85878859 | R254: 11.04936623 | S254: 10.97846185 | T254: =T240*T$80 -> 4.024614936 | V254: 7.238852314 | W254: 7.378647855 | X254: 7.511791303 | Y254: 7.608108845 | Z254: 7.703396484
B256: Total Opex (excl debt raising costs) | C256: $m | E256: =SUM(E246:E254) -> 60.65442021 | F256: 56.25312541 | G256: 50.45953065 | H256: 52.7631809 | I256: 52.83379792 | J256: 47.40424484 | K256: 49.17239661 | L256: 49.30368128 | M256: 47.99131422 | N256: 53.3152731 | O256: 36.89938835 | P256: 57.46341042 | Q256: 60.35955615 | R256: 60.55433105 | S256: 67.37913117 | T256: =SUM(T246:T255) -> 32.21034137 | U256: 0 | V256: 72.10408 | W256: 73.05568568 | X256: 74.48973072 | Y256: 76.48059848 | Z256: 78.74403644
B258: Equity raising costs
B260: Equity Raising Costs | C260: $m | T260: 0 | U260: 0 | V260: 0 | W260: 0 | X260: 0 | Y260: 0 | Z260: 0
B262: Working capital
... 1115 more rows

Sheet Output
B1: Revenue Model Summary
B3: Output Summary
Q4: Tariffs - real Jun 2014 $ | U4: Jan- Jun | V4: Jul-Dec
T5: 2014 | U5: =T5+1 -> 2015 | V5: =U5 -> 2015 | W5: =V5+1 -> 2016 | X5: =W5+1 -> 2017 | Y5: =X5+1 -> 2018 | Z5: =Y5+1 -> 2019
Q6: De-escalation to 30 Jun 2014$ | T6: =Inputs!T80 -> 0.9877295966 | U6: =Inputs!U80 -> 0.9636386309 | V6: =Inputs!V80 -> 0.9636386309 | W6: =Inputs!W80 -> 0.9401352496 | X6: =Inputs!X80 -> 0.9172051216 | Y6: =Inputs!Y80 -> 0.894834265 | Z6: =Inputs!Z80 -> 0.873009039
B8: Key Metrics | Q8: Reference tariff A1
Q9: Standing charge | S9: Real Jun 14$ | T9: =S182*T$6 -> 46168.92104 | U9: 45042.84979 | V9: 45334.6217 | W9: 44515.39864 | X9: 43710.97942 | Y9: 42921.09653 | Z9: 42145.48727
B10: WACC | C10: =Inputs!T69 -> 0.07642 | D10: Post-tax | G10: 2014 | H10: =G10+1 -> 2015 | I10: =H10+1 -> 2016 | J10: =I10+1 -> 2017 | K10: =J10+1 -> 2018 | L10: =K10+1 -> 2019 | M10: Average | Q10: Demand charge
G11: (Jul-Dec) | Q11: First 10 km | S11: Real Jun 14$ | T11: =S184*T$6 -> 194.5855795 | U11: 189.8395897 | V11: 191.0693045 | W11: 187.6165707 | X11: 184.2262299 | Y11: 180.8971544 | Z11: 177.6282373
Q12: Distance > 10 km | S12: Real Jun 14$ | T12: 102.4185856 | U12: 99.92057131 | V12: 100.567822 | W12: 98.7505028 | X12: 96.96602361 | Y12: 95.213791 | Z12: 93.49322225
B13: Expenditures | C13: Real $m 30 Jun 2014 | D13: Nominal $m | F13: Price Path (annual change in average price in Real $, forecast CPI of 2.5%) | Q13: Usage charge
B14: Return on Capital | C14: =SUM(T115:Y115) -> 471.3385799 | D14: =SUM(T103:Y103) -> 512.5258829 | F14: A1 | G14: =T172 -> 0.02301197419 | H14: -0.03076402261 | I14: 0.00469404762 | J14: -0.0244821244 | K14: -0.03294708911 | L14: -0.03407534126 | M14: -0.02362103272 | Q14: First 10 km | S14: Real Jun 14$ | T14: =S187*T$6 -> 0.04128304706 | U14: 0.04027614347 | V14: 0.04053703832 | W14: 0.03980451039 | X14: 0.03908521966 | Y14: 0.03837892694 | Z14: 0.03768539735
B15: Return on Working Capital | C15: =SUM(T116:Y116) -> 1.143535484 | D15: =SUM(T104:Y104) -> 1.237332941 | F15: A2 | G15: 0.1015150718 | H15: -0.01490522518 | I15: -0.01223130885 | J15: -0.02303649187 | K15: -0.02397788229 | L15: -0.02904010497 | M15: -0.0206577 | Q15: Distance > 10 km | S15: Real Jun 14$ | T15: 0.02062521596 | U15: 0.02012216191 | V15: 0.02025250627 | W15: 0.01988653167 | X15: 0.01952717044 | Y15: 0.01917430308 | Z15: 0.01882781224
B16: Inflation on working capital | C16: =SUM(T117:Y117) -> 0 | D16: =SUM(T105:Y105) -> 0 | F16: B1 | G16: -0.004006723424 | H16: -0.03977499672 | I16: -0.01206687075 | J16: -0.0163469613 | K16: -0.01697359494 | L16: -0.01714029768 | M16: -0.02051037081 | Q16: Carbon tax | S16: Real Jun 14$ | T16: 0 | U16: 0 | V16: 0 | W16: 0 | X16: 0 | Y16: 0 | Z16: 0
B17: Nominal depreciation | C17: 241.0132504 | D17: 262.2842409 | F17: B2 | G17: 0.01729162776 | H17: -0.01752829161 | I17: 0.009918431922 | J17: 0.001678739549 | K17: 0.0005106076872 | L17: 0.0001339312455 | M17: -0.00109788336
B18: Inflation on asset base | C18: -124.4865684 | D18: -134.6039522 | F18: B3 | G18: 0.05178165761 | H18: -0.04649752541 | I18: 0.006827295496 | J18: -0.001502830962 | K18: -0.005434594305 | L18: -0.00801895718 | M18: -0.011100692 | Q18: Reference tariff A2
B19: Regulatory Depreciation | C19: =SUM(T120:Y120) -> 116.5266819 | D19: =SUM(T108:Y108) -> 127.6802887 | F19: All customers | G19: 0.03732183599 | H19: -0.0391464902 | I19: -0.01958228794 | J19: -0.005541244803 | K19: -0.009588102614 | L19: -0.01371409115 | M19: -0.01758551678 | Q19: Standing charge | S19: Real Jun 14$ | T19: =S192*T$6 -> 25561.56288 | U19: 24938.11013 | V19: 25099.65053 | W19: 24646.0852 | X19: 24200.71607 | Y19: 23763.39501 | Z19: 23333.9766
B20: Opex | C20: =SUM(T121:Y121) -> 407.0844727 | D20: =SUM(T109:Y109) -> 442.0241808 | Q20: First 10 TJ | S20: Real Jun 14$ | T20: 2.469323992 | U20: 2.409096577 | V20: 2.424701867 | W20: 2.380886089 | X20: 2.337862089 | Y20: 2.295615557 | Z20: 2.254132445
B21: Tax | C21: =SUM(T122:Y122) -> 38.3813746 | D21: =SUM(T110:Y110) -> 41.05433574 | Q21: Volume > 10 TJ | S21: Real Jun 14$ | T21: 1.32355766 | U21: 1.291275765 | V21: 1.299640201 | W21: 1.276154944 | X21: 1.25309408 | Y21: 1.230449939 | Z21: 1.20821499
B22: Total Revenue | C22: =SUM(C14:C21)-C19 -> 1034.474645 | D22: =SUM(D14:D21)-D19 -> 1124.522021
B23: Tariff Revenue | C23: =Tariff!S293 -> 1029.307715 | D23: =SUM(Tariff!T264:Z264) -> 1107.65848 | Q23: Reference tariff B1
F24: Customers | G24: =Inputs!T103 -> 682150.1943 | H24: =AVERAGE(Inputs!U103,Inputs!V103) -> 694550.0372 | I24: =Inputs!W103 -> 711226.3306 | J24: =Inputs!X103 -> 728060.0169 | K24: =Inputs!Y103 -> 743432.1051 | L24: =Inputs!Z103 -> 757208.7636 | Q24: Standing charge | S24: Real Jun 14$ | T24: =S197*T$6 -> 1287.653689 | U24: 1256.247501 | V24: 1264.385035 | W24: 1241.53686 | X24: 1219.101565 | Y24: 1197.071688 | Z24: 1175.439905
B25: Capex | C25: =SUM(RAB_Summary!T29:Z29) -> 592.2202067 | D25: =SUM(RAB_Summary!T14:Z14) -> 642.4849387 | F25: Volume (TJ) | G25: =Inputs!T145 -> 12228.79727 | H25: =Inputs!U145+Inputs!V145 -> 23736.26809 | I25: =Inputs!W145 -> 24792.74395 | J25: =Inputs!X145 -> 25292.57558 | K25: =Inputs!Y145 -> 25821.13869 | L25: =Inputs!Z145 -> 26350.40785 | Q25: First 5 TJ | S25: Real Jun 14$ | T25: 4.918893391 | U25: 4.798920382 | V25: 4.830006118 | W25: 4.74272509 | X25: 4.657021281 | Y25: 4.57286619 | Z25: 4.49023183
Q26: Volume > 5 TJ | S26: Real Jun 14$ | T26: 4.217605378 | U26: 4.114736954 | V26: 4.141390788 | W26: 4.066553441 | X26: 3.993068448 | Y26: 3.920911372 | Z26: 3.850058216
B28: Charts | Q28: Reference tariff B2
Q29: Standing charge | S29: Real Jun 14$ | T29: =S202*T$6 -> 322.6616273 | U29: 314.7918315 | V29: 325.2966284 | W29: 327.6111465 | X29: 329.6192476 | Y29: 331.3345019 | Z29: 332.77
Q30: First 100 GJ | S30: Real Jun 14$ | T30: 8.208032948 | U30: 8.007837023 | V30: 8.03020871 | W30: 7.856236974 | X30: 7.686034276 | Y30: 7.519518962 | Z30: 7.356611145
Q31: Volume > 100 GJ | S31: Real Jun 14$ | T31: 4.889261503 | U31: 4.770011223 | V31: 4.783337318 | W31: 4.679707945 | X31: 4.578323666 | Y31: 4.479135844 | Z31: 4.382096891
Q33: Reference tariff B3
Q34: Standing charge | S34: Real Jun 14$ | T34: =S207*T$6 -> 70.10904677 | U34: 68.39907002 | V34: 83.04309479 | W34: 95.30450689 | X34: 106.9184003 | Y34: 117.9090672 | Z34: 128.3
Q35: First 2 GJ | S35: Real Jun 14$ | T35: 13.77882787 | U35: 13.4427589 | V35: 0 | W35: 0 | X35: 0 | Y35: 0 | Z35: 0
Q36: Volume > 2 <10 GJ | S36: Real Jun 14$ | T36: 13.77882787 | U36: 13.4427589 | V36: 14.76934231 | W36: 13.32294809 | X36: 11.87655388 | Y36: 10.43015966 | Z36: 8.983765442
Q37: Volume > 10 GJ | S37: Real Jun 14$ | T37: 5.946132172 | U37: 5.801104558 | V37: 6.373579979 | W37: 5.749401256 | X37: 5.125222533 | Y37: 4.50104381 | Z37: 3.876865087
Q39: Real price Increase | V39: =(1-Tariff!V283)/(1+Tariff!V7)-1 -> -0.01807058335 | W39: =(1-Tariff!W283)/(1+Tariff!W7)-1 -> -0.01807058335 | X39: =(1-Tariff!X283)/(1+Tariff!X7)-1 -> -0.01807058335 | Y39: =(1-Tariff!Y283)/(1+Tariff!Y7)-1 -> -0.01807058335 | Z39: =(1-Tariff!Z283)/(1+Tariff!Z7)-1 -> -0.01807058335
B90: Data for charts | F90: =Inputs!E2 -> 2000 | G90: =F90+1 -> 2001 | H90: =G90+1 -> 2002 | I90: 2003 | J90: 2004 | K90: 2005 | L90: 2006 | M90: 2007 | N90: 2008 | O90: 2009 | P90: 2010 | Q90: 2011 | R90: 2012 | S90: 2013 | T90: 2014 | U90: 2015 | V90: 2016 | W90: 2017 | X90: 2018 | Y90: 2019
B92: Escalation/de-escalation factor to 30 June 2014 | F92: =Inputs!E80 -> 1.449737069 | G92: =Inputs!F80 -> 1.405838089 | H92: =Inputs!G80 -> 1.36451955 | I92: =Inputs!H80 -> 1.332986535 | J92: =Inputs!I80 -> 1.299320663 | K92: =Inputs!J80 -> 1.263947392 | L92: =Inputs!K80 -> 1.224118824 | M92: =Inputs!L80 -> 1.18894739 | N92: =Inputs!M80 -> 1.146689622 | O92: =Inputs!N80 -> 1.123011665 | P92: =Inputs!O80 -> 1.092879257 | Q92: =Inputs!P80 -> 1.061122244 | R92: =Inputs!Q80 -> 1.038235294 | S92: =Inputs!R80 -> 1.010496183 | T92: =Inputs!T80 -> 0.9877295966 | U92: =Inputs!U80 -> 0.9636386309 | V92: =Inputs!W80 -> 0.9401352496 | W92: =Inputs!X80 -> 0.9172051216 | X92: =Inputs!Y80 -> 0.894834265 | Y92: =Inputs!Z80 -> 0.873009039
B94: RAB Closing Value | C94: $m | D94: Real Jun 14$ | F94: =RAB_Summary!E36 -> 831.9793497 | G94: =RAB_Summary!F36 -> 829.3218696 | H94: =RAB_Summary!G36 -> 834.5407782 | I94: =RAB_Summary!H36 -> 842.6029506 | J94: =RAB_Summary!I36 -> 855.7647594 | K94: =RAB_Summary!J36 -> 854.4927457 | L94: =RAB_Summary!K36 -> 857.5040524 | M94: =RAB_Summary!L36 -> 860.5225236 | N94: =RAB_Summary!M36 -> 862.7319523 | O94: =RAB_Summary!N36 -> 878.0372744 | P94: =RAB_Summary!P36 -> 911.6687274 | Q94: =RAB_Summary!Q36 -> 921.4178986 | R94: =RAB_Summary!R36 -> 969.4594782 | S94: =RAB_Summary!S36 -> 1007.937442 | T94: =RAB_Summary!T68*T92 -> 1033.954553 | U94: =RAB_Summary!V68*U92 -> 1098.82568 | V94: =RAB_Summary!W68*V92 -> 1167.26479 | W94: =RAB_Summary!X68*W92 -> 1231.695452 | X94: =RAB_Summary!Y68*X92 -> 1285.977382 | Y94: =RAB_Summary!Z68*Y92 -> 1329.367611
B96: Net Capex | C96: $m | D96: Real Jun 14$ | F96: =RAB_Summary!E29 -> 36.41156699 | G96: =RAB_Summary!F29 -> 24.9795307 | H96: =RAB_Summary!G29 -> 33.81260957 | I96: =RAB_Summary!H29 -> 37.58184515 | J96: =RAB_Summary!I29 -> 43.55305548 | K96: =RAB_Summary!J29 -> 30.91459494 | L96: =RAB_Summary!K29 -> 37.24769873 | M96: =RAB_Summary!L29 -> 39.14680611 | N96: =RAB_Summary!M29 -> 39.87566 | O96: =RAB_Summary!N29 -> 47.65349486 | P96: =RAB_Summary!O29+RAB_Summary!P29/2 -> 48.49136259 | Q96: =RAB_Summary!P29/2+RAB_Summary!Q29/2 -> 40.1528259 | R96: =RAB_Summary!Q29/2+RAB_Summary!R29/2 -> 59.11761851 | S96: =RAB_Summary!R29/2+RAB_Summary!S29/2 -> 75.81762949 | T96: =RAB_Summary!S29/2+RAB_Summary!T29 -> 79.26335746 | U96: =RAB_Summary!V29 -> 104.883568 | V96: =RAB_Summary!W29 -> 114.5484155 | W96: =RAB_Summary!X29 -> 115.7716624 | X96: =RAB_Summary!Y29 -> 110.2778973 | Y96: =RAB_Summary!Z29 -> 103.5708257
B98: Capital Contributions | C98: $m | D98: Real Jun 14$
B100: Opex | C100: $m | D100: Real Jun 14$ | F100: =Inputs!E256 -> 60.65442021 | G100: =Inputs!F256 -> 56.25312541 | H100: =Inputs!G256 -> 50.45953065 | I100: =Inputs!H256 -> 52.7631809 | J100: =Inputs!I256 -> 52.83379792 | K100: =Inputs!J256 -> 47.40424484 | L100: =Inputs!K256 -> 49.17239661 | M100: =Inputs!L256 -> 49.30368128 | N100: =Inputs!M256 -> 47.99131422 | O100: =Inputs!N256 -> 53.3152731 | P100: =Inputs!O256+Inputs!P256/2 -> 65.63109356 | Q100: =Inputs!P256/2+Inputs!Q256/2 -> 58.91148328 | R100: =Inputs!Q256/2+Inputs!R256/2 -> 60.4569436 | S100: =Inputs!R256/2+Inputs!S256/2 -> 63.96673111 | T100: =Inputs!S256/2+Inputs!T256 -> 65.89990695 | U100: =Inputs!U256+Inputs!V256 -> 72.10408 | V100: =Inputs!W256 -> 73.05568568 | W100: =Inputs!X256 -> 74.48973072 | X100: =Inputs!Y256 -> 76.48059848 | Y100: =Inputs!Z256 -> 78.74403644
B102: Revenue Building Blocks | T102: Jul-Dec 2014 | U102: =U90 -> 2015 | V102: =V90 -> 2016 | W102: =W90 -> 2017 | X102: =X90 -> 2018 | Y102: =Y90 -> 2019
B103: Return on Assets | C103: $m | D103: Nominal | T103: =Tariff!T93 -> 38.05924211 | U103: =Tariff!U93+Tariff!V93 -> 79.99639496 | V103: =Tariff!W93 -> 87.14081789 | W103: =Tariff!X93 -> 94.88249191 | X103: =Tariff!Y93 -> 102.6228094 | Y103: =Tariff!Z93 -> 109.8241265
B104: Return on Working Capital | C104: $m | D104: Nominal | T104: =Tariff!T94 -> 0.1503099721 | U104: =Tariff!U94+Tariff!V94 -> 0.206755469 | V104: =Tariff!W94 -> 0.19847991 | W104: =Tariff!X94 -> 0.205130147 | X104: =Tariff!Y94 -> 0.2273370339 | Y104: =Tariff!Z94 -> 0.2493204087
B105: Inflation on working capital | C105: $m | D105: Nominal | T105: 0 | U105: 0 | V105: 0 | W105: 0 | X105: 0 | Y105: 0
B106: Nominal depreciation | C106: $m | D106: Nominal | T106: =ICB_at_Jun_2014!T396 -> 17.36378803 | U106: =ICB_at_Jun_2014!U396+ICB_at_Jun_2014!V396+Capex_from_Jul_2014!U78+Capex_from_Jul_2014!V78 -> 40.4296442 | V106: =ICB_at_Jun_2014!W396+Capex_from_Jul_2014!W78 -> 45.29752203 | W106: =ICB_at_Jun_2014!X396+Capex_from_Jul_2014!X78 -> 49.35701654 | X106: =ICB_at_Jun_2014!Y396+Capex_from_Jul_2014!Y78 -> 53.08508315 | Y106: =ICB_at_Jun_2014!Z396+Capex_from_Jul_2014!Z78 -> 56.7511869
B107: Inflation on asset base | C107: $m | D107: Nominal | T107: =-ICB_at_Jun_2014!T378 -> -12.52144211 | U107: =-ICB_at_Jun_2014!V378 -> -25.07737741 | V107: =-ICB_at_Jun_2014!W378 -> -24.75932885 | W107: =-ICB_at_Jun_2014!X378 -> -24.42134306 | X107: =-ICB_at_Jun_2014!Y378 -> -24.08014314 | Y107: =-ICB_at_Jun_2014!Z378 -> -23.7443176
B108: Regulatory Depreciation | C108: $m | D108: Nominal | T108: =Tariff!T95 -> 4.842345916 | U108: =Tariff!U95+Tariff!V95 -> 15.35226679 | V108: =Tariff!W95 -> 20.53819318 | W108: =Tariff!X95 -> 24.93567348 | X108: =Tariff!Y95 -> 29.00494001 | Y108: =Tariff!Z95 -> 33.0068693
B109: Opex | C109: $m | D109: Nominal | T109: =Tariff!T96 -> 32.61048517 | U109: =Tariff!U96+Tariff!V96 -> 74.82481264 | V109: =Tariff!W96 -> 77.70763378 | W109: =Tariff!X96 -> 81.21381899 | X109: =Tariff!Y96 -> 85.46900971 | Y109: =Tariff!Z96 -> 90.19842055
B110: Tax | C110: $m | D110: Nominal | T110: =Tariff!T97 -> 6.914980689 | U110: =Tariff!U97+Tariff!V97 -> 8.710607008 | V110: =Tariff!W97 -> 7.573709116 | W110: =Tariff!X97 -> 7.008752478 | X110: =Tariff!Y97 -> 6.400181669 | Y110: =Tariff!Z97 -> 4.446104778
B111: Total Revenue | C111: $m | D111: Nominal | F111: =SUM(F103:F110) -> 0 | G111: 0 | H111: 0 | I111: 0 | J111: 0 | K111: 0 | L111: 0 | M111: 0 | N111: 0 | O111: 0 | P111: 0 | Q111: 0 | R111: 0 | S111: 0 | T111: =SUM(T103:T110)-T108 -> 82.57736386 | U111: =SUM(U103:U110)-U108 -> 179.0908369 | V111: 193.1588339 | W111: 208.245867 | X111: 223.7242779 | Y111: 237.7248416
B112: Access Arrangement period total | Y112: =SUM(T111:Y111) -> 1124.522021
B114: Revenue Building Blocks
B115: Return on Assets | C115: $m | D115: Real Jun 14$ | F115: =F103*F$92 -> 0 | G115: 0 | H115: 0 | I115: 0 | J115: 0 | K115: 0 | L115: 0 | M115: 0 | N115: 0 | O115: 0 | P115: 0 | Q115: 0 | R115: 0 | S115: 0 | T115: 37.59223986 | U115: 77.08761652 | V115: 81.92415458 | W115: 87.02670753 | X115: 91.83040626 | Y115: 95.87745517
B116: Return on Working Capital | C116: $m | D116: Real Jun 14$ | F116: =F104*F$92 -> 0 | G116: 0 | H116: 0 | I116: 0 | J116: 0 | K116: 0 | L116: 0 | M116: 0 | N116: 0 | O116: 0 | P116: 0 | Q116: 0 | R116: 0 | S116: 0 | T116: 0.1484656082 | U116: 0.1992375571 | V116: 0.1865979598 | W116: 0.1881464215 | X116: 0.2034289676 | Y116: 0.2176589704
B117: Inflation on working capital | C117: $m | D117: Real Jun 14$ | T117: =T105*T$92 -> 0 | U117: 0 | V117: 0 | W117: 0 | X117: 0 | Y117: 0
B118: Nominal depreciation | C118: $m | D118: Real Jun 14$ | T118: =T106*T$92 -> 17.15072735 | U118: 38.95956698 | V118: 42.58579718 | W118: 45.27050836 | X118: 47.50235136 | Y118: 49.54429914
B119: Inflation on asset base | C119: $m | D119: Real Jun 14$ | T119: =T107*T$92 -> -12.36779897 | U119: -24.16552963 | V119: -23.27711781 | W119: -22.39938093 | X119: -21.54773719 | Y119: -20.72900389
B120: Regulatory Depreciation | C120: $m | D120: Real Jun 14$ | F120: =F108*F$92 -> 0 | G120: 0 | H120: 0 | I120: 0 | J120: 0 | K120: 0 | L120: 0 | M120: 0 | N120: 0 | O120: 0 | P120: 0 | Q120: 0 | R120: 0 | S120: 0 | T120: 4.782928378 | U120: 14.79403735 | V120: 19.30867937 | W120: 22.87112743 | X120: 25.95461417 | Y120: 28.81529525
B121: Opex | C121: $m | D121: Real Jun 14$ | F121: =F109*F$92 -> 0 | G121: 0 | H121: 0 | I121: 0 | J121: 0 | K121: 0 | L121: 0 | M121: 0 | N121: 0 | O121: 0 | P121: 0 | Q121: 0 | R121: 0 | S121: 0 | T121: 32.21034137 | U121: 72.10408 | V121: 73.05568568 | W121: 74.48973072 | X121: 76.48059848 | Y121: 78.74403644
B122: Tax | C122: $m | D122: Real Jun 14$ | F122: =F110*F$92 -> 0 | G122: 0 | H122: 0 | I122: 0 | J122: 0 | K122: 0 | L122: 0 | M122: 0 | N122: 0 | O122: 0 | P122: 0 | Q122: 0 | R122: 0 | S122: 0 | T122: 6.830131087 | U122: 8.393877411 | V122: 7.12031091 | W122: 6.428463669 | X122: 5.72710186 | Y122: 3.881489659
B123: Total Revenue | C123: $m | D123: Real Jun 14$ | F123: =SUM(F115:F122) -> 0 | G123: 0 | H123: 0 | I123: 0 | J123: 0 | K123: 0 | L123: 0 | M123: 0 | N123: 0 | O123: 0 | P123: 0 | Q123: 0 | R123: 0 | S123: 0 | T123: =SUM(T115:T122)-T120 -> 81.5641063 | U123: =SUM(U115:U122)-U120 -> 172.5788488 | V123: 181.5954285 | W123: 191.0041758 | X123: 200.1961497 | Y123: 207.5359355
B124: Access Arrangement period total | Y124: =SUM(T123:Y123) -> 1034.474645
B126: Reference Tariff Revenue (exclg User Specific Charges) | F126: =F$90 -> 2000 | G126: =G$90 -> 2001 | H126: 2002 | I126: 2003 | J126: 2004 | K126: 2005 | L126: 2006 | M126: 2007 | N126: 2008 | O126: 2009 | P126: 2010 | Q126: 2011 | R126: 2012 | S126: 2013 | T126: 2014 | U126: 2015 | V126: 2016 | W126: 2017 | X126: 2018 | Y126: 2019
B127: A1 | C127: $m | D127: Nominal | K127: 4.80142968 | L127: 4.292408864 | M127: 4.3136383 | N127: 4.726754073 | O127: 5.038741071 | P127: 5.573911714 | Q127: 6.45270911 | R127: 6.9940496 | S127: 7.536272062 | T127: 8.087754121 | U127: =Tariff!U258+Tariff!V258 -> 8.336890519 | V127: =Tariff!W258 -> 9.318739918 | W127: =Tariff!X258 -> 9.480395175 | X127: =Tariff!Y258 -> 9.57082001 | Y127: =Tariff!Z258 -> 9.665631471
B128: A2 | C128: $m | D128: Nominal | K128: 4.41873129 | L128: 4.726781285 | M128: 4.93738968 | N128: 5.227111115 | O128: 5.439970881 | P128: 5.643105871 | Q128: 5.72330387 | R128: 6.15698318 | S128: 6.360723289 | T128: 6.158055014 | U128: =Tariff!U259+Tariff!V259 -> 6.553338452 | V128: =Tariff!W259 -> 7.00860716 | W128: =Tariff!X259 -> 7.36491537 | X128: =Tariff!Y259 -> 7.724087441 | Y128: =Tariff!Z259 -> 8.063474671
B129: B1 | C129: $m | D129: Nominal | K129: 8.656686977 | L129: 8.425829963 | M129: 8.727163855 | N129: 9.208361162 | O129: 9.818683439 | P129: 9.795087413 | Q129: 8.669806924 | R129: 9.000832861 | S129: 9.781751811 | T129: 9.872468986 | U129: =Tariff!U260+Tariff!V260 -> 10.1184173 | V129: =Tariff!W260 -> 10.45903231 | W129: =Tariff!X260 -> 10.84033536 | X129: =Tariff!Y260 -> 11.26275689 | Y129: =Tariff!Z260 -> 11.70769394
B130: B2 | C130: $m | D130: Nominal | K130: 6.29254134 | L130: 6.533871031 | M130: 6.994511709 | N130: 7.376581794 | O130: 7.612794088 | P130: 7.87804173 | Q130: 8.271784364 | R130: 9.623982515 | S130: 10.61544533 | T130: 10.97589839 | U130: =Tariff!U261+Tariff!V261 -> 11.24727466 | V130: =Tariff!W261 -> 11.57777329 | W130: =Tariff!X261 -> 11.88653487 | X130: =Tariff!Y261 -> 12.20784608 | Y130: =Tariff!Z261 -> 12.52266427
B131: B3 | C131: $m | D131: Nominal | K131: 87.53329374 | L131: 87.35106368 | M131: 90.78818208 | N131: 94.39556917 | O131: 99.17016218 | P131: 99.7058519 | Q131: 105.9293609 | R131: 131.1778591 | S131: 142.7856199 | T131: 146.2053095 | U131: =Tariff!U262+Tariff!V262 -> 149.9958952 | V131: =Tariff!W262 -> 157.1362638 | W131: =Tariff!X262 -> 163.7228622 | X131: =Tariff!Y262 -> 169.9268735 | Y131: =Tariff!Z262 -> 175.4044679
F132: =SUM(F127:F131) -> 0 | G132: 0 | H132: 0 | I132: 0 | J132: 0 | K132: 111.702683 | L132: 111.3299548 | M132: 115.7608856 | N132: 120.9343773 | O132: 127.0803517 | P132: 128.5959986 | Q132: 135.0469652 | R132: 162.9537073 | S132: 177.0798124 | T132: 181.299486 | U132: 186.2518161 | V132: 195.5004164 | W132: 203.2950429 | X132: 210.692384 | Y132: =SUM(Y127:Y131) -> 217.3639322
B133: Check to real tariff revenue excl User Spec Charges | F133: =(F132*F$92)-F141 -> 0 | G133: 0 | H133: 0 | I133: 0 | J133: 0 | K133: 0 | L133: =(L132*L$92)-L141 -> 0 | M133: 0 | N133: 0 | O133: 0 | P133: 0 | Q133: 0 | R133: 0 | S133: 0 | T133: 0 | U133: 0 | V133: 0 | W133: 0 | X133: 0 | Y133: 0
B135: Reference Tariff Revenue (exclg User Specific Charges) | F135: =F$90 -> 2000 | G135: =G$90 -> 2001 | H135: 2002 | I135: 2003 | J135: 2004 | K135: 2005 | L135: 2006 | M135: 2007 | N135: 2008 | O135: 2009 | P135: 2010 | Q135: 2011 | R135: 2012 | S135: 2013 | T135: 2014 | U135: 2015 | V135: 2016 | W135: 2017 | X135: 2018 | Y135: 2019
B136: A1 | C136: $m | D136: Real Jun 14$ | F136: =F127*F$92 -> 0 | G136: 0 | H136: 0 | I136: 0 | J136: 0 | K136: =K127*K$92 -> 6.068754521 | L136: 5.254418493 | M136: 5.128689 | N136: 5.42011984 | O136: 5.658564999 | P136: 6.091612492 | Q136: 6.847113174 | R136: 7.261469144 | S136: 7.615374154 | T136: 7.988514116 | U136: 8.033749765 | V136: 8.76087588 | W136: 8.695467009 | X136: 8.564297689 | Y136: 8.438183642
B137: A2 | C137: $m | D137: Real Jun 14$ | F137: 0 | G137: 0 | H137: 0 | I137: 0 | J137: 0 | K137: 5.585043889 | L137: 5.78614195 | M137: 5.870296575 | N137: 5.993874067 | O137: 6.109150756 | P137: 6.167233351 | Q137: 6.073125048 | R137: 6.392397243 | S137: 6.427486606 | T137: 6.082493196 | U137: 6.315050093 | V137: =V128*V$92 -> 6.589038642 | W137: 6.755138098 | X137: 6.911778108 | Y137: 7.039486273
B138: B1 | C138: $m | D138: Real Jun 14$ | F138: 0 | G138: 0 | H138: 0 | I138: 0 | J138: 0 | K138: 10.94159693 | L138: 10.31421707 | M138: 10.37613869 | N138: 10.55913218 | O138: 11.02649604 | P138: 10.70484785 | Q138: 9.199724983 | R138: 9.344982353 | S138: 9.88442287 | T138: 9.751329809 | U138: 9.750497798 | V138: 9.832904953 | W138: 9.942811115 | X138: 10.07830079 | Y138: 10.22092264
B139: B2 | C139: $m | D139: Real Jun 14$ | F139: 0 | G139: 0 | H139: 0 | I139: 0 | J139: 0 | K139: 7.953441214 | L139: 7.998234526 | M139: 8.316106444 | N139: 8.458649787 | O139: 8.549256563 | P139: 8.609748392 | Q139: 8.77737439 | R139: 9.991958318 | S139: 10.72686699 | T139: 10.84121969 | U139: 10.83830835 | V139: 10.88467278 | W139: 10.90239066 | X139: 10.92399897 | Y139: 10.9323991
B140: B3 | C140: $m | D140: Real Jun 14$ | F140: 0 | G140: 0 | H140: 0 | I140: 0 | J140: 0 | K140: 110.6374783 | L140: 106.9280814 | M140: 107.9423722 | N140: 108.2424195 | O140: 111.3692489 | P140: 108.9664573 | Q140: 112.4040012 | R140: 136.1934831 | S140: 144.2843239 | T140: 144.4113114 | U140: 144.5418391 | V140: 147.7293406 | W140: 150.1674477 | X140: 152.056389 | Y140: 153.1296859
F141: =SUM(F136:F140) -> 0 | G141: 0 | H141: 0 | I141: 0 | J141: 0 | K141: 141.1863149 | L141: 136.2810934 | M141: 137.6336029 | N141: 138.6741954 | O141: 142.7127173 | P141: 140.5398994 | Q141: 143.3013388 | R141: 169.1842902 | S141: 178.9384745 | T141: 179.0748682 | U141: 179.4794451 | V141: 183.7968328 | W141: 186.4632546 | X141: 188.5347645 | Y141: =SUM(Y136:Y140) -> 189.7606776
B143: Gas volumes (excluding customers receiving prudent discounts) | F143: =F$90 -> 2000 | G143: =G$90 -> 2001 | H143: 2002 | I143: 2003 | J143: 2004 | K143: 2005 | L143: 2006 | M143: 2007 | N143: 2008 | O143: 2009 | P143: 2010 | Q143: 2011 | R143: 2012 | S143: 2013 | T143: 2014 | U143: 2015 | V143: 2016 | W143: 2017 | X143: 2018 | Y143: 2019
B144: A1 | C144: TJ | K144: =Inputs!J139 -> 4894.893999 | L144: =Inputs!K139 -> 5098.206856 | M144: =Inputs!L139 -> 5551.422909 | N144: =Inputs!M139 -> 5639.854677 | O144: =Inputs!N139 -> 5770.609523 | P144: 6416.12153 | Q144: 7747.53166 | R144: 8960.318571 | S144: 8482.380018 | T144: 8805.899044 | U144: =Inputs!U139+Inputs!V139 -> 9024.736621 | V144: =Inputs!W139 -> 9795.575002 | W144: =Inputs!X139 -> 9966.440689 | X144: =Inputs!Y139 -> 10150.52939 | Y144: =Inputs!Z139 -> 10353.86881
B145: A2 | C145: TJ | K145: =Inputs!J140 -> 1874.280215 | L145: =Inputs!K140 -> 1738.378202 | M145: =Inputs!L140 -> 1752.20462 | N145: =Inputs!M140 -> 1709.383831 | O145: =Inputs!N140 -> 1742.79765 | P145: 1827.677751 | Q145: 1923.431907 | R145: 2046.753775 | S145: 2134.258648 | T145: 1856.346271 | U145: =Inputs!U140+Inputs!V140 -> 1932.476449 | V145: =Inputs!W140 -> 2041.28765 | W145: =Inputs!X140 -> 2142.091626 | X145: =Inputs!Y140 -> 2245.607962 | Y145: =Inputs!Z140 -> 2355.503895
B146: B1 | C146: TJ | K146: =Inputs!J141 -> 1880.085 | L146: =Inputs!K141 -> 1692.711146 | M146: =Inputs!L141 -> 1684.92585 | N146: =Inputs!M141 -> 1598.542148 | O146: =Inputs!N141 -> 1601.447909 | P146: 1628.953671 | Q146: 1512.515894 | R146: 1598.179821 | S146: 1620.665053 | T146: 1625.21687 | U146: =Inputs!U141+Inputs!V141 -> 1671.626787 | V146: =Inputs!W141 -> 1706.344925 | W146: =Inputs!X141 -> 1754.091464 | X146: =Inputs!Y141 -> 1808.694335 | Y146: =Inputs!Z141 -> 1866.278421
B147: B2 | C147: TJ | K147: =Inputs!J142 -> 1064.6 | L147: =Inputs!K142 -> 1106.851445 | M147: =Inputs!L142 -> 1135.92175 | N147: =Inputs!M142 -> 1159.983043 | O147: =Inputs!N142 -> 1166.783051 | P147: 1201.957568 | Q147: 1169.314918 | R147: 1213.374861 | S147: 1235.214051 | T147: 1242.407132 | U147: =Inputs!U142+Inputs!V142 -> 1248.720689 | V147: =Inputs!W142 -> 1241.746326 | W147: =Inputs!X142 -> 1241.683156 | X147: =Inputs!Y142 -> 1243.509201 | Y147: =Inputs!Z142 -> 1244.298761
B148: B3 | C148: TJ | K148: =Inputs!J143 -> 10302.354 | L148: =Inputs!K143 -> 9974.977966 | M148: =Inputs!L143 -> 10171.2036 | N148: =Inputs!M143 -> 10455.26609 | O148: =Inputs!N143 -> 10539.64783 | P148: 10467.01407 | Q148: 9145.218208 | R148: 9765.50324 | S148: 9869.450501 | T148: 9508.486106 | U148: =Inputs!U143+Inputs!V143 -> 9858.70754 | V148: =Inputs!W143 -> 10007.79004 | W148: =Inputs!X143 -> 10188.26864 | X148: =Inputs!Y143 -> 10372.7978 | Y148: =Inputs!Z143 -> 10530.45796
F149: =SUM(F144:F148) -> 0 | G149: 0 | H149: 0 | I149: 0 | J149: 0 | K149: 20016.21321 | L149: =SUM(L144:L148) -> 19611.12562 | M149: 20295.67873 | N149: 20563.02979 | O149: 20821.28597 | P149: 21541.72459 | Q149: 21498.01259 | R149: 23584.13027 | S149: 23341.96827 | T149: 23038.35542 | U149: 23736.26809 | V149: 24792.74395 | W149: 25292.57558 | X149: 25821.13869 | Y149: 26350.40785
B151: Average Price | F151: =F$90 -> 2000 | G151: =G$90 -> 2001 | H151: 2002 | I151: 2003 | J151: 2004 | K151: 2005 | L151: 2006 | M151: 2007 | N151: 2008 | O151: 2009 | P151: 2010 | Q151: 2011 | R151: 2012 | S151: 2013 | T151: 2014 | U151: 2015 | V151: 2016 | W151: 2017 | X151: 2018 | Y151: 2019
B152: A1 | C152: $/GJ | D152: Nominal | F152: =IF(F144=0,"",F126*1000000/(F144*1000)) ->  | G152: =IF(G144=0,"",G126*1000000/(G144*1000)) ->  | H152: =IF(H144=0,"",H126*1000000/(H144*1000)) ->  | I152: =IF(I144=0,"",I126*1000000/(I144*1000)) ->  | J152: =IF(J144=0,"",J126*1000000/(J144*1000)) ->  | K152: =K127*1000000/(K144*1000) -> 0.9809057522 | L152: 0.841944822 | M152: 0.7770329105 | N152: 0.8380985581 | O152: 0.8731731112 | P152: 0.8687353704 | Q152: 0.8328728933 | R152: 0.7805581403 | S152: 0.8884619701 | T152: 0.9184472909 | U152: 0.9237821411 | V152: 0.9513213789 | W152: 0.9512317859 | X152: 0.9428887541 | Y152: 0.9335284855
B153: A2 | C153: $/GJ | D153: Nominal | K153: 2.357561721 | L153: 2.719075331 | M153: 2.817815696 | N153: 3.057891984 | O153: 3.121401318 | P153: 3.087582517 | Q153: 2.975568747 | R153: 3.00816994 | S153: 2.980296365 | T153: 3.317298669 | U153: 3.391160836 | V153: 3.433424563 | W153: 3.438188769 | X153: 3.43964199 | Y153: 3.423248287
B154: B1 | C154: $/GJ | D154: Nominal | K154: 4.604412554 | L154: 4.977712815 | M154: 5.179553662 | N154: 5.760474426 | O154: 6.131128826 | P154: 6.01311602 | Q154: 5.732043518 | R154: 5.631927485 | S154: 6.035640613 | T154: 6.074554829 | U154: 6.053036111 | V154: 6.129494779 | W154: 6.180028569 | X154: 6.227009549 | Y154: 6.273283671
B155: B2 | C155: $/GJ | D155: Nominal | K155: 5.910709506 | L155: 5.903114695 | M155: 6.157564733 | N155: 6.359215197 | O155: 6.524601191 | P155: 6.554342635 | Q155: 7.074043304 | R155: 7.931582258 | S155: 8.594012767 | T155: 8.834381349 | U155: =U130*1000000/(U147*1000) -> 9.007037969 | V155: 9.323783004 | W155: 9.572921087 | X155: 9.817254321 | Y155: 10.06403339
B156: B3 | C156: $/GJ | D156: Nominal | K156: 8.496436226 | L156: 8.757018209 | M156: 8.926001844 | N156: 9.028519061 | O156: 9.409248178 | P156: 9.525720633 | Q156: 11.58303263 | R156: 13.43278025 | S156: 14.46743361 | T156: 15.37629733 | U156: 15.21455978 | V156: 15.70139492 | W156: 16.06974334 | X156: 16.38197107 | Y156: 16.65686987
B157: All customer average | C157: $/GJ | D157: Nominal | K157: 5.58061017 | L157: 5.676877351 | M157: 5.703720835 | N157: 5.881155577 | O157: 6.103386307 | P157: 5.969624117 | Q157: 6.281834875 | R157: 6.909464347 | S157: 7.586327353 | T157: 7.869463018 | U157: 7.846718593 | V157: 7.885388437 | W157: 8.037735908 | X157: 8.159686004 | Y157: 8.248977909
B158: A1 | D158: Real Jun 14$ | K158: =K152*K$92 -> 1.239813267 | L158: 1.030640506 | M158: 0.9238512512 | N158: 0.9610389185 | O158: 0.9805835893 | P158: 0.9494228661 | Q158: 0.8837799539 | R158: 0.8104030103 | S158: 0.8977874298 | T158: =T152 -> 0.9184472909 | U158: =U152*U$92 -> 0.8901921577 | V158: 0.8943707621 | W158: 0.8724746658 | X158: 0.8437291653 | Y158: 0.814978806
B159: A2 | D159: Real Jun 14$ | K159: 2.979833989 | L159: 3.328471298 | M159: 3.350234618 | N159: 3.506453002 | O159: 3.50537009 | P159: 3.374354888 | Q159: 3.157442187 | R159: 3.123188202 | S159: 3.011578102 | T159: 3.317298669 | U159: 3.267853585 | V159: 3.227883459 | W159: 3.153524348 | X159: 3.077909512 | Y159: 2.988526697
B160: B1 | D160: Real Jun 14$ | K160: 5.819735239 | L160: 6.093311959 | M160: 6.15821681 | N160: 6.60547624 | O160: 6.88532919 | P160: 6.571609768 | Q160: 6.082398883 | R160: 5.847265889 | S160: 6.098991802 | T160: 6.074554829 | U160: 5.83293943 | V160: 5.762554104 | W160: 5.668353855 | X160: 5.572141513 | Y160: 5.476633349
B161: B2 | D161: Real Jun 14$ | K161: 7.470825864 | L161: 7.226113821 | M161: 7.32102052 | N161: 7.292046068 | O161: 7.327203247 | P161: 7.163105108 | Q161: 7.506424708 | R161: 8.234848638 | S161: 8.6842171 | T161: 8.834381349 | U161: 8.679529737 | V161: 8.765617062 | W161: 8.78033225 | X161: 8.784815555 | Y161: 8.785992116
B162: Average B3 price | D162: Real Jun 14$ | K162: =K156*K$92 -> 10.73904841 | L162: 10.71963084 | M162: 10.6125466 | N162: 10.35290911 | O162: 10.56669546 | P162: 10.41046249 | Q162: 12.29101359 | R162: 13.94638656 | S162: 14.61928644 | T162: 15.37629733 | U162: =U156*U$92 -> 14.66133755 | V162: 14.76143484 | W162: 14.73925089 | X162: 14.65914904 | Y162: 14.54159796
B163: All customer average | D163: Real Jun 14$ | K163: =K157 -> 5.58061017 | L163: 5.676877351 | M163: 5.703720835 | N163: 5.881155577 | O163: 6.103386307 | P163: 5.969624117 | Q163: 6.281834875 | R163: 6.909464347 | S163: 7.586327353 | T163: 7.869463018 | U163: =U157*U$92 -> 7.561401161 | V163: 7.413331627 | W163: 7.372252541 | X163: 7.301566627 | Y163: 7.201432277
B165: Annual change in average price | F165: =F$90 -> 2000 | G165: =G$90 -> 2001 | H165: 2002 | I165: 2003 | J165: 2004 | K165: 2005 | L165: 2006 | M165: 2007 | N165: 2008 | O165: 2009 | P165: 2010 | Q165: 2011 | R165: 2012 | S165: 2013 | T165: 2014 | U165: 2015 | V165: 2016 | W165: 2017 | X165: 2018 | Y165: 2019 | Z165: Average (2014 to 2019)
B166: A1 | D166: Nominal | L166: =(L152/K152)-1 -> -0.1416659346 | M166: =(M152/L152)-1 -> -0.07709758389 | N166: 0.07858823839 | O166: 0.04185015324 | P166: -0.005082315033 | Q166: -0.04128124429 | R166: -0.06281240927 | S166: 0.1382393243 | T166: 0.03374969529 | U166: 0.005808553469 | V166: 0.02981139881 | W166: -9.417751378e-05 | X166: -0.008770766334 | Y166: -0.009927224791 | Z166: =((Y152/T152)^(1/5))-1 -> 0.003262703127
B167: A2 | D167: Nominal | L167: 0.1533421612 | M167: 0.03631394977 | N167: 0.08519942886 | O167: 0.02076899189 | P167: -0.01083449281 | Q167: -0.03627879427 | R167: 0.0109562897 | S167: -0.009265957485 | T167: 0.1130767758 | U167: 0.02226575737 | V167: 0.01246290843 | W167: 0.001387595838 | X167: 0.000422670657 | Y167: -0.004766107589 | Z167: 0.00630762861
B168: B1 | D168: Nominal | L168: 0.08107445978 | M168: 0.0405489137 | N168: 0.1121565296 | O168: 0.06434442245 | P168: -0.01924813668 | Q168: -0.04674323612 | R168: -0.0174660281 | S168: 0.07168294134 | T168: 0.006447404479 | U168: -0.003542435395 | V168: 0.01263145748 | W168: 0.008244364669 | X168: 0.007602065183 | Y168: 0.00743119488 | Z168: 0.006459014378
B169: B2 | D169: Nominal | L169: -0.001284923736 | M169: 0.04310436968 | N169: 0.03274841147 | O169: 0.02600729645 | P169: 0.004558354199 | Q169: 0.07929104385 | R169: 0.1212233113 | S169: 0.08351807852 | T169: 0.02796930706 | U169: 0.0195437137 | V169: 0.03516639272 | W169: 0.02672070804 | X169: 0.02552337288 | Y169: 0.02513727953 | Z169: 0.02640600759
B170: B3 | D170: Nominal | L170: 0.03066956263 | M170: 0.0192969377 | N170: 0.01148523373 | O170: 0.04216960882 | P170: 0.01237850806 | Q170: 0.2159744213 | R170: 0.1596945877 | S170: 0.07702451276 | T170: 0.06282135059 | U170: -0.01051862801 | V170: 0.03199797788 | W170: 0.02345959826 | X170: 0.01942954084 | Y170: 0.01678056889 | Z170: 0.01612778042
B171: All customer average | C171: $/GJ | D171: Nominal | L171: 0.01725029661 | M171: 0.00472856519 | N171: 0.031108595 | O171: 0.03778691565 | P171: -0.02191606154 | Q171: 0.05229990233 | R171: 0.09991180684 | S171: 0.09796171911 | T171: =(T157/S157)-1 -> 0.03732183599 | U171: -0.002890213185 | V171: 0.004928154858 | W171: 0.01932022408 | X171: 0.01517219482 | Y171: 0.01094305657 | Z171: 0.009464401696
B172: A1 | D172: Real Jun 14$ | L172: -0.1687131174 | M172: =(M158/L158)-1 -> -0.1036144553 | N172: 0.04025287329 | O172: 0.02033702323 | P172: -0.03177773279 | Q172: -0.06913980533 | R172: -0.08302625927 | S172: 0.10782835 | T172: 0.02301197419 | U172: -0.03076402261 | V172: 0.00469404762 | W172: -0.0244821244 | X172: -0.03294708911 | Y172: -0.03407534126 | Z172: -0.02362103272
B173: A2 | D173: Real Jun 14$ | L173: 0.1169989034 | M173: 0.006538533349 | N173: 0.04662908771 | O173: -0.0003088339033 | P173: -0.03737556937 | Q173: -0.06428271708 | R173: -0.01084864988 | S173: -0.03573595099 | T173: 0.1015150718 | U173: -0.01490522518 | V173: -0.01223130885 | W173: -0.02303649187 | X173: -0.02397788229 | Y173: -0.02904010497 | Z173: -0.0206577
B174: B1 | D174: Real Jun 14$ | L174: 0.04700844787 | M174: 0.01065181812 | N174: 0.07262807464 | O174: 0.04236680901 | P174: -0.04556346015 | Q174: -0.07444308196 | R174: -0.0386579373 | S174: 0.043050191 | T174: -0.004006723424 | U174: -0.03977499672 | V174: -0.01206687075 | W174: -0.0163469613 | X174: -0.01697359494 | Y174: -0.01714029768 | Z174: -0.02051037081
B175: B2 | D175: Real Jun 14$ | L175: -0.0327556882 | M175: 0.01313385062 | N175: -0.003957706772 | O175: 0.004821305074 | P175: -0.02239573993 | Q175: 0.04792887925 | R175: 0.09704006344 | S175: 0.05456912222 | T175: 0.01729162776 | U175: -0.01752829161 | V175: 0.009918431922 | W175: 0.001678739549 | X175: 0.0005106076872 | Y175: =(Y161/X161)-1 -> 0.0001339312455 | Z175: -0.00109788336
B176: B3 | D176: Real Jun 14$ | L176: -0.001808127772 | M176: -0.009989545204 | N176: -0.02446514506 | O176: 0.02064988238 | P176: -0.01478541475 | Q176: 0.1806404952 | R176: 0.1346815672 | S176: 0.04824904868 | T176: 0.05178165761 | U176: -0.04649752541 | V176: 0.006827295496 | W176: -0.001502830962 | X176: -0.005434594305 | Y176: -0.00801895718 | Z176: -0.011100692
B177: All customer average | D177: Real Jun 14$ | L177: 0.01725029661 | M177: 0.00472856519 | N177: 0.031108595 | O177: 0.03778691565 | P177: -0.02191606154 | Q177: 0.05229990233 | R177: 0.09991180684 | S177: 0.09796171911 | T177: =(T163/S163)-1 -> 0.03732183599 | U177: -0.0391464902 | V177: -0.01958228794 | W177: -0.005541244803 | X177: -0.009588102614 | Y177: -0.01371409115 | Z177: -0.01758551678
B179: Tariffs - nominal $ | T179: Jan- Jun | U179: Jul-Dec
S180: 2014 | T180: =S180+1 -> 2015 | U180: =T180 -> 2015 | V180: =U180+1 -> 2016 | W180: =V180+1 -> 2017 | X180: =W180+1 -> 2018 | Y180: =X180+1 -> 2019
B181: Reference tariff A1
B182: Standing charge | D182: Nominal $ | S182: =Tariff!T117 -> 46742.47 | T182: =Tariff!U117 -> 46742.47 | U182: =Tariff!V117 -> 47045.25146 | V182: =Tariff!W117 -> 47349.99423 | W182: =Tariff!X117 -> 47656.71102 | X182: =Tariff!Y117 -> 47965.41461 | Y182: =Tariff!Z117 -> 48276.11788
B183: Demand charge
B184: First 10 km | D184: Nominal $ | S184: =Tariff!T119 -> 197.0028843 | T184: =Tariff!U119 -> 197.0028843 | U184: =Tariff!V119 -> 198.2790004 | V184: =Tariff!W119 -> 199.5633828 | W184: =Tariff!X119 -> 200.856085 | X184: =Tariff!Y119 -> 202.1571608 | Y184: =Tariff!Z119 -> 203.4666646
B185: Distance > 10 km | D185: Nominal $ | S185: =Tariff!T120 -> 103.6909149 | T185: =Tariff!U120 -> 103.6909149 | U185: =Tariff!V120 -> 104.3625886 | V185: =Tariff!W120 -> 105.0386132 | W185: =Tariff!X120 -> 105.7190167 | X185: =Tariff!Y120 -> 106.4038278 | Y185: =Tariff!Z120 -> 107.0930747
B186: Usage charge
B187: First 10 km | D187: Nominal $ | S187: =Tariff!T122 -> 0.0417958996 | T187: =Tariff!U122 -> 0.0417958996 | U187: =Tariff!V122 -> 0.0420666389 | V187: =Tariff!W122 -> 0.04233913195 | W187: =Tariff!X122 -> 0.04261339012 | X187: =Tariff!Y122 -> 0.04288942483 | Y187: =Tariff!Z122 -> 0.0431672476
B188: Distance > 10 km | D188: Nominal $ | S188: =Tariff!T123 -> 0.02088143965 | T188: =Tariff!U123 -> 0.02088143965 | U188: =Tariff!V123 -> 0.02101670235 | V188: =Tariff!W123 -> 0.02115284123 | W188: =Tariff!X123 -> 0.02128986198 | X188: =Tariff!Y123 -> 0.0214277703 | Y188: =Tariff!Z123 -> 0.02156657194
B189: Carbon tax | D189: Nominal $ | S189: =Tariff!T124 -> 0 | T189: =Tariff!U124 -> 0 | U189: =Tariff!V124 -> 0 | V189: =Tariff!W124 -> 0 | W189: =Tariff!X124 -> 0 | X189: =Tariff!Y124 -> 0 | Y189: =Tariff!Z124 -> 0
B191: Reference tariff A2
B192: Standing charge | D192: Nominal $ | S192: =Tariff!T127 -> 25879.11 | T192: =Tariff!U127 -> 25879.11 | U192: =Tariff!V127 -> 26046.74587 | V192: =Tariff!W127 -> 26215.46763 | W192: =Tariff!X127 -> 26385.28231 | X192: =Tariff!Y127 -> 26556.19698 | Y192: =Tariff!Z127 -> 26728.21879
B193: First 10 TJ | D193: Nominal $ | S193: =Tariff!T128 -> 2.5 | T193: =Tariff!U128 -> 2.5 | U193: =Tariff!V128 -> 2.51619413 | V193: =Tariff!W128 -> 2.53249316 | W193: =Tariff!X128 -> 2.54889777 | X193: =Tariff!Y128 -> 2.565408643 | Y193: =Tariff!Z128 -> 2.582026467
B194: Volume > 10 TJ | D194: Nominal $ | S194: =Tariff!T129 -> 1.34 | T194: =Tariff!U129 -> 1.34 | U194: =Tariff!V129 -> 1.348680054 | V194: =Tariff!W129 -> 1.357416334 | W194: =Tariff!X129 -> 1.366209205 | X194: =Tariff!Y129 -> 1.375059033 | Y194: =Tariff!Z129 -> 1.383966186
B196: Reference tariff B1
B197: Standing charge | D197: Nominal $ | S197: =Tariff!T132 -> 1303.65 | T197: =Tariff!U132 -> 1303.65 | U197: =Tariff!V132 -> 1312.094591 | V197: =Tariff!W132 -> 1320.593883 | W197: =Tariff!X132 -> 1329.148231 | X197: =Tariff!Y132 -> 1337.757991 | Y197: =Tariff!Z132 -> 1346.423522
B198: First 5 TJ | D198: Nominal $ | S198: =Tariff!T133 -> 4.98 | T198: =Tariff!U133 -> 4.98 | U198: =Tariff!V133 -> 5.012258707 | V198: =Tariff!W133 -> 5.044726375 | W198: =Tariff!X133 -> 5.077404358 | X198: =Tariff!Y133 -> 5.110294016 | Y198: =Tariff!Z133 -> 5.143396723
B199: Volume > 5 TJ | D199: Nominal $ | S199: =Tariff!T134 -> 4.27 | T199: =Tariff!U134 -> 4.27 | U199: =Tariff!V134 -> 4.297659574 | V199: =Tariff!W134 -> 4.325498318 | W199: =Tariff!X134 -> 4.353517391 | X199: =Tariff!Y134 -> 4.381717962 | Y199: =Tariff!Z134 -> 4.410101206
B201: Reference tariff B2
B202: Standing charge | D202: Nominal $ | S202: =Tariff!T137 -> 326.67 | T202: =Tariff!U137 -> 326.67 | U202: =Tariff!V137 -> 337.5711786 | V202: =Tariff!W137 -> 348.4723572 | W202: =Tariff!X137 -> 359.3735358 | X202: =Tariff!Y137 -> 370.2747144 | Y202: =Tariff!Z137 -> 381.175893
B203: First 100 GJ | D203: Nominal $ | S203: =Tariff!T138 -> 8.31 | T203: =Tariff!U138 -> 8.31 | U203: =Tariff!V138 -> 8.333215848 | V203: =Tariff!W138 -> 8.356496554 | W203: =Tariff!X138 -> 8.3798423 | X203: =Tariff!Y138 -> 8.403253268 | Y203: =Tariff!Z138 -> 8.42672964
B204: Volume > 100 GJ | D204: Nominal $ | S204: =Tariff!T139 -> 4.95 | T204: =Tariff!U139 -> 4.95 | U204: =Tariff!V139 -> 4.963828935 | V204: =Tariff!W139 -> 4.977696503 | W204: =Tariff!X139 -> 4.991602814 | X204: =Tariff!Y139 -> 5.005547976 | Y204: =Tariff!Z139 -> 5.019532096
B206: Reference tariff B3
B207: Standing charge | D207: Nominal $ | S207: =Tariff!T142 -> 70.98 | T207: =Tariff!U142 -> 70.98 | U207: =Tariff!V142 -> 86.17659372 | V207: =Tariff!W142 -> 101.3731874 | W207: =Tariff!X142 -> 116.5697812 | X207: =Tariff!Y142 -> 131.7663749 | Y207: =Tariff!Z142 -> 146.9629686
B208: First 2 GJ | D208: Nominal $ | S208: =Tariff!T143 -> 13.95 | T208: =Tariff!U143 -> 13.95 | U208: =Tariff!V143 -> 0 | V208: =Tariff!W143 -> 0 | W208: =Tariff!X143 -> 0 | X208: =Tariff!Y143 -> 0 | Y208: =Tariff!Z143 -> 0
B209: Volume > 2 <10 GJ | D209: Nominal $ | S209: =Tariff!T144 -> 13.95 | T209: =Tariff!U144 -> 13.95 | U209: =Tariff!V144 -> 15.32663992 | V209: =Tariff!W144 -> 14.17131003 | W209: =Tariff!X144 -> 12.9486345 | X209: =Tariff!Y144 -> 11.65596811 | Y209: =Tariff!Z144 -> 10.29057552
B210: Volume > 10 GJ | D210: Nominal $ | S210: =Tariff!T145 -> 6.02 | T210: =Tariff!U145 -> 6.02 | U210: =Tariff!V145 -> 6.61407687 | V210: =Tariff!W145 -> 6.115504401 | W210: =Tariff!X145 -> 5.58786951 | X210: =Tariff!Y145 -> 5.030030684 | Y210: =Tariff!Z145 -> 4.440807499

Sheet Tariff
T1: =IF(Inputs!T1="","",Inputs!T1) -> Jul - Dec | U1: =IF(Inputs!U1="","",Inputs!U1) -> Jan - Jun | V1: =IF(Inputs!V1="","",Inputs!V1) -> Jul - Dec | W1: =IF(Inputs!W1="","",Inputs!W1) ->  | X1: =IF(Inputs!X1="","",Inputs!X1) ->  | Y1: =IF(Inputs!Y1="","",Inputs!Y1) ->  | Z1: =IF(Inputs!Z1="","",Inputs!Z1) -> 
B2: =Inputs!B2 -> Mid West and South West Gas Distribution Systems | S2: =T2 -> 2014 | T2: =Inputs!T2 -> 2014 | U2: =Inputs!U2 -> 2015 | V2: =Inputs!V2 -> 2015 | W2: =Inputs!W2 -> 2016 | X2: =Inputs!X2 -> 2017 | Y2: =Inputs!Y2 -> 2018 | Z2: =Inputs!Z2 -> 2019
B3: =Inputs!B3 -> Access Arrangement Revisions 2014
B5: WACC | T5: =(1+Inputs!$T$69)^(T9/Inputs!$C$37)-1 -> 0.03782065784 | U5: =V5 -> 0.07642 | V5: =Inputs!$T$69 -> 0.07642 | W5: =Inputs!$T$69 -> 0.07642 | X5: =Inputs!$T$69 -> 0.07642 | Y5: =Inputs!$T$69 -> 0.07642 | Z5: =Inputs!$T$69 -> 0.07642
B6: Inflators | T6: =1/Inputs!T80 -> 1.012422837 | U6: =V6 -> 1.037733407 | V6: =1/Inputs!V80 -> 1.037733407 | W6: =1/Inputs!W80 -> 1.063676743 | X6: =1/Inputs!X80 -> 1.090268661 | Y6: =1/Inputs!Y80 -> 1.117525378 | Z6: =1/Inputs!Z80 -> 1.145463512
B7: Annual Inflation | T7: =T6/1-1 -> 0.01242283657 | U7: =V7 -> 0.025 | V7: =V6/T6-1 -> 0.025 | W7: =W6/V6-1 -> 0.025 | X7: 0.025 | Y7: 0.025 | Z7: 0.025
B8: PV factors | T8: =1/(1+T5) -> 0.9635576171 | U8: =V8 -> 0.895150236 | V8: =(1/(1+V5))*T8 -> 0.895150236 | W8: =(1/(1+W5))*V8 -> 0.8315994092 | X8: =(1/(1+X5))*W8 -> 0.7725603474 | Y8: =(1/(1+Y5))*X8 -> 0.7177127398 | Z8: =(1/(1+Z5))*Y8 -> 0.6667590158
B9: Days | S9: =Inputs!$C$37-T9 -> 181 | T9: =Inputs!T5 -> 184 | U9: =Inputs!U5 -> 181 | V9: =Inputs!V5 -> 184 | W9: =Inputs!W5 -> 366 | X9: =Inputs!X5 -> 365 | Y9: =Inputs!Y5 -> 365 | Z9: =Inputs!Z5 -> 365
B11: Delivery points (excluding customers receiving
B12: prudent discounts)
B14: Tariff class A1 | T14: =Inputs!T97 -> 65 | U14: =Inputs!U97 -> 65.22259347 | V14: =Inputs!V97 -> 65.66778041 | W14: =Inputs!W97 -> 65.83564191 | X14: =Inputs!X97 -> 65.72625894 | Y14: =Inputs!Y97 -> 65.61703779 | Z14: =Inputs!Z97 -> 65.50797823
B15: Tariff class A2 | T15: =Inputs!T98 -> 102.5 | U15: =Inputs!U98 -> 105.0213537 | V15: =Inputs!V98 -> 109.0640611 | W15: =Inputs!W98 -> 113.1485238 | X15: =Inputs!X98 -> 117.2955428 | Y15: =Inputs!Y98 -> 121.4845704 | Z15: =Inputs!Z98 -> 125.7164287
B16: Tariff class B1 | T16: =Inputs!T99 -> 1398.709674 | U16: =Inputs!U99 -> 1424.891022 | V16: =Inputs!V99 -> 1449.834373 | W16: =Inputs!W99 -> 1488.007194 | X16: =Inputs!X99 -> 1540.192307 | Y16: =Inputs!Y99 -> 1593.968923 | Z16: =Inputs!Z99 -> 1649.389608
B17: Tariff class B2 | T17: =Inputs!T100 -> 10225.96011 | U17: =Inputs!U100 -> 10455.26229 | V17: =Inputs!V100 -> 10623.94643 | W17: =Inputs!W100 -> 10871.25475 | X17: =Inputs!X100 -> 11190.98775 | Y17: =Inputs!Y100 -> 11497.89579 | Z17: =Inputs!Z100 -> 11791.18225
B18: Tariff class B3 | T18: =Inputs!T101 -> 670358.0245 | U18: =Inputs!U101 -> 678371.8157 | V18: =Inputs!V101 -> 686429.3489 | W18: =Inputs!W101 -> 698688.0845 | X18: =Inputs!X101 -> 715145.815 | Y18: =Inputs!Y101 -> 730153.1387 | Z18: =Inputs!Z101 -> 743576.9673
B20: Gas volumes
B21: (Excluding volumes delivered to customers receiving prudent discounts)
B23: Reference tariff A1
B24: Demand
B25: First 10 km | C25: GJ km | T25: =Inputs!T193 -> 7136.487095 | U25: =Inputs!U193 -> 7276.011259 | V25: =Inputs!V193 -> 7157.380641 | W25: =Inputs!W193 -> 16918.98082 | X25: =Inputs!X193 -> 17082.16802 | Y25: =Inputs!Y193 -> 17082.16802 | Z25: =Inputs!Z193 -> 17082.16802
B26: Distance > 10 km | C26: GJ km | T26: =Inputs!T194 -> 3830.210104 | U26: =Inputs!U194 -> 3750.566268 | V26: =Inputs!V194 -> 3689.415732 | W26: =Inputs!W194 -> 7879.982 | X26: =Inputs!X194 -> 8334.982 | Y26: =Inputs!Y194 -> 8334.982 | Z26: =Inputs!Z194 -> 8334.982
B27: Usage
B28: First 10 km | C28: GJ km | T28: =Inputs!T196*1000 -> 16057995.81 | U28: =Inputs!U196*1000 -> 16672407.19 | V28: =Inputs!V196*1000 -> 16113011.19 | W28: =Inputs!W196*1000 -> 39509145.15 | X28: =Inputs!X196*1000 -> 40021256.33 | Y28: =Inputs!Y196*1000 -> 40690142.31 | Z28: =Inputs!Z196*1000 -> 41428975.76
B29: Distance > 10 km | C29: GJ km | T29: =Inputs!T197*1000 -> 6038082.809 | U29: =Inputs!U197*1000 -> 7030935.794 | V29: =Inputs!V197*1000 -> 5697728.366 | W29: =Inputs!W197*1000 -> 15342067.46 | X29: =Inputs!X197*1000 -> 15520671.05 | Y29: =Inputs!Y197*1000 -> 15780373.1 | Z29: =Inputs!Z197*1000 -> 16067233
B30: Total Volume | C30: GJ | T30: =Inputs!T139*1000 -> 4584837.941 | U30: =Inputs!U139*1000 -> 4433416.096 | V30: =Inputs!V139*1000 -> 4591320.525 | W30: =Inputs!W139*1000 -> 9795575.002 | X30: =Inputs!X139*1000 -> 9966440.689 | Y30: =Inputs!Y139*1000 -> 10150529.39 | Z30: =Inputs!Z139*1000 -> 10353868.81
B32: Reference tariff A2
B33: Usage
B34: First 10 TJ | C34: GJ | T34: =Inputs!T201 -> 444472.2157 | U34: =Inputs!U201 -> 477433.8968 | V34: =Inputs!V201 -> 532290.5129 | W34: =Inputs!W201 -> 1082047.121 | X34: =Inputs!X201 -> 1135966.056 | Y34: =Inputs!Y201 -> 1184589.581 | Z34: =Inputs!Z201 -> 1204747.993
B35: Volume > 10 TJ | C35: GJ | T35: =Inputs!T202 -> 524560.3775 | U35: =Inputs!U202 -> 450047.4601 | V35: =Inputs!V202 -> 472704.5795 | W35: =Inputs!W202 -> 959240.5292 | X35: =Inputs!X202 -> 1006125.57 | Y35: =Inputs!Y202 -> 1061018.381 | Z35: =Inputs!Z202 -> 1150755.902
B37: Reference tariff B1
B38: Usage
B39: First 5 TJ | C39: GJ | T39: =Inputs!T206 -> 779186.058 | U39: =Inputs!U206 -> 691053.3891 | V39: =Inputs!V206 -> 818032.2953 | W39: =Inputs!W206 -> 1547752.479 | X39: =Inputs!X206 -> 1597934.264 | Y39: =Inputs!Y206 -> 1654218.209 | Z39: =Inputs!Z206 -> 1713415.988
B40: Volume > 5 TJ | C40: GJ | T40: =Inputs!T207 -> 95465.6522 | U40: =Inputs!U207 -> 68253.09394 | V40: =Inputs!V207 -> 94288.00845 | W40: =Inputs!W207 -> 158592.4466 | X40: =Inputs!X207 -> 156157.2006 | Y40: =Inputs!Y207 -> 154476.1261 | Z40: =Inputs!Z207 -> 152862.4321
B42: Reference tariff B2
B43: Usage
B44: First 100 GJ | C44: GJ | T44: =Inputs!T211 -> 227863.5164 | U44: =Inputs!U211 -> 215000.7787 | V44: =Inputs!V211 -> 247193.0559 | W44: =Inputs!W211 -> 476028.5175 | X44: =Inputs!X211 -> 491937.1556 | Y44: =Inputs!Y211 -> 507996.0988 | Z44: =Inputs!Z211 -> 523113.8673
B45: Volume > 100 GJ | C45: GJ | T45: =Inputs!T212 -> 418812.1377 | U45: =Inputs!U212 -> 365999.8712 | V45: =Inputs!V212 -> 420526.983 | W45: =Inputs!W212 -> 765717.8089 | X45: =Inputs!X212 -> 749746.0006 | Y45: =Inputs!Y212 -> 735513.1024 | Z45: =Inputs!Z212 -> 721184.8934
B47: Reference tariff B3
B48: Usage
B49: First 2 GJ | C49: GJ | T49: =Inputs!T216 -> 0 | U49: =Inputs!U216 -> 0 | V49: =Inputs!V216 -> 602588.3324 | W49: =Inputs!W216 -> 1225597.337 | X49: =Inputs!X216 -> 1251951.71 | Y49: =Inputs!Y216 -> 1278626.316 | Z49: =Inputs!Z216 -> 1302573.241
B50: Volume 2 to 10 GJ | C50: GJ | T50: =Inputs!T217 -> 2698941.493 | U50: =Inputs!U217 -> 2445681.718 | V50: =Inputs!V217 -> 2091799.426 | W50: =Inputs!W217 -> 4046831.435 | X50: =Inputs!X217 -> 4133197.86 | Y50: =Inputs!Y217 -> 4221784.465 | Z50: =Inputs!Z217 -> 4298790.93
B51: Volume > 10 GJ | C51: GJ | T51: =Inputs!T218 -> 2454657.88 | U51: =Inputs!U218 -> 1832696.562 | V51: =Inputs!V218 -> 2885941.502 | W51: =Inputs!W218 -> 4735361.27 | X51: =Inputs!X218 -> 4803119.072 | Y51: =Inputs!Y218 -> 4872387.02 | Z51: =Inputs!Z218 -> 4929093.787
B54: RAB | T54: =T322 -> 1007.937442 | V54: =V322 -> 1046.799201 | W54: =W322 -> 1140.288117 | X54: =X322 -> 1241.592409 | Y54: =Y322 -> 1342.878951 | Z54: =Z322 -> 1437.11236
B55: - Equity | S55: =Inputs!$T$58 -> 0.4 | T55: =T$54*$S55 -> 403.1749769 | V55: =V$54*$S55*(U$9+V$9)/365 -> 418.7196805 | W55: =W$54*$S55 -> 456.1152468 | X55: 496.6369637 | Y55: 537.1515804 | Z55: 574.844944
B56: - Debt | S56: =Inputs!$T$57 -> 0.6 | T56: =T$54*$S56 -> 604.7624654 | V56: =V$54*$S56*(U$9+V$9)/365 -> 628.0795208 | W56: 684.1728701 | X56: 744.9554455 | Y56: 805.7273706 | Z56: 862.267416
B58: Revenue Building Blocks
B59: Nominal Vanilla WACC | S59: =Inputs!$T$69 -> 0.07642
B60: Return on Asset
B61: - Return on Equity | S61: =Inputs!$T$66 -> 0.1051 | T61: =T55*(($S61+1)^(T$9/365)-1) -> 20.83172568 | V61: =$S61*V55 -> 44.00743842 | W61: 47.93771243 | X61: 52.19654488 | Y61: 56.4546311 | Z61: 60.41620361
B62: - Return on Debt | S62: =Inputs!$T$63 -> 0.0573 | T62: =T56*(($S62+1)^(T$9/365)-1) -> 17.22751643 | V62: =$S62*V56 -> 35.98895654 | W62: 39.20310546 | X62: 42.68594703 | Y62: 46.16817834 | Z62: 49.40792293
T63: =T61+T62 -> 38.05924211 | V63: 79.99639496 | W63: 87.14081789 | X63: 94.88249191 | Y63: 102.6228094 | Z63: 109.8241265
B64: Return on working capital | T64: =Inputs!T264 -> 0.1503099721 | V64: =Inputs!U264+Inputs!V264 -> 0.206755469 | W64: =Inputs!W264 -> 0.19847991 | X64: =Inputs!X264 -> 0.205130147 | Y64: =Inputs!Y264 -> 0.2273370339 | Z64: =Inputs!Z264 -> 0.2493204087
B65: Return of Asset (regulatory depreciation) | T65: =RAB_Summary!T63 -> 4.842345916 | V65: =RAB_Summary!U63+RAB_Summary!V63 -> 15.35226679 | W65: =RAB_Summary!W63 -> 20.53819318 | X65: =RAB_Summary!X63 -> 24.93567348 | Y65: =RAB_Summary!Y63 -> 29.00494001 | Z65: =RAB_Summary!Z63 -> 33.0068693
B66: Opex (includes carry-over amounts) | T66: =Inputs!T242 -> 32.61048517 | V66: =Inputs!U242+Inputs!V242 -> 74.82481264 | W66: =Inputs!W242 -> 77.70763378 | X66: =Inputs!X242 -> 81.21381899 | Y66: =Inputs!Y242 -> 85.46900971 | Z66: =Inputs!Z242 -> 90.19842055
B68: Tax Payable | T68: =T90 -> 9.219974252 | V68: 11.61414268 | W68: 10.09827882 | X68: 9.345003304 | Y68: 8.533575559 | Z68: 5.928139704
B69: Less Value of Imputation Credits | T69: =-T68*$S$89 -> -2.304993563 | V69: -2.903535669 | W69: -2.524569705 | X69: -2.336250826 | Y69: -2.13339389 | Z69: -1.482034926
T70: =T68+T69 -> 6.914980689 | V70: 8.710607008 | W70: 7.573709116 | X70: 7.008752478 | Y70: 6.400181669 | Z70: 4.446104778
B71: Annual Revenue Requirement | T71: =SUM(T63:T69) -> 82.57736386 | V71: 179.0908369 | W71: 193.1588339 | X71: 208.245867 | Y71: 223.7242779 | Z71: 237.7248416
B73: Taxable revenue
B74: Tariff revenue (including ancillary services and prudent discounted revenue) | T74: =T286 -> 95.59233634 | V74: =V286+U286 -> 188.2740211 | W74: =W286 -> 196.9685269 | X74: =X286 -> 204.5143201 | Y74: =Y286 -> 212.0047812 | Z74: =Z286 -> 218.7748662
B75: - Capital contributions | T75: =Inputs!T268 -> 0.7894683457 | V75: =Inputs!V268 -> 1.308564684 | W75: =Inputs!W268 -> 1.394474747 | X75: =Inputs!X268 -> 1.484502058 | Y75: =Inputs!Y268 -> 1.498613715 | Z75: =Inputs!Z268 -> 1.615978425
B76: User specific charges | T76: =Inputs!T299 -> 1.514920237 | V76: =Inputs!V299 -> 2.572313959 | W76: =Inputs!W299 -> 2.457660097 | X76: =Inputs!X299 -> 2.306730029 | Y76: =Inputs!Y299 -> 2.158981679 | Z76: =Inputs!Z299 -> 2.003736229
T77: =SUM(T74:T76) -> 97.89672492 | V77: 192.1548998 | W77: 200.8206617 | X77: 208.3055522 | Y77: 215.6623766 | Z77: 222.3945808
B78: Tax Expenses
B79: - Opex | T79: =T66 -> 32.61048517 | V79: 74.82481264 | W79: 77.70763378 | X79: 81.21381899 | Y79: 85.46900971 | Z79: 90.19842055
B80: - Tax Depreciation | T80: =Tax_Depcn!T13 -> 24.2404565 | V80: =Tax_Depcn!U13+Tax_Depcn!V13 -> 51.33792866 | W80: =Tax_Depcn!W13 -> 57.71226796 | X80: =Tax_Depcn!X13 -> 60.26452763 | Y80: =Tax_Depcn!Y13 -> 61.98011833 | Z80: =Tax_Depcn!Z13 -> 67.47387645
B81: - Interest (based on regulatory asset base) | C81: =Inputs!$T$63 -> 0.0573 | T81: =T56*((1+$C$81)^(T9/365)-1) -> 17.22751643 | V81: =V56*((1+$C$81)^(365/365)-1) -> 35.98895654 | W81: =W56*((1+$C$81)^(W9/365)-1) -> 39.31353969 | X81: =X56*((1+$C$81)^(X9/365)-1) -> 42.68594703 | Y81: =Y56*((1+$C$81)^(Y9/365)-1) -> 46.16817834 | Z81: =Z56*((1+$C$81)^(Z9/365)-1) -> 49.40792293
B82: Total Tax Expenses | T82: =T79+T80+T81 -> 74.0784581 | V82: 162.1516978 | W82: 174.7334414 | X82: 184.1642936 | Y82: 193.6173064 | Z82: 207.0802199
B84: Tax Calculation
B85: Taxable Income | T85: =S87+T86 -> 23.81826682 | V85: =T87+V86 -> 30.00320192 | W85: 26.08722029 | X85: 24.14125853 | Y85: 22.04507019 | Z85: 15.3143609
B86: - Pre-tax Income | T86: =-T82+T75+T76+T74 -> 23.81826682 | V86: =-V82+V75+V76+V74 -> 30.00320192 | W86: 26.08722029 | X86: 24.14125853 | Y86: 22.04507019 | Z86: 15.3143609
B87: - Tax Loss Carried Forward | S87: =Inputs!$T$301 -> 0 | T87: =IF(T85<0,T85,0) -> 0 | V87: 0 | W87: 0 | X87: 0 | Y87: 0 | Z87: 0
B88: Tax Payable | S88: =Inputs!$T$59 -> 0.3 | T88: =IF(T$85>0,$S$88*T85,0) -> 7.145480045 | V88: 9.000960575 | W88: 7.826166086 | X88: 7.24237756 | Y88: 6.613521058 | Z88: 4.59430827
B89: Value of Imputation Credits | S89: =Inputs!$T$60 -> 0.25 | T89: =T88*$S$89 -> 1.786370011 | V89: 2.250240144 | W89: 1.956541522 | X89: 1.81059439 | Y89: 1.653380265 | Z89: 1.148577068
B90: Intermediate tax calculation | T90: =IF((SUM(T74:T76)-T82+S87)>0,(SUM(T74:T76)-T82+S87)*$S$88/(1-(1-$S$89)*$S$88),0) -> 9.219974252 | V90: =IF((SUM(V74:V76)-V82+T87)>0,(SUM(V74:V76)-V82+T87)*$S$88/(1-(1-$S$89)*$S$88),0) -> 11.61414268 | W90: =IF((SUM(W74:W76)-W82+V87)>0,(SUM(W74:W76)-W82+V87)*$S$88/(1-(1-$S$89)*$S$88),0) -> 10.09827882 | X90: 9.345003304 | Y90: 8.533575559 | Z90: 5.928139704
B92: Total Revenue
B93: Return On Asset Base | C93: $m | T93: =T63 -> 38.05924211 | V93: =V63 -> 79.99639496 | W93: 87.14081789 | X93: 94.88249191 | Y93: 102.6228094 | Z93: 109.8241265
B94: Return on Working Capital | C94: $m | T94: =T64 -> 0.1503099721 | V94: 0.206755469 | W94: 0.19847991 | X94: 0.205130147 | Y94: 0.2273370339 | Z94: 0.2493204087
B95: Depreciation (Regulatory) | C95: $m | T95: =T65 -> 4.842345916 | V95: 15.35226679 | W95: 20.53819318 | X95: 24.93567348 | Y95: 29.00494001 | Z95: 33.0068693
B96: OPEX (Including UAFG) | C96: $m | T96: =T66 -> 32.61048517 | V96: 74.82481264 | W96: 77.70763378 | X96: 81.21381899 | Y96: 85.46900971 | Z96: 90.19842055
B97: Tax expense net of imputation credits | C97: $m | T97: =T70 -> 6.914980689 | V97: =V70 -> 8.710607008 | W97: =W70 -> 7.573709116 | X97: =X70 -> 7.008752478 | Y97: =Y70 -> 6.400181669 | Z97: =Z70 -> 4.446104778
B98: Total Revenue | C98: $m | T98: =SUM(T93:T97) -> 82.57736386 | V98: 179.0908369 | W98: 193.1588339 | X98: 208.245867 | Y98: 223.7242779 | Z98: 237.7248416
B100: PV(Total revenue) | C100: $m | T100: =SUMPRODUCT(T8:Z8,T98:Z98) -> 880.4694702
B102: Forecast revenue from Ancillary Services
B103: $, nominal | C103: $m | T103: =Inputs!T272/1000000 -> 0.3591058169 | V103: =(Inputs!U272+Inputs!V272)/1000000 -> 0.6682819188 | W103: =Inputs!W272/1000000 -> 0.6272488677 | X103: =Inputs!X272/1000000 -> 0.6604128822 | Y103: =Inputs!Y272/1000000 -> 0.6953483423 | Z103: =Inputs!Z272/1000000 -> 0.7321233624
B105: Forecast revenue from customers receiving prudent discounts
B106: $, nominal | C106: $m | T106: =Inputs!T224 -> 0.6783418187 | V106: =Inputs!U224+Inputs!V224 -> 1.353923081 | W106: =Inputs!W224 -> 0.840861557 | X106: =Inputs!X224 -> 0.5588642674 | Y106: =Inputs!Y224 -> 0.6170488767 | Z106: =Inputs!Z224 -> 0.6788106136
B108: (PV) Revenue from Ancillary Services | C108: $m | T108: =SUMPRODUCT(T$8:Z$8,T103:Z103) -> 2.963270673
B109: (PV) Revenue from customers receiving prudent discounts | C109: $m | T109: =SUMPRODUCT(T$8:Z$8,T106:Z106) -> 3.892069275
B111: Nett Required Reference Tariff Revenue | C111: $m | T111: =T100-T109-T108 -> 873.6141302
B114: Reference tariff
B116: Reference tariff A1 | T116: 2014-01-01 | U116: 2015-01-01
B117: Standing charge | C117: $/year | T117: =Inputs!U158 -> 46742.47 | U117: =Inputs!V158 -> 46742.47 | V117: =U117*(1-V$283) -> 47045.25146 | W117: =V117*(1-W$283) -> 47349.99423 | X117: =W117*(1-X$283) -> 47656.71102 | Y117: =X117*(1-Y$283) -> 47965.41461 | Z117: =Y117*(1-Z$283) -> 48276.11788
B118: Demand charge
B119: First 10 km | C119: $/GJ km | T119: =Inputs!U160 -> 197.0028843 | U119: =Inputs!V160 -> 197.0028843 | V119: =U119*(1-V$283) -> 198.2790004 | W119: =V119*(1-W$283) -> 199.5633828 | X119: =W119*(1-X$283) -> 200.856085 | Y119: =X119*(1-Y$283) -> 202.1571608 | Z119: =Y119*(1-Z$283) -> 203.4666646
B120: Distance > 10 km | C120: $/GJ km | T120: =Inputs!U161 -> 103.6909149 | U120: =Inputs!V161 -> 103.6909149 | V120: =U120*(1-V$283) -> 104.3625886 | W120: =V120*(1-W$283) -> 105.0386132 | X120: =W120*(1-X$283) -> 105.7190167 | Y120: =X120*(1-Y$283) -> 106.4038278 | Z120: =Y120*(1-Z$283) -> 107.0930747
B121: Usage charge
B122: First 10 km | C122: $/GJ km | T122: =Inputs!U163 -> 0.0417958996 | U122: =Inputs!V163 -> 0.0417958996 | V122: =U122*(1-V$283) -> 0.0420666389 | W122: =V122*(1-W$283) -> 0.04233913195 | X122: =W122*(1-X$283) -> 0.04261339012 | Y122: =X122*(1-Y$283) -> 0.04288942483 | Z122: =Y122*(1-Z$283) -> 0.0431672476
B123: Distance > 10 km | C123: $/GJ km | T123: =Inputs!U164 -> 0.02088143965 | U123: =Inputs!V164 -> 0.02088143965 | V123: =U123*(1-V$283) -> 0.02101670235 | W123: =V123*(1-W$283) -> 0.02115284123 | X123: =W123*(1-X$283) -> 0.02128986198 | Y123: =X123*(1-Y$283) -> 0.0214277703 | Z123: =Y123*(1-Z$283) -> 0.02156657194
B124: Carbon tax | C124: $/GJ | T124: =Inputs!U165 -> 0 | U124: =Inputs!V165 -> 0
B126: Reference tariff A2
B127: Standing charge | C127: $/Year | T127: =Inputs!U168 -> 25879.11 | U127: =Inputs!V168 -> 25879.11 | V127: =U127*(1-V$283) -> 26046.74587 | W127: =V127*(1-W$283) -> 26215.46763 | X127: =W127*(1-X$283) -> 26385.28231 | Y127: =X127*(1-Y$283) -> 26556.19698 | Z127: =Y127*(1-Z$283) -> 26728.21879
B128: First 10 TJ | C128: $/GJ | T128: =Inputs!U169 -> 2.5 | U128: =Inputs!V169 -> 2.5 | V128: =U128*(1-V$283) -> 2.51619413 | W128: =V128*(1-W$283) -> 2.53249316 | X128: =W128*(1-X$283) -> 2.54889777 | Y128: =X128*(1-Y$283) -> 2.565408643 | Z128: =Y128*(1-Z$283) -> 2.582026467
B129: Volume > 10 TJ | C129: $/GJ | T129: =Inputs!U170 -> 1.34 | U129: =Inputs!V170 -> 1.34 | V129: =U129*(1-V$283) -> 1.348680054 | W129: =V129*(1-W$283) -> 1.357416334 | X129: =W129*(1-X$283) -> 1.366209205 | Y129: =X129*(1-Y$283) -> 1.375059033 | Z129: =Y129*(1-Z$283) -> 1.383966186
B131: Reference tariff B1
B132: Standing charge | C132: $/Year | T132: =Inputs!U173 -> 1303.65 | U132: =Inputs!V173 -> 1303.65 | V132: =U132*(1-V$283) -> 1312.094591 | W132: =V132*(1-W$283) -> 1320.593883 | X132: =W132*(1-X$283) -> 1329.148231 | Y132: =X132*(1-Y$283) -> 1337.757991 | Z132: =Y132*(1-Z$283) -> 1346.423522
B133: First 5 TJ | C133: $/GJ | T133: =Inputs!U174 -> 4.98 | U133: =Inputs!V174 -> 4.98 | V133: =U133*(1-V$283) -> 5.012258707 | W133: =V133*(1-W$283) -> 5.044726375 | X133: =W133*(1-X$283) -> 5.077404358 | Y133: =X133*(1-Y$283) -> 5.110294016 | Z133: =Y133*(1-Z$283) -> 5.143396723
B134: Volume > 5 TJ | C134: $/GJ | T134: =Inputs!U175 -> 4.27 | U134: =Inputs!V175 -> 4.27 | V134: =U134*(1-V$283) -> 4.297659574 | W134: =V134*(1-W$283) -> 4.325498318 | X134: =W134*(1-X$283) -> 4.353517391 | Y134: =X134*(1-Y$283) -> 4.381717962 | Z134: =Y134*(1-Z$283) -> 4.410101206
B136: Reference tariff B2
B137: Standing charge | C137: $/Year | S137: Steady nominal increase | T137: =Inputs!U178 -> 326.67 | U137: =Inputs!V178 -> 326.67 | V137: =($Z$137-$U$137)/5+U137 -> 337.5711786 | W137: =($Z$137-$U$137)/5+V137 -> 348.4723572 | X137: 359.3735358 | Y137: 370.2747144 | Z137: =Inputs!W178/Inputs!Z80 -> 381.175893
B138: First 100 GJ | C138: $/GJ | T138: =Inputs!U179 -> 8.31 | U138: =Inputs!V179 -> 8.31 | V138: =U138*(1-V$283)*(1-$T$221) -> 8.333215848 | W138: =V138*(1-W$283)*(1-$T$221) -> 8.356496554 | X138: =W138*(1-X$283)*(1-$T$221) -> 8.3798423 | Y138: =X138*(1-Y$283)*(1-$T$221) -> 8.403253268 | Z138: =Y138*(1-Z$283)*(1-$T$221) -> 8.42672964
B139: Volume > 100 GJ | C139: $/GJ | T139: =Inputs!U180 -> 4.95 | U139: =Inputs!V180 -> 4.95 | V139: =U139*(1-V$283)*(1-$T$221) -> 4.963828935 | W139: =V139*(1-W$283)*(1-$T$221) -> 4.977696503 | X139: =W139*(1-X$283)*(1-$T$221) -> 4.991602814 | Y139: =X139*(1-Y$283)*(1-$T$221) -> 5.005547976 | Z139: =Y139*(1-Z$283)*(1-$T$221) -> 5.019532096
B141: Reference tariff B3
B142: Standing charge | C142: $/Year | S142: Steady nominal increase | T142: =Inputs!U183 -> 70.98 | U142: =Inputs!V183 -> 70.98 | V142: =($Z$142-$U$142)/5+U142 -> 86.17659372 | W142: 101.3731874 | X142: 116.5697812 | Y142: 131.7663749 | Z142: =Inputs!W183/Inputs!Z80 -> 146.9629686
B143: First 2 GJ | C143: $/GJ | T143: =Inputs!U184 -> 13.95 | U143: =Inputs!V184 -> 13.95 | V143: 0
B144: Volume > 2 <10 GJ | C144: $/GJ | T144: =Inputs!U185 -> 13.95 | U144: =Inputs!V185 -> 13.95 | V144: =V242*((1+V$7)^0.5) -> 15.32663992 | W144: =W242*((1+W$7)^1.5) -> 14.17131003 | X144: =X242*((1+X$7)^2.5) -> 12.9486345 | Y144: =Y242*((1+Y$7)^3.5) -> 11.65596811 | Z144: =Z242*((1+Z$7)^4.5) -> 10.29057552
B145: Volume > 10 GJ | C145: $/GJ | T145: =Inputs!U186 -> 6.02 | U145: =Inputs!V186 -> 6.02 | V145: =V243*((1+V$7)^0.5) -> 6.61407687 | W145: =W243*((1+W$7)^1.5) -> 6.115504401 | X145: =X243*((1+X$7)^2.5) -> 5.58786951 | Y145: =Y243*((1+Y$7)^3.5) -> 5.030030684 | Z145: =Z243*((1+Z$7)^4.5) -> 4.440807499
B147: Forecast haulage reference tariff revenue
B148: A1
B149: Standing charges | C149: $m | T149: =(T14*T117*T$9/SUMIF($S$2:$Z$2,T$2,$S$9:$Z$9))/1000000 -> 1.531616277 | U149: 1.511803799 | V149: 1.55737461 | W149: 3.117317264 | X149: 3.132297328 | Y149: 3.147348423 | Z149: 3.162470879
B150: Demand Charge
B151: First 10km per GJ-km | C151: $m | T151: =(T25*T119)/1000000 -> 1.405908542 | U151: 1.433395204 | V151: 1.419158279 | W151: 3.376409046 | X151: 3.431057392 | Y151: 3.453282588 | Z151: 3.475651751
B152: > 10km per GJ-km | C152: $m | T152: 0.3971579901 | U152: 0.388899648 | V152: 0.3850369762 | W152: 0.827702381 | X152: 0.8811661016 | Y152: 0.886873989 | Z152: 0.8926188502
B153: A1 Fixed Charges | C153: $m | T153: =SUM(T149:T152) -> 3.334682809 | U153: 3.334098651 | V153: 3.361569865 | W153: 7.321428692 | X153: 7.444520822 | Y153: 7.487505 | Z153: 7.53074148
B154: Usage Charges
B155: First 10km per GJ-km | C155: $m | T155: =(T28*T122)/1000000 -> 0.6711583808 | U155: 0.6968382572 | V155: 0.6778202231 | W155: 1.67278291 | X155: 1.705441409 | Y155: 1.7451768 | Z155: 1.788374855
B156: > 10km per GJ-km | C156: $m | T156: 0.1260838618 | U156: 0.1468160614 | V156: 0.1197474611 | W156: 0.3245283172 | X156: 0.3304329445 | Y156: 0.33813821 | Z156: 0.3465151362
B157: A1 Usage Charges | C157: $m | T157: =T155+T156 -> 0.7972422426 | U157: 0.8436543187 | V157: 0.7975676842 | W157: 1.997311227 | X157: 2.035874353 | Y157: 2.08331501 | Z157: 2.134889991
B158: Total A1 revenue | T158: =T153+T157 -> 4.131925051 | U158: 4.177752969 | V158: 4.159137549 | W158: 9.318739918 | X158: 9.480395175 | Y158: 9.57082001 | Z158: 9.665631471
B160: A2
B161: Standing charges | C161: $m | T161: =(T15*T127*T$9/SUMIF($S$2:$Z$2,T$2,$S$9:$Z$9))/1000000 -> 1.337205519 | U161: 1.347760298 | V161: 1.432056313 | W161: 2.966241464 | X161: 3.094876009 | Y161: 3.226168182 | Z161: 3.36017621
B162: Usage Charges
B163: First 10TJ | C163: $m | T163: =T34*T128/1000000 -> 1.111180539 | U163: 1.193584742 | V163: 1.339346264 | W163: 2.740276934 | X163: 2.895461346 | Y163: 3.03895635 | Z163: 3.110691203
B164: > 10TJ | C164: $m | T164: 0.7029109059 | U164: 0.6030635965 | V164: 0.6375272377 | W164: 1.302088762 | X164: 1.374578015 | Y164: 1.458962908 | Z164: 1.592607257
B165: Usage Charges | C165: $m | T165: =T163+T164 -> 1.814091445 | U165: 1.796648339 | V165: 1.976873502 | W165: 4.042365696 | X165: 4.270039361 | Y165: 4.497919258 | Z165: 4.703298461
B166: Total A2 revenue | C166: $m | T166: =T161+T165 -> 3.151296964 | U166: 3.144408637 | V166: 3.408929815 | W166: 7.00860716 | X166: 7.36491537 | Y166: 7.724087441 | Z166: 8.063474671
B168: B1
B169: Standing charges | C169: $m | T169: =(T16*T132*T$9/SUMIF($S$2:$Z$2,T$2,$S$9:$Z$9))/1000000 -> 0.9192074721 | U169: 0.9211457859 | V169: 0.9589776723 | W169: 1.965053198 | X169: 2.047143881 | Y169: 2.132344664 | Z169: 2.220776965
B170: Usage Charges
B171: First 5TJ | C171: $m | T171: =T39*T133/1000000 -> 3.880346569 | U171: 3.441445878 | V171: 4.100189495 | W171: 7.807987752 | X171: 8.113358394 | Y171: 8.453541414 | Z171: 8.81277818
B172: Next 5TJ | C172: $m | T172: 0.4076383349 | U172: 0.2914407111 | V172: 0.4052177623 | W172: 0.6859913608 | X172: 0.6798330884 | Y172: 0.6768708163 | Z172: 0.6741387963
B173: Usage Charges | C173: $m | T173: =T171+T172 -> 4.287984904 | U173: =U171+U172 -> 3.732886589 | V173: =V171+V172 -> 4.505407257 | W173: =W171+W172 -> 8.493979113 | X173: =X171+X172 -> 8.793191483 | Y173: =Y171+Y172 -> 9.13041223 | Z173: =Z171+Z172 -> 9.486916976
B174: Total B1 revenue | C174: $m | T174: =T169+T173 -> 5.207192376 | U174: 4.654032375 | V174: 5.464384929 | W174: 10.45903231 | X174: 10.84033536 | Y174: 11.26275689 | Z174: 11.70769394
B176: B2
B177: Standing charges | C177: $m | T177: =(T17*T137*T$9/SUMIF($S$2:$Z$2,T$2,$S$9:$Z$9))/1000000 -> 1.683985336 | U177: 1.693674291 | V177: 1.807907435 | W177: 3.788331767 | X177: 4.021744837 | Y177: 4.257380081 | Z177: 4.494514422
B178: Usage Charges | C178: $m
B179: First 100GJ | C179: $m | T179: =T44*T138/1000000 -> 1.893545821 | U179: 1.786656471 | V179: 2.059913091 | W179: 3.977930666 | X179: 4.122355786 | Y179: 4.268819878 | Z179: 4.408139131
B180: > 100GJ | C180: $m | T180: 2.073120082 | U180: 1.811699363 | V180: 2.087424006 | W180: 3.81151086 | X180: 3.742434247 | Y180: 3.681646121 | Z180: 3.62001072
B181: Usage Charges | C181: $m | T181: =T179+T180 -> 3.966665903 | U181: =U179+U180 -> 3.598355834 | V181: =V179+V180 -> 4.147337097 | W181: =W179+W180 -> 7.789441526 | X181: =X179+X180 -> 7.864790033 | Y181: =Y179+Y180 -> 7.950465999 | Z181: =Z179+Z180 -> 8.02814985
B182: Total B2 revenue | C182: $m | T182: =T177+T181 -> 5.650651239 | U182: 5.292030125 | V182: 5.955244532 | W182: 11.57777329 | X182: 11.88653487 | Y182: 12.20784608 | Z182: 12.52266427
B184: B3
B185: Standing charge | C185: $m | T185: =(T18*T142*T$9/SUMIF($S$2:$Z$2,T$2,$S$9:$Z$9))/1000000 -> 23.98654881 | U185: 23.87753561 | V185: 29.82017078 | W185: 70.82823816 | X185: 83.36439116 | Y185: 96.20963221 | Z185: 109.2782785
B186: Usage Charges
B187: 0 to 2GJ | C187: $m
B188: 2 to 10GJ | C188: $m | T188: =T50*T144/1000000 -> 37.65023382 | U188: 34.11725996 | V188: 32.06025659 | W188: 57.34890291 | X188: 53.51926838 | Y188: 49.20898511 | Z188: 44.23703269
B189: > 10GJ | C189: $m | T189: 14.77704044 | U189: 11.03283331 | V189: 19.08783894 | W189: 28.95912269 | X189: 26.83920262 | Y189: 24.50825621 | Z189: 21.88915665
B190: Usage Charges | C190: $m | T190: =T188+T189 -> 52.42727426 | U190: =U188+U189 -> 45.15009327 | V190: =V188+V189 -> 51.14809552 | W190: =W188+W189 -> 86.3080256 | X190: =X188+X189 -> 80.358471 | Y190: =Y188+Y189 -> 73.71724132 | Z190: =Z188+Z189 -> 66.12618934
B191: Total B3 revenue | C191: $m | T191: =T185+T190 -> 76.41382307 | U191: 69.02762888 | V191: 80.9682663 | W191: 157.1362638 | X191: 163.7228622 | Y191: 169.9268735 | Z191: 175.4044679
B193: Expected revenue at reference tariffs | T193: =T158+T166+T174+T182+T191 -> 94.5548887 | U193: 86.29585299 | V193: 99.95596313 | W193: 195.5004164 | X193: 203.2950429 | Y193: 210.692384 | Z193: 217.3639322
B195: Expected revenue at reference tariffs % by tariff class
B196: Tariff class A1 | C196: $m | T196: =T158/T193 -> 0.04369869298 | U196: 0.04841197838 | V196: 0.0416096991 | W196: 0.04766608731 | X196: 0.04663367605 | Y196: 0.04542556228 | Z196: 0.04446750375
B197: Tariff class A2 | C197: $m | T197: =T166/T$193 -> 0.0333277 | U197: 0.03643754048 | V197: 0.03410431663 | W197: 0.03584957663 | X197: 0.03622771743 | Y197: 0.03666049667 | Z197: 0.03709665439
B198: Tariff class B1 | C198: $m | T198: =T174/T$193 -> 0.05507057803 | U198: =U174/U$193 -> 0.05393112431 | V198: 0.05466792334 | W198: 0.05349877254 | X198: 0.0533231662 | Y198: 0.05345592794 | Z198: 0.05386217401
B199: Tariff class B2 | C199: $m | T199: =T182/T$193 -> 0.05976054032 | U199: =U182/U$193 -> 0.06132426927 | V199: 0.05957868191 | W199: 0.05922122062 | X199: 0.05846937878 | Y199: 0.0579415632 | Z199: 0.05761150962
B200: Tariff class B3 | C200: $m | T200: =T191/T$193 -> 0.8081424887 | U200: =U191/U$193 -> 0.7998950876 | V200: 0.810039379 | W200: 0.8037643429 | X200: 0.8053460615 | Y200: 0.8065164499 | Z200: 0.8069621582
C202: $m | T202: =SUM(T196:T201) -> 1 | U202: 1 | V202: 1 | W202: 1 | X202: 1 | Y202: 1 | Z202: 1
B204: B2 and B3 2015 Usage rate adjustment | T204: B2 | U204: B3
B205: Revenue for 12 months ending Jun 2015 | T205: =T182+U182 -> 10.94268136 | U205: =U191+T191 -> 145.441452
B206: Less Standing charge revenue | T206: =T177+U177 -> 3.377659627 | U206: =U185+T185 -> 47.86408442
B207: Usage charge revenue at current tariffs | T207: =T205-T206 -> 7.565021737 | U207: =U205-U206 -> 97.57736753
B209: New Standing charge | C209: per cust | S209: $ | T209: =V137/(1+V7) -> 329.3377352 | U209: =V142/((1+V7)^0.5) -> 85.11917216
B210: Standing charge revenue at new rate | C210: per year | S210: $m | T210: =T209*(T17*T9/365+U9/365*U17)/1000000 -> 3.405243126 | U210: =U209*(U18*U9/365+T9/365*T18)/1000000 -> 57.39858047
B212: Total B2 or B3 revenue | T212: =T205 -> 10.94268136 | U212: =U205 -> 145.441452
B213: Less standing charge revenue at new rate | T213: =T210 -> 3.405243126 | U213: =U210 -> 57.39858047
B214: Usage charge revenue at new tariffs | T214: =T212-T213 -> 7.537438238 | U214: =U212-U213 -> 88.04287148
B216: Current usage charge tariffs
B217: Step 1 | C217: $/GJ | T217: =T138 -> 8.31 | U217: =U144 -> 13.95
B218: Step 2 | C218: $/GJ | T218: 4.95 | U218: =U145 -> 6.02
B219: Step 3 | C219: $/GJ
B221: Percentage reduction in usage charge revenue | T221: 0.003660218291 | U221: -0.08520257125
B222: Step 1 | C222: $/GJ | T222: =T217*(1-$T$221) -> 8.279583586 | U222: =U217*(1-$U$221) -> 15.13857587
B223: Step 2 | C223: $/GJ | T223: =T218*(1-$T$221) -> 4.931881919 | U223: =U218*(1-$U$221) -> 6.532919479
B225: Usage Volumes
B226: Free GJ | S226: 0.125 | U226: =SUM(T50:U51)*S226 -> 1178997.207
B227: Step 1 | C227: GJ | T227: =(T44+U44) -> 442864.2951 | U227: =(U50+T50)-U226 -> 3965626.004
B228: Step 2 | C228: GJ | T228: =(T45+U45) -> 784812.009 | U228: =(U51+T51) -> 4287354.443
B230: Usage charge revenue at new rates
B231: Step 1 | C231: $m | T231: =T227*T222/1000000 -> 3.666731949 | U231: =(U227)*U222/1000000 -> 60.03393013
B232: Step 2 | C232: $m | T232: =T228*T223/1000000 -> 3.870600157 | U232: =U228*U223/1000000 -> 28.00894135
T233: =SUM(T231:T232) -> 7.537332106 | U233: =SUM(U231:U232) -> 88.04287148
B235: Usage Charge Difference | C235: $m | T235: =T214-T233 -> 0.0001061322342 | U235: =U214-U233 -> 0
B238: B3 Usage Charge pricing
B240: B3 Calculated Tariff
B241: Fixed [$/year]
B242: Usage 2* (2<Q<=10GJ/year) [$/GJ], | T242: =T144 -> 13.95 | V242: =U222 -> 15.13857587 | W242: =V242*(1-W$248) -> 13.6560218 | X242: =W242*(1-X$248) -> 12.17346772 | Y242: =X242*(1-Y$248) -> 10.69091365 | Z242: =Y242*(1-Z$248) -> 9.208359578
B243: Usage 3* (Q>10GJ/year) [$/GJ], | T243: 6.02 | V243: =U223 -> 6.532919479 | W243: =V243*(1-W$248) -> 5.893136288 | X243: =W243*(1-X$248) -> 5.253353096 | Y243: =X243*(1-Y$248) -> 4.613569905 | Z243: =Y243*(1-Z$248) -> 3.973786714
B245: B3 Annual volume for average customer
B246: Average gas volume [GJ/year] | T246: 15 | V246: =T246 -> 15 | W246: =T246 -> 15 | X246: =W246 -> 15 | Y246: =X246 -> 15 | Z246: 15
B248: Usage charge change | W248: 0.09793220218 | X248: 0.1085641261 | Y248: 0.1217856823 | Z248: 0.1386742164
B250: Fixed [$] | T250: =T142 -> 70.98 | V250: =V142 -> 86.17659372 | W250: =W142 -> 101.3731874 | X250: =X142 -> 116.5697812 | Y250: =Y142 -> 131.7663749 | Z250: =Z142 -> 146.9629686
... 59 more rows

Sheet Tax_Depcn
E1: =IF(Inputs!E1="","",Inputs!E1) ->  | F1: =IF(Inputs!F1="","",Inputs!F1) ->  | G1: =IF(Inputs!G1="","",Inputs!G1) ->  | H1: =IF(Inputs!H1="","",Inputs!H1) ->  | I1: =IF(Inputs!I1="","",Inputs!I1) ->  | J1: =IF(Inputs!J1="","",Inputs!J1) ->  | K1: =IF(Inputs!K1="","",Inputs!K1) ->  | L1: =IF(Inputs!L1="","",Inputs!L1) ->  | M1: =IF(Inputs!M1="","",Inputs!M1) ->  | N1: =IF(Inputs!N1="","",Inputs!N1) ->  | O1: =IF(Inputs!O1="","",Inputs!O1) -> Jan - Jun | P1: =IF(Inputs!P1="","",Inputs!P1) ->  | Q1: =IF(Inputs!Q1="","",Inputs!Q1) ->  | R1: =IF(Inputs!R1="","",Inputs!R1) ->  | S1: =IF(Inputs!S1="","",Inputs!S1) ->  | T1: =IF(Inputs!T1="","",Inputs!T1) -> Jul - Dec | U1: =IF(Inputs!U1="","",Inputs!U1) -> Jan - Jun | V1: =IF(Inputs!V1="","",Inputs!V1) -> Jul - Dec | W1: =IF(Inputs!W1="","",Inputs!W1) ->  | X1: =IF(Inputs!X1="","",Inputs!X1) ->  | Y1: =IF(Inputs!Y1="","",Inputs!Y1) ->  | Z1: =IF(Inputs!Z1="","",Inputs!Z1) -> 
B2: =Inputs!$B$2 -> Mid West and South West Gas Distribution Systems | E2: =Inputs!E2 -> 2000 | F2: =Inputs!F2 -> 2001 | G2: =Inputs!G2 -> 2002 | H2: =Inputs!H2 -> 2003 | I2: =Inputs!I2 -> 2004 | J2: =Inputs!J2 -> 2005 | K2: =Inputs!K2 -> 2006 | L2: =Inputs!L2 -> 2007 | M2: =Inputs!M2 -> 2008 | N2: =Inputs!N2 -> 2009 | O2: =Inputs!O2 -> 2010 | P2: =Inputs!P2 -> 2010/11 | Q2: =Inputs!Q2 -> 2011/12 | R2: =Inputs!R2 -> 2012/13 | S2: =Inputs!S2 -> 2013/14 | T2: =Inputs!T2 -> 2014 | U2: =Inputs!U2 -> 2015 | V2: =Inputs!V2 -> 2015 | W2: =Inputs!W2 -> 2016 | X2: =Inputs!X2 -> 2017 | Y2: =Inputs!Y2 -> 2018 | Z2: =Inputs!Z2 -> 2019
B3: =Inputs!$B$3 -> Access Arrangement Revisions 2014 | E3: =Inputs!E3 -> Actual | F3: =Inputs!F3 -> Actual | G3: =Inputs!G3 -> Actual | H3: =Inputs!H3 -> Actual | I3: =Inputs!I3 -> Actual | J3: =Inputs!J3 -> Actual | K3: =Inputs!K3 -> Actual | L3: =Inputs!L3 -> Actual | M3: =Inputs!M3 -> Actual | N3: =Inputs!N3 -> Actual | O3: =Inputs!O3 -> Actual | P3: =Inputs!P3 -> Actual | Q3: =Inputs!Q3 -> Actual | R3: =Inputs!R3 -> Actual | S3: =Inputs!S3 -> Actual | T3: =Inputs!T3 -> Forecast | U3: =Inputs!U3 -> Forecast | V3: =Inputs!V3 -> Forecast | W3: =Inputs!W3 -> Forecast | X3: =Inputs!X3 -> Forecast | Y3: =Inputs!Y3 -> Forecast | Z3: =Inputs!Z3 -> Forecast
B6: =Inputs!B6 -> Year fraction for depreciation | E6: =Inputs!E6 -> 1 | F6: =Inputs!F6 -> 1 | G6: =Inputs!G6 -> 1 | H6: =Inputs!H6 -> 1 | I6: =Inputs!I6 -> 1 | J6: =Inputs!J6 -> 1 | K6: =Inputs!K6 -> 1 | L6: =Inputs!L6 -> 1 | M6: =Inputs!M6 -> 1 | N6: =Inputs!N6 -> 1 | O6: =Inputs!O6 -> 0.5 | P6: =Inputs!P6 -> 1 | Q6: =Inputs!Q6 -> 1 | R6: =Inputs!R6 -> 1 | S6: =Inputs!S6 -> 1 | T6: =Inputs!T6 -> 0.5 | U6: =Inputs!U6 -> 0.5 | V6: =Inputs!V6 -> 0.5 | W6: =Inputs!W6 -> 1 | X6: =Inputs!X6 -> 1 | Y6: =Inputs!Y6 -> 1 | Z6: =Inputs!Z6 -> 1
B7: =Inputs!$B$7 -> Access Arrangement | E7: =IF(Inputs!E7="","",Inputs!E7) -> AA1 | F7: =IF(Inputs!F7="","",Inputs!F7) -> AA1 | G7: =IF(Inputs!G7="","",Inputs!G7) -> AA1 | H7: =IF(Inputs!H7="","",Inputs!H7) -> AA1 | I7: =IF(Inputs!I7="","",Inputs!I7) -> AA1 | J7: =IF(Inputs!J7="","",Inputs!J7) -> AA2 | K7: =IF(Inputs!K7="","",Inputs!K7) -> AA2 | L7: =IF(Inputs!L7="","",Inputs!L7) -> AA2 | M7: =IF(Inputs!M7="","",Inputs!M7) -> AA2 | N7: =IF(Inputs!N7="","",Inputs!N7) -> AA2 | O7: =IF(Inputs!O7="","",Inputs!O7) -> AA3 | P7: =IF(Inputs!P7="","",Inputs!P7) -> AA3 | Q7: =IF(Inputs!Q7="","",Inputs!Q7) -> AA3 | R7: =IF(Inputs!R7="","",Inputs!R7) -> AA3 | S7: =IF(Inputs!S7="","",Inputs!S7) -> AA3 | T7: =IF(Inputs!T7="","",Inputs!T7) -> AA4 | U7: =IF(Inputs!U7="","",Inputs!U7) -> AA4 | V7: =IF(Inputs!V7="","",Inputs!V7) -> AA4 | W7: =IF(Inputs!W7="","",Inputs!W7) -> AA4 | X7: =IF(Inputs!X7="","",Inputs!X7) -> AA4 | Y7: =IF(Inputs!Y7="","",Inputs!Y7) -> AA4 | Z7: =IF(Inputs!Z7="","",Inputs!Z7) -> AA4
B9: Tax Depreciation
B11: Opening Tax Asset Base | T11: =Inputs!S296 -> 497.4156965 | U11: =T14 -> 517.9966741 | V11: =U14 -> 492.7623105 | W11: 577.4663853 | X11: 643.6496177 | Y11: 711.7539315 | Z11: 775.1828138
B12: Capex | T12: =Inputs!T465+Inputs!T268+Inputs!T294 -> 44.82143408 | U12: =Inputs!U465+Inputs!U268+Inputs!U294 -> 0 | V12: =Inputs!V465+Inputs!V268+Inputs!V294 -> 110.8076399 | W12: =Inputs!W465+Inputs!W268+Inputs!W294 -> 123.8955003 | X12: =Inputs!X465+Inputs!X268+Inputs!X294 -> 128.3688414 | Y12: =Inputs!Y465+Inputs!Y268+Inputs!Y294 -> 125.4090006 | Z12: =Inputs!Z465+Inputs!Z268+Inputs!Z294 -> 120.9230365
B13: Total Tax Depreciation | T13: =Inputs!T297 -> 24.2404565 | U13: =Inputs!U297 -> 25.23436358 | V13: =Inputs!V297 -> 26.10356508 | W13: =Inputs!W297 -> 57.71226796 | X13: =Inputs!X297 -> 60.26452763 | Y13: =Inputs!Y297 -> 61.98011833 | Z13: =Inputs!Z297 -> 67.47387645
B14: Closing Tax Asset Base | T14: =T11+T12-T13 -> 517.9966741 | U14: 492.7623105 | V14: 577.4663853 | W14: 643.6496177 | X14: 711.7539315 | Y14: 775.1828138 | Z14: 828.6319738

Sheet RAB_Summary
E1: =IF(Inputs!E1="","",Inputs!E1) ->  | F1: =IF(Inputs!F1="","",Inputs!F1) ->  | G1: =IF(Inputs!G1="","",Inputs!G1) ->  | H1: =IF(Inputs!H1="","",Inputs!H1) ->  | I1: =IF(Inputs!I1="","",Inputs!I1) ->  | J1: =IF(Inputs!J1="","",Inputs!J1) ->  | K1: =IF(Inputs!K1="","",Inputs!K1) ->  | L1: =IF(Inputs!L1="","",Inputs!L1) ->  | M1: =IF(Inputs!M1="","",Inputs!M1) ->  | N1: =IF(Inputs!N1="","",Inputs!N1) ->  | O1: =IF(Inputs!O1="","",Inputs!O1) -> Jan - Jun | P1: =IF(Inputs!P1="","",Inputs!P1) ->  | Q1: =IF(Inputs!Q1="","",Inputs!Q1) ->  | R1: =IF(Inputs!R1="","",Inputs!R1) ->  | S1: =IF(Inputs!S1="","",Inputs!S1) ->  | T1: =IF(Inputs!T1="","",Inputs!T1) -> Jul - Dec | U1: =IF(Inputs!U1="","",Inputs!U1) -> Jan - Jun | V1: =IF(Inputs!V1="","",Inputs!V1) -> Jul - Dec | W1: =IF(Inputs!W1="","",Inputs!W1) ->  | X1: =IF(Inputs!X1="","",Inputs!X1) ->  | Y1: =IF(Inputs!Y1="","",Inputs!Y1) ->  | Z1: =IF(Inputs!Z1="","",Inputs!Z1) -> 
B2: =Inputs!$B$2 -> Mid West and South West Gas Distribution Systems | E2: =Inputs!E2 -> 2000 | F2: =Inputs!F2 -> 2001 | G2: =Inputs!G2 -> 2002 | H2: =Inputs!H2 -> 2003 | I2: =Inputs!I2 -> 2004 | J2: =Inputs!J2 -> 2005 | K2: =Inputs!K2 -> 2006 | L2: =Inputs!L2 -> 2007 | M2: =Inputs!M2 -> 2008 | N2: =Inputs!N2 -> 2009 | O2: =Inputs!O2 -> 2010 | P2: =Inputs!P2 -> 2010/11 | Q2: =Inputs!Q2 -> 2011/12 | R2: =Inputs!R2 -> 2012/13 | S2: =Inputs!S2 -> 2013/14 | T2: =Inputs!T2 -> 2014 | U2: =Inputs!U2 -> 2015 | V2: =Inputs!V2 -> 2015 | W2: =Inputs!W2 -> 2016 | X2: =Inputs!X2 -> 2017 | Y2: =Inputs!Y2 -> 2018 | Z2: =Inputs!Z2 -> 2019
B3: =Inputs!$B$3 -> Access Arrangement Revisions 2014 | E3: =Inputs!E3 -> Actual | F3: =Inputs!F3 -> Actual | G3: =Inputs!G3 -> Actual | H3: =Inputs!H3 -> Actual | I3: =Inputs!I3 -> Actual | J3: =Inputs!J3 -> Actual | K3: =Inputs!K3 -> Actual | L3: =Inputs!L3 -> Actual | M3: =Inputs!M3 -> Actual | N3: =Inputs!N3 -> Actual | O3: =Inputs!O3 -> Actual | P3: =Inputs!P3 -> Actual | Q3: =Inputs!Q3 -> Actual | R3: =Inputs!R3 -> Actual | S3: =Inputs!S3 -> Actual | T3: =Inputs!T3 -> Forecast | U3: =Inputs!U3 -> Forecast | V3: =Inputs!V3 -> Forecast | W3: =Inputs!W3 -> Forecast | X3: =Inputs!X3 -> Forecast | Y3: =Inputs!Y3 -> Forecast | Z3: =Inputs!Z3 -> Forecast
B6: =Inputs!B6 -> Year fraction for depreciation | E6: =Inputs!E6 -> 1 | F6: =Inputs!F6 -> 1 | G6: =Inputs!G6 -> 1 | H6: =Inputs!H6 -> 1 | I6: =Inputs!I6 -> 1 | J6: =Inputs!J6 -> 1 | K6: =Inputs!K6 -> 1 | L6: =Inputs!L6 -> 1 | M6: =Inputs!M6 -> 1 | N6: =Inputs!N6 -> 1 | O6: =Inputs!O6 -> 0.5 | P6: =Inputs!P6 -> 1 | Q6: =Inputs!Q6 -> 1 | R6: =Inputs!R6 -> 1 | S6: =Inputs!S6 -> 1 | T6: =Inputs!T6 -> 0.5 | U6: =Inputs!U6 -> 0.5 | V6: =Inputs!V6 -> 0.5 | W6: =Inputs!W6 -> 1 | X6: =Inputs!X6 -> 1 | Y6: =Inputs!Y6 -> 1 | Z6: =Inputs!Z6 -> 1
B7: =Inputs!$B$7 -> Access Arrangement | E7: =IF(Inputs!E7="","",Inputs!E7) -> AA1 | F7: =IF(Inputs!F7="","",Inputs!F7) -> AA1 | G7: =IF(Inputs!G7="","",Inputs!G7) -> AA1 | H7: =IF(Inputs!H7="","",Inputs!H7) -> AA1 | I7: =IF(Inputs!I7="","",Inputs!I7) -> AA1 | J7: =IF(Inputs!J7="","",Inputs!J7) -> AA2 | K7: =IF(Inputs!K7="","",Inputs!K7) -> AA2 | L7: =IF(Inputs!L7="","",Inputs!L7) -> AA2 | M7: =IF(Inputs!M7="","",Inputs!M7) -> AA2 | N7: =IF(Inputs!N7="","",Inputs!N7) -> AA2 | O7: =IF(Inputs!O7="","",Inputs!O7) -> AA3 | P7: =IF(Inputs!P7="","",Inputs!P7) -> AA3 | Q7: =IF(Inputs!Q7="","",Inputs!Q7) -> AA3 | R7: =IF(Inputs!R7="","",Inputs!R7) -> AA3 | S7: =IF(Inputs!S7="","",Inputs!S7) -> AA3 | T7: =IF(Inputs!T7="","",Inputs!T7) -> AA4 | U7: =IF(Inputs!U7="","",Inputs!U7) -> AA4 | V7: =IF(Inputs!V7="","",Inputs!V7) -> AA4 | W7: =IF(Inputs!W7="","",Inputs!W7) -> AA4 | X7: =IF(Inputs!X7="","",Inputs!X7) -> AA4 | Y7: =IF(Inputs!Y7="","",Inputs!Y7) -> AA4 | Z7: =IF(Inputs!Z7="","",Inputs!Z7) -> AA4
B10: ='RAB Scenarios'!B24 -> Nominal | E10: ='RAB Scenarios'!E24 -> $, Jun 2014 | F10: ='RAB Scenarios'!F24 -> $, Jun 2014 | G10: ='RAB Scenarios'!G24 -> $, Jun 2014 | H10: ='RAB Scenarios'!H24 -> $, Jun 2014 | I10: ='RAB Scenarios'!I24 -> $, Jun 2014 | J10: ='RAB Scenarios'!J24 -> $, Jun 2014 | K10: ='RAB Scenarios'!K24 -> $, Jun 2014 | L10: ='RAB Scenarios'!L24 -> $, Jun 2014 | M10: ='RAB Scenarios'!M24 -> $, Jun 2014 | N10: ='RAB Scenarios'!N24 -> $, Jun 2014 | O10: ='RAB Scenarios'!O24 -> $, Jun 2014 | P10: ='RAB Scenarios'!P24 -> $, Jun 2014 | Q10: ='RAB Scenarios'!Q24 -> $, Jun 2014 | R10: ='RAB Scenarios'!R24 -> $, Jun 2014 | S10: ='RAB Scenarios'!S24 -> $, Jun 2014 | T10: ='RAB Scenarios'!T24 -> $, nominal | U10: ='RAB Scenarios'!U24 -> $, nominal | V10: ='RAB Scenarios'!V24 -> $, nominal | W10: ='RAB Scenarios'!W24 -> $, nominal | X10: ='RAB Scenarios'!X24 -> $, nominal | Y10: ='RAB Scenarios'!Y24 -> $, nominal | Z10: ='RAB Scenarios'!Z24 -> $, nominal
B12: Opening Capital Base | E12: ='RAB Scenarios'!E42 -> 821.7698214 | F12: ='RAB Scenarios'!F42 -> 831.9793497 | G12: ='RAB Scenarios'!G42 -> 829.3218696 | H12: ='RAB Scenarios'!H42 -> 834.5407782 | I12: ='RAB Scenarios'!I42 -> 842.6029506 | J12: ='RAB Scenarios'!J42 -> 855.7647594 | K12: ='RAB Scenarios'!K42 -> 854.4927457 | L12: ='RAB Scenarios'!L42 -> 857.5040524 | M12: ='RAB Scenarios'!M42 -> 860.5225236 | N12: ='RAB Scenarios'!N42 -> 862.7319523 | O12: ='RAB Scenarios'!O42 -> 878.0372744 | P12: ='RAB Scenarios'!P42 -> 896.7951744 | Q12: ='RAB Scenarios'!Q42 -> 911.6687274 | R12: ='RAB Scenarios'!R42 -> 921.4178986 | S12: ='RAB Scenarios'!S42 -> 969.4594782 | T12: ='RAB Scenarios'!T42 -> 1007.937442 | U12: ='RAB Scenarios'!U42 -> 1034.49082 | V12: ='RAB Scenarios'!V42 -> 1014.963215 | W12: ='RAB Scenarios'!W42 -> 1104.276793 | X12: ='RAB Scenarios'!X42 -> 1183.113305 | Y12: ='RAB Scenarios'!Y42 -> 1263.13045 | Z12: ='RAB Scenarios'!Z42 -> 1337.228815
B13: Vines/Westnet | N13: =Vines!$N$186 -> 0.6511479926 | O13: =WestNet!$O$186 -> 3.318225362
B14: Capex | E14: ='RAB Scenarios'!E60 -> 36.41156699 | F14: ='RAB Scenarios'!F60 -> 24.9795307 | G14: ='RAB Scenarios'!G60 -> 33.81260957 | H14: ='RAB Scenarios'!H60 -> 37.58184515 | I14: ='RAB Scenarios'!I60 -> 43.55305548 | J14: ='RAB Scenarios'!J60 -> 30.91459494 | K14: ='RAB Scenarios'!K60 -> 37.24769873 | L14: ='RAB Scenarios'!L60 -> 39.14680611 | M14: ='RAB Scenarios'!M60 -> 39.87566 | N14: ='RAB Scenarios'!N60 -> 47.65349486 | O14: ='RAB Scenarios'!O60 -> 27.73404532 | P14: ='RAB Scenarios'!P60 -> 41.51463454 | Q14: ='RAB Scenarios'!Q60 -> 38.79101726 | R14: ='RAB Scenarios'!R60 -> 79.44421977 | S14: ='RAB Scenarios'!S60 -> 72.19103922 | T14: ='RAB Scenarios'!T60 -> 43.70410485 | U14: ='RAB Scenarios'!U60 -> 0 | V14: ='RAB Scenarios'!V60 -> 108.8411824 | W14: ='RAB Scenarios'!W60 -> 121.8424855 | X14: ='RAB Scenarios'!X60 -> 126.2222153 | Y14: ='RAB Scenarios'!Y60 -> 123.2383489 | Z14: ='RAB Scenarios'!Z60 -> 118.6366017
B15: Amounts added to Capital Base under NGR 82,84,86 | E15: ='RAB Scenarios'!E150 -> 0 | F15: ='RAB Scenarios'!F150 -> 0 | G15: ='RAB Scenarios'!G150 -> 0 | H15: ='RAB Scenarios'!H150 -> 0 | I15: ='RAB Scenarios'!I150 -> 0 | J15: ='RAB Scenarios'!J150 -> 0 | K15: ='RAB Scenarios'!K150 -> 0 | L15: ='RAB Scenarios'!L150 -> 0 | M15: ='RAB Scenarios'!M150 -> 0 | N15: ='RAB Scenarios'!N150 -> 0 | O15: ='RAB Scenarios'!O150 -> 0 | P15: ='RAB Scenarios'!P150 -> 0 | Q15: ='RAB Scenarios'!Q150 -> 0 | R15: ='RAB Scenarios'!R150 -> 0 | S15: ='RAB Scenarios'!S150 -> 0 | T15: ='RAB Scenarios'!T150 -> 0 | U15: ='RAB Scenarios'!U150 -> 0 | V15: ='RAB Scenarios'!V150 -> 0 | W15: ='RAB Scenarios'!W150 -> 0 | X15: ='RAB Scenarios'!X150 -> 0 | Y15: ='RAB Scenarios'!Y150 -> 0 | Z15: ='RAB Scenarios'!Z150 -> 0
B16: Depreciation | E16: ='RAB Scenarios'!E78 -> 26.20203866 | F16: ='RAB Scenarios'!F78 -> 27.63701079 | G16: ='RAB Scenarios'!G78 -> 28.59370101 | H16: ='RAB Scenarios'!H78 -> 29.5196728 | I16: ='RAB Scenarios'!I78 -> 30.39124669 | J16: ='RAB Scenarios'!J78 -> 32.18660863 | K16: ='RAB Scenarios'!K78 -> 34.23639195 | L16: ='RAB Scenarios'!L78 -> 36.12833499 | M16: ='RAB Scenarios'!M78 -> 37.66623121 | N16: ='RAB Scenarios'!N78 -> 39.63189888 | O16: ='RAB Scenarios'!O78 -> 12.29437072 | P16: ='RAB Scenarios'!P78 -> 26.64108155 | Q16: ='RAB Scenarios'!Q78 -> 29.041846 | R16: ='RAB Scenarios'!R78 -> 31.40264022 | S16: ='RAB Scenarios'!S78 -> 33.69872599 | T16: ='RAB Scenarios'!T78 -> 17.15072735 | U16: ='RAB Scenarios'!U78 -> 19.52760459 | V16: ='RAB Scenarios'!V78 -> 19.52760459 | W16: ='RAB Scenarios'!W78 -> 43.00597359 | X16: ='RAB Scenarios'!X78 -> 46.20507018 | Y16: ='RAB Scenarios'!Y78 -> 49.13998361 | Z16: ='RAB Scenarios'!Z78 -> 52.12044557
B17: Redundant Assets | E17: ='RAB Scenarios'!E96 -> 0 | F17: ='RAB Scenarios'!F96 -> 0 | G17: ='RAB Scenarios'!G96 -> 0 | H17: ='RAB Scenarios'!H96 -> 0 | I17: ='RAB Scenarios'!I96 -> 0 | J17: ='RAB Scenarios'!J96 -> 0 | K17: ='RAB Scenarios'!K96 -> 0 | L17: ='RAB Scenarios'!L96 -> 0 | M17: ='RAB Scenarios'!M96 -> 0 | N17: ='RAB Scenarios'!N96 -> 0 | O17: ='RAB Scenarios'!O96 -> 0 | P17: ='RAB Scenarios'!P96 -> 0 | Q17: ='RAB Scenarios'!Q96 -> 0 | R17: ='RAB Scenarios'!R96 -> 0 | S17: ='RAB Scenarios'!S96 -> 0 | T17: ='RAB Scenarios'!T96 -> 0 | U17: ='RAB Scenarios'!U96 -> 0 | V17: ='RAB Scenarios'!V96 -> 0 | W17: ='RAB Scenarios'!W96 -> 0 | X17: ='RAB Scenarios'!X96 -> 0 | Y17: ='RAB Scenarios'!Y96 -> 0 | Z17: ='RAB Scenarios'!Z96 -> 0
B18: Asset Disposals | E18: ='RAB Scenarios'!E114 -> 0 | F18: ='RAB Scenarios'!F114 -> 0 | G18: ='RAB Scenarios'!G114 -> 0 | H18: ='RAB Scenarios'!H114 -> 0 | I18: ='RAB Scenarios'!I114 -> 0 | J18: ='RAB Scenarios'!J114 -> 0 | K18: ='RAB Scenarios'!K114 -> 0 | L18: ='RAB Scenarios'!L114 -> 0 | M18: ='RAB Scenarios'!M114 -> 0 | N18: ='RAB Scenarios'!N114 -> 4.951826297 | O18: ='RAB Scenarios'!O114 -> 0 | P18: ='RAB Scenarios'!P114 -> 0 | Q18: ='RAB Scenarios'!Q114 -> 0 | R18: ='RAB Scenarios'!R114 -> 0 | S18: ='RAB Scenarios'!S114 -> 0 | T18: ='RAB Scenarios'!T114 -> 0 | U18: ='RAB Scenarios'!U114 -> 0 | V18: ='RAB Scenarios'!V114 -> 0 | W18: ='RAB Scenarios'!W114 -> 0 | X18: ='RAB Scenarios'!X114 -> 0 | Y18: ='RAB Scenarios'!Y114 -> 0 | Z18: ='RAB Scenarios'!Z114 -> 0
B19: Over Depreciation | E19: ='RAB Scenarios'!E132 -> 0 | F19: ='RAB Scenarios'!F132 -> 0 | G19: ='RAB Scenarios'!G132 -> 0 | H19: ='RAB Scenarios'!H132 -> 0 | I19: ='RAB Scenarios'!I132 -> 1.006139616e-15 | J19: ='RAB Scenarios'!J132 -> 0 | K19: ='RAB Scenarios'!K132 -> 0 | L19: ='RAB Scenarios'!L132 -> 0 | M19: ='RAB Scenarios'!M132 -> 0 | N19: ='RAB Scenarios'!N132 -> -11.5844044 | O19: ='RAB Scenarios'!O132 -> 0 | P19: ='RAB Scenarios'!P132 -> 0 | Q19: ='RAB Scenarios'!Q132 -> 0 | R19: ='RAB Scenarios'!R132 -> 0 | S19: ='RAB Scenarios'!S132 -> 0 | T19: ='RAB Scenarios'!T132 -> 0 | U19: ='RAB Scenarios'!U132 -> 0 | V19: ='RAB Scenarios'!V132 -> 0 | W19: ='RAB Scenarios'!W132 -> 0 | X19: ='RAB Scenarios'!X132 -> 0 | Y19: ='RAB Scenarios'!Y132 -> 0 | Z19: ='RAB Scenarios'!Z132 -> 0
B20: Deprecation per Tariff Variation | E20: ='RAB Scenarios'!E168 -> 0 | F20: ='RAB Scenarios'!F168 -> 0 | G20: ='RAB Scenarios'!G168 -> 0 | H20: ='RAB Scenarios'!H168 -> 0 | I20: ='RAB Scenarios'!I168 -> 0 | J20: ='RAB Scenarios'!J168 -> 0 | K20: ='RAB Scenarios'!K168 -> 0 | L20: ='RAB Scenarios'!L168 -> 0 | M20: ='RAB Scenarios'!M168 -> 0 | N20: ='RAB Scenarios'!N168 -> 0 | O20: ='RAB Scenarios'!O168 -> 0 | P20: ='RAB Scenarios'!P168 -> 0 | Q20: ='RAB Scenarios'!Q168 -> 0 | R20: ='RAB Scenarios'!R168 -> 0 | S20: ='RAB Scenarios'!S168 -> 0.0143490458 | T20: ='RAB Scenarios'!T168 -> 0 | U20: ='RAB Scenarios'!U168 -> 0 | V20: ='RAB Scenarios'!V168 -> 0 | W20: ='RAB Scenarios'!W168 -> 0 | X20: ='RAB Scenarios'!X168 -> 0 | Y20: ='RAB Scenarios'!Y168 -> 0 | Z20: ='RAB Scenarios'!Z168 -> 0
B21: Closing Capital Base | E21: =SUM(E12:E15)-SUM(E16:E20) -> 831.9793497 | F21: =SUM(F12:F15)-SUM(F16:F20) -> 829.3218696 | G21: 834.5407782 | H21: 842.6029506 | I21: 855.7647594 | J21: 854.4927457 | K21: 857.5040524 | L21: 860.5225236 | M21: 862.7319523 | N21: 878.0372744 | O21: 896.7951744 | P21: 911.6687274 | Q21: 921.4178986 | R21: 969.4594782 | S21: 1007.937442 | T21: 1034.49082 | U21: 1014.963215 | V21: 1104.276793 | W21: 1183.113305 | X21: 1263.13045 | Y21: 1337.228815 | Z21: 1403.744972
B22: Check | C22: =SUM(E22:Z22) -> 0 | E22: ='RAB Scenarios'!E186-E21 -> 0 | F22: ='RAB Scenarios'!F186-F21 -> 0 | G22: ='RAB Scenarios'!G186-G21 -> 0 | H22: ='RAB Scenarios'!H186-H21 -> 0 | I22: ='RAB Scenarios'!I186-I21 -> 0 | J22: ='RAB Scenarios'!J186-J21 -> 0 | K22: ='RAB Scenarios'!K186-K21 -> 0 | L22: ='RAB Scenarios'!L186-L21 -> 0 | M22: ='RAB Scenarios'!M186-M21 -> 0 | N22: ='RAB Scenarios'!N186-N21 -> 0 | O22: ='RAB Scenarios'!O186-O21 -> 0 | P22: ='RAB Scenarios'!P186-P21 -> 0 | Q22: ='RAB Scenarios'!Q186-Q21 -> 0 | R22: ='RAB Scenarios'!R186-R21 -> 0 | S22: ='RAB Scenarios'!S186-S21 -> 0 | T22: ='RAB Scenarios'!T186-T21 -> 0 | U22: ='RAB Scenarios'!U186-U21 -> 0 | V22: ='RAB Scenarios'!V186-V21 -> 0 | W22: ='RAB Scenarios'!W186-W21 -> 0 | X22: ='RAB Scenarios'!X186-X21 -> 0 | Y22: ='RAB Scenarios'!Y186-Y21 -> 0 | Z22: ='RAB Scenarios'!Z186-Z21 -> 0
B25: ='RAB Scenarios'!B190 -> Real | E25: ='RAB Scenarios'!E190 -> $, Jun 2014 | F25: ='RAB Scenarios'!F190 -> $, Jun 2014 | G25: ='RAB Scenarios'!G190 -> $, Jun 2014 | H25: ='RAB Scenarios'!H190 -> $, Jun 2014 | I25: ='RAB Scenarios'!I190 -> $, Jun 2014 | J25: ='RAB Scenarios'!J190 -> $, Jun 2014 | K25: ='RAB Scenarios'!K190 -> $, Jun 2014 | L25: ='RAB Scenarios'!L190 -> $, Jun 2014 | M25: ='RAB Scenarios'!M190 -> $, Jun 2014 | N25: ='RAB Scenarios'!N190 -> $, Jun 2014 | O25: ='RAB Scenarios'!O190 -> $, Jun 2014 | P25: ='RAB Scenarios'!P190 -> $, Jun 2014 | Q25: ='RAB Scenarios'!Q190 -> $, Jun 2014 | R25: ='RAB Scenarios'!R190 -> $, Jun 2014 | S25: ='RAB Scenarios'!S190 -> $, Jun 2014 | T25: ='RAB Scenarios'!T190 -> $, Jun 2014 | U25: ='RAB Scenarios'!U190 -> $, Jun 2014 | V25: ='RAB Scenarios'!V190 -> $, Jun 2014 | W25: ='RAB Scenarios'!W190 -> $, Jun 2014 | X25: ='RAB Scenarios'!X190 -> $, Jun 2014 | Y25: ='RAB Scenarios'!Y190 -> $, Jun 2014 | Z25: ='RAB Scenarios'!Z190 -> $, Jun 2014
B27: =$B$12 -> Opening Capital Base | E27: ='RAB Scenarios'!E208 -> 821.7698214 | F27: ='RAB Scenarios'!F208 -> 831.9793497 | G27: ='RAB Scenarios'!G208 -> 829.3218696 | H27: ='RAB Scenarios'!H208 -> 834.5407782 | I27: ='RAB Scenarios'!I208 -> 842.6029506 | J27: ='RAB Scenarios'!J208 -> 855.7647594 | K27: ='RAB Scenarios'!K208 -> 854.4927457 | L27: ='RAB Scenarios'!L208 -> 857.5040524 | M27: ='RAB Scenarios'!M208 -> 860.5225236 | N27: ='RAB Scenarios'!N208 -> 862.7319523 | O27: ='RAB Scenarios'!O208 -> 878.0372744 | P27: ='RAB Scenarios'!P208 -> 896.7951744 | Q27: ='RAB Scenarios'!Q208 -> 911.6687274 | R27: ='RAB Scenarios'!R208 -> 921.4178986 | S27: ='RAB Scenarios'!S208 -> 969.4594782 | T27: ='RAB Scenarios'!T208 -> 1007.937442 | U27: ='RAB Scenarios'!U208 -> 1033.954553 | V27: ='RAB Scenarios'!V208 -> 1014.443086 | W27: ='RAB Scenarios'!W208 -> 1099.815187 | X27: ='RAB Scenarios'!X208 -> 1171.549473 | Y27: ='RAB Scenarios'!Y208 -> 1241.563468 | Z27: ='RAB Scenarios'!Z208 -> 1303.503497
B28: =$B$13 -> Vines/Westnet | N28: =Vines!$N$186 -> 0.6511479926 | O28: =WestNet!$O$186 -> 3.318225362
B29: =$B$14 -> Capex | E29: ='RAB Scenarios'!E226 -> 36.41156699 | F29: ='RAB Scenarios'!F226 -> 24.9795307 | G29: ='RAB Scenarios'!G226 -> 33.81260957 | H29: ='RAB Scenarios'!H226 -> 37.58184515 | I29: ='RAB Scenarios'!I226 -> 43.55305548 | J29: ='RAB Scenarios'!J226 -> 30.91459494 | K29: ='RAB Scenarios'!K226 -> 37.24769873 | L29: ='RAB Scenarios'!L226 -> 39.14680611 | M29: ='RAB Scenarios'!M226 -> 39.87566 | N29: ='RAB Scenarios'!N226 -> 47.65349486 | O29: ='RAB Scenarios'!O226 -> 27.73404532 | P29: ='RAB Scenarios'!P226 -> 41.51463454 | Q29: ='RAB Scenarios'!Q226 -> 38.79101726 | R29: ='RAB Scenarios'!R226 -> 79.44421977 | S29: ='RAB Scenarios'!S226 -> 72.19103922 | T29: ='RAB Scenarios'!T226 -> 43.16783785 | U29: ='RAB Scenarios'!U226 -> 0 | V29: ='RAB Scenarios'!V226 -> 104.883568 | W29: ='RAB Scenarios'!W226 -> 114.5484155 | X29: ='RAB Scenarios'!X226 -> 115.7716624 | Y29: ='RAB Scenarios'!Y226 -> 110.2778973 | Z29: ='RAB Scenarios'!Z226 -> 103.5708257
B30: =$B$15 -> Amounts added to Capital Base under NGR 82,84,86 | E30: ='RAB Scenarios'!E316 -> 0 | F30: ='RAB Scenarios'!F316 -> 0 | G30: ='RAB Scenarios'!G316 -> 0 | H30: ='RAB Scenarios'!H316 -> 0 | I30: ='RAB Scenarios'!I316 -> 0 | J30: ='RAB Scenarios'!J316 -> 0 | K30: ='RAB Scenarios'!K316 -> 0 | L30: ='RAB Scenarios'!L316 -> 0 | M30: ='RAB Scenarios'!M316 -> 0 | N30: ='RAB Scenarios'!N316 -> 0 | O30: ='RAB Scenarios'!O316 -> 0 | P30: ='RAB Scenarios'!P316 -> 0 | Q30: ='RAB Scenarios'!Q316 -> 0 | R30: ='RAB Scenarios'!R316 -> 0 | S30: ='RAB Scenarios'!S316 -> 0 | T30: ='RAB Scenarios'!T316 -> 0 | U30: ='RAB Scenarios'!U316 -> 0 | V30: ='RAB Scenarios'!V316 -> 0 | W30: ='RAB Scenarios'!W316 -> 0 | X30: ='RAB Scenarios'!X316 -> 0 | Y30: ='RAB Scenarios'!Y316 -> 0 | Z30: ='RAB Scenarios'!Z316 -> 0
B31: =$B$16 -> Depreciation | E31: ='RAB Scenarios'!E244 -> 26.20203866 | F31: ='RAB Scenarios'!F244 -> 27.63701079 | G31: ='RAB Scenarios'!G244 -> 28.59370101 | H31: ='RAB Scenarios'!H244 -> 29.5196728 | I31: ='RAB Scenarios'!I244 -> 30.39124669 | J31: ='RAB Scenarios'!J244 -> 32.18660863 | K31: ='RAB Scenarios'!K244 -> 34.23639195 | L31: ='RAB Scenarios'!L244 -> 36.12833499 | M31: ='RAB Scenarios'!M244 -> 37.66623121 | N31: ='RAB Scenarios'!N244 -> 39.63189888 | O31: ='RAB Scenarios'!O244 -> 12.29437072 | P31: ='RAB Scenarios'!P244 -> 26.64108155 | Q31: ='RAB Scenarios'!Q244 -> 29.041846 | R31: ='RAB Scenarios'!R244 -> 31.40264022 | S31: ='RAB Scenarios'!S244 -> 33.69872599 | T31: ='RAB Scenarios'!T244 -> 17.15072735 | U31: ='RAB Scenarios'!U244 -> 19.51146702 | V31: ='RAB Scenarios'!V244 -> 19.51146702 | W31: ='RAB Scenarios'!W244 -> 42.81412886 | X31: ='RAB Scenarios'!X244 -> 45.75766791 | Y31: ='RAB Scenarios'!Y244 -> 48.33786807 | Z31: ='RAB Scenarios'!Z244 -> 50.82256373
B32: =$B$17 -> Redundant Assets | E32: ='RAB Scenarios'!E262 -> 0 | F32: ='RAB Scenarios'!F262 -> 0 | G32: ='RAB Scenarios'!G262 -> 0 | H32: ='RAB Scenarios'!H262 -> 0 | I32: ='RAB Scenarios'!I262 -> 0 | J32: ='RAB Scenarios'!J262 -> 0 | K32: ='RAB Scenarios'!K262 -> 0 | L32: ='RAB Scenarios'!L262 -> 0 | M32: ='RAB Scenarios'!M262 -> 0 | N32: ='RAB Scenarios'!N262 -> 0 | O32: ='RAB Scenarios'!O262 -> 0 | P32: ='RAB Scenarios'!P262 -> 0 | Q32: ='RAB Scenarios'!Q262 -> 0 | R32: ='RAB Scenarios'!R262 -> 0 | S32: ='RAB Scenarios'!S262 -> 0 | T32: ='RAB Scenarios'!T262 -> 0 | U32: ='RAB Scenarios'!U262 -> 0 | V32: ='RAB Scenarios'!V262 -> 0 | W32: ='RAB Scenarios'!W262 -> 0 | X32: ='RAB Scenarios'!X262 -> 0 | Y32: ='RAB Scenarios'!Y262 -> 0 | Z32: ='RAB Scenarios'!Z262 -> 0
B33: =$B$18 -> Asset Disposals | E33: ='RAB Scenarios'!E280 -> 0 | F33: ='RAB Scenarios'!F280 -> 0 | G33: ='RAB Scenarios'!G280 -> 0 | H33: ='RAB Scenarios'!H280 -> 0 | I33: ='RAB Scenarios'!I280 -> 0 | J33: ='RAB Scenarios'!J280 -> 0 | K33: ='RAB Scenarios'!K280 -> 0 | L33: ='RAB Scenarios'!L280 -> 0 | M33: ='RAB Scenarios'!M280 -> 0 | N33: ='RAB Scenarios'!N280 -> 4.951826297 | O33: ='RAB Scenarios'!O280 -> 0 | P33: ='RAB Scenarios'!P280 -> 0 | Q33: ='RAB Scenarios'!Q280 -> 0 | R33: ='RAB Scenarios'!R280 -> 0 | S33: ='RAB Scenarios'!S280 -> 0 | T33: ='RAB Scenarios'!T280 -> 0 | U33: ='RAB Scenarios'!U280 -> 0 | V33: ='RAB Scenarios'!V280 -> 0 | W33: ='RAB Scenarios'!W280 -> 0 | X33: ='RAB Scenarios'!X280 -> 0 | Y33: ='RAB Scenarios'!Y280 -> 0 | Z33: ='RAB Scenarios'!Z280 -> 0
B34: =$B$19 -> Over Depreciation | E34: ='RAB Scenarios'!E298 -> 0 | F34: ='RAB Scenarios'!F298 -> 0 | G34: ='RAB Scenarios'!G298 -> 0 | H34: ='RAB Scenarios'!H298 -> 0 | I34: ='RAB Scenarios'!I298 -> 1.006139616e-15 | J34: ='RAB Scenarios'!J298 -> 0 | K34: ='RAB Scenarios'!K298 -> 0 | L34: ='RAB Scenarios'!L298 -> 0 | M34: ='RAB Scenarios'!M298 -> 0 | N34: ='RAB Scenarios'!N298 -> -11.5844044 | O34: ='RAB Scenarios'!O298 -> 0 | P34: ='RAB Scenarios'!P298 -> 0 | Q34: ='RAB Scenarios'!Q298 -> 0 | R34: ='RAB Scenarios'!R298 -> 0 | S34: ='RAB Scenarios'!S298 -> 0 | T34: ='RAB Scenarios'!T298 -> 0 | U34: ='RAB Scenarios'!U298 -> 0 | V34: ='RAB Scenarios'!V298 -> 0 | W34: ='RAB Scenarios'!W298 -> 0 | X34: ='RAB Scenarios'!X298 -> 0 | Y34: ='RAB Scenarios'!Y298 -> 0 | Z34: ='RAB Scenarios'!Z298 -> 0
B35: =$B$20 -> Deprecation per Tariff Variation | E35: ='RAB Scenarios'!E334 -> 0 | F35: ='RAB Scenarios'!F334 -> 0 | G35: ='RAB Scenarios'!G334 -> 0 | H35: ='RAB Scenarios'!H334 -> 0 | I35: ='RAB Scenarios'!I334 -> 0 | J35: ='RAB Scenarios'!J334 -> 0 | K35: ='RAB Scenarios'!K334 -> 0 | L35: ='RAB Scenarios'!L334 -> 0 | M35: ='RAB Scenarios'!M334 -> 0 | N35: ='RAB Scenarios'!N334 -> 0 | O35: ='RAB Scenarios'!O334 -> 0 | P35: ='RAB Scenarios'!P334 -> 0 | Q35: ='RAB Scenarios'!Q334 -> 0 | R35: ='RAB Scenarios'!R334 -> 0 | S35: ='RAB Scenarios'!S334 -> 0.0143490458 | T35: ='RAB Scenarios'!T334 -> 0 | U35: ='RAB Scenarios'!U334 -> 0 | V35: ='RAB Scenarios'!V334 -> 0 | W35: ='RAB Scenarios'!W334 -> 0 | X35: ='RAB Scenarios'!X334 -> 0 | Y35: ='RAB Scenarios'!Y334 -> 0 | Z35: ='RAB Scenarios'!Z334 -> 0
B36: =$B$21 -> Closing Capital Base | E36: =SUM(E27:E30)-SUM(E31:E35) -> 831.9793497 | F36: 829.3218696 | G36: 834.5407782 | H36: 842.6029506 | I36: 855.7647594 | J36: 854.4927457 | K36: 857.5040524 | L36: 860.5225236 | M36: 862.7319523 | N36: 878.0372744 | O36: 896.7951744 | P36: 911.6687274 | Q36: =SUM(Q27:Q30)-SUM(Q31:Q35) -> 921.4178986 | R36: 969.4594782 | S36: 1007.937442 | T36: 1033.954553 | U36: 1014.443086 | V36: 1099.815187 | W36: 1171.549473 | X36: 1241.563468 | Y36: 1303.503497 | Z36: 1356.251759
B37: Check | C37: =SUM(E37:Z37) -> 0 | E37: ='RAB Scenarios'!E352-E36 -> 0 | F37: ='RAB Scenarios'!F352-F36 -> 0 | G37: ='RAB Scenarios'!G352-G36 -> 0 | H37: ='RAB Scenarios'!H352-H36 -> 0 | I37: ='RAB Scenarios'!I352-I36 -> 0 | J37: ='RAB Scenarios'!J352-J36 -> 0 | K37: ='RAB Scenarios'!K352-K36 -> 0 | L37: ='RAB Scenarios'!L352-L36 -> 0 | M37: ='RAB Scenarios'!M352-M36 -> 0 | N37: ='RAB Scenarios'!N352-N36 -> 0 | O37: ='RAB Scenarios'!O352-O36 -> 0 | P37: ='RAB Scenarios'!P352-P36 -> 0 | Q37: ='RAB Scenarios'!Q352-Q36 -> 0 | R37: ='RAB Scenarios'!R352-R36 -> 0 | S37: ='RAB Scenarios'!S352-S36 -> 0 | T37: ='RAB Scenarios'!T352-T36 -> 0 | U37: ='RAB Scenarios'!U352-U36 -> 0 | V37: ='RAB Scenarios'!V352-V36 -> 0 | W37: ='RAB Scenarios'!W352-W36 -> 0 | X37: ='RAB Scenarios'!X352-X36 -> 0 | Y37: ='RAB Scenarios'!Y352-Y36 -> 0 | Z37: ='RAB Scenarios'!Z352-Z36 -> 0
B40: ='RAB Scenarios'!B356 -> CCA | E40: ='RAB Scenarios'!E356 -> $, Jun 2014 | F40: ='RAB Scenarios'!F356 -> $, Jun 2014 | G40: ='RAB Scenarios'!G356 -> $, Jun 2014 | H40: ='RAB Scenarios'!H356 -> $, Jun 2014 | I40: ='RAB Scenarios'!I356 -> $, Jun 2014 | J40: ='RAB Scenarios'!J356 -> $, Jun 2014 | K40: ='RAB Scenarios'!K356 -> $, Jun 2014 | L40: ='RAB Scenarios'!L356 -> $, Jun 2014 | M40: ='RAB Scenarios'!M356 -> $, Jun 2014 | N40: ='RAB Scenarios'!N356 -> $, Jun 2014 | O40: ='RAB Scenarios'!O356 -> $, Jun 2014 | P40: ='RAB Scenarios'!P356 -> $, Jun 2014 | Q40: ='RAB Scenarios'!Q356 -> $, Jun 2014 | R40: ='RAB Scenarios'!R356 -> $, Jun 2014 | S40: ='RAB Scenarios'!S356 -> $, Jun 2014 | T40: ='RAB Scenarios'!T356 -> CCA | U40: ='RAB Scenarios'!U356 -> CCA | V40: ='RAB Scenarios'!V356 -> CCA | W40: ='RAB Scenarios'!W356 -> CCA | X40: ='RAB Scenarios'!X356 -> CCA | Y40: ='RAB Scenarios'!Y356 -> CCA | Z40: ='RAB Scenarios'!Z356 -> CCA
B42: =$B$12 -> Opening Capital Base | E42: ='RAB Scenarios'!E432 -> 821.7698214 | F42: ='RAB Scenarios'!F432 -> 831.9793497 | G42: ='RAB Scenarios'!G432 -> 829.3218696 | H42: ='RAB Scenarios'!H432 -> 834.5407782 | I42: ='RAB Scenarios'!I432 -> 842.6029506 | J42: ='RAB Scenarios'!J432 -> 855.7647594 | K42: ='RAB Scenarios'!K432 -> 854.4927457 | L42: ='RAB Scenarios'!L432 -> 857.5040524 | M42: ='RAB Scenarios'!M432 -> 860.5225236 | N42: ='RAB Scenarios'!N432 -> 862.7319523 | O42: ='RAB Scenarios'!O432 -> 878.0372744 | P42: ='RAB Scenarios'!P432 -> 896.7951744 | Q42: ='RAB Scenarios'!Q432 -> 911.6687274 | R42: ='RAB Scenarios'!R432 -> 921.4178986 | S42: ='RAB Scenarios'!S432 -> 969.4594782 | T42: ='RAB Scenarios'!T432 -> 1007.937442 | U42: ='RAB Scenarios'!U432 -> 1046.799201 | V42: ='RAB Scenarios'!V432 -> 1026.5515 | W42: ='RAB Scenarios'!W432 -> 1141.314961 | X42: ='RAB Scenarios'!X432 -> 1246.149928 | Y42: ='RAB Scenarios'!Y432 -> 1353.63774 | Z42: ='RAB Scenarios'!Z432 -> 1456.698238
B43: =$B$13 -> Vines/Westnet | N43: =Vines!$N$186 -> 0.6511479926 | O43: =WestNet!$O$186 -> 3.318225362
B44: =$B$14 -> Capex | E44: ='RAB Scenarios'!E450 -> 36.41156699 | F44: ='RAB Scenarios'!F450 -> 24.9795307 | G44: ='RAB Scenarios'!G450 -> 33.81260957 | H44: ='RAB Scenarios'!H450 -> 37.58184515 | I44: ='RAB Scenarios'!I450 -> 43.55305548 | J44: ='RAB Scenarios'!J450 -> 30.91459494 | K44: ='RAB Scenarios'!K450 -> 37.24769873 | L44: ='RAB Scenarios'!L450 -> 39.14680611 | M44: ='RAB Scenarios'!M450 -> 39.87566 | N44: ='RAB Scenarios'!N450 -> 47.65349486 | O44: ='RAB Scenarios'!O450 -> 27.73404532 | P44: ='RAB Scenarios'!P450 -> 41.51463454 | Q44: ='RAB Scenarios'!Q450 -> 38.79101726 | R44: ='RAB Scenarios'!R450 -> 79.44421977 | S44: ='RAB Scenarios'!S450 -> 72.19103922 | T44: ='RAB Scenarios'!T450 -> 43.70410485 | U44: ='RAB Scenarios'!U450 -> 0 | V44: ='RAB Scenarios'!V450 -> 108.8411824 | W44: ='RAB Scenarios'!W450 -> 121.8424855 | X44: ='RAB Scenarios'!X450 -> 126.2222153 | Y44: ='RAB Scenarios'!Y450 -> 123.2383489 | Z44: ='RAB Scenarios'!Z450 -> 118.6366017
B45: =$B$15 -> Amounts added to Capital Base under NGR 82,84,86 | E45: ='RAB Scenarios'!E540 -> 0 | F45: ='RAB Scenarios'!F540 -> 0 | G45: ='RAB Scenarios'!G540 -> 0 | H45: ='RAB Scenarios'!H540 -> 0 | I45: ='RAB Scenarios'!I540 -> 0 | J45: ='RAB Scenarios'!J540 -> 0 | K45: ='RAB Scenarios'!K540 -> 0 | L45: ='RAB Scenarios'!L540 -> 0 | M45: ='RAB Scenarios'!M540 -> 0 | N45: ='RAB Scenarios'!N540 -> 0 | O45: ='RAB Scenarios'!O540 -> 0 | P45: ='RAB Scenarios'!P540 -> 0 | Q45: ='RAB Scenarios'!Q540 -> 0 | R45: ='RAB Scenarios'!R540 -> 0 | S45: ='RAB Scenarios'!S540 -> 0 | T45: ='RAB Scenarios'!T540 -> 0 | U45: ='RAB Scenarios'!U540 -> 0 | V45: ='RAB Scenarios'!V540 -> 0 | W45: ='RAB Scenarios'!W540 -> 0 | X45: ='RAB Scenarios'!X540 -> 0 | Y45: ='RAB Scenarios'!Y540 -> 0 | Z45: ='RAB Scenarios'!Z540 -> 0
B46: Inflation on asset base | E46: =-'RAB Scenarios'!E378 -> 0 | F46: =-'RAB Scenarios'!F378 -> 0 | G46: =-'RAB Scenarios'!G378 -> 0 | H46: =-'RAB Scenarios'!H378 -> 0 | I46: =-'RAB Scenarios'!I378 -> 0 | J46: =-'RAB Scenarios'!J378 -> 0 | K46: =-'RAB Scenarios'!K378 -> 0 | L46: =-'RAB Scenarios'!L378 -> 0 | M46: =-'RAB Scenarios'!M378 -> 0 | N46: =-'RAB Scenarios'!N378 -> 0 | O46: =-'RAB Scenarios'!O378 -> 0 | P46: =-'RAB Scenarios'!P378 -> 0 | Q46: =-'RAB Scenarios'!Q378 -> 0 | R46: =-'RAB Scenarios'!R378 -> 0 | S46: =-'RAB Scenarios'!S378 -> 0 | T46: =-'RAB Scenarios'!T378 -> -12.52144211 | U46: =-'RAB Scenarios'!U378 -> 0 | V46: =-'RAB Scenarios'!V378 -> -26.16998003 | W46: =-'RAB Scenarios'!W378 -> -28.53287403 | X46: =-'RAB Scenarios'!X378 -> -31.1537482 | Y46: =-'RAB Scenarios'!Y378 -> -33.8409435 | Z46: =-'RAB Scenarios'!Z378 -> -36.41745595
B47: Nominal depreciaiton | E47: ='RAB Scenarios'!E396-'RAB Scenarios'!E414 -> 0 | F47: ='RAB Scenarios'!F396-'RAB Scenarios'!F414 -> 0 | G47: ='RAB Scenarios'!G396-'RAB Scenarios'!G414 -> 0 | H47: ='RAB Scenarios'!H396-'RAB Scenarios'!H414 -> 0 | I47: ='RAB Scenarios'!I396-'RAB Scenarios'!I414 -> 0 | J47: ='RAB Scenarios'!J396-'RAB Scenarios'!J414 -> 0 | K47: ='RAB Scenarios'!K396-'RAB Scenarios'!K414 -> 0 | L47: ='RAB Scenarios'!L396-'RAB Scenarios'!L414 -> 0 | M47: ='RAB Scenarios'!M396-'RAB Scenarios'!M414 -> 0 | N47: ='RAB Scenarios'!N396-'RAB Scenarios'!N414 -> 0 | O47: ='RAB Scenarios'!O396-'RAB Scenarios'!O414 -> 0 | P47: ='RAB Scenarios'!P396-'RAB Scenarios'!P414 -> 0 | Q47: ='RAB Scenarios'!Q396-'RAB Scenarios'!Q414 -> 0 | R47: ='RAB Scenarios'!R396-'RAB Scenarios'!R414 -> 0 | S47: ='RAB Scenarios'!S396-'RAB Scenarios'!S414 -> 0 | T47: ='RAB Scenarios'!T396-'RAB Scenarios'!T414 -> 17.36378803 | U47: ='RAB Scenarios'!U396-'RAB Scenarios'!U414 -> 20.24770116 | V47: ='RAB Scenarios'!V396-'RAB Scenarios'!V414 -> 20.24770116 | W47: ='RAB Scenarios'!W396-'RAB Scenarios'!W414 -> 45.54039313 | X47: ='RAB Scenarios'!X396-'RAB Scenarios'!X414 -> 49.88815134 | Y47: ='RAB Scenarios'!Y396-'RAB Scenarios'!Y414 -> 54.01879428 | Z47: ='RAB Scenarios'!Z396-'RAB Scenarios'!Z414 -> 58.21539235
B48: =$B$16 -> Depreciation | E48: ='RAB Scenarios'!E468 -> 26.20203866 | F48: ='RAB Scenarios'!F468 -> 27.63701079 | G48: ='RAB Scenarios'!G468 -> 28.59370101 | H48: ='RAB Scenarios'!H468 -> 29.5196728 | I48: ='RAB Scenarios'!I468 -> 30.39124669 | J48: ='RAB Scenarios'!J468 -> 32.18660863 | K48: ='RAB Scenarios'!K468 -> 34.23639195 | L48: ='RAB Scenarios'!L468 -> 36.12833499 | M48: ='RAB Scenarios'!M468 -> 37.66623121 | N48: ='RAB Scenarios'!N468 -> 39.63189888 | O48: ='RAB Scenarios'!O468 -> 12.29437072 | P48: ='RAB Scenarios'!P468 -> 26.64108155 | Q48: ='RAB Scenarios'!Q468 -> 29.041846 | R48: ='RAB Scenarios'!R468 -> 31.40264022 | S48: ='RAB Scenarios'!S468 -> 33.69872599 | T48: ='RAB Scenarios'!T468 -> 4.842345916 | U48: ='RAB Scenarios'!U468 -> 20.24770116 | V48: ='RAB Scenarios'!V468 -> -5.922278877 | W48: ='RAB Scenarios'!W468 -> 17.0075191 | X48: ='RAB Scenarios'!X468 -> 18.73440314 | Y48: ='RAB Scenarios'!Y468 -> 20.17785078 | Z48: ='RAB Scenarios'!Z468 -> 21.79793639
B49: =$B$17 -> Redundant Assets | E49: ='RAB Scenarios'!E486 -> 0 | F49: ='RAB Scenarios'!F486 -> 0 | G49: ='RAB Scenarios'!G486 -> 0 | H49: ='RAB Scenarios'!H486 -> 0 | I49: ='RAB Scenarios'!I486 -> 0 | J49: ='RAB Scenarios'!J486 -> 0 | K49: ='RAB Scenarios'!K486 -> 0 | L49: ='RAB Scenarios'!L486 -> 0 | M49: ='RAB Scenarios'!M486 -> 0 | N49: ='RAB Scenarios'!N486 -> 0 | O49: ='RAB Scenarios'!O486 -> 0 | P49: ='RAB Scenarios'!P486 -> 0 | Q49: ='RAB Scenarios'!Q486 -> 0 | R49: ='RAB Scenarios'!R486 -> 0 | S49: ='RAB Scenarios'!S486 -> 0 | T49: ='RAB Scenarios'!T486 -> 0 | U49: ='RAB Scenarios'!U486 -> 0 | V49: ='RAB Scenarios'!V486 -> 0 | W49: ='RAB Scenarios'!W486 -> 0 | X49: ='RAB Scenarios'!X486 -> 0 | Y49: ='RAB Scenarios'!Y486 -> 0 | Z49: ='RAB Scenarios'!Z486 -> 0
B50: =$B$18 -> Asset Disposals | E50: ='RAB Scenarios'!E504 -> 0 | F50: ='RAB Scenarios'!F504 -> 0 | G50: ='RAB Scenarios'!G504 -> 0 | H50: ='RAB Scenarios'!H504 -> 0 | I50: ='RAB Scenarios'!I504 -> 0 | J50: ='RAB Scenarios'!J504 -> 0 | K50: ='RAB Scenarios'!K504 -> 0 | L50: ='RAB Scenarios'!L504 -> 0 | M50: ='RAB Scenarios'!M504 -> 0 | N50: ='RAB Scenarios'!N504 -> 4.951826297 | O50: ='RAB Scenarios'!O504 -> 0 | P50: ='RAB Scenarios'!P504 -> 0 | Q50: ='RAB Scenarios'!Q504 -> 0 | R50: ='RAB Scenarios'!R504 -> 0 | S50: ='RAB Scenarios'!S504 -> 0 | T50: ='RAB Scenarios'!T504 -> 0 | U50: ='RAB Scenarios'!U504 -> 0 | V50: ='RAB Scenarios'!V504 -> 0 | W50: ='RAB Scenarios'!W504 -> 0 | X50: ='RAB Scenarios'!X504 -> 0 | Y50: ='RAB Scenarios'!Y504 -> 0 | Z50: ='RAB Scenarios'!Z504 -> 0
B51: =$B$19 -> Over Depreciation | E51: ='RAB Scenarios'!E522 -> 0 | F51: ='RAB Scenarios'!F522 -> 0 | G51: ='RAB Scenarios'!G522 -> 0 | H51: ='RAB Scenarios'!H522 -> 0 | I51: ='RAB Scenarios'!I522 -> 1.006139616e-15 | J51: ='RAB Scenarios'!J522 -> 0 | K51: ='RAB Scenarios'!K522 -> 0 | L51: ='RAB Scenarios'!L522 -> 0 | M51: ='RAB Scenarios'!M522 -> 0 | N51: ='RAB Scenarios'!N522 -> -11.5844044 | O51: ='RAB Scenarios'!O522 -> 0 | P51: ='RAB Scenarios'!P522 -> 0 | Q51: ='RAB Scenarios'!Q522 -> 0 | R51: ='RAB Scenarios'!R522 -> 0 | S51: ='RAB Scenarios'!S522 -> 0 | T51: ='RAB Scenarios'!T522 -> 0 | U51: ='RAB Scenarios'!U522 -> 0 | V51: ='RAB Scenarios'!V522 -> 0 | W51: ='RAB Scenarios'!W522 -> 0 | X51: ='RAB Scenarios'!X522 -> 0 | Y51: ='RAB Scenarios'!Y522 -> 0 | Z51: ='RAB Scenarios'!Z522 -> 0
B52: =$B$20 -> Deprecation per Tariff Variation | E52: ='RAB Scenarios'!E558 -> 0 | F52: ='RAB Scenarios'!F558 -> 0 | G52: ='RAB Scenarios'!G558 -> 0 | H52: ='RAB Scenarios'!H558 -> 0 | I52: ='RAB Scenarios'!I558 -> 0 | J52: ='RAB Scenarios'!J558 -> 0 | K52: ='RAB Scenarios'!K558 -> 0 | L52: ='RAB Scenarios'!L558 -> 0 | M52: ='RAB Scenarios'!M558 -> 0 | N52: ='RAB Scenarios'!N558 -> 0 | O52: ='RAB Scenarios'!O558 -> 0 | P52: ='RAB Scenarios'!P558 -> 0 | Q52: ='RAB Scenarios'!Q558 -> 0 | R52: ='RAB Scenarios'!R558 -> 0 | S52: ='RAB Scenarios'!S558 -> 0.0143490458 | T52: ='RAB Scenarios'!T558 -> 0 | U52: ='RAB Scenarios'!U558 -> 0 | V52: ='RAB Scenarios'!V558 -> 0 | W52: ='RAB Scenarios'!W558 -> 0 | X52: ='RAB Scenarios'!X558 -> 0 | Y52: ='RAB Scenarios'!Y558 -> 0 | Z52: ='RAB Scenarios'!Z558 -> 0
B53: =$B$21 -> Closing Capital Base | E53: =SUM(E42:E45)-SUM(E48:E52) -> 831.9793497 | F53: =SUM(F42:F45)-SUM(F48:F52) -> 829.3218696 | G53: 834.5407782 | H53: 842.6029506 | I53: 855.7647594 | J53: 854.4927457 | K53: 857.5040524 | L53: 860.5225236 | M53: 862.7319523 | N53: =SUM(N42:N45)-SUM(N48:N52) -> 878.0372744 | O53: 896.7951744 | P53: 911.6687274 | Q53: 921.4178986 | R53: 969.4594782 | S53: 1007.937442 | T53: 1046.799201 | U53: 1026.5515 | V53: 1141.314961 | W53: 1246.149928 | X53: 1353.63774 | Y53: 1456.698238 | Z53: 1553.536903
B54: Check | C54: =SUM(E54:Z54) -> 0 | E54: ='RAB Scenarios'!E576-E53 -> 0 | F54: ='RAB Scenarios'!F576-F53 -> 0 | G54: ='RAB Scenarios'!G576-G53 -> 0 | H54: ='RAB Scenarios'!H576-H53 -> 0 | I54: ='RAB Scenarios'!I576-I53 -> 0 | J54: ='RAB Scenarios'!J576-J53 -> 0 | K54: ='RAB Scenarios'!K576-K53 -> 0 | L54: ='RAB Scenarios'!L576-L53 -> 0 | M54: ='RAB Scenarios'!M576-M53 -> 0 | N54: ='RAB Scenarios'!N576-N53 -> 0 | O54: ='RAB Scenarios'!O576-O53 -> 0 | P54: ='RAB Scenarios'!P576-P53 -> 0 | Q54: ='RAB Scenarios'!Q576-Q53 -> 0 | R54: ='RAB Scenarios'!R576-R53 -> 0 | S54: ='RAB Scenarios'!S576-S53 -> 0 | T54: ='RAB Scenarios'!T576-T53 -> 0 | U54: ='RAB Scenarios'!U576-U53 -> 0 | V54: ='RAB Scenarios'!V576-V53 -> 0 | W54: ='RAB Scenarios'!W576-W53 -> 0 | X54: ='RAB Scenarios'!X576-X53 -> 0 | Y54: ='RAB Scenarios'!Y576-Y53 -> 0 | Z54: ='RAB Scenarios'!Z576-Z53 -> 0
B57: ='RAB Scenarios'!B580 -> Transition method | E57: ='RAB Scenarios'!E580 -> $, Jun 2014 | F57: ='RAB Scenarios'!F580 -> $, Jun 2014 | G57: ='RAB Scenarios'!G580 -> $, Jun 2014 | H57: ='RAB Scenarios'!H580 -> $, Jun 2014 | I57: ='RAB Scenarios'!I580 -> $, Jun 2014 | J57: ='RAB Scenarios'!J580 -> $, Jun 2014 | K57: ='RAB Scenarios'!K580 -> $, Jun 2014 | L57: ='RAB Scenarios'!L580 -> $, Jun 2014 | M57: ='RAB Scenarios'!M580 -> $, Jun 2014 | N57: ='RAB Scenarios'!N580 -> $, Jun 2014 | O57: ='RAB Scenarios'!O580 -> $, Jun 2014 | P57: ='RAB Scenarios'!P580 -> $, Jun 2014 | Q57: ='RAB Scenarios'!Q580 -> $, Jun 2014 | R57: ='RAB Scenarios'!R580 -> $, Jun 2014 | S57: ='RAB Scenarios'!S580 -> $, Jun 2014 | T57: ='RAB Scenarios'!T580 -> CCA/$, nominal | U57: ='RAB Scenarios'!U580 -> CCA/$, nominal | V57: ='RAB Scenarios'!V580 -> CCA/$, nominal | W57: ='RAB Scenarios'!W580 -> CCA/$, nominal | X57: ='RAB Scenarios'!X580 -> CCA/$, nominal | Y57: ='RAB Scenarios'!Y580 -> CCA/$, nominal | Z57: ='RAB Scenarios'!Z580 -> CCA/$, nominal
B59: =$B$12 -> Opening Capital Base | E59: ='RAB Scenarios'!E598 -> 821.7698214 | F59: ='RAB Scenarios'!F598 -> 831.9793497 | G59: ='RAB Scenarios'!G598 -> 829.3218696 | H59: ='RAB Scenarios'!H598 -> 834.5407782 | I59: ='RAB Scenarios'!I598 -> 842.6029506 | J59: ='RAB Scenarios'!J598 -> 855.7647594 | K59: ='RAB Scenarios'!K598 -> 854.4927457 | L59: ='RAB Scenarios'!L598 -> 857.5040524 | M59: ='RAB Scenarios'!M598 -> 860.5225236 | N59: ='RAB Scenarios'!N598 -> 862.7319523 | O59: ='RAB Scenarios'!O598 -> 878.0372744 | P59: ='RAB Scenarios'!P598 -> 896.7951744 | Q59: ='RAB Scenarios'!Q598 -> 911.6687274 | R59: ='RAB Scenarios'!R598 -> 921.4178986 | S59: ='RAB Scenarios'!S598 -> 969.4594782 | T59: ='RAB Scenarios'!T598 -> 1007.937442 | U59: ='RAB Scenarios'!U598 -> 1046.799201 | V59: ='RAB Scenarios'!V598 -> 1026.584379 | W59: ='RAB Scenarios'!W598 -> 1140.288117 | X59: ='RAB Scenarios'!X598 -> 1241.592409 | Y59: ='RAB Scenarios'!Y598 -> 1342.878951 | Z59: ='RAB Scenarios'!Z598 -> 1437.11236
B60: =$B$13 -> Vines/Westnet | N60: =Vines!$N$186 -> 0.6511479926 | O60: =WestNet!$O$186 -> 3.318225362
B61: =$B$14 -> Capex | E61: ='RAB Scenarios'!E616 -> 36.41156699 | F61: ='RAB Scenarios'!F616 -> 24.9795307 | G61: ='RAB Scenarios'!G616 -> 33.81260957 | H61: ='RAB Scenarios'!H616 -> 37.58184515 | I61: ='RAB Scenarios'!I616 -> 43.55305548 | J61: ='RAB Scenarios'!J616 -> 30.91459494 | K61: ='RAB Scenarios'!K616 -> 37.24769873 | L61: ='RAB Scenarios'!L616 -> 39.14680611 | M61: ='RAB Scenarios'!M616 -> 39.87566 | N61: ='RAB Scenarios'!N616 -> 47.65349486 | O61: ='RAB Scenarios'!O616 -> 27.73404532 | P61: ='RAB Scenarios'!P616 -> 41.51463454 | Q61: ='RAB Scenarios'!Q616 -> 38.79101726 | R61: ='RAB Scenarios'!R616 -> 79.44421977 | S61: ='RAB Scenarios'!S616 -> 72.19103922 | T61: ='RAB Scenarios'!T616 -> 43.70410485 | U61: ='RAB Scenarios'!U616 -> 0 | V61: ='RAB Scenarios'!V616 -> 108.8411824 | W61: ='RAB Scenarios'!W616 -> 121.8424855 | X61: ='RAB Scenarios'!X616 -> 126.2222153 | Y61: ='RAB Scenarios'!Y616 -> 123.2383489 | Z61: ='RAB Scenarios'!Z616 -> 118.6366017
B62: =$B$15 -> Amounts added to Capital Base under NGR 82,84,86 | E62: ='RAB Scenarios'!E706 -> 0 | F62: ='RAB Scenarios'!F706 -> 0 | G62: ='RAB Scenarios'!G706 -> 0 | H62: ='RAB Scenarios'!H706 -> 0 | I62: ='RAB Scenarios'!I706 -> 0 | J62: ='RAB Scenarios'!J706 -> 0 | K62: ='RAB Scenarios'!K706 -> 0 | L62: ='RAB Scenarios'!L706 -> 0 | M62: ='RAB Scenarios'!M706 -> 0 | N62: ='RAB Scenarios'!N706 -> 0 | O62: ='RAB Scenarios'!O706 -> 0 | P62: ='RAB Scenarios'!P706 -> 0 | Q62: ='RAB Scenarios'!Q706 -> 0 | R62: ='RAB Scenarios'!R706 -> 0 | S62: ='RAB Scenarios'!S706 -> 0 | T62: ='RAB Scenarios'!T706 -> 0 | U62: ='RAB Scenarios'!U706 -> 0 | V62: ='RAB Scenarios'!V706 -> 0 | W62: ='RAB Scenarios'!W706 -> 0 | X62: ='RAB Scenarios'!X706 -> 0 | Y62: ='RAB Scenarios'!Y706 -> 0 | Z62: ='RAB Scenarios'!Z706 -> 0
B63: =$B$16 -> Depreciation | E63: ='RAB Scenarios'!E634 -> 26.20203866 | F63: ='RAB Scenarios'!F634 -> 27.63701079 | G63: ='RAB Scenarios'!G634 -> 28.59370101 | H63: ='RAB Scenarios'!H634 -> 29.5196728 | I63: ='RAB Scenarios'!I634 -> 30.39124669 | J63: ='RAB Scenarios'!J634 -> 32.18660863 | K63: ='RAB Scenarios'!K634 -> 34.23639195 | L63: ='RAB Scenarios'!L634 -> 36.12833499 | M63: ='RAB Scenarios'!M634 -> 37.66623121 | N63: ='RAB Scenarios'!N634 -> 39.63189888 | O63: ='RAB Scenarios'!O634 -> 12.29437072 | P63: ='RAB Scenarios'!P634 -> 26.64108155 | Q63: ='RAB Scenarios'!Q634 -> 29.041846 | R63: ='RAB Scenarios'!R634 -> 31.40264022 | S63: ='RAB Scenarios'!S634 -> 33.69872599 | T63: ='RAB Scenarios'!T634 -> 4.842345916 | U63: ='RAB Scenarios'!U634 -> 20.2148221 | V63: ='RAB Scenarios'!V634 -> -4.86255531 | W63: ='RAB Scenarios'!W634 -> 20.53819318 | X63: ='RAB Scenarios'!X634 -> 24.93567348 | Y63: ='RAB Scenarios'!Y634 -> 29.00494001 | Z63: ='RAB Scenarios'!Z634 -> 33.0068693
B64: =$B$17 -> Redundant Assets | E64: ='RAB Scenarios'!E652 -> 0 | F64: ='RAB Scenarios'!F652 -> 0 | G64: ='RAB Scenarios'!G652 -> 0 | H64: ='RAB Scenarios'!H652 -> 0 | I64: ='RAB Scenarios'!I652 -> 0 | J64: ='RAB Scenarios'!J652 -> 0 | K64: ='RAB Scenarios'!K652 -> 0 | L64: ='RAB Scenarios'!L652 -> 0 | M64: ='RAB Scenarios'!M652 -> 0 | N64: ='RAB Scenarios'!N652 -> 0 | O64: ='RAB Scenarios'!O652 -> 0 | P64: ='RAB Scenarios'!P652 -> 0 | Q64: ='RAB Scenarios'!Q652 -> 0 | R64: ='RAB Scenarios'!R652 -> 0 | S64: ='RAB Scenarios'!S652 -> 0 | T64: ='RAB Scenarios'!T652 -> 0 | U64: ='RAB Scenarios'!U652 -> 0 | V64: ='RAB Scenarios'!V652 -> 0 | W64: ='RAB Scenarios'!W652 -> 0 | X64: ='RAB Scenarios'!X652 -> 0 | Y64: ='RAB Scenarios'!Y652 -> 0 | Z64: ='RAB Scenarios'!Z652 -> 0
B65: =$B$18 -> Asset Disposals | E65: ='RAB Scenarios'!E670 -> 0 | F65: ='RAB Scenarios'!F670 -> 0 | G65: ='RAB Scenarios'!G670 -> 0 | H65: ='RAB Scenarios'!H670 -> 0 | I65: ='RAB Scenarios'!I670 -> 0 | J65: ='RAB Scenarios'!J670 -> 0 | K65: ='RAB Scenarios'!K670 -> 0 | L65: ='RAB Scenarios'!L670 -> 0 | M65: ='RAB Scenarios'!M670 -> 0 | N65: ='RAB Scenarios'!N670 -> 4.951826297 | O65: ='RAB Scenarios'!O670 -> 0 | P65: ='RAB Scenarios'!P670 -> 0 | Q65: ='RAB Scenarios'!Q670 -> 0 | R65: ='RAB Scenarios'!R670 -> 0 | S65: ='RAB Scenarios'!S670 -> 0 | T65: ='RAB Scenarios'!T670 -> 0 | U65: ='RAB Scenarios'!U670 -> 0 | V65: ='RAB Scenarios'!V670 -> 0 | W65: ='RAB Scenarios'!W670 -> 0 | X65: ='RAB Scenarios'!X670 -> 0 | Y65: ='RAB Scenarios'!Y670 -> 0 | Z65: ='RAB Scenarios'!Z670 -> 0
B66: =$B$19 -> Over Depreciation | E66: ='RAB Scenarios'!E688 -> 0 | F66: ='RAB Scenarios'!F688 -> 0 | G66: ='RAB Scenarios'!G688 -> 0 | H66: ='RAB Scenarios'!H688 -> 0 | I66: ='RAB Scenarios'!I688 -> 1.006139616e-15 | J66: ='RAB Scenarios'!J688 -> 0 | K66: ='RAB Scenarios'!K688 -> 0 | L66: ='RAB Scenarios'!L688 -> 0 | M66: ='RAB Scenarios'!M688 -> 0 | N66: ='RAB Scenarios'!N688 -> -11.5844044 | O66: ='RAB Scenarios'!O688 -> 0 | P66: ='RAB Scenarios'!P688 -> 0 | Q66: ='RAB Scenarios'!Q688 -> 0 | R66: ='RAB Scenarios'!R688 -> 0 | S66: ='RAB Scenarios'!S688 -> 0 | T66: ='RAB Scenarios'!T688 -> 0 | U66: ='RAB Scenarios'!U688 -> 0 | V66: ='RAB Scenarios'!V688 -> 0 | W66: ='RAB Scenarios'!W688 -> 0 | X66: ='RAB Scenarios'!X688 -> 0 | Y66: ='RAB Scenarios'!Y688 -> 0 | Z66: ='RAB Scenarios'!Z688 -> 0
B67: =$B$20 -> Deprecation per Tariff Variation | E67: ='RAB Scenarios'!E724 -> 0 | F67: ='RAB Scenarios'!F724 -> 0 | G67: ='RAB Scenarios'!G724 -> 0 | H67: ='RAB Scenarios'!H724 -> 0 | I67: ='RAB Scenarios'!I724 -> 0 | J67: ='RAB Scenarios'!J724 -> 0 | K67: ='RAB Scenarios'!K724 -> 0 | L67: ='RAB Scenarios'!L724 -> 0 | M67: ='RAB Scenarios'!M724 -> 0 | N67: ='RAB Scenarios'!N724 -> 0 | O67: ='RAB Scenarios'!O724 -> 0 | P67: ='RAB Scenarios'!P724 -> 0 | Q67: ='RAB Scenarios'!Q724 -> 0 | R67: ='RAB Scenarios'!R724 -> 0 | S67: ='RAB Scenarios'!S724 -> 0.0143490458 | T67: ='RAB Scenarios'!T724 -> 0 | U67: ='RAB Scenarios'!U724 -> 0 | V67: ='RAB Scenarios'!V724 -> 0 | W67: ='RAB Scenarios'!W724 -> 0 | X67: ='RAB Scenarios'!X724 -> 0 | Y67: ='RAB Scenarios'!Y724 -> 0 | Z67: ='RAB Scenarios'!Z724 -> 0
B68: =$B$21 -> Closing Capital Base | E68: =SUM(E59:E62)-SUM(E63:E67) -> 831.9793497 | F68: =SUM(F59:F62)-SUM(F63:F67) -> 829.3218696 | G68: 834.5407782 | H68: 842.6029506 | I68: 855.7647594 | J68: 854.4927457 | K68: 857.5040524 | L68: 860.5225236 | M68: 862.7319523 | N68: 878.0372744 | O68: 896.7951744 | P68: 911.6687274 | Q68: 921.4178986 | R68: 969.4594782 | S68: 1007.937442 | T68: 1046.799201 | U68: 1026.584379 | V68: 1140.288117 | W68: 1241.592409 | X68: 1342.878951 | Y68: 1437.11236 | Z68: 1522.742092
B69: Check | C69: =SUM(E69:Z69) -> 0 | E69: ='RAB Scenarios'!E742-E68 -> 0 | F69: ='RAB Scenarios'!F742-F68 -> 0 | G69: ='RAB Scenarios'!G742-G68 -> 0 | H69: ='RAB Scenarios'!H742-H68 -> 0 | I69: ='RAB Scenarios'!I742-I68 -> 0 | J69: ='RAB Scenarios'!J742-J68 -> 0 | K69: ='RAB Scenarios'!K742-K68 -> 0 | L69: ='RAB Scenarios'!L742-L68 -> 0 | M69: ='RAB Scenarios'!M742-M68 -> 0 | N69: ='RAB Scenarios'!N742-N68 -> 0 | O69: ='RAB Scenarios'!O742-O68 -> 0 | P69: ='RAB Scenarios'!P742-P68 -> 0 | Q69: ='RAB Scenarios'!Q742-Q68 -> 0 | R69: ='RAB Scenarios'!R742-R68 -> 0 | S69: ='RAB Scenarios'!S742-S68 -> 0 | T69: ='RAB Scenarios'!T742-T68 -> 0 | U69: ='RAB Scenarios'!U742-U68 -> 0 | V69: ='RAB Scenarios'!V742-V68 -> 0 | W69: ='RAB Scenarios'!W742-W68 -> 0 | X69: ='RAB Scenarios'!X742-X68 -> 0 | Y69: ='RAB Scenarios'!Y742-Y68 -> 0 | Z69: ='RAB Scenarios'!Z742-Z68 -> 0
B73: RAB Opening Balance
B74: =B10 -> Nominal | E74: =E12 -> 821.7698214 | F74: 831.9793497 | G74: 829.3218696 | H74: 834.5407782 | I74: 842.6029506 | J74: 855.7647594 | K74: 854.4927457 | L74: 857.5040524 | M74: 860.5225236 | N74: 862.7319523 | O74: 878.0372744 | P74: 896.7951744 | Q74: 911.6687274 | R74: 921.4178986 | S74: 969.4594782 | T74: 1007.937442 | U74: 1034.49082 | V74: 1014.963215 | W74: 1104.276793 | X74: 1183.113305 | Y74: 1263.13045 | Z74: 1337.228815
B75: =B25 -> Real | E75: =E27 -> 821.7698214 | F75: 831.9793497 | G75: 829.3218696 | H75: 834.5407782 | I75: 842.6029506 | J75: 855.7647594 | K75: 854.4927457 | L75: 857.5040524 | M75: 860.5225236 | N75: 862.7319523 | O75: 878.0372744 | P75: 896.7951744 | Q75: 911.6687274 | R75: 921.4178986 | S75: 969.4594782 | T75: 1007.937442 | U75: 1033.954553 | V75: 1014.443086 | W75: 1099.815187 | X75: 1171.549473 | Y75: 1241.563468 | Z75: 1303.503497
B76: =B40 -> CCA | E76: =E42 -> 821.7698214 | F76: 831.9793497 | G76: 829.3218696 | H76: 834.5407782 | I76: 842.6029506 | J76: 855.7647594 | K76: 854.4927457 | L76: 857.5040524 | M76: 860.5225236 | N76: 862.7319523 | O76: 878.0372744 | P76: 896.7951744 | Q76: 911.6687274 | R76: 921.4178986 | S76: 969.4594782 | T76: 1007.937442 | U76: 1046.799201 | V76: 1026.5515 | W76: 1141.314961 | X76: 1246.149928 | Y76: 1353.63774 | Z76: 1456.698238
B77: =B57 -> Transition method | E77: =E59 -> 821.7698214 | F77: =F59 -> 831.9793497 | G77: 829.3218696 | H77: 834.5407782 | I77: 842.6029506 | J77: 855.7647594 | K77: 854.4927457 | L77: 857.5040524 | M77: 860.5225236 | N77: 862.7319523 | O77: 878.0372744 | P77: 896.7951744 | Q77: 911.6687274 | R77: 921.4178986 | S77: 969.4594782 | T77: 1007.937442 | U77: 1046.799201 | V77: 1026.584379 | W77: 1140.288117 | X77: 1241.592409 | Y77: 1342.878951 | Z77: 1437.11236

Sheet RAB Scenarios
E1: =IF(Inputs!E1="","",Inputs!E1) ->  | F1: =IF(Inputs!F1="","",Inputs!F1) ->  | G1: =IF(Inputs!G1="","",Inputs!G1) ->  | H1: =IF(Inputs!H1="","",Inputs!H1) ->  | I1: =IF(Inputs!I1="","",Inputs!I1) ->  | J1: =IF(Inputs!J1="","",Inputs!J1) ->  | K1: =IF(Inputs!K1="","",Inputs!K1) ->  | L1: =IF(Inputs!L1="","",Inputs!L1) ->  | M1: =IF(Inputs!M1="","",Inputs!M1) ->  | N1: =IF(Inputs!N1="","",Inputs!N1) ->  | O1: =IF(Inputs!O1="","",Inputs!O1) -> Jan - Jun | P1: =IF(Inputs!P1="","",Inputs!P1) ->  | Q1: =IF(Inputs!Q1="","",Inputs!Q1) ->  | R1: =IF(Inputs!R1="","",Inputs!R1) ->  | S1: =IF(Inputs!S1="","",Inputs!S1) ->  | T1: =IF(Inputs!T1="","",Inputs!T1) -> Jul - Dec | U1: =IF(Inputs!U1="","",Inputs!U1) -> Jan - Jun | V1: =IF(Inputs!V1="","",Inputs!V1) -> Jul - Dec | W1: =IF(Inputs!W1="","",Inputs!W1) ->  | X1: =IF(Inputs!X1="","",Inputs!X1) ->  | Y1: =IF(Inputs!Y1="","",Inputs!Y1) ->  | Z1: =IF(Inputs!Z1="","",Inputs!Z1) -> 
B2: =Inputs!$B$2 -> Mid West and South West Gas Distribution Systems | E2: =Inputs!E2 -> 2000 | F2: =Inputs!F2 -> 2001 | G2: =Inputs!G2 -> 2002 | H2: =Inputs!H2 -> 2003 | I2: =Inputs!I2 -> 2004 | J2: =Inputs!J2 -> 2005 | K2: =Inputs!K2 -> 2006 | L2: =Inputs!L2 -> 2007 | M2: =Inputs!M2 -> 2008 | N2: =Inputs!N2 -> 2009 | O2: =Inputs!O2 -> 2010 | P2: =Inputs!P2 -> 2010/11 | Q2: =Inputs!Q2 -> 2011/12 | R2: =Inputs!R2 -> 2012/13 | S2: =Inputs!S2 -> 2013/14 | T2: =Inputs!T2 -> 2014 | U2: =Inputs!U2 -> 2015 | V2: =Inputs!V2 -> 2015 | W2: =Inputs!W2 -> 2016 | X2: =Inputs!X2 -> 2017 | Y2: =Inputs!Y2 -> 2018 | Z2: =Inputs!Z2 -> 2019
B3: =Inputs!$B$3 -> Access Arrangement Revisions 2014 | E3: =Inputs!E3 -> Actual | F3: =Inputs!F3 -> Actual | G3: =Inputs!G3 -> Actual | H3: =Inputs!H3 -> Actual | I3: =Inputs!I3 -> Actual | J3: =Inputs!J3 -> Actual | K3: =Inputs!K3 -> Actual | L3: =Inputs!L3 -> Actual | M3: =Inputs!M3 -> Actual | N3: =Inputs!N3 -> Actual | O3: =Inputs!O3 -> Actual | P3: =Inputs!P3 -> Actual | Q3: =Inputs!Q3 -> Actual | R3: =Inputs!R3 -> Actual | S3: =Inputs!S3 -> Actual | T3: =Inputs!T3 -> Forecast | U3: =Inputs!U3 -> Forecast | V3: =Inputs!V3 -> Forecast | W3: =Inputs!W3 -> Forecast | X3: =Inputs!X3 -> Forecast | Y3: =Inputs!Y3 -> Forecast | Z3: =Inputs!Z3 -> Forecast
B6: =Inputs!B6 -> Year fraction for depreciation | E6: =Inputs!E6 -> 1 | F6: =Inputs!F6 -> 1 | G6: =Inputs!G6 -> 1 | H6: =Inputs!H6 -> 1 | I6: =Inputs!I6 -> 1 | J6: =Inputs!J6 -> 1 | K6: =Inputs!K6 -> 1 | L6: =Inputs!L6 -> 1 | M6: =Inputs!M6 -> 1 | N6: =Inputs!N6 -> 1 | O6: =Inputs!O6 -> 0.5 | P6: =Inputs!P6 -> 1 | Q6: =Inputs!Q6 -> 1 | R6: =Inputs!R6 -> 1 | S6: =Inputs!S6 -> 1 | T6: =Inputs!T6 -> 0.5 | U6: =Inputs!U6 -> 0.5 | V6: =Inputs!V6 -> 0.5 | W6: =Inputs!W6 -> 1 | X6: =Inputs!X6 -> 1 | Y6: =Inputs!Y6 -> 1 | Z6: =Inputs!Z6 -> 1
B7: =Inputs!$B$7 -> Access Arrangement | E7: =IF(Inputs!E7="","",Inputs!E7) -> AA1 | F7: =IF(Inputs!F7="","",Inputs!F7) -> AA1 | G7: =IF(Inputs!G7="","",Inputs!G7) -> AA1 | H7: =IF(Inputs!H7="","",Inputs!H7) -> AA1 | I7: =IF(Inputs!I7="","",Inputs!I7) -> AA1 | J7: =IF(Inputs!J7="","",Inputs!J7) -> AA2 | K7: =IF(Inputs!K7="","",Inputs!K7) -> AA2 | L7: =IF(Inputs!L7="","",Inputs!L7) -> AA2 | M7: =IF(Inputs!M7="","",Inputs!M7) -> AA2 | N7: =IF(Inputs!N7="","",Inputs!N7) -> AA2 | O7: =IF(Inputs!O7="","",Inputs!O7) -> AA3 | P7: =IF(Inputs!P7="","",Inputs!P7) -> AA3 | Q7: =IF(Inputs!Q7="","",Inputs!Q7) -> AA3 | R7: =IF(Inputs!R7="","",Inputs!R7) -> AA3 | S7: =IF(Inputs!S7="","",Inputs!S7) -> AA3 | T7: =IF(Inputs!T7="","",Inputs!T7) -> AA4 | U7: =IF(Inputs!U7="","",Inputs!U7) -> AA4 | V7: =IF(Inputs!V7="","",Inputs!V7) -> AA4 | W7: =IF(Inputs!W7="","",Inputs!W7) -> AA4 | X7: =IF(Inputs!X7="","",Inputs!X7) -> AA4 | Y7: =IF(Inputs!Y7="","",Inputs!Y7) -> AA4 | Z7: =IF(Inputs!Z7="","",Inputs!Z7) -> AA4
B24: Nominal | E24: $, Jun 2014 | F24: =E24 -> $, Jun 2014 | G24: $, Jun 2014 | H24: $, Jun 2014 | I24: $, Jun 2014 | J24: $, Jun 2014 | K24: $, Jun 2014 | L24: $, Jun 2014 | M24: $, Jun 2014 | N24: $, Jun 2014 | O24: $, Jun 2014 | P24: $, Jun 2014 | Q24: $, Jun 2014 | R24: $, Jun 2014 | S24: $, Jun 2014 | T24: $, nominal | U24: =T24 -> $, nominal | V24: $, nominal | W24: $, nominal | X24: $, nominal | Y24: $, nominal | Z24: $, nominal
B26: ="Opening Capital Base: "&$B$4 -> Opening Capital Base:
B27: =Inputs!$B$307 -> High pressure mains - steel | C27: $m | E27: =SUM(ICB_at_2000!E27,Vines!E27,WestNet!E27,Capex_to_Jun_2014!E27,Capex_from_Jul_2014!E27) -> 228.6238076 | F27: =SUM(ICB_at_2000!F27,Vines!F27,WestNet!F27,Capex_to_Jun_2014!F27,Capex_from_Jul_2014!F27) -> 228.1809788 | G27: =SUM(ICB_at_2000!G27,Vines!G27,WestNet!G27,Capex_to_Jun_2014!G27,Capex_from_Jul_2014!G27) -> 228.3613109 | H27: =SUM(ICB_at_2000!H27,Vines!H27,WestNet!H27,Capex_to_Jun_2014!H27,Capex_from_Jul_2014!H27) -> 226.0673976 | I27: =SUM(ICB_at_2000!I27,Vines!I27,WestNet!I27,Capex_to_Jun_2014!I27,Capex_from_Jul_2014!I27) -> 223.740537 | J27: =SUM(ICB_at_2000!J27,Vines!J27,WestNet!J27,Capex_to_Jun_2014!J27,Capex_from_Jul_2014!J27) -> 221.3864283 | K27: =SUM(ICB_at_2000!K27,Vines!K27,WestNet!K27,Capex_to_Jun_2014!K27,Capex_from_Jul_2014!K27) -> 219.7550124 | L27: =SUM(ICB_at_2000!L27,Vines!L27,WestNet!L27,Capex_to_Jun_2014!L27,Capex_from_Jul_2014!L27) -> 219.2707106 | M27: =SUM(ICB_at_2000!M27,Vines!M27,WestNet!M27,Capex_to_Jun_2014!M27,Capex_from_Jul_2014!M27) -> 218.8454833 | N27: =SUM(ICB_at_2000!N27,Vines!N27,WestNet!N27,Capex_to_Jun_2014!N27,Capex_from_Jul_2014!N27) -> 220.3228497 | O27: =SUM(ICB_at_2000!O27,Vines!O27,WestNet!O27,Capex_to_Jun_2014!O27,Capex_from_Jul_2014!O27) -> 229.9256964 | P27: =SUM(ICB_at_2000!P27,Vines!P27,WestNet!P27,Capex_to_Jun_2014!P27,Capex_from_Jul_2014!P27) -> 237.0920503 | Q27: =SUM(ICB_at_2000!Q27,Vines!Q27,WestNet!Q27,Capex_to_Jun_2014!Q27,Capex_from_Jul_2014!Q27) -> 237.6341209 | R27: =SUM(ICB_at_2000!R27,Vines!R27,WestNet!R27,Capex_to_Jun_2014!R27,Capex_from_Jul_2014!R27) -> 238.5159651 | S27: =SUM(ICB_at_2000!S27,Vines!S27,WestNet!S27,Capex_to_Jun_2014!S27,Capex_from_Jul_2014!S27) -> 250.7901284 | T27: =SUM(ICB_at_2000!T27,Vines!T27,WestNet!T27,Capex_to_Jun_2014!T27,Capex_from_Jul_2014!T27) -> 249.2565985 | U27: =SUM(ICB_at_2000!U27,Vines!U27,WestNet!U27,Capex_to_Jun_2014!U27,Capex_from_Jul_2014!U27) -> 247.9221822 | V27: =SUM(ICB_at_2000!V27,Vines!V27,WestNet!V27,Capex_to_Jun_2014!V27,Capex_from_Jul_2014!V27) -> 246.0709675 | W27: =SUM(ICB_at_2000!W27,Vines!W27,WestNet!W27,Capex_to_Jun_2014!W27,Capex_from_Jul_2014!W27) -> 256.0298959 | X27: =SUM(ICB_at_2000!X27,Vines!X27,WestNet!X27,Capex_to_Jun_2014!X27,Capex_from_Jul_2014!X27) -> 296.4203369 | Y27: =SUM(ICB_at_2000!Y27,Vines!Y27,WestNet!Y27,Capex_to_Jun_2014!Y27,Capex_from_Jul_2014!Y27) -> 333.3545111 | Z27: =SUM(ICB_at_2000!Z27,Vines!Z27,WestNet!Z27,Capex_to_Jun_2014!Z27,Capex_from_Jul_2014!Z27) -> 362.5547107
B28: =Inputs!$B$308 -> High pressure mains - PE | C28: $m | E28: =SUM(ICB_at_2000!E28,Vines!E28,WestNet!E28,Capex_to_Jun_2014!E28,Capex_from_Jul_2014!E28) -> 0 | F28: =SUM(ICB_at_2000!F28,Vines!F28,WestNet!F28,Capex_to_Jun_2014!F28,Capex_from_Jul_2014!F28) -> 0 | G28: =SUM(ICB_at_2000!G28,Vines!G28,WestNet!G28,Capex_to_Jun_2014!G28,Capex_from_Jul_2014!G28) -> 0 | H28: =SUM(ICB_at_2000!H28,Vines!H28,WestNet!H28,Capex_to_Jun_2014!H28,Capex_from_Jul_2014!H28) -> 0 | I28: =SUM(ICB_at_2000!I28,Vines!I28,WestNet!I28,Capex_to_Jun_2014!I28,Capex_from_Jul_2014!I28) -> 0 | J28: =SUM(ICB_at_2000!J28,Vines!J28,WestNet!J28,Capex_to_Jun_2014!J28,Capex_from_Jul_2014!J28) -> 0 | K28: =SUM(ICB_at_2000!K28,Vines!K28,WestNet!K28,Capex_to_Jun_2014!K28,Capex_from_Jul_2014!K28) -> 0 | L28: =SUM(ICB_at_2000!L28,Vines!L28,WestNet!L28,Capex_to_Jun_2014!L28,Capex_from_Jul_2014!L28) -> 0 | M28: =SUM(ICB_at_2000!M28,Vines!M28,WestNet!M28,Capex_to_Jun_2014!M28,Capex_from_Jul_2014!M28) -> 0 | N28: =SUM(ICB_at_2000!N28,Vines!N28,WestNet!N28,Capex_to_Jun_2014!N28,Capex_from_Jul_2014!N28) -> 0 | O28: =SUM(ICB_at_2000!O28,Vines!O28,WestNet!O28,Capex_to_Jun_2014!O28,Capex_from_Jul_2014!O28) -> 0 | P28: =SUM(ICB_at_2000!P28,Vines!P28,WestNet!P28,Capex_to_Jun_2014!P28,Capex_from_Jul_2014!P28) -> 0.5073520271 | Q28: =SUM(ICB_at_2000!Q28,Vines!Q28,WestNet!Q28,Capex_to_Jun_2014!Q28,Capex_from_Jul_2014!Q28) -> 1.10956463 | R28: =SUM(ICB_at_2000!R28,Vines!R28,WestNet!R28,Capex_to_Jun_2014!R28,Capex_from_Jul_2014!R28) -> 0.6429518893 | S28: =SUM(ICB_at_2000!S28,Vines!S28,WestNet!S28,Capex_to_Jun_2014!S28,Capex_from_Jul_2014!S28) -> 6.522502984 | T28: =SUM(ICB_at_2000!T28,Vines!T28,WestNet!T28,Capex_to_Jun_2014!T28,Capex_from_Jul_2014!T28) -> 10.13675034 | U28: =SUM(ICB_at_2000!U28,Vines!U28,WestNet!U28,Capex_to_Jun_2014!U28,Capex_from_Jul_2014!U28) -> 11.56342164 | V28: =SUM(ICB_at_2000!V28,Vines!V28,WestNet!V28,Capex_to_Jun_2014!V28,Capex_from_Jul_2014!V28) -> 11.46491524 | W28: =SUM(ICB_at_2000!W28,Vines!W28,WestNet!W28,Capex_to_Jun_2014!W28,Capex_from_Jul_2014!W28) -> 12.84914484 | X28: =SUM(ICB_at_2000!X28,Vines!X28,WestNet!X28,Capex_to_Jun_2014!X28,Capex_from_Jul_2014!X28) -> 12.62741977 | Y28: =SUM(ICB_at_2000!Y28,Vines!Y28,WestNet!Y28,Capex_to_Jun_2014!Y28,Capex_from_Jul_2014!Y28) -> 12.40569471 | Z28: =SUM(ICB_at_2000!Z28,Vines!Z28,WestNet!Z28,Capex_to_Jun_2014!Z28,Capex_from_Jul_2014!Z28) -> 15.58717924
B29: =Inputs!$B$309 -> Medium pressure mains | C29: $m | E29: =SUM(ICB_at_2000!E29,Vines!E29,WestNet!E29,Capex_to_Jun_2014!E29,Capex_from_Jul_2014!E29) -> 271.4864871 | F29: =SUM(ICB_at_2000!F29,Vines!F29,WestNet!F29,Capex_to_Jun_2014!F29,Capex_from_Jul_2014!F29) -> 273.2823606 | G29: =SUM(ICB_at_2000!G29,Vines!G29,WestNet!G29,Capex_to_Jun_2014!G29,Capex_from_Jul_2014!G29) -> 272.7469189 | H29: =SUM(ICB_at_2000!H29,Vines!H29,WestNet!H29,Capex_to_Jun_2014!H29,Capex_from_Jul_2014!H29) -> 272.8549175 | I29: =SUM(ICB_at_2000!I29,Vines!I29,WestNet!I29,Capex_to_Jun_2014!I29,Capex_from_Jul_2014!I29) -> 276.2329508 | J29: =SUM(ICB_at_2000!J29,Vines!J29,WestNet!J29,Capex_to_Jun_2014!J29,Capex_from_Jul_2014!J29) -> 282.3102097 | K29: =SUM(ICB_at_2000!K29,Vines!K29,WestNet!K29,Capex_to_Jun_2014!K29,Capex_from_Jul_2014!K29) -> 276.2094526 | L29: =SUM(ICB_at_2000!L29,Vines!L29,WestNet!L29,Capex_to_Jun_2014!L29,Capex_from_Jul_2014!L29) -> 269.9881459 | M29: =SUM(ICB_at_2000!M29,Vines!M29,WestNet!M29,Capex_to_Jun_2014!M29,Capex_from_Jul_2014!M29) -> 263.6542933 | N29: =SUM(ICB_at_2000!N29,Vines!N29,WestNet!N29,Capex_to_Jun_2014!N29,Capex_from_Jul_2014!N29) -> 257.2255554 | O29: =SUM(ICB_at_2000!O29,Vines!O29,WestNet!O29,Capex_to_Jun_2014!O29,Capex_from_Jul_2014!O29) -> 217.931358 | P29: =SUM(ICB_at_2000!P29,Vines!P29,WestNet!P29,Capex_to_Jun_2014!P29,Capex_from_Jul_2014!P29) -> 215.2072161 | Q29: =SUM(ICB_at_2000!Q29,Vines!Q29,WestNet!Q29,Capex_to_Jun_2014!Q29,Capex_from_Jul_2014!Q29) -> 209.7589321 | R29: =SUM(ICB_at_2000!R29,Vines!R29,WestNet!R29,Capex_to_Jun_2014!R29,Capex_from_Jul_2014!R29) -> 204.3106482 | S29: =SUM(ICB_at_2000!S29,Vines!S29,WestNet!S29,Capex_to_Jun_2014!S29,Capex_from_Jul_2014!S29) -> 198.8623642 | T29: =SUM(ICB_at_2000!T29,Vines!T29,WestNet!T29,Capex_to_Jun_2014!T29,Capex_from_Jul_2014!T29) -> 193.4140803 | U29: =SUM(ICB_at_2000!U29,Vines!U29,WestNet!U29,Capex_to_Jun_2014!U29,Capex_from_Jul_2014!U29) -> 190.6899383 | V29: =SUM(ICB_at_2000!V29,Vines!V29,WestNet!V29,Capex_to_Jun_2014!V29,Capex_from_Jul_2014!V29) -> 187.9657963 | W29: =SUM(ICB_at_2000!W29,Vines!W29,WestNet!W29,Capex_to_Jun_2014!W29,Capex_from_Jul_2014!W29) -> 185.2416543 | X29: =SUM(ICB_at_2000!X29,Vines!X29,WestNet!X29,Capex_to_Jun_2014!X29,Capex_from_Jul_2014!X29) -> 179.7933704 | Y29: =SUM(ICB_at_2000!Y29,Vines!Y29,WestNet!Y29,Capex_to_Jun_2014!Y29,Capex_from_Jul_2014!Y29) -> 174.3450864 | Z29: =SUM(ICB_at_2000!Z29,Vines!Z29,WestNet!Z29,Capex_to_Jun_2014!Z29,Capex_from_Jul_2014!Z29) -> 168.8968025
B30: =Inputs!$B$310 -> Medium/low pressure mains | C30: $m | E30: =SUM(ICB_at_2000!E30,Vines!E30,WestNet!E30,Capex_to_Jun_2014!E30,Capex_from_Jul_2014!E30) -> 147.4928337 | F30: =SUM(ICB_at_2000!F30,Vines!F30,WestNet!F30,Capex_to_Jun_2014!F30,Capex_from_Jul_2014!F30) -> 146.5613676 | G30: =SUM(ICB_at_2000!G30,Vines!G30,WestNet!G30,Capex_to_Jun_2014!G30,Capex_from_Jul_2014!G30) -> 144.4827424 | H30: =SUM(ICB_at_2000!H30,Vines!H30,WestNet!H30,Capex_to_Jun_2014!H30,Capex_from_Jul_2014!H30) -> 140.8561637 | I30: =SUM(ICB_at_2000!I30,Vines!I30,WestNet!I30,Capex_to_Jun_2014!I30,Capex_from_Jul_2014!I30) -> 137.1195968 | J30: =SUM(ICB_at_2000!J30,Vines!J30,WestNet!J30,Capex_to_Jun_2014!J30,Capex_from_Jul_2014!J30) -> 133.4290117 | K30: =SUM(ICB_at_2000!K30,Vines!K30,WestNet!K30,Capex_to_Jun_2014!K30,Capex_from_Jul_2014!K30) -> 138.5324874 | L30: =SUM(ICB_at_2000!L30,Vines!L30,WestNet!L30,Capex_to_Jun_2014!L30,Capex_from_Jul_2014!L30) -> 144.7674694 | M30: =SUM(ICB_at_2000!M30,Vines!M30,WestNet!M30,Capex_to_Jun_2014!M30,Capex_from_Jul_2014!M30) -> 155.7151491 | N30: =SUM(ICB_at_2000!N30,Vines!N30,WestNet!N30,Capex_to_Jun_2014!N30,Capex_from_Jul_2014!N30) -> 164.8805807 | O30: =SUM(ICB_at_2000!O30,Vines!O30,WestNet!O30,Capex_to_Jun_2014!O30,Capex_from_Jul_2014!O30) -> 204.9997887 | P30: =SUM(ICB_at_2000!P30,Vines!P30,WestNet!P30,Capex_to_Jun_2014!P30,Capex_from_Jul_2014!P30) -> 207.4784316 | Q30: =SUM(ICB_at_2000!Q30,Vines!Q30,WestNet!Q30,Capex_to_Jun_2014!Q30,Capex_from_Jul_2014!Q30) -> 212.3734661 | R30: =SUM(ICB_at_2000!R30,Vines!R30,WestNet!R30,Capex_to_Jun_2014!R30,Capex_from_Jul_2014!R30) -> 217.9739525 | S30: =SUM(ICB_at_2000!S30,Vines!S30,WestNet!S30,Capex_to_Jun_2014!S30,Capex_from_Jul_2014!S30) -> 234.8188177 | T30: =SUM(ICB_at_2000!T30,Vines!T30,WestNet!T30,Capex_to_Jun_2014!T30,Capex_from_Jul_2014!T30) -> 245.5549849 | U30: =SUM(ICB_at_2000!U30,Vines!U30,WestNet!U30,Capex_to_Jun_2014!U30,Capex_from_Jul_2014!U30) -> 256.1643622 | V30: =SUM(ICB_at_2000!V30,Vines!V30,WestNet!V30,Capex_to_Jun_2014!V30,Capex_from_Jul_2014!V30) -> 252.8105377 | W30: =SUM(ICB_at_2000!W30,Vines!W30,WestNet!W30,Capex_to_Jun_2014!W30,Capex_from_Jul_2014!W30) -> 279.2971154 | X30: =SUM(ICB_at_2000!X30,Vines!X30,WestNet!X30,Capex_to_Jun_2014!X30,Capex_from_Jul_2014!X30) -> 301.8128387 | Y30: =SUM(ICB_at_2000!Y30,Vines!Y30,WestNet!Y30,Capex_to_Jun_2014!Y30,Capex_from_Jul_2014!Y30) -> 322.6361261 | Z30: =SUM(ICB_at_2000!Z30,Vines!Z30,WestNet!Z30,Capex_to_Jun_2014!Z30,Capex_from_Jul_2014!Z30) -> 344.3621104
B31: =Inputs!$B$311 -> Low pressure mains | C31: $m | E31: =SUM(ICB_at_2000!E31,Vines!E31,WestNet!E31,Capex_to_Jun_2014!E31,Capex_from_Jul_2014!E31) -> 42.62831033 | F31: =SUM(ICB_at_2000!F31,Vines!F31,WestNet!F31,Capex_to_Jun_2014!F31,Capex_from_Jul_2014!F31) -> 41.25387577 | G31: =SUM(ICB_at_2000!G31,Vines!G31,WestNet!G31,Capex_to_Jun_2014!G31,Capex_from_Jul_2014!G31) -> 39.82001395 | H31: =SUM(ICB_at_2000!H31,Vines!H31,WestNet!H31,Capex_to_Jun_2014!H31,Capex_from_Jul_2014!H31) -> 38.32522046 | I31: =SUM(ICB_at_2000!I31,Vines!I31,WestNet!I31,Capex_to_Jun_2014!I31,Capex_from_Jul_2014!I31) -> 36.76824426 | J31: =SUM(ICB_at_2000!J31,Vines!J31,WestNet!J31,Capex_to_Jun_2014!J31,Capex_from_Jul_2014!J31) -> 35.14718067 | K31: =SUM(ICB_at_2000!K31,Vines!K31,WestNet!K31,Capex_to_Jun_2014!K31,Capex_from_Jul_2014!K31) -> 33.84543324 | L31: =SUM(ICB_at_2000!L31,Vines!L31,WestNet!L31,Capex_to_Jun_2014!L31,Capex_from_Jul_2014!L31) -> 32.54368581 | M31: =SUM(ICB_at_2000!M31,Vines!M31,WestNet!M31,Capex_to_Jun_2014!M31,Capex_from_Jul_2014!M31) -> 31.24193838 | N31: =SUM(ICB_at_2000!N31,Vines!N31,WestNet!N31,Capex_to_Jun_2014!N31,Capex_from_Jul_2014!N31) -> 29.94019094 | O31: =SUM(ICB_at_2000!O31,Vines!O31,WestNet!O31,Capex_to_Jun_2014!O31,Capex_from_Jul_2014!O31) -> 28.63844351 | P31: =SUM(ICB_at_2000!P31,Vines!P31,WestNet!P31,Capex_to_Jun_2014!P31,Capex_from_Jul_2014!P31) -> 27.9875698 | Q31: =SUM(ICB_at_2000!Q31,Vines!Q31,WestNet!Q31,Capex_to_Jun_2014!Q31,Capex_from_Jul_2014!Q31) -> 26.68582236 | R31: =SUM(ICB_at_2000!R31,Vines!R31,WestNet!R31,Capex_to_Jun_2014!R31,Capex_from_Jul_2014!R31) -> 25.38407493 | S31: =SUM(ICB_at_2000!S31,Vines!S31,WestNet!S31,Capex_to_Jun_2014!S31,Capex_from_Jul_2014!S31) -> 24.0823275 | T31: =SUM(ICB_at_2000!T31,Vines!T31,WestNet!T31,Capex_to_Jun_2014!T31,Capex_from_Jul_2014!T31) -> 22.78058007 | U31: =SUM(ICB_at_2000!U31,Vines!U31,WestNet!U31,Capex_to_Jun_2014!U31,Capex_from_Jul_2014!U31) -> 22.12970635 | V31: =SUM(ICB_at_2000!V31,Vines!V31,WestNet!V31,Capex_to_Jun_2014!V31,Capex_from_Jul_2014!V31) -> 21.47883263 | W31: =SUM(ICB_at_2000!W31,Vines!W31,WestNet!W31,Capex_to_Jun_2014!W31,Capex_from_Jul_2014!W31) -> 20.82795892 | X31: =SUM(ICB_at_2000!X31,Vines!X31,WestNet!X31,Capex_to_Jun_2014!X31,Capex_from_Jul_2014!X31) -> 19.52621149 | Y31: =SUM(ICB_at_2000!Y31,Vines!Y31,WestNet!Y31,Capex_to_Jun_2014!Y31,Capex_from_Jul_2014!Y31) -> 18.22446405 | Z31: =SUM(ICB_at_2000!Z31,Vines!Z31,WestNet!Z31,Capex_to_Jun_2014!Z31,Capex_from_Jul_2014!Z31) -> 16.92271662
B32: =Inputs!$B$312 -> Regulators | C32: $m | E32: =SUM(ICB_at_2000!E32,Vines!E32,WestNet!E32,Capex_to_Jun_2014!E32,Capex_from_Jul_2014!E32) -> 14.90290098 | F32: =SUM(ICB_at_2000!F32,Vines!F32,WestNet!F32,Capex_to_Jun_2014!F32,Capex_from_Jul_2014!F32) -> 14.59447014 | G32: =SUM(ICB_at_2000!G32,Vines!G32,WestNet!G32,Capex_to_Jun_2014!G32,Capex_from_Jul_2014!G32) -> 14.25741692 | H32: =SUM(ICB_at_2000!H32,Vines!H32,WestNet!H32,Capex_to_Jun_2014!H32,Capex_from_Jul_2014!H32) -> 13.71070312 | I32: =SUM(ICB_at_2000!I32,Vines!I32,WestNet!I32,Capex_to_Jun_2014!I32,Capex_from_Jul_2014!I32) -> 13.13498352 | J32: =SUM(ICB_at_2000!J32,Vines!J32,WestNet!J32,Capex_to_Jun_2014!J32,Capex_from_Jul_2014!J32) -> 12.56275977 | K32: =SUM(ICB_at_2000!K32,Vines!K32,WestNet!K32,Capex_to_Jun_2014!K32,Capex_from_Jul_2014!K32) -> 12.11362241 | L32: =SUM(ICB_at_2000!L32,Vines!L32,WestNet!L32,Capex_to_Jun_2014!L32,Capex_from_Jul_2014!L32) -> 12.43158749 | M32: =SUM(ICB_at_2000!M32,Vines!M32,WestNet!M32,Capex_to_Jun_2014!M32,Capex_from_Jul_2014!M32) -> 12.58517979 | N32: =SUM(ICB_at_2000!N32,Vines!N32,WestNet!N32,Capex_to_Jun_2014!N32,Capex_from_Jul_2014!N32) -> 12.21063142 | O32: =SUM(ICB_at_2000!O32,Vines!O32,WestNet!O32,Capex_to_Jun_2014!O32,Capex_from_Jul_2014!O32) -> 12.48213596 | P32: =SUM(ICB_at_2000!P32,Vines!P32,WestNet!P32,Capex_to_Jun_2014!P32,Capex_from_Jul_2014!P32) -> 12.43768532 | Q32: =SUM(ICB_at_2000!Q32,Vines!Q32,WestNet!Q32,Capex_to_Jun_2014!Q32,Capex_from_Jul_2014!Q32) -> 12.02331542 | R32: =SUM(ICB_at_2000!R32,Vines!R32,WestNet!R32,Capex_to_Jun_2014!R32,Capex_from_Jul_2014!R32) -> 11.81840981 | S32: =SUM(ICB_at_2000!S32,Vines!S32,WestNet!S32,Capex_to_Jun_2014!S32,Capex_from_Jul_2014!S32) -> 12.38676278 | T32: =SUM(ICB_at_2000!T32,Vines!T32,WestNet!T32,Capex_to_Jun_2014!T32,Capex_from_Jul_2014!T32) -> 12.35578271 | U32: =SUM(ICB_at_2000!U32,Vines!U32,WestNet!U32,Capex_to_Jun_2014!U32,Capex_from_Jul_2014!U32) -> 12.97599541 | V32: =SUM(ICB_at_2000!V32,Vines!V32,WestNet!V32,Capex_to_Jun_2014!V32,Capex_from_Jul_2014!V32) -> 12.60816775 | W32: =SUM(ICB_at_2000!W32,Vines!W32,WestNet!W32,Capex_to_Jun_2014!W32,Capex_from_Jul_2014!W32) -> 15.72691627 | X32: =SUM(ICB_at_2000!X32,Vines!X32,WestNet!X32,Capex_to_Jun_2014!X32,Capex_from_Jul_2014!X32) -> 16.51357479 | Y32: =SUM(ICB_at_2000!Y32,Vines!Y32,WestNet!Y32,Capex_to_Jun_2014!Y32,Capex_from_Jul_2014!Y32) -> 17.26039191 | Z32: =SUM(ICB_at_2000!Z32,Vines!Z32,WestNet!Z32,Capex_to_Jun_2014!Z32,Capex_from_Jul_2014!Z32) -> 18.04487327
B33: =Inputs!$B$313 -> Secondary gate stations | C33: $m | E33: =SUM(ICB_at_2000!E33,Vines!E33,WestNet!E33,Capex_to_Jun_2014!E33,Capex_from_Jul_2014!E33) -> 3.024989777 | F33: =SUM(ICB_at_2000!F33,Vines!F33,WestNet!F33,Capex_to_Jun_2014!F33,Capex_from_Jul_2014!F33) -> 2.917629625 | G33: =SUM(ICB_at_2000!G33,Vines!G33,WestNet!G33,Capex_to_Jun_2014!G33,Capex_from_Jul_2014!G33) -> 2.784117348 | H33: =SUM(ICB_at_2000!H33,Vines!H33,WestNet!H33,Capex_to_Jun_2014!H33,Capex_from_Jul_2014!H33) -> 2.633500851 | I33: =SUM(ICB_at_2000!I33,Vines!I33,WestNet!I33,Capex_to_Jun_2014!I33,Capex_from_Jul_2014!I33) -> 2.48288435 | J33: =SUM(ICB_at_2000!J33,Vines!J33,WestNet!J33,Capex_to_Jun_2014!J33,Capex_from_Jul_2014!J33) -> 2.332267845 | K33: =SUM(ICB_at_2000!K33,Vines!K33,WestNet!K33,Capex_to_Jun_2014!K33,Capex_from_Jul_2014!K33) -> 2.209516906 | L33: =SUM(ICB_at_2000!L33,Vines!L33,WestNet!L33,Capex_to_Jun_2014!L33,Capex_from_Jul_2014!L33) -> 2.086518374 | M33: =SUM(ICB_at_2000!M33,Vines!M33,WestNet!M33,Capex_to_Jun_2014!M33,Capex_from_Jul_2014!M33) -> 1.963276809 | N33: =SUM(ICB_at_2000!N33,Vines!N33,WestNet!N33,Capex_to_Jun_2014!N33,Capex_from_Jul_2014!N33) -> 1.853915539 | O33: =SUM(ICB_at_2000!O33,Vines!O33,WestNet!O33,Capex_to_Jun_2014!O33,Capex_from_Jul_2014!O33) -> 3.593726239 | P33: =SUM(ICB_at_2000!P33,Vines!P33,WestNet!P33,Capex_to_Jun_2014!P33,Capex_from_Jul_2014!P33) -> 5.375824791 | Q33: =SUM(ICB_at_2000!Q33,Vines!Q33,WestNet!Q33,Capex_to_Jun_2014!Q33,Capex_from_Jul_2014!Q33) -> 5.341670777 | R33: =SUM(ICB_at_2000!R33,Vines!R33,WestNet!R33,Capex_to_Jun_2014!R33,Capex_from_Jul_2014!R33) -> 5.349278656 | S33: =SUM(ICB_at_2000!S33,Vines!S33,WestNet!S33,Capex_to_Jun_2014!S33,Capex_from_Jul_2014!S33) -> 5.115448683 | T33: =SUM(ICB_at_2000!T33,Vines!T33,WestNet!T33,Capex_to_Jun_2014!T33,Capex_from_Jul_2014!T33) -> 4.878197622 | U33: =SUM(ICB_at_2000!U33,Vines!U33,WestNet!U33,Capex_to_Jun_2014!U33,Capex_from_Jul_2014!U33) -> 4.773272944 | V33: =SUM(ICB_at_2000!V33,Vines!V33,WestNet!V33,Capex_to_Jun_2014!V33,Capex_from_Jul_2014!V33) -> 4.660152481 | W33: =SUM(ICB_at_2000!W33,Vines!W33,WestNet!W33,Capex_to_Jun_2014!W33,Capex_from_Jul_2014!W33) -> 4.547032017 | X33: =SUM(ICB_at_2000!X33,Vines!X33,WestNet!X33,Capex_to_Jun_2014!X33,Capex_from_Jul_2014!X33) -> 4.924681343 | Y33: =SUM(ICB_at_2000!Y33,Vines!Y33,WestNet!Y33,Capex_to_Jun_2014!Y33,Capex_from_Jul_2014!Y33) -> 13.61955332 | Z33: =SUM(ICB_at_2000!Z33,Vines!Z33,WestNet!Z33,Capex_to_Jun_2014!Z33,Capex_from_Jul_2014!Z33) -> 17.77640009
B34: =Inputs!$B$314 -> Buildings | C34: $m | E34: =SUM(ICB_at_2000!E34,Vines!E34,WestNet!E34,Capex_to_Jun_2014!E34,Capex_from_Jul_2014!E34) -> 2.668346701 | F34: =SUM(ICB_at_2000!F34,Vines!F34,WestNet!F34,Capex_to_Jun_2014!F34,Capex_from_Jul_2014!F34) -> 2.548934589 | G34: =SUM(ICB_at_2000!G34,Vines!G34,WestNet!G34,Capex_to_Jun_2014!G34,Capex_from_Jul_2014!G34) -> 2.508290787 | H34: =SUM(ICB_at_2000!H34,Vines!H34,WestNet!H34,Capex_to_Jun_2014!H34,Capex_from_Jul_2014!H34) -> 2.381093572 | I34: =SUM(ICB_at_2000!I34,Vines!I34,WestNet!I34,Capex_to_Jun_2014!I34,Capex_from_Jul_2014!I34) -> 2.250032264 | J34: =SUM(ICB_at_2000!J34,Vines!J34,WestNet!J34,Capex_to_Jun_2014!J34,Capex_from_Jul_2014!J34) -> 2.115125713 | K34: =SUM(ICB_at_2000!K34,Vines!K34,WestNet!K34,Capex_to_Jun_2014!K34,Capex_from_Jul_2014!K34) -> 1.997444221 | L34: =SUM(ICB_at_2000!L34,Vines!L34,WestNet!L34,Capex_to_Jun_2014!L34,Capex_from_Jul_2014!L34) -> 1.87934377 | M34: =SUM(ICB_at_2000!M34,Vines!M34,WestNet!M34,Capex_to_Jun_2014!M34,Capex_from_Jul_2014!M34) -> 1.807740188 | N34: =SUM(ICB_at_2000!N34,Vines!N34,WestNet!N34,Capex_to_Jun_2014!N34,Capex_from_Jul_2014!N34) -> 1.820011499 | O34: =SUM(ICB_at_2000!O34,Vines!O34,WestNet!O34,Capex_to_Jun_2014!O34,Capex_from_Jul_2014!O34) -> 0.7512016554 | P34: =SUM(ICB_at_2000!P34,Vines!P34,WestNet!P34,Capex_to_Jun_2014!P34,Capex_from_Jul_2014!P34) -> 0.8641501505 | Q34: =SUM(ICB_at_2000!Q34,Vines!Q34,WestNet!Q34,Capex_to_Jun_2014!Q34,Capex_from_Jul_2014!Q34) -> 1.981701378 | R34: =SUM(ICB_at_2000!R34,Vines!R34,WestNet!R34,Capex_to_Jun_2014!R34,Capex_from_Jul_2014!R34) -> 2.64816825 | S34: =SUM(ICB_at_2000!S34,Vines!S34,WestNet!S34,Capex_to_Jun_2014!S34,Capex_from_Jul_2014!S34) -> 6.78966544 | T34: =SUM(ICB_at_2000!T34,Vines!T34,WestNet!T34,Capex_to_Jun_2014!T34,Capex_from_Jul_2014!T34) -> 16.8456978 | U34: =SUM(ICB_at_2000!U34,Vines!U34,WestNet!U34,Capex_to_Jun_2014!U34,Capex_from_Jul_2014!U34) -> 18.93186481 | V34: =SUM(ICB_at_2000!V34,Vines!V34,WestNet!V34,Capex_to_Jun_2014!V34,Capex_from_Jul_2014!V34) -> 18.67819947 | W34: =SUM(ICB_at_2000!W34,Vines!W34,WestNet!W34,Capex_to_Jun_2014!W34,Capex_from_Jul_2014!W34) -> 28.74998153 | X34: =SUM(ICB_at_2000!X34,Vines!X34,WestNet!X34,Capex_to_Jun_2014!X34,Capex_from_Jul_2014!X34) -> 28.64733701 | Y34: =SUM(ICB_at_2000!Y34,Vines!Y34,WestNet!Y34,Capex_to_Jun_2014!Y34,Capex_from_Jul_2014!Y34) -> 28.32370075 | Z34: =SUM(ICB_at_2000!Z34,Vines!Z34,WestNet!Z34,Capex_to_Jun_2014!Z34,Capex_from_Jul_2014!Z34) -> 27.55171284
B35: =Inputs!$B$315 -> Meter and services pipes | C35: $m | E35: =SUM(ICB_at_2000!E35,Vines!E35,WestNet!E35,Capex_to_Jun_2014!E35,Capex_from_Jul_2014!E35) -> 80.97971007 | F35: =SUM(ICB_at_2000!F35,Vines!F35,WestNet!F35,Capex_to_Jun_2014!F35,Capex_from_Jul_2014!F35) -> 90.97759836 | G35: =SUM(ICB_at_2000!G35,Vines!G35,WestNet!G35,Capex_to_Jun_2014!G35,Capex_from_Jul_2014!G35) -> 96.82196921 | H35: =SUM(ICB_at_2000!H35,Vines!H35,WestNet!H35,Capex_to_Jun_2014!H35,Capex_from_Jul_2014!H35) -> 113.2435503 | I35: =SUM(ICB_at_2000!I35,Vines!I35,WestNet!I35,Capex_to_Jun_2014!I35,Capex_from_Jul_2014!I35) -> 127.8684385 | J35: =SUM(ICB_at_2000!J35,Vines!J35,WestNet!J35,Capex_to_Jun_2014!J35,Capex_from_Jul_2014!J35) -> 139.5322675 | K35: =SUM(ICB_at_2000!K35,Vines!K35,WestNet!K35,Capex_to_Jun_2014!K35,Capex_from_Jul_2014!K35) -> 147.0605369 | L35: =SUM(ICB_at_2000!L35,Vines!L35,WestNet!L35,Capex_to_Jun_2014!L35,Capex_from_Jul_2014!L35) -> 157.2711271 | M35: =SUM(ICB_at_2000!M35,Vines!M35,WestNet!M35,Capex_to_Jun_2014!M35,Capex_from_Jul_2014!M35) -> 163.6903027 | N35: =SUM(ICB_at_2000!N35,Vines!N35,WestNet!N35,Capex_to_Jun_2014!N35,Capex_from_Jul_2014!N35) -> 167.4050584 | O35: =SUM(ICB_at_2000!O35,Vines!O35,WestNet!O35,Capex_to_Jun_2014!O35,Capex_from_Jul_2014!O35) -> 171.9111449 | P35: =SUM(ICB_at_2000!P35,Vines!P35,WestNet!P35,Capex_to_Jun_2014!P35,Capex_from_Jul_2014!P35) -> 177.3093085 | Q35: =SUM(ICB_at_2000!Q35,Vines!Q35,WestNet!Q35,Capex_to_Jun_2014!Q35,Capex_from_Jul_2014!Q35) -> 189.4501472 | R35: =SUM(ICB_at_2000!R35,Vines!R35,WestNet!R35,Capex_to_Jun_2014!R35,Capex_from_Jul_2014!R35) -> 198.3758529 | S35: =SUM(ICB_at_2000!S35,Vines!S35,WestNet!S35,Capex_to_Jun_2014!S35,Capex_from_Jul_2014!S35) -> 208.5301798 | T35: =SUM(ICB_at_2000!T35,Vines!T35,WestNet!T35,Capex_to_Jun_2014!T35,Capex_from_Jul_2014!T35) -> 226.741831 | U35: =SUM(ICB_at_2000!U35,Vines!U35,WestNet!U35,Capex_to_Jun_2014!U35,Capex_from_Jul_2014!U35) -> 237.4125805 | V35: =SUM(ICB_at_2000!V35,Vines!V35,WestNet!V35,Capex_to_Jun_2014!V35,Capex_from_Jul_2014!V35) -> 230.9480773 | W35: =SUM(ICB_at_2000!W35,Vines!W35,WestNet!W35,Capex_to_Jun_2014!W35,Capex_from_Jul_2014!W35) -> 261.0055444 | X35: =SUM(ICB_at_2000!X35,Vines!X35,WestNet!X35,Capex_to_Jun_2014!X35,Capex_from_Jul_2014!X35) -> 281.5371013 | Y35: =SUM(ICB_at_2000!Y35,Vines!Y35,WestNet!Y35,Capex_to_Jun_2014!Y35,Capex_from_Jul_2014!Y35) -> 302.2752196 | Z35: =SUM(ICB_at_2000!Z35,Vines!Z35,WestNet!Z35,Capex_to_Jun_2014!Z35,Capex_from_Jul_2014!Z35) -> 323.864524
B36: =Inputs!$B$316 -> Equipment and vehicles | C36: $m | E36: =SUM(ICB_at_2000!E36,Vines!E36,WestNet!E36,Capex_to_Jun_2014!E36,Capex_from_Jul_2014!E36) -> 23.10576561 | F36: =SUM(ICB_at_2000!F36,Vines!F36,WestNet!F36,Capex_to_Jun_2014!F36,Capex_from_Jul_2014!F36) -> 19.82764918 | G36: =SUM(ICB_at_2000!G36,Vines!G36,WestNet!G36,Capex_to_Jun_2014!G36,Capex_from_Jul_2014!G36) -> 14.56990162 | H36: =SUM(ICB_at_2000!H36,Vines!H36,WestNet!H36,Capex_to_Jun_2014!H36,Capex_from_Jul_2014!H36) -> 8.674470545 | I36: =SUM(ICB_at_2000!I36,Vines!I36,WestNet!I36,Capex_to_Jun_2014!I36,Capex_from_Jul_2014!I36) -> 2.682207614 | J36: =SUM(ICB_at_2000!J36,Vines!J36,WestNet!J36,Capex_to_Jun_2014!J36,Capex_from_Jul_2014!J36) -> -3.755278351 | K36: =SUM(ICB_at_2000!K36,Vines!K36,WestNet!K36,Capex_to_Jun_2014!K36,Capex_from_Jul_2014!K36) -> -3.755278351 | L36: =SUM(ICB_at_2000!L36,Vines!L36,WestNet!L36,Capex_to_Jun_2014!L36,Capex_from_Jul_2014!L36) -> -3.755278351 | M36: =SUM(ICB_at_2000!M36,Vines!M36,WestNet!M36,Capex_to_Jun_2014!M36,Capex_from_Jul_2014!M36) -> -3.755278351 | N36: =SUM(ICB_at_2000!N36,Vines!N36,WestNet!N36,Capex_to_Jun_2014!N36,Capex_from_Jul_2014!N36) -> -3.755278351 | O36: =SUM(ICB_at_2000!O36,Vines!O36,WestNet!O36,Capex_to_Jun_2014!O36,Capex_from_Jul_2014!O36) -> 1.332456183e-15 | P36: =SUM(ICB_at_2000!P36,Vines!P36,WestNet!P36,Capex_to_Jun_2014!P36,Capex_from_Jul_2014!P36) -> 3.188742676 | Q36: =SUM(ICB_at_2000!Q36,Vines!Q36,WestNet!Q36,Capex_to_Jun_2014!Q36,Capex_from_Jul_2014!Q36) -> 2.753777977 | R36: =SUM(ICB_at_2000!R36,Vines!R36,WestNet!R36,Capex_to_Jun_2014!R36,Capex_from_Jul_2014!R36) -> 2.433886059 | S36: =SUM(ICB_at_2000!S36,Vines!S36,WestNet!S36,Capex_to_Jun_2014!S36,Capex_from_Jul_2014!S36) -> 2.52731245 | T36: =SUM(ICB_at_2000!T36,Vines!T36,WestNet!T36,Capex_to_Jun_2014!T36,Capex_from_Jul_2014!T36) -> 3.13006174 | U36: =SUM(ICB_at_2000!U36,Vines!U36,WestNet!U36,Capex_to_Jun_2014!U36,Capex_from_Jul_2014!U36) -> 3.0960236 | V36: =SUM(ICB_at_2000!V36,Vines!V36,WestNet!V36,Capex_to_Jun_2014!V36,Capex_from_Jul_2014!V36) -> 2.83638234 | W36: =SUM(ICB_at_2000!W36,Vines!W36,WestNet!W36,Capex_to_Jun_2014!W36,Capex_from_Jul_2014!W36) -> 4.132754694 | X36: =SUM(ICB_at_2000!X36,Vines!X36,WestNet!X36,Capex_to_Jun_2014!X36,Capex_from_Jul_2014!X36) -> 4.937099435 | Y36: =SUM(ICB_at_2000!Y36,Vines!Y36,WestNet!Y36,Capex_to_Jun_2014!Y36,Capex_from_Jul_2014!Y36) -> 5.668186756 | Z36: =SUM(ICB_at_2000!Z36,Vines!Z36,WestNet!Z36,Capex_to_Jun_2014!Z36,Capex_from_Jul_2014!Z36) -> 6.015733247
B37: =Inputs!$B$317 -> Vehicles | C37: $m | E37: =SUM(ICB_at_2000!E37,Vines!E37,WestNet!E37,Capex_to_Jun_2014!E37,Capex_from_Jul_2014!E37) -> 0 | F37: =SUM(ICB_at_2000!F37,Vines!F37,WestNet!F37,Capex_to_Jun_2014!F37,Capex_from_Jul_2014!F37) -> 0 | G37: =SUM(ICB_at_2000!G37,Vines!G37,WestNet!G37,Capex_to_Jun_2014!G37,Capex_from_Jul_2014!G37) -> 0 | H37: =SUM(ICB_at_2000!H37,Vines!H37,WestNet!H37,Capex_to_Jun_2014!H37,Capex_from_Jul_2014!H37) -> 0 | I37: =SUM(ICB_at_2000!I37,Vines!I37,WestNet!I37,Capex_to_Jun_2014!I37,Capex_from_Jul_2014!I37) -> 0 | J37: =SUM(ICB_at_2000!J37,Vines!J37,WestNet!J37,Capex_to_Jun_2014!J37,Capex_from_Jul_2014!J37) -> 0 | K37: =SUM(ICB_at_2000!K37,Vines!K37,WestNet!K37,Capex_to_Jun_2014!K37,Capex_from_Jul_2014!K37) -> 0 | L37: =SUM(ICB_at_2000!L37,Vines!L37,WestNet!L37,Capex_to_Jun_2014!L37,Capex_from_Jul_2014!L37) -> 0 | M37: =SUM(ICB_at_2000!M37,Vines!M37,WestNet!M37,Capex_to_Jun_2014!M37,Capex_from_Jul_2014!M37) -> 0 | N37: =SUM(ICB_at_2000!N37,Vines!N37,WestNet!N37,Capex_to_Jun_2014!N37,Capex_from_Jul_2014!N37) -> 0 | O37: =SUM(ICB_at_2000!O37,Vines!O37,WestNet!O37,Capex_to_Jun_2014!O37,Capex_from_Jul_2014!O37) -> 0 | P37: =SUM(ICB_at_2000!P37,Vines!P37,WestNet!P37,Capex_to_Jun_2014!P37,Capex_from_Jul_2014!P37) -> 0 | Q37: =SUM(ICB_at_2000!Q37,Vines!Q37,WestNet!Q37,Capex_to_Jun_2014!Q37,Capex_from_Jul_2014!Q37) -> 0.5128959991 | R37: =SUM(ICB_at_2000!R37,Vines!R37,WestNet!R37,Capex_to_Jun_2014!R37,Capex_from_Jul_2014!R37) -> 1.308885448 | S37: =SUM(ICB_at_2000!S37,Vines!S37,WestNet!S37,Capex_to_Jun_2014!S37,Capex_from_Jul_2014!S37) -> 4.595948791 | T37: =SUM(ICB_at_2000!T37,Vines!T37,WestNet!T37,Capex_to_Jun_2014!T37,Capex_from_Jul_2014!T37) -> 8.373249794 | U37: =SUM(ICB_at_2000!U37,Vines!U37,WestNet!U37,Capex_to_Jun_2014!U37,Capex_from_Jul_2014!U37) -> 10.36290053 | V37: =SUM(ICB_at_2000!V37,Vines!V37,WestNet!V37,Capex_to_Jun_2014!V37,Capex_from_Jul_2014!V37) -> 9.009483341 | W37: =SUM(ICB_at_2000!W37,Vines!W37,WestNet!W37,Capex_to_Jun_2014!W37,Capex_from_Jul_2014!W37) -> 8.878006903 | X37: =SUM(ICB_at_2000!X37,Vines!X37,WestNet!X37,Capex_to_Jun_2014!X37,Capex_from_Jul_2014!X37) -> 6.866487128 | Y37: =SUM(ICB_at_2000!Y37,Vines!Y37,WestNet!Y37,Capex_to_Jun_2014!Y37,Capex_from_Jul_2014!Y37) -> 5.590259786 | Z37: =SUM(ICB_at_2000!Z37,Vines!Z37,WestNet!Z37,Capex_to_Jun_2014!Z37,Capex_from_Jul_2014!Z37) -> 8.004919841
B38: =Inputs!$B$318 -> Information technology | C38: $m | E38: =SUM(ICB_at_2000!E38,Vines!E38,WestNet!E38,Capex_to_Jun_2014!E38,Capex_from_Jul_2014!E38) -> 0 | F38: =SUM(ICB_at_2000!F38,Vines!F38,WestNet!F38,Capex_to_Jun_2014!F38,Capex_from_Jul_2014!F38) -> 4.629901822 | G38: =SUM(ICB_at_2000!G38,Vines!G38,WestNet!G38,Capex_to_Jun_2014!G38,Capex_from_Jul_2014!G38) -> 5.500791504 | H38: =SUM(ICB_at_2000!H38,Vines!H38,WestNet!H38,Capex_to_Jun_2014!H38,Capex_from_Jul_2014!H38) -> 5.991568017 | I38: =SUM(ICB_at_2000!I38,Vines!I38,WestNet!I38,Capex_to_Jun_2014!I38,Capex_from_Jul_2014!I38) -> 6.444206095 | J38: =SUM(ICB_at_2000!J38,Vines!J38,WestNet!J38,Capex_to_Jun_2014!J38,Capex_from_Jul_2014!J38) -> 7.726358795 | K38: =SUM(ICB_at_2000!K38,Vines!K38,WestNet!K38,Capex_to_Jun_2014!K38,Capex_from_Jul_2014!K38) -> 6.64929303 | L38: =SUM(ICB_at_2000!L38,Vines!L38,WestNet!L38,Capex_to_Jun_2014!L38,Capex_from_Jul_2014!L38) -> 4.248720234 | M38: =SUM(ICB_at_2000!M38,Vines!M38,WestNet!M38,Capex_to_Jun_2014!M38,Capex_from_Jul_2014!M38) -> 1.105619117 | N38: =SUM(ICB_at_2000!N38,Vines!N38,WestNet!N38,Capex_to_Jun_2014!N38,Capex_from_Jul_2014!N38) -> 0.2628205303 | O38: =SUM(ICB_at_2000!O38,Vines!O38,WestNet!O38,Capex_to_Jun_2014!O38,Capex_from_Jul_2014!O38) -> 4.138873182 | P38: =SUM(ICB_at_2000!P38,Vines!P38,WestNet!P38,Capex_to_Jun_2014!P38,Capex_from_Jul_2014!P38) -> 5.681937281 | Q38: =SUM(ICB_at_2000!Q38,Vines!Q38,WestNet!Q38,Capex_to_Jun_2014!Q38,Capex_from_Jul_2014!Q38) -> 8.378406714 | R38: =SUM(ICB_at_2000!R38,Vines!R38,WestNet!R38,Capex_to_Jun_2014!R38,Capex_from_Jul_2014!R38) -> 8.990919069 | S38: =SUM(ICB_at_2000!S38,Vines!S38,WestNet!S38,Capex_to_Jun_2014!S38,Capex_from_Jul_2014!S38) -> 10.77311364 | T38: =SUM(ICB_at_2000!T38,Vines!T38,WestNet!T38,Capex_to_Jun_2014!T38,Capex_from_Jul_2014!T38) -> 10.8047218 | U38: =SUM(ICB_at_2000!U38,Vines!U38,WestNet!U38,Capex_to_Jun_2014!U38,Capex_from_Jul_2014!U38) -> 14.80366562 | V38: =SUM(ICB_at_2000!V38,Vines!V38,WestNet!V38,Capex_to_Jun_2014!V38,Capex_from_Jul_2014!V38) -> 12.76679735 | W38: =SUM(ICB_at_2000!W38,Vines!W38,WestNet!W38,Capex_to_Jun_2014!W38,Capex_from_Jul_2014!W38) -> 18.29287494 | X38: =SUM(ICB_at_2000!X38,Vines!X38,WestNet!X38,Capex_to_Jun_2014!X38,Capex_from_Jul_2014!X38) -> 20.22391174 | Y38: =SUM(ICB_at_2000!Y38,Vines!Y38,WestNet!Y38,Capex_to_Jun_2014!Y38,Capex_from_Jul_2014!Y38) -> 19.76272651 | Z38: =SUM(ICB_at_2000!Z38,Vines!Z38,WestNet!Z38,Capex_to_Jun_2014!Z38,Capex_from_Jul_2014!Z38) -> 17.9826036
B39: =Inputs!$B$319 -> Full retail contestability | C39: $m | E39: =SUM(ICB_at_2000!E39,Vines!E39,WestNet!E39,Capex_to_Jun_2014!E39,Capex_from_Jul_2014!E39) -> 0 | F39: =SUM(ICB_at_2000!F39,Vines!F39,WestNet!F39,Capex_to_Jun_2014!F39,Capex_from_Jul_2014!F39) -> 0.0001580213406 | G39: =SUM(ICB_at_2000!G39,Vines!G39,WestNet!G39,Capex_to_Jun_2014!G39,Capex_from_Jul_2014!G39) -> 0.005982408542 | H39: =SUM(ICB_at_2000!H39,Vines!H39,WestNet!H39,Capex_to_Jun_2014!H39,Capex_from_Jul_2014!H39) -> 2.339778869 | I39: =SUM(ICB_at_2000!I39,Vines!I39,WestNet!I39,Capex_to_Jun_2014!I39,Capex_from_Jul_2014!I39) -> 6.416455588 | J39: =SUM(ICB_at_2000!J39,Vines!J39,WestNet!J39,Capex_to_Jun_2014!J39,Capex_from_Jul_2014!J39) -> 15.51601398 | K39: =SUM(ICB_at_2000!K39,Vines!K39,WestNet!K39,Capex_to_Jun_2014!K39,Capex_from_Jul_2014!K39) -> 12.41281118 | L39: =SUM(ICB_at_2000!L39,Vines!L39,WestNet!L39,Capex_to_Jun_2014!L39,Capex_from_Jul_2014!L39) -> 9.309608386 | M39: =SUM(ICB_at_2000!M39,Vines!M39,WestNet!M39,Capex_to_Jun_2014!M39,Capex_from_Jul_2014!M39) -> 6.206405591 | N39: =SUM(ICB_at_2000!N39,Vines!N39,WestNet!N39,Capex_to_Jun_2014!N39,Capex_from_Jul_2014!N39) -> 3.103202795 | O39: =SUM(ICB_at_2000!O39,Vines!O39,WestNet!O39,Capex_to_Jun_2014!O39,Capex_from_Jul_2014!O39) -> 1.234276865e-15 | P39: =SUM(ICB_at_2000!P39,Vines!P39,WestNet!P39,Capex_to_Jun_2014!P39,Capex_from_Jul_2014!P39) -> 1.234254036e-15 | Q39: =SUM(ICB_at_2000!Q39,Vines!Q39,WestNet!Q39,Capex_to_Jun_2014!Q39,Capex_from_Jul_2014!Q39) -> 1.234254036e-15 | R39: =SUM(ICB_at_2000!R39,Vines!R39,WestNet!R39,Capex_to_Jun_2014!R39,Capex_from_Jul_2014!R39) -> 1.234254036e-15 | S39: =SUM(ICB_at_2000!S39,Vines!S39,WestNet!S39,Capex_to_Jun_2014!S39,Capex_from_Jul_2014!S39) -> 1.234254036e-15 | T39: =SUM(ICB_at_2000!T39,Vines!T39,WestNet!T39,Capex_to_Jun_2014!T39,Capex_from_Jul_2014!T39) -> 1.234254036e-15 | U39: =SUM(ICB_at_2000!U39,Vines!U39,WestNet!U39,Capex_to_Jun_2014!U39,Capex_from_Jul_2014!U39) -> 0 | V39: =SUM(ICB_at_2000!V39,Vines!V39,WestNet!V39,Capex_to_Jun_2014!V39,Capex_from_Jul_2014!V39) -> 0 | W39: =SUM(ICB_at_2000!W39,Vines!W39,WestNet!W39,Capex_to_Jun_2014!W39,Capex_from_Jul_2014!W39) -> 0 | X39: =SUM(ICB_at_2000!X39,Vines!X39,WestNet!X39,Capex_to_Jun_2014!X39,Capex_from_Jul_2014!X39) -> 0 | Y39: =SUM(ICB_at_2000!Y39,Vines!Y39,WestNet!Y39,Capex_to_Jun_2014!Y39,Capex_from_Jul_2014!Y39) -> 0 | Z39: =SUM(ICB_at_2000!Z39,Vines!Z39,WestNet!Z39,Capex_to_Jun_2014!Z39,Capex_from_Jul_2014!Z39) -> 0
B40: =Inputs!$B$320 -> Land | C40: $m | E40: =SUM(ICB_at_2000!E40,Vines!E40,WestNet!E40,Capex_to_Jun_2014!E40,Capex_from_Jul_2014!E40) -> 6.856669454 | F40: =SUM(ICB_at_2000!F40,Vines!F40,WestNet!F40,Capex_to_Jun_2014!F40,Capex_from_Jul_2014!F40) -> 7.204425154 | G40: =SUM(ICB_at_2000!G40,Vines!G40,WestNet!G40,Capex_to_Jun_2014!G40,Capex_from_Jul_2014!G40) -> 7.462413751 | H40: =SUM(ICB_at_2000!H40,Vines!H40,WestNet!H40,Capex_to_Jun_2014!H40,Capex_from_Jul_2014!H40) -> 7.462413751 | I40: =SUM(ICB_at_2000!I40,Vines!I40,WestNet!I40,Capex_to_Jun_2014!I40,Capex_from_Jul_2014!I40) -> 7.462413751 | J40: =SUM(ICB_at_2000!J40,Vines!J40,WestNet!J40,Capex_to_Jun_2014!J40,Capex_from_Jul_2014!J40) -> 7.462413751 | K40: =SUM(ICB_at_2000!K40,Vines!K40,WestNet!K40,Capex_to_Jun_2014!K40,Capex_from_Jul_2014!K40) -> 7.462413751 | L40: =SUM(ICB_at_2000!L40,Vines!L40,WestNet!L40,Capex_to_Jun_2014!L40,Capex_from_Jul_2014!L40) -> 7.462413751 | M40: =SUM(ICB_at_2000!M40,Vines!M40,WestNet!M40,Capex_to_Jun_2014!M40,Capex_from_Jul_2014!M40) -> 7.462413751 | N40: =SUM(ICB_at_2000!N40,Vines!N40,WestNet!N40,Capex_to_Jun_2014!N40,Capex_from_Jul_2014!N40) -> 7.462413751 | O40: =SUM(ICB_at_2000!O40,Vines!O40,WestNet!O40,Capex_to_Jun_2014!O40,Capex_from_Jul_2014!O40) -> 3.664905799 | P40: =SUM(ICB_at_2000!P40,Vines!P40,WestNet!P40,Capex_to_Jun_2014!P40,Capex_from_Jul_2014!P40) -> 3.664905799 | Q40: =SUM(ICB_at_2000!Q40,Vines!Q40,WestNet!Q40,Capex_to_Jun_2014!Q40,Capex_from_Jul_2014!Q40) -> 3.664905799 | R40: =SUM(ICB_at_2000!R40,Vines!R40,WestNet!R40,Capex_to_Jun_2014!R40,Capex_from_Jul_2014!R40) -> 3.664905799 | S40: =SUM(ICB_at_2000!S40,Vines!S40,WestNet!S40,Capex_to_Jun_2014!S40,Capex_from_Jul_2014!S40) -> 3.664905799 | T40: =SUM(ICB_at_2000!T40,Vines!T40,WestNet!T40,Capex_to_Jun_2014!T40,Capex_from_Jul_2014!T40) -> 3.664905799 | U40: =SUM(ICB_at_2000!U40,Vines!U40,WestNet!U40,Capex_to_Jun_2014!U40,Capex_from_Jul_2014!U40) -> 3.664905799 | V40: =SUM(ICB_at_2000!V40,Vines!V40,WestNet!V40,Capex_to_Jun_2014!V40,Capex_from_Jul_2014!V40) -> 3.664905799 | W40: =SUM(ICB_at_2000!W40,Vines!W40,WestNet!W40,Capex_to_Jun_2014!W40,Capex_from_Jul_2014!W40) -> 8.697912825 | X40: =SUM(ICB_at_2000!X40,Vines!X40,WestNet!X40,Capex_to_Jun_2014!X40,Capex_from_Jul_2014!X40) -> 9.282935033 | Y40: =SUM(ICB_at_2000!Y40,Vines!Y40,WestNet!Y40,Capex_to_Jun_2014!Y40,Capex_from_Jul_2014!Y40) -> 9.664529065 | Z40: =SUM(ICB_at_2000!Z40,Vines!Z40,WestNet!Z40,Capex_to_Jun_2014!Z40,Capex_from_Jul_2014!Z40) -> 9.664529065
B42: Total Opening Capital Base | C42: $m | E42: =SUM(E27:E41) -> 821.7698214 | F42: 831.9793497 | G42: 829.3218696 | H42: 834.5407782 | I42: 842.6029506 | J42: 855.7647594 | K42: 854.4927457 | L42: 857.5040524 | M42: 860.5225236 | N42: 862.7319523 | O42: 878.0372744 | P42: 896.7951744 | Q42: 911.6687274 | R42: 921.4178986 | S42: 969.4594782 | T42: 1007.937442 | U42: =SUM(U27:U41) -> 1034.49082 | V42: =SUM(V27:V41) -> 1014.963215 | W42: =SUM(W27:W41) -> 1104.276793 | X42: 1183.113305 | Y42: 1263.13045 | Z42: 1337.228815
B44: ="CAPEX: "&$B$4 -> CAPEX:
B45: =Inputs!$B$307 -> High pressure mains - steel | C45: $m | E45: =SUM(ICB_at_2000!E45,Vines!E45,WestNet!E45,Capex_to_Jun_2014!E45,Capex_from_Jul_2014!E45) -> 1.772042091 | F45: =SUM(ICB_at_2000!F45,Vines!F45,WestNet!F45,Capex_to_Jun_2014!F45,Capex_from_Jul_2014!F45) -> 2.435925477 | G45: =SUM(ICB_at_2000!G45,Vines!G45,WestNet!G45,Capex_to_Jun_2014!G45,Capex_from_Jul_2014!G45) -> 0 | H45: =SUM(ICB_at_2000!H45,Vines!H45,WestNet!H45,Capex_to_Jun_2014!H45,Capex_from_Jul_2014!H45) -> 0 | I45: =SUM(ICB_at_2000!I45,Vines!I45,WestNet!I45,Capex_to_Jun_2014!I45,Capex_from_Jul_2014!I45) -> 0 | J45: =SUM(ICB_at_2000!J45,Vines!J45,WestNet!J45,Capex_to_Jun_2014!J45,Capex_from_Jul_2014!J45) -> 0.5834949937 | K45: =SUM(ICB_at_2000!K45,Vines!K45,WestNet!K45,Capex_to_Jun_2014!K45,Capex_from_Jul_2014!K45) -> 1.737717463 | L45: =SUM(ICB_at_2000!L45,Vines!L45,WestNet!L45,Capex_to_Jun_2014!L45,Capex_from_Jul_2014!L45) -> 1.805772849 | M45: =SUM(ICB_at_2000!M45,Vines!M45,WestNet!M45,Capex_to_Jun_2014!M45,Capex_from_Jul_2014!M45) -> 3.717347554 | N45: =SUM(ICB_at_2000!N45,Vines!N45,WestNet!N45,Capex_to_Jun_2014!N45,Capex_from_Jul_2014!N45) -> 11.6427858 | O45: =SUM(ICB_at_2000!O45,Vines!O45,WestNet!O45,Capex_to_Jun_2014!O45,Capex_from_Jul_2014!O45) -> 8.35303651 | P45: =SUM(ICB_at_2000!P45,Vines!P45,WestNet!P45,Capex_to_Jun_2014!P45,Capex_from_Jul_2014!P45) -> 3.005062025 | Q45: =SUM(ICB_at_2000!Q45,Vines!Q45,WestNet!Q45,Capex_to_Jun_2014!Q45,Capex_from_Jul_2014!Q45) -> 3.383837857 | R45: =SUM(ICB_at_2000!R45,Vines!R45,WestNet!R45,Capex_to_Jun_2014!R45,Capex_from_Jul_2014!R45) -> 14.84174456 | S45: =SUM(ICB_at_2000!S45,Vines!S45,WestNet!S45,Capex_to_Jun_2014!S45,Capex_from_Jul_2014!S45) -> 1.13383783 | T45: =SUM(ICB_at_2000!T45,Vines!T45,WestNet!T45,Capex_to_Jun_2014!T45,Capex_from_Jul_2014!T45) -> 0.513588423 | U45: =SUM(ICB_at_2000!U45,Vines!U45,WestNet!U45,Capex_to_Jun_2014!U45,Capex_from_Jul_2014!U45) -> 0 | V45: =SUM(ICB_at_2000!V45,Vines!V45,WestNet!V45,Capex_to_Jun_2014!V45,Capex_from_Jul_2014!V45) -> 11.81014315 | W45: =SUM(ICB_at_2000!W45,Vines!W45,WestNet!W45,Capex_to_Jun_2014!W45,Capex_from_Jul_2014!W45) -> 44.24049718 | X45: =SUM(ICB_at_2000!X45,Vines!X45,WestNet!X45,Capex_to_Jun_2014!X45,Capex_from_Jul_2014!X45) -> 41.33723661 | Y45: =SUM(ICB_at_2000!Y45,Vines!Y45,WestNet!Y45,Capex_to_Jun_2014!Y45,Capex_from_Jul_2014!Y45) -> 34.11997738 | Z45: =SUM(ICB_at_2000!Z45,Vines!Z45,WestNet!Z45,Capex_to_Jun_2014!Z45,Capex_from_Jul_2014!Z45) -> 28.58496749
B46: =Inputs!$B$308 -> High pressure mains - PE | C46: $m | E46: =SUM(ICB_at_2000!E46,Vines!E46,WestNet!E46,Capex_to_Jun_2014!E46,Capex_from_Jul_2014!E46) -> 0 | F46: =SUM(ICB_at_2000!F46,Vines!F46,WestNet!F46,Capex_to_Jun_2014!F46,Capex_from_Jul_2014!F46) -> 0 | G46: =SUM(ICB_at_2000!G46,Vines!G46,WestNet!G46,Capex_to_Jun_2014!G46,Capex_from_Jul_2014!G46) -> 0 | H46: =SUM(ICB_at_2000!H46,Vines!H46,WestNet!H46,Capex_to_Jun_2014!H46,Capex_from_Jul_2014!H46) -> 0 | I46: =SUM(ICB_at_2000!I46,Vines!I46,WestNet!I46,Capex_to_Jun_2014!I46,Capex_from_Jul_2014!I46) -> 0 | J46: =SUM(ICB_at_2000!J46,Vines!J46,WestNet!J46,Capex_to_Jun_2014!J46,Capex_from_Jul_2014!J46) -> 0 | K46: =SUM(ICB_at_2000!K46,Vines!K46,WestNet!K46,Capex_to_Jun_2014!K46,Capex_from_Jul_2014!K46) -> 0 | L46: =SUM(ICB_at_2000!L46,Vines!L46,WestNet!L46,Capex_to_Jun_2014!L46,Capex_from_Jul_2014!L46) -> 0 | M46: =SUM(ICB_at_2000!M46,Vines!M46,WestNet!M46,Capex_to_Jun_2014!M46,Capex_from_Jul_2014!M46) -> 0 | N46: =SUM(ICB_at_2000!N46,Vines!N46,WestNet!N46,Capex_to_Jun_2014!N46,Capex_from_Jul_2014!N46) -> 0 | O46: =SUM(ICB_at_2000!O46,Vines!O46,WestNet!O46,Capex_to_Jun_2014!O46,Capex_from_Jul_2014!O46) -> 0.5073520271 | P46: =SUM(ICB_at_2000!P46,Vines!P46,WestNet!P46,Capex_to_Jun_2014!P46,Capex_from_Jul_2014!P46) -> 0.6022126028 | Q46: =SUM(ICB_at_2000!Q46,Vines!Q46,WestNet!Q46,Capex_to_Jun_2014!Q46,Capex_from_Jul_2014!Q46) -> -0.4666127406 | R46: =SUM(ICB_at_2000!R46,Vines!R46,WestNet!R46,Capex_to_Jun_2014!R46,Capex_from_Jul_2014!R46) -> 5.879551095 | S46: =SUM(ICB_at_2000!S46,Vines!S46,WestNet!S46,Capex_to_Jun_2014!S46,Capex_from_Jul_2014!S46) -> 3.61424736 | T46: =SUM(ICB_at_2000!T46,Vines!T46,WestNet!T46,Capex_to_Jun_2014!T46,Capex_from_Jul_2014!T46) -> 1.049816486 | U46: =SUM(ICB_at_2000!U46,Vines!U46,WestNet!U46,Capex_to_Jun_2014!U46,Capex_from_Jul_2014!U46) -> 0 | V46: =SUM(ICB_at_2000!V46,Vines!V46,WestNet!V46,Capex_to_Jun_2014!V46,Capex_from_Jul_2014!V46) -> 1.482735989 | W46: =SUM(ICB_at_2000!W46,Vines!W46,WestNet!W46,Capex_to_Jun_2014!W46,Capex_from_Jul_2014!W46) -> 0 | X46: =SUM(ICB_at_2000!X46,Vines!X46,WestNet!X46,Capex_to_Jun_2014!X46,Capex_from_Jul_2014!X46) -> 0 | Y46: =SUM(ICB_at_2000!Y46,Vines!Y46,WestNet!Y46,Capex_to_Jun_2014!Y46,Capex_from_Jul_2014!Y46) -> 3.403209595 | Z46: =SUM(ICB_at_2000!Z46,Vines!Z46,WestNet!Z46,Capex_to_Jun_2014!Z46,Capex_from_Jul_2014!Z46) -> 0.9121643739
B47: =Inputs!$B$309 -> Medium pressure mains | C47: $m | E47: =SUM(ICB_at_2000!E47,Vines!E47,WestNet!E47,Capex_to_Jun_2014!E47,Capex_from_Jul_2014!E47) -> 7.306674829 | F47: =SUM(ICB_at_2000!F47,Vines!F47,WestNet!F47,Capex_to_Jun_2014!F47,Capex_from_Jul_2014!F47) -> 5.0750755 | G47: =SUM(ICB_at_2000!G47,Vines!G47,WestNet!G47,Capex_to_Jun_2014!G47,Capex_from_Jul_2014!G47) -> 5.799208087 | H47: =SUM(ICB_at_2000!H47,Vines!H47,WestNet!H47,Capex_to_Jun_2014!H47,Capex_from_Jul_2014!H47) -> 9.1176279 | I47: =SUM(ICB_at_2000!I47,Vines!I47,WestNet!I47,Capex_to_Jun_2014!I47,Capex_from_Jul_2014!I47) -> 11.84980445 | J47: =SUM(ICB_at_2000!J47,Vines!J47,WestNet!J47,Capex_to_Jun_2014!J47,Capex_from_Jul_2014!J47) -> 0 | K47: =SUM(ICB_at_2000!K47,Vines!K47,WestNet!K47,Capex_to_Jun_2014!K47,Capex_from_Jul_2014!K47) -> 0 | L47: =SUM(ICB_at_2000!L47,Vines!L47,WestNet!L47,Capex_to_Jun_2014!L47,Capex_from_Jul_2014!L47) -> 0 | M47: =SUM(ICB_at_2000!M47,Vines!M47,WestNet!M47,Capex_to_Jun_2014!M47,Capex_from_Jul_2014!M47) -> 0 | N47: =SUM(ICB_at_2000!N47,Vines!N47,WestNet!N47,Capex_to_Jun_2014!N47,Capex_from_Jul_2014!N47) -> 0 | O47: =SUM(ICB_at_2000!O47,Vines!O47,WestNet!O47,Capex_to_Jun_2014!O47,Capex_from_Jul_2014!O47) -> 0 | P47: =SUM(ICB_at_2000!P47,Vines!P47,WestNet!P47,Capex_to_Jun_2014!P47,Capex_from_Jul_2014!P47) -> 0 | Q47: =SUM(ICB_at_2000!Q47,Vines!Q47,WestNet!Q47,Capex_to_Jun_2014!Q47,Capex_from_Jul_2014!Q47) -> 0 | R47: =SUM(ICB_at_2000!R47,Vines!R47,WestNet!R47,Capex_to_Jun_2014!R47,Capex_from_Jul_2014!R47) -> 0 | S47: =SUM(ICB_at_2000!S47,Vines!S47,WestNet!S47,Capex_to_Jun_2014!S47,Capex_from_Jul_2014!S47) -> 0 | T47: =SUM(ICB_at_2000!T47,Vines!T47,WestNet!T47,Capex_to_Jun_2014!T47,Capex_from_Jul_2014!T47) -> 0 | U47: =SUM(ICB_at_2000!U47,Vines!U47,WestNet!U47,Capex_to_Jun_2014!U47,Capex_from_Jul_2014!U47) -> 0 | V47: =SUM(ICB_at_2000!V47,Vines!V47,WestNet!V47,Capex_to_Jun_2014!V47,Capex_from_Jul_2014!V47) -> 0 | W47: =SUM(ICB_at_2000!W47,Vines!W47,WestNet!W47,Capex_to_Jun_2014!W47,Capex_from_Jul_2014!W47) -> 0 | X47: =SUM(ICB_at_2000!X47,Vines!X47,WestNet!X47,Capex_to_Jun_2014!X47,Capex_from_Jul_2014!X47) -> 0 | Y47: =SUM(ICB_at_2000!Y47,Vines!Y47,WestNet!Y47,Capex_to_Jun_2014!Y47,Capex_from_Jul_2014!Y47) -> 0 | Z47: =SUM(ICB_at_2000!Z47,Vines!Z47,WestNet!Z47,Capex_to_Jun_2014!Z47,Capex_from_Jul_2014!Z47) -> 0
B48: =Inputs!$B$310 -> Medium/low pressure mains | C48: $m | E48: =SUM(ICB_at_2000!E48,Vines!E48,WestNet!E48,Capex_to_Jun_2014!E48,Capex_from_Jul_2014!E48) -> 2.803213342 | F48: =SUM(ICB_at_2000!F48,Vines!F48,WestNet!F48,Capex_to_Jun_2014!F48,Capex_from_Jul_2014!F48) -> 1.657683633 | G48: =SUM(ICB_at_2000!G48,Vines!G48,WestNet!G48,Capex_to_Jun_2014!G48,Capex_from_Jul_2014!G48) -> 0.1098338373 | H48: =SUM(ICB_at_2000!H48,Vines!H48,WestNet!H48,Capex_to_Jun_2014!H48,Capex_from_Jul_2014!H48) -> 0 | I48: =SUM(ICB_at_2000!I48,Vines!I48,WestNet!I48,Capex_to_Jun_2014!I48,Capex_from_Jul_2014!I48) -> 0.04611027928 | J48: =SUM(ICB_at_2000!J48,Vines!J48,WestNet!J48,Capex_to_Jun_2014!J48,Capex_from_Jul_2014!J48) -> 8.861200029 | K48: =SUM(ICB_at_2000!K48,Vines!K48,WestNet!K48,Capex_to_Jun_2014!K48,Capex_from_Jul_2014!K48) -> 10.03075685 | L48: =SUM(ICB_at_2000!L48,Vines!L48,WestNet!L48,Capex_to_Jun_2014!L48,Capex_from_Jul_2014!L48) -> 14.78346306 | M48: =SUM(ICB_at_2000!M48,Vines!M48,WestNet!M48,Capex_to_Jun_2014!M48,Capex_from_Jul_2014!M48) -> 13.04026654 | N48: =SUM(ICB_at_2000!N48,Vines!N48,WestNet!N48,Capex_to_Jun_2014!N48,Capex_from_Jul_2014!N48) -> 9.683782585 | O48: =SUM(ICB_at_2000!O48,Vines!O48,WestNet!O48,Capex_to_Jun_2014!O48,Capex_from_Jul_2014!O48) -> 5.164293342 | P48: =SUM(ICB_at_2000!P48,Vines!P48,WestNet!P48,Capex_to_Jun_2014!P48,Capex_from_Jul_2014!P48) -> 10.36789457 | Q48: =SUM(ICB_at_2000!Q48,Vines!Q48,WestNet!Q48,Capex_to_Jun_2014!Q48,Capex_from_Jul_2014!Q48) -> 11.28940705 | R48: =SUM(ICB_at_2000!R48,Vines!R48,WestNet!R48,Capex_to_Jun_2014!R48,Capex_from_Jul_2014!R48) -> 22.76051395 | S48: =SUM(ICB_at_2000!S48,Vines!S48,WestNet!S48,Capex_to_Jun_2014!S48,Capex_from_Jul_2014!S48) -> 16.87749797 | T48: =SUM(ICB_at_2000!T48,Vines!T48,WestNet!T48,Capex_to_Jun_2014!T48,Capex_from_Jul_2014!T48) -> 13.84780338 | U48: =SUM(ICB_at_2000!U48,Vines!U48,WestNet!U48,Capex_to_Jun_2014!U48,Capex_from_Jul_2014!U48) -> 0 | V48: =SUM(ICB_at_2000!V48,Vines!V48,WestNet!V48,Capex_to_Jun_2014!V48,Capex_from_Jul_2014!V48) -> 29.84040219 | W48: =SUM(ICB_at_2000!W48,Vines!W48,WestNet!W48,Capex_to_Jun_2014!W48,Capex_from_Jul_2014!W48) -> 29.72071218 | X48: =SUM(ICB_at_2000!X48,Vines!X48,WestNet!X48,Capex_to_Jun_2014!X48,Capex_from_Jul_2014!X48) -> 28.52362161 | Y48: =SUM(ICB_at_2000!Y48,Vines!Y48,WestNet!Y48,Capex_to_Jun_2014!Y48,Capex_from_Jul_2014!Y48) -> 29.9017122 | Z48: =SUM(ICB_at_2000!Z48,Vines!Z48,WestNet!Z48,Capex_to_Jun_2014!Z48,Capex_from_Jul_2014!Z48) -> 30.38227803
B49: =Inputs!$B$311 -> Low pressure mains | C49: $m | E49: =SUM(ICB_at_2000!E49,Vines!E49,WestNet!E49,Capex_to_Jun_2014!E49,Capex_from_Jul_2014!E49) -> 0 | F49: =SUM(ICB_at_2000!F49,Vines!F49,WestNet!F49,Capex_to_Jun_2014!F49,Capex_from_Jul_2014!F49) -> 0 | G49: =SUM(ICB_at_2000!G49,Vines!G49,WestNet!G49,Capex_to_Jun_2014!G49,Capex_from_Jul_2014!G49) -> 0 | H49: =SUM(ICB_at_2000!H49,Vines!H49,WestNet!H49,Capex_to_Jun_2014!H49,Capex_from_Jul_2014!H49) -> 0 | I49: =SUM(ICB_at_2000!I49,Vines!I49,WestNet!I49,Capex_to_Jun_2014!I49,Capex_from_Jul_2014!I49) -> 0 | J49: =SUM(ICB_at_2000!J49,Vines!J49,WestNet!J49,Capex_to_Jun_2014!J49,Capex_from_Jul_2014!J49) -> 0 | K49: =SUM(ICB_at_2000!K49,Vines!K49,WestNet!K49,Capex_to_Jun_2014!K49,Capex_from_Jul_2014!K49) -> 0 | L49: =SUM(ICB_at_2000!L49,Vines!L49,WestNet!L49,Capex_to_Jun_2014!L49,Capex_from_Jul_2014!L49) -> 0 | M49: =SUM(ICB_at_2000!M49,Vines!M49,WestNet!M49,Capex_to_Jun_2014!M49,Capex_from_Jul_2014!M49) -> 0 | N49: =SUM(ICB_at_2000!N49,Vines!N49,WestNet!N49,Capex_to_Jun_2014!N49,Capex_from_Jul_2014!N49) -> 0 | O49: =SUM(ICB_at_2000!O49,Vines!O49,WestNet!O49,Capex_to_Jun_2014!O49,Capex_from_Jul_2014!O49) -> 0 | P49: =SUM(ICB_at_2000!P49,Vines!P49,WestNet!P49,Capex_to_Jun_2014!P49,Capex_from_Jul_2014!P49) -> 0 | Q49: =SUM(ICB_at_2000!Q49,Vines!Q49,WestNet!Q49,Capex_to_Jun_2014!Q49,Capex_from_Jul_2014!Q49) -> 0 | R49: =SUM(ICB_at_2000!R49,Vines!R49,WestNet!R49,Capex_to_Jun_2014!R49,Capex_from_Jul_2014!R49) -> 0 | S49: =SUM(ICB_at_2000!S49,Vines!S49,WestNet!S49,Capex_to_Jun_2014!S49,Capex_from_Jul_2014!S49) -> 0 | T49: =SUM(ICB_at_2000!T49,Vines!T49,WestNet!T49,Capex_to_Jun_2014!T49,Capex_from_Jul_2014!T49) -> 0 | U49: =SUM(ICB_at_2000!U49,Vines!U49,WestNet!U49,Capex_to_Jun_2014!U49,Capex_from_Jul_2014!U49) -> 0 | V49: =SUM(ICB_at_2000!V49,Vines!V49,WestNet!V49,Capex_to_Jun_2014!V49,Capex_from_Jul_2014!V49) -> 0 | W49: =SUM(ICB_at_2000!W49,Vines!W49,WestNet!W49,Capex_to_Jun_2014!W49,Capex_from_Jul_2014!W49) -> 0 | X49: =SUM(ICB_at_2000!X49,Vines!X49,WestNet!X49,Capex_to_Jun_2014!X49,Capex_from_Jul_2014!X49) -> 0 | Y49: =SUM(ICB_at_2000!Y49,Vines!Y49,WestNet!Y49,Capex_to_Jun_2014!Y49,Capex_from_Jul_2014!Y49) -> 0 | Z49: =SUM(ICB_at_2000!Z49,Vines!Z49,WestNet!Z49,Capex_to_Jun_2014!Z49,Capex_from_Jul_2014!Z49) -> 0
B50: =Inputs!$B$312 -> Regulators | C50: $m | E50: =SUM(ICB_at_2000!E50,Vines!E50,WestNet!E50,Capex_to_Jun_2014!E50,Capex_from_Jul_2014!E50) -> 0.2373810651 | F50: =SUM(ICB_at_2000!F50,Vines!F50,WestNet!F50,Capex_to_Jun_2014!F50,Capex_from_Jul_2014!F50) -> 0.2180787583 | G50: =SUM(ICB_at_2000!G50,Vines!G50,WestNet!G50,Capex_to_Jun_2014!G50,Capex_from_Jul_2014!G50) -> 0.01946422433 | H50: =SUM(ICB_at_2000!H50,Vines!H50,WestNet!H50,Capex_to_Jun_2014!H50,Capex_from_Jul_2014!H50) -> 0 | I50: =SUM(ICB_at_2000!I50,Vines!I50,WestNet!I50,Capex_to_Jun_2014!I50,Capex_from_Jul_2014!I50) -> 0.008171441897 | J50: =SUM(ICB_at_2000!J50,Vines!J50,WestNet!J50,Capex_to_Jun_2014!J50,Capex_from_Jul_2014!J50) -> 0.1260787523 | K50: =SUM(ICB_at_2000!K50,Vines!K50,WestNet!K50,Capex_to_Jun_2014!K50,Capex_from_Jul_2014!K50) -> 0.8956294268 | L50: =SUM(ICB_at_2000!L50,Vines!L50,WestNet!L50,Capex_to_Jun_2014!L50,Capex_from_Jul_2014!L50) -> 0.7336598142 | M50: =SUM(ICB_at_2000!M50,Vines!M50,WestNet!M50,Capex_to_Jun_2014!M50,Capex_from_Jul_2014!M50) -> 0.2077720886 | N50: =SUM(ICB_at_2000!N50,Vines!N50,WestNet!N50,Capex_to_Jun_2014!N50,Capex_from_Jul_2014!N50) -> 0.8158213379 | O50: =SUM(ICB_at_2000!O50,Vines!O50,WestNet!O50,Capex_to_Jun_2014!O50,Capex_from_Jul_2014!O50) -> 0.275562669 | P50: =SUM(ICB_at_2000!P50,Vines!P50,WestNet!P50,Capex_to_Jun_2014!P50,Capex_from_Jul_2014!P50) -> 0.2444146266 | Q50: =SUM(ICB_at_2000!Q50,Vines!Q50,WestNet!Q50,Capex_to_Jun_2014!Q50,Capex_from_Jul_2014!Q50) -> 0.4612069886 | R50: =SUM(ICB_at_2000!R50,Vines!R50,WestNet!R50,Capex_to_Jun_2014!R50,Capex_from_Jul_2014!R50) -> 1.24090067 | S50: =SUM(ICB_at_2000!S50,Vines!S50,WestNet!S50,Capex_to_Jun_2014!S50,Capex_from_Jul_2014!S50) -> 0.66340936 | T50: =SUM(ICB_at_2000!T50,Vines!T50,WestNet!T50,Capex_to_Jun_2014!T50,Capex_from_Jul_2014!T50) -> 0.9758423162 | U50: =SUM(ICB_at_2000!U50,Vines!U50,WestNet!U50,Capex_to_Jun_2014!U50,Capex_from_Jul_2014!U50) -> 0 | V50: =SUM(ICB_at_2000!V50,Vines!V50,WestNet!V50,Capex_to_Jun_2014!V50,Capex_from_Jul_2014!V50) -> 3.486576167 | W50: =SUM(ICB_at_2000!W50,Vines!W50,WestNet!W50,Capex_to_Jun_2014!W50,Capex_from_Jul_2014!W50) -> 1.609478231 | X50: =SUM(ICB_at_2000!X50,Vines!X50,WestNet!X50,Capex_to_Jun_2014!X50,Capex_from_Jul_2014!X50) -> 1.609873781 | Y50: =SUM(ICB_at_2000!Y50,Vines!Y50,WestNet!Y50,Capex_to_Jun_2014!Y50,Capex_from_Jul_2014!Y50) -> 1.687784868 | Z50: =SUM(ICB_at_2000!Z50,Vines!Z50,WestNet!Z50,Capex_to_Jun_2014!Z50,Capex_from_Jul_2014!Z50) -> 2.290812893
B51: =Inputs!$B$313 -> Secondary gate stations | C51: $m | E51: =SUM(ICB_at_2000!E51,Vines!E51,WestNet!E51,Capex_to_Jun_2014!E51,Capex_from_Jul_2014!E51) -> 0.03175160744 | F51: =SUM(ICB_at_2000!F51,Vines!F51,WestNet!F51,Capex_to_Jun_2014!F51,Capex_from_Jul_2014!F51) -> 0.01710421634 | G51: =SUM(ICB_at_2000!G51,Vines!G51,WestNet!G51,Capex_to_Jun_2014!G51,Capex_from_Jul_2014!G51) -> 0 | H51: =SUM(ICB_at_2000!H51,Vines!H51,WestNet!H51,Capex_to_Jun_2014!H51,Capex_from_Jul_2014!H51) -> 0 | I51: =SUM(ICB_at_2000!I51,Vines!I51,WestNet!I51,Capex_to_Jun_2014!I51,Capex_from_Jul_2014!I51) -> 0 | J51: =SUM(ICB_at_2000!J51,Vines!J51,WestNet!J51,Capex_to_Jun_2014!J51,Capex_from_Jul_2014!J51) -> 0 | K51: =SUM(ICB_at_2000!K51,Vines!K51,WestNet!K51,Capex_to_Jun_2014!K51,Capex_from_Jul_2014!K51) -> 0 | L51: =SUM(ICB_at_2000!L51,Vines!L51,WestNet!L51,Capex_to_Jun_2014!L51,Capex_from_Jul_2014!L51) -> 0 | M51: =SUM(ICB_at_2000!M51,Vines!M51,WestNet!M51,Capex_to_Jun_2014!M51,Capex_from_Jul_2014!M51) -> 0.01410813885 | N51: =SUM(ICB_at_2000!N51,Vines!N51,WestNet!N51,Capex_to_Jun_2014!N51,Capex_from_Jul_2014!N51) -> 1.861385706 | O51: =SUM(ICB_at_2000!O51,Vines!O51,WestNet!O51,Capex_to_Jun_2014!O51,Capex_from_Jul_2014!O51) -> 1.866918617 | P51: =SUM(ICB_at_2000!P51,Vines!P51,WestNet!P51,Capex_to_Jun_2014!P51,Capex_from_Jul_2014!P51) -> 0.1918006996 | Q51: =SUM(ICB_at_2000!Q51,Vines!Q51,WestNet!Q51,Capex_to_Jun_2014!Q51,Capex_from_Jul_2014!Q51) -> 0.2454654412 | R51: =SUM(ICB_at_2000!R51,Vines!R51,WestNet!R51,Capex_to_Jun_2014!R51,Capex_from_Jul_2014!R51) -> 0.004027589212 | S51: =SUM(ICB_at_2000!S51,Vines!S51,WestNet!S51,Capex_to_Jun_2014!S51,Capex_from_Jul_2014!S51) -> 0.0006065 | T51: =SUM(ICB_at_2000!T51,Vines!T51,WestNet!T51,Capex_to_Jun_2014!T51,Capex_from_Jul_2014!T51) -> 0.008094604057 | U51: =SUM(ICB_at_2000!U51,Vines!U51,WestNet!U51,Capex_to_Jun_2014!U51,Capex_from_Jul_2014!U51) -> 0 | V51: =SUM(ICB_at_2000!V51,Vines!V51,WestNet!V51,Capex_to_Jun_2014!V51,Capex_from_Jul_2014!V51) -> 0 | W51: =SUM(ICB_at_2000!W51,Vines!W51,WestNet!W51,Capex_to_Jun_2014!W51,Capex_from_Jul_2014!W51) -> 0.6038902543 | X51: =SUM(ICB_at_2000!X51,Vines!X51,WestNet!X51,Capex_to_Jun_2014!X51,Capex_from_Jul_2014!X51) -> 8.936210163 | Y51: =SUM(ICB_at_2000!Y51,Vines!Y51,WestNet!Y51,Capex_to_Jun_2014!Y51,Capex_from_Jul_2014!Y51) -> 4.621590201 | Z51: =SUM(ICB_at_2000!Z51,Vines!Z51,WestNet!Z51,Capex_to_Jun_2014!Z51,Capex_from_Jul_2014!Z51) -> 7.135676923
B52: =Inputs!$B$314 -> Buildings | C52: $m | E52: =SUM(ICB_at_2000!E52,Vines!E52,WestNet!E52,Capex_to_Jun_2014!E52,Capex_from_Jul_2014!E52) -> 0 | F52: =SUM(ICB_at_2000!F52,Vines!F52,WestNet!F52,Capex_to_Jun_2014!F52,Capex_from_Jul_2014!F52) -> 0.08267037897 | G52: =SUM(ICB_at_2000!G52,Vines!G52,WestNet!G52,Capex_to_Jun_2014!G52,Capex_from_Jul_2014!G52) -> 0 | H52: =SUM(ICB_at_2000!H52,Vines!H52,WestNet!H52,Capex_to_Jun_2014!H52,Capex_from_Jul_2014!H52) -> 0 | I52: =SUM(ICB_at_2000!I52,Vines!I52,WestNet!I52,Capex_to_Jun_2014!I52,Capex_from_Jul_2014!I52) -> 0 | J52: =SUM(ICB_at_2000!J52,Vines!J52,WestNet!J52,Capex_to_Jun_2014!J52,Capex_from_Jul_2014!J52) -> 0 | K52: =SUM(ICB_at_2000!K52,Vines!K52,WestNet!K52,Capex_to_Jun_2014!K52,Capex_from_Jul_2014!K52) -> 0 | L52: =SUM(ICB_at_2000!L52,Vines!L52,WestNet!L52,Capex_to_Jun_2014!L52,Capex_from_Jul_2014!L52) -> 0.04690811316 | M52: =SUM(ICB_at_2000!M52,Vines!M52,WestNet!M52,Capex_to_Jun_2014!M52,Capex_from_Jul_2014!M52) -> 0.1311685455 | N52: =SUM(ICB_at_2000!N52,Vines!N52,WestNet!N52,Capex_to_Jun_2014!N52,Capex_from_Jul_2014!N52) -> 0.1689696693 | O52: =SUM(ICB_at_2000!O52,Vines!O52,WestNet!O52,Capex_to_Jun_2014!O52,Capex_from_Jul_2014!O52) -> 0.1172118445 | P52: =SUM(ICB_at_2000!P52,Vines!P52,WestNet!P52,Capex_to_Jun_2014!P52,Capex_from_Jul_2014!P52) -> 1.175623505 | Q52: =SUM(ICB_at_2000!Q52,Vines!Q52,WestNet!Q52,Capex_to_Jun_2014!Q52,Capex_from_Jul_2014!Q52) -> 0.7822874245 | R52: =SUM(ICB_at_2000!R52,Vines!R52,WestNet!R52,Capex_to_Jun_2014!R52,Capex_from_Jul_2014!R52) -> 4.445156229 | S52: =SUM(ICB_at_2000!S52,Vines!S52,WestNet!S52,Capex_to_Jun_2014!S52,Capex_from_Jul_2014!S52) -> 10.3596914 | T52: =SUM(ICB_at_2000!T52,Vines!T52,WestNet!T52,Capex_to_Jun_2014!T52,Capex_from_Jul_2014!T52) -> 2.29377549 | U52: =SUM(ICB_at_2000!U52,Vines!U52,WestNet!U52,Capex_to_Jun_2014!U52,Capex_from_Jul_2014!U52) -> 0 | V52: =SUM(ICB_at_2000!V52,Vines!V52,WestNet!V52,Capex_to_Jun_2014!V52,Capex_from_Jul_2014!V52) -> 10.3254474 | W52: =SUM(ICB_at_2000!W52,Vines!W52,WestNet!W52,Capex_to_Jun_2014!W52,Capex_from_Jul_2014!W52) -> 0.6628223558 | X52: =SUM(ICB_at_2000!X52,Vines!X52,WestNet!X52,Capex_to_Jun_2014!X52,Capex_from_Jul_2014!X52) -> 0.4584011715 | Y52: =SUM(ICB_at_2000!Y52,Vines!Y52,WestNet!Y52,Capex_to_Jun_2014!Y52,Capex_from_Jul_2014!Y52) -> 0.02150955692 | Z52: =SUM(ICB_at_2000!Z52,Vines!Z52,WestNet!Z52,Capex_to_Jun_2014!Z52,Capex_from_Jul_2014!Z52) -> 0.02204729584
B53: =Inputs!$B$315 -> Meter and services pipes | C53: $m | E53: =SUM(ICB_at_2000!E53,Vines!E53,WestNet!E53,Capex_to_Jun_2014!E53,Capex_from_Jul_2014!E53) -> 17.68679225 | F53: =SUM(ICB_at_2000!F53,Vines!F53,WestNet!F53,Capex_to_Jun_2014!F53,Capex_from_Jul_2014!F53) -> 14.01620574 | G53: =SUM(ICB_at_2000!G53,Vines!G53,WestNet!G53,Capex_to_Jun_2014!G53,Capex_from_Jul_2014!G53) -> 25.05257893 | H53: =SUM(ICB_at_2000!H53,Vines!H53,WestNet!H53,Capex_to_Jun_2014!H53,Capex_from_Jul_2014!H53) -> 23.70050059 | I53: =SUM(ICB_at_2000!I53,Vines!I53,WestNet!I53,Capex_to_Jun_2014!I53,Capex_from_Jul_2014!I53) -> 21.16593361 | J53: =SUM(ICB_at_2000!J53,Vines!J53,WestNet!J53,Capex_to_Jun_2014!J53,Capex_from_Jul_2014!J53) -> 20.87561517 | K53: =SUM(ICB_at_2000!K53,Vines!K53,WestNet!K53,Capex_to_Jun_2014!K53,Capex_from_Jul_2014!K53) -> 24.58230086 | L53: =SUM(ICB_at_2000!L53,Vines!L53,WestNet!L53,Capex_to_Jun_2014!L53,Capex_from_Jul_2014!L53) -> 21.77700227 | M53: =SUM(ICB_at_2000!M53,Vines!M53,WestNet!M53,Capex_to_Jun_2014!M53,Capex_from_Jul_2014!M53) -> 19.8425574 | N53: =SUM(ICB_at_2000!N53,Vines!N53,WestNet!N53,Capex_to_Jun_2014!N53,Capex_from_Jul_2014!N53) -> 21.3661461 | O53: =SUM(ICB_at_2000!O53,Vines!O53,WestNet!O53,Capex_to_Jun_2014!O53,Capex_from_Jul_2014!O53) -> 9.557166556 | P53: =SUM(ICB_at_2000!P53,Vines!P53,WestNet!P53,Capex_to_Jun_2014!P53,Capex_from_Jul_2014!P53) -> 20.86829632 | Q53: =SUM(ICB_at_2000!Q53,Vines!Q53,WestNet!Q53,Capex_to_Jun_2014!Q53,Capex_from_Jul_2014!Q53) -> 18.6200538 | R53: =SUM(ICB_at_2000!R53,Vines!R53,WestNet!R53,Capex_to_Jun_2014!R53,Capex_from_Jul_2014!R53) -> 20.94654652 | S53: =SUM(ICB_at_2000!S53,Vines!S53,WestNet!S53,Capex_to_Jun_2014!S53,Capex_from_Jul_2014!S53) -> 30.09638869 | T53: =SUM(ICB_at_2000!T53,Vines!T53,WestNet!T53,Capex_to_Jun_2014!T53,Capex_from_Jul_2014!T53) -> 16.79926734 | U53: =SUM(ICB_at_2000!U53,Vines!U53,WestNet!U53,Capex_to_Jun_2014!U53,Capex_from_Jul_2014!U53) -> 0 | V53: =SUM(ICB_at_2000!V53,Vines!V53,WestNet!V53,Capex_to_Jun_2014!V53,Capex_from_Jul_2014!V53) -> 36.52197023 | W53: =SUM(ICB_at_2000!W53,Vines!W53,WestNet!W53,Capex_to_Jun_2014!W53,Capex_from_Jul_2014!W53) -> 34.92144199 | X53: =SUM(ICB_at_2000!X53,Vines!X53,WestNet!X53,Capex_to_Jun_2014!X53,Capex_from_Jul_2014!X53) -> 36.52486112 | Y53: =SUM(ICB_at_2000!Y53,Vines!Y53,WestNet!Y53,Capex_to_Jun_2014!Y53,Capex_from_Jul_2014!Y53) -> 38.83704163 | Z53: =SUM(ICB_at_2000!Z53,Vines!Z53,WestNet!Z53,Capex_to_Jun_2014!Z53,Capex_from_Jul_2014!Z53) -> 40.25515335
B54: =Inputs!$B$316 -> Equipment and vehicles | C54: $m | E54: =SUM(ICB_at_2000!E54,Vines!E54,WestNet!E54,Capex_to_Jun_2014!E54,Capex_from_Jul_2014!E54) -> 1.595896269 | F54: =SUM(ICB_at_2000!F54,Vines!F54,WestNet!F54,Capex_to_Jun_2014!F54,Capex_from_Jul_2014!F54) -> 0.3420843268 | G54: =SUM(ICB_at_2000!G54,Vines!G54,WestNet!G54,Capex_to_Jun_2014!G54,Capex_from_Jul_2014!G54) -> 0.006951508689 | H54: =SUM(ICB_at_2000!H54,Vines!H54,WestNet!H54,Capex_to_Jun_2014!H54,Capex_from_Jul_2014!H54) -> 0.2344018615 | I54: =SUM(ICB_at_2000!I54,Vines!I54,WestNet!I54,Capex_to_Jun_2014!I54,Capex_from_Jul_2014!I54) -> 0.1013246152 | J54: =SUM(ICB_at_2000!J54,Vines!J54,WestNet!J54,Capex_to_Jun_2014!J54,Capex_from_Jul_2014!J54) -> 0 | K54: =SUM(ICB_at_2000!K54,Vines!K54,WestNet!K54,Capex_to_Jun_2014!K54,Capex_from_Jul_2014!K54) -> 0 | L54: =SUM(ICB_at_2000!L54,Vines!L54,WestNet!L54,Capex_to_Jun_2014!L54,Capex_from_Jul_2014!L54) -> 0 | M54: =SUM(ICB_at_2000!M54,Vines!M54,WestNet!M54,Capex_to_Jun_2014!M54,Capex_from_Jul_2014!M54) -> 0 | N54: =SUM(ICB_at_2000!N54,Vines!N54,WestNet!N54,Capex_to_Jun_2014!N54,Capex_from_Jul_2014!N54) -> 0 | O54: =SUM(ICB_at_2000!O54,Vines!O54,WestNet!O54,Capex_to_Jun_2014!O54,Capex_from_Jul_2014!O54) -> 0 | P54: =SUM(ICB_at_2000!P54,Vines!P54,WestNet!P54,Capex_to_Jun_2014!P54,Capex_from_Jul_2014!P54) -> 0.2217926097 | Q54: =SUM(ICB_at_2000!Q54,Vines!Q54,WestNet!Q54,Capex_to_Jun_2014!Q54,Capex_from_Jul_2014!Q54) -> 0.4097486453 | R54: =SUM(ICB_at_2000!R54,Vines!R54,WestNet!R54,Capex_to_Jun_2014!R54,Capex_from_Jul_2014!R54) -> 0.8230669545 | S54: =SUM(ICB_at_2000!S54,Vines!S54,WestNet!S54,Capex_to_Jun_2014!S54,Capex_from_Jul_2014!S54) -> 1.332389852 | T54: =SUM(ICB_at_2000!T54,Vines!T54,WestNet!T54,Capex_to_Jun_2014!T54,Capex_from_Jul_2014!T54) -> 0.2148601134 | U54: =SUM(ICB_at_2000!U54,Vines!U54,WestNet!U54,Capex_to_Jun_2014!U54,Capex_from_Jul_2014!U54) -> 0 | V54: =SUM(ICB_at_2000!V54,Vines!V54,WestNet!V54,Capex_to_Jun_2014!V54,Capex_from_Jul_2014!V54) -> 1.556013613 | W54: =SUM(ICB_at_2000!W54,Vines!W54,WestNet!W54,Capex_to_Jun_2014!W54,Capex_from_Jul_2014!W54) -> 1.47922862 | X54: =SUM(ICB_at_2000!X54,Vines!X54,WestNet!X54,Capex_to_Jun_2014!X54,Capex_from_Jul_2014!X54) -> 1.340574225 | Y54: =SUM(ICB_at_2000!Y54,Vines!Y54,WestNet!Y54,Capex_to_Jun_2014!Y54,Capex_from_Jul_2014!Y54) -> 1.082972576 | Z54: =SUM(ICB_at_2000!Z54,Vines!Z54,WestNet!Z54,Capex_to_Jun_2014!Z54,Capex_from_Jul_2014!Z54) -> 1.110046891
B55: =Inputs!$B$317 -> Vehicles | C55: $m | E55: =SUM(ICB_at_2000!E55,Vines!E55,WestNet!E55,Capex_to_Jun_2014!E55,Capex_from_Jul_2014!E55) -> 0 | F55: =SUM(ICB_at_2000!F55,Vines!F55,WestNet!F55,Capex_to_Jun_2014!F55,Capex_from_Jul_2014!F55) -> 0 | G55: =SUM(ICB_at_2000!G55,Vines!G55,WestNet!G55,Capex_to_Jun_2014!G55,Capex_from_Jul_2014!G55) -> 0 | H55: =SUM(ICB_at_2000!H55,Vines!H55,WestNet!H55,Capex_to_Jun_2014!H55,Capex_from_Jul_2014!H55) -> 0 | I55: =SUM(ICB_at_2000!I55,Vines!I55,WestNet!I55,Capex_to_Jun_2014!I55,Capex_from_Jul_2014!I55) -> 0 | J55: =SUM(ICB_at_2000!J55,Vines!J55,WestNet!J55,Capex_to_Jun_2014!J55,Capex_from_Jul_2014!J55) -> 0 | K55: =SUM(ICB_at_2000!K55,Vines!K55,WestNet!K55,Capex_to_Jun_2014!K55,Capex_from_Jul_2014!K55) -> 0 | L55: =SUM(ICB_at_2000!L55,Vines!L55,WestNet!L55,Capex_to_Jun_2014!L55,Capex_from_Jul_2014!L55) -> 0 | M55: =SUM(ICB_at_2000!M55,Vines!M55,WestNet!M55,Capex_to_Jun_2014!M55,Capex_from_Jul_2014!M55) -> 0 | N55: =SUM(ICB_at_2000!N55,Vines!N55,WestNet!N55,Capex_to_Jun_2014!N55,Capex_from_Jul_2014!N55) -> 0 | O55: =SUM(ICB_at_2000!O55,Vines!O55,WestNet!O55,Capex_to_Jun_2014!O55,Capex_from_Jul_2014!O55) -> 0 | P55: =SUM(ICB_at_2000!P55,Vines!P55,WestNet!P55,Capex_to_Jun_2014!P55,Capex_from_Jul_2014!P55) -> 0.5128959991 | Q55: =SUM(ICB_at_2000!Q55,Vines!Q55,WestNet!Q55,Capex_to_Jun_2014!Q55,Capex_from_Jul_2014!Q55) -> 0.7959894488 | R55: =SUM(ICB_at_2000!R55,Vines!R55,WestNet!R55,Capex_to_Jun_2014!R55,Capex_from_Jul_2014!R55) -> 3.287063343 | S55: =SUM(ICB_at_2000!S55,Vines!S55,WestNet!S55,Capex_to_Jun_2014!S55,Capex_from_Jul_2014!S55) -> 3.777301004 | T55: =SUM(ICB_at_2000!T55,Vines!T55,WestNet!T55,Capex_to_Jun_2014!T55,Capex_from_Jul_2014!T55) -> 3.039152666 | U55: =SUM(ICB_at_2000!U55,Vines!U55,WestNet!U55,Capex_to_Jun_2014!U55,Capex_from_Jul_2014!U55) -> 0 | V55: =SUM(ICB_at_2000!V55,Vines!V55,WestNet!V55,Capex_to_Jun_2014!V55,Capex_from_Jul_2014!V55) -> 1.221940754 | W55: =SUM(ICB_at_2000!W55,Vines!W55,WestNet!W55,Capex_to_Jun_2014!W55,Capex_from_Jul_2014!W55) -> 0.8114787618 | X55: =SUM(ICB_at_2000!X55,Vines!X55,WestNet!X55,Capex_to_Jun_2014!X55,Capex_from_Jul_2014!X55) -> 1.448178039 | Y55: =SUM(ICB_at_2000!Y55,Vines!Y55,WestNet!Y55,Capex_to_Jun_2014!Y55,Capex_from_Jul_2014!Y55) -> 4.885153217 | Z55: =SUM(ICB_at_2000!Z55,Vines!Z55,WestNet!Z55,Capex_to_Jun_2014!Z55,Capex_from_Jul_2014!Z55) -> 4.886324655
B56: =Inputs!$B$318 -> Information technology | C56: $m | E56: =SUM(ICB_at_2000!E56,Vines!E56,WestNet!E56,Capex_to_Jun_2014!E56,Capex_from_Jul_2014!E56) -> 4.629901822 | F56: =SUM(ICB_at_2000!F56,Vines!F56,WestNet!F56,Capex_to_Jun_2014!F56,Capex_from_Jul_2014!F56) -> 0.8708896819 | G56: =SUM(ICB_at_2000!G56,Vines!G56,WestNet!G56,Capex_to_Jun_2014!G56,Capex_from_Jul_2014!G56) -> 0.4907765135 | H56: =SUM(ICB_at_2000!H56,Vines!H56,WestNet!H56,Capex_to_Jun_2014!H56,Capex_from_Jul_2014!H56) -> 0.4526380774 | I56: =SUM(ICB_at_2000!I56,Vines!I56,WestNet!I56,Capex_to_Jun_2014!I56,Capex_from_Jul_2014!I56) -> 1.2821527 | J56: =SUM(ICB_at_2000!J56,Vines!J56,WestNet!J56,Capex_to_Jun_2014!J56,Capex_from_Jul_2014!J56) -> 0.4682059945 | K56: =SUM(ICB_at_2000!K56,Vines!K56,WestNet!K56,Capex_to_Jun_2014!K56,Capex_from_Jul_2014!K56) -> 0.001294131811 | L56: =SUM(ICB_at_2000!L56,Vines!L56,WestNet!L56,Capex_to_Jun_2014!L56,Capex_from_Jul_2014!L56) -> 0 | M56: =SUM(ICB_at_2000!M56,Vines!M56,WestNet!M56,Capex_to_Jun_2014!M56,Capex_from_Jul_2014!M56) -> 2.922439735 | N56: =SUM(ICB_at_2000!N56,Vines!N56,WestNet!N56,Capex_to_Jun_2014!N56,Capex_from_Jul_2014!N56) -> 2.114603656 | O56: =SUM(ICB_at_2000!O56,Vines!O56,WestNet!O56,Capex_to_Jun_2014!O56,Capex_from_Jul_2014!O56) -> 1.892503751 | P56: =SUM(ICB_at_2000!P56,Vines!P56,WestNet!P56,Capex_to_Jun_2014!P56,Capex_from_Jul_2014!P56) -> 4.324641587 | Q56: =SUM(ICB_at_2000!Q56,Vines!Q56,WestNet!Q56,Capex_to_Jun_2014!Q56,Capex_from_Jul_2014!Q56) -> 3.269633351 | R56: =SUM(ICB_at_2000!R56,Vines!R56,WestNet!R56,Capex_to_Jun_2014!R56,Capex_from_Jul_2014!R56) -> 5.215648864 | S56: =SUM(ICB_at_2000!S56,Vines!S56,WestNet!S56,Capex_to_Jun_2014!S56,Capex_from_Jul_2014!S56) -> 4.335669251 | T56: =SUM(ICB_at_2000!T56,Vines!T56,WestNet!T56,Capex_to_Jun_2014!T56,Capex_from_Jul_2014!T56) -> 4.961904031 | U56: =SUM(ICB_at_2000!U56,Vines!U56,WestNet!U56,Capex_to_Jun_2014!U56,Capex_from_Jul_2014!U56) -> 0 | V56: =SUM(ICB_at_2000!V56,Vines!V56,WestNet!V56,Capex_to_Jun_2014!V56,Capex_from_Jul_2014!V56) -> 7.56294586 | W56: =SUM(ICB_at_2000!W56,Vines!W56,WestNet!W56,Capex_to_Jun_2014!W56,Capex_from_Jul_2014!W56) -> 7.207913742 | X56: =SUM(ICB_at_2000!X56,Vines!X56,WestNet!X56,Capex_to_Jun_2014!X56,Capex_from_Jul_2014!X56) -> 5.661664567 | Y56: =SUM(ICB_at_2000!Y56,Vines!Y56,WestNet!Y56,Capex_to_Jun_2014!Y56,Capex_from_Jul_2014!Y56) -> 4.677397624 | Z56: =SUM(ICB_at_2000!Z56,Vines!Z56,WestNet!Z56,Capex_to_Jun_2014!Z56,Capex_from_Jul_2014!Z56) -> 3.057129828
B57: =Inputs!$B$319 -> Full retail contestability | C57: $m | E57: =SUM(ICB_at_2000!E57,Vines!E57,WestNet!E57,Capex_to_Jun_2014!E57,Capex_from_Jul_2014!E57) -> 0.0001580213406 | F57: =SUM(ICB_at_2000!F57,Vines!F57,WestNet!F57,Capex_to_Jun_2014!F57,Capex_from_Jul_2014!F57) -> 0.005824387201 | G57: =SUM(ICB_at_2000!G57,Vines!G57,WestNet!G57,Capex_to_Jun_2014!G57,Capex_from_Jul_2014!G57) -> 2.33379646 | H57: =SUM(ICB_at_2000!H57,Vines!H57,WestNet!H57,Capex_to_Jun_2014!H57,Capex_from_Jul_2014!H57) -> 4.076676719 | I57: =SUM(ICB_at_2000!I57,Vines!I57,WestNet!I57,Capex_to_Jun_2014!I57,Capex_from_Jul_2014!I57) -> 9.099558389 | J57: =SUM(ICB_at_2000!J57,Vines!J57,WestNet!J57,Capex_to_Jun_2014!J57,Capex_from_Jul_2014!J57) -> 0 | K57: =SUM(ICB_at_2000!K57,Vines!K57,WestNet!K57,Capex_to_Jun_2014!K57,Capex_from_Jul_2014!K57) -> 0 | L57: =SUM(ICB_at_2000!L57,Vines!L57,WestNet!L57,Capex_to_Jun_2014!L57,Capex_from_Jul_2014!L57) -> 0 | M57: =SUM(ICB_at_2000!M57,Vines!M57,WestNet!M57,Capex_to_Jun_2014!M57,Capex_from_Jul_2014!M57) -> 0 | N57: =SUM(ICB_at_2000!N57,Vines!N57,WestNet!N57,Capex_to_Jun_2014!N57,Capex_from_Jul_2014!N57) -> 0 | O57: =SUM(ICB_at_2000!O57,Vines!O57,WestNet!O57,Capex_to_Jun_2014!O57,Capex_from_Jul_2014!O57) -> 0 | P57: =SUM(ICB_at_2000!P57,Vines!P57,WestNet!P57,Capex_to_Jun_2014!P57,Capex_from_Jul_2014!P57) -> 0 | Q57: =SUM(ICB_at_2000!Q57,Vines!Q57,WestNet!Q57,Capex_to_Jun_2014!Q57,Capex_from_Jul_2014!Q57) -> 0 | R57: =SUM(ICB_at_2000!R57,Vines!R57,WestNet!R57,Capex_to_Jun_2014!R57,Capex_from_Jul_2014!R57) -> 0 | S57: =SUM(ICB_at_2000!S57,Vines!S57,WestNet!S57,Capex_to_Jun_2014!S57,Capex_from_Jul_2014!S57) -> 0 | T57: =SUM(ICB_at_2000!T57,Vines!T57,WestNet!T57,Capex_to_Jun_2014!T57,Capex_from_Jul_2014!T57) -> 0 | U57: =SUM(ICB_at_2000!U57,Vines!U57,WestNet!U57,Capex_to_Jun_2014!U57,Capex_from_Jul_2014!U57) -> 0 | V57: =SUM(ICB_at_2000!V57,Vines!V57,WestNet!V57,Capex_to_Jun_2014!V57,Capex_from_Jul_2014!V57) -> 0 | W57: =SUM(ICB_at_2000!W57,Vines!W57,WestNet!W57,Capex_to_Jun_2014!W57,Capex_from_Jul_2014!W57) -> 0 | X57: =SUM(ICB_at_2000!X57,Vines!X57,WestNet!X57,Capex_to_Jun_2014!X57,Capex_from_Jul_2014!X57) -> 0 | Y57: =SUM(ICB_at_2000!Y57,Vines!Y57,WestNet!Y57,Capex_to_Jun_2014!Y57,Capex_from_Jul_2014!Y57) -> 0 | Z57: =SUM(ICB_at_2000!Z57,Vines!Z57,WestNet!Z57,Capex_to_Jun_2014!Z57,Capex_from_Jul_2014!Z57) -> 0
B58: =Inputs!$B$320 -> Land | C58: $m | E58: =SUM(ICB_at_2000!E58,Vines!E58,WestNet!E58,Capex_to_Jun_2014!E58,Capex_from_Jul_2014!E58) -> 0.3477557005 | F58: =SUM(ICB_at_2000!F58,Vines!F58,WestNet!F58,Capex_to_Jun_2014!F58,Capex_from_Jul_2014!F58) -> 0.2579885964 | G58: =SUM(ICB_at_2000!G58,Vines!G58,WestNet!G58,Capex_to_Jun_2014!G58,Capex_from_Jul_2014!G58) -> 0 | H58: =SUM(ICB_at_2000!H58,Vines!H58,WestNet!H58,Capex_to_Jun_2014!H58,Capex_from_Jul_2014!H58) -> 0 | I58: =SUM(ICB_at_2000!I58,Vines!I58,WestNet!I58,Capex_to_Jun_2014!I58,Capex_from_Jul_2014!I58) -> 0 | J58: =SUM(ICB_at_2000!J58,Vines!J58,WestNet!J58,Capex_to_Jun_2014!J58,Capex_from_Jul_2014!J58) -> 0 | K58: =SUM(ICB_at_2000!K58,Vines!K58,WestNet!K58,Capex_to_Jun_2014!K58,Capex_from_Jul_2014!K58) -> 0 | L58: =SUM(ICB_at_2000!L58,Vines!L58,WestNet!L58,Capex_to_Jun_2014!L58,Capex_from_Jul_2014!L58) -> 0 | M58: =SUM(ICB_at_2000!M58,Vines!M58,WestNet!M58,Capex_to_Jun_2014!M58,Capex_from_Jul_2014!M58) -> 0 | N58: =SUM(ICB_at_2000!N58,Vines!N58,WestNet!N58,Capex_to_Jun_2014!N58,Capex_from_Jul_2014!N58) -> 0 | O58: =SUM(ICB_at_2000!O58,Vines!O58,WestNet!O58,Capex_to_Jun_2014!O58,Capex_from_Jul_2014!O58) -> 0 | P58: =SUM(ICB_at_2000!P58,Vines!P58,WestNet!P58,Capex_to_Jun_2014!P58,Capex_from_Jul_2014!P58) -> 0 | Q58: =SUM(ICB_at_2000!Q58,Vines!Q58,WestNet!Q58,Capex_to_Jun_2014!Q58,Capex_from_Jul_2014!Q58) -> 0 | R58: =SUM(ICB_at_2000!R58,Vines!R58,WestNet!R58,Capex_to_Jun_2014!R58,Capex_from_Jul_2014!R58) -> 0 | S58: =SUM(ICB_at_2000!S58,Vines!S58,WestNet!S58,Capex_to_Jun_2014!S58,Capex_from_Jul_2014!S58) -> 0 | T58: =SUM(ICB_at_2000!T58,Vines!T58,WestNet!T58,Capex_to_Jun_2014!T58,Capex_from_Jul_2014!T58) -> 0 | U58: =SUM(ICB_at_2000!U58,Vines!U58,WestNet!U58,Capex_to_Jun_2014!U58,Capex_from_Jul_2014!U58) -> 0 | V58: =SUM(ICB_at_2000!V58,Vines!V58,WestNet!V58,Capex_to_Jun_2014!V58,Capex_from_Jul_2014!V58) -> 5.033007026 | W58: =SUM(ICB_at_2000!W58,Vines!W58,WestNet!W58,Capex_to_Jun_2014!W58,Capex_from_Jul_2014!W58) -> 0.5850222085 | X58: =SUM(ICB_at_2000!X58,Vines!X58,WestNet!X58,Capex_to_Jun_2014!X58,Capex_from_Jul_2014!X58) -> 0.3815940314 | Y58: =SUM(ICB_at_2000!Y58,Vines!Y58,WestNet!Y58,Capex_to_Jun_2014!Y58,Capex_from_Jul_2014!Y58) -> 0 | Z58: =SUM(ICB_at_2000!Z58,Vines!Z58,WestNet!Z58,Capex_to_Jun_2014!Z58,Capex_from_Jul_2014!Z58) -> 0
B60: Total Capex | C60: $m | E60: =SUM(E44:E58) -> 36.41156699 | F60: 24.9795307 | G60: 33.81260957 | H60: 37.58184515 | I60: 43.55305548 | J60: 30.91459494 | K60: 37.24769873 | L60: 39.14680611 | M60: 39.87566 | N60: 47.65349486 | O60: 27.73404532 | P60: 41.51463454 | Q60: 38.79101726 | R60: 79.44421977 | S60: 72.19103922 | T60: 43.70410485 | U60: 0 | V60: 108.8411824 | W60: 121.8424855 | X60: 126.2222153 | Y60: 123.2383489 | Z60: 118.6366017
B62: ="Depreciation: "&$B$4 -> Depreciation:
B63: =Inputs!$B$307 -> High pressure mains - steel | C63: $m | E63: =SUM(ICB_at_2000!E63,Vines!E63,WestNet!E63,Capex_to_Jun_2014!E63,Capex_from_Jul_2014!E63) -> 2.214870921 | F63: =SUM(ICB_at_2000!F63,Vines!F63,WestNet!F63,Capex_to_Jun_2014!F63,Capex_from_Jul_2014!F63) -> 2.255593379 | G63: =SUM(ICB_at_2000!G63,Vines!G63,WestNet!G63,Capex_to_Jun_2014!G63,Capex_from_Jul_2014!G63) -> 2.293913331 | H63: =SUM(ICB_at_2000!H63,Vines!H63,WestNet!H63,Capex_to_Jun_2014!H63,Capex_from_Jul_2014!H63) -> 2.32686056 | I63: =SUM(ICB_at_2000!I63,Vines!I63,WestNet!I63,Capex_to_Jun_2014!I63,Capex_from_Jul_2014!I63) -> 2.354108736 | J63: =SUM(ICB_at_2000!J63,Vines!J63,WestNet!J63,Capex_to_Jun_2014!J63,Capex_from_Jul_2014!J63) -> 2.214910852 | K63: =SUM(ICB_at_2000!K63,Vines!K63,WestNet!K63,Capex_to_Jun_2014!K63,Capex_from_Jul_2014!K63) -> 2.222019269 | L63: =SUM(ICB_at_2000!L63,Vines!L63,WestNet!L63,Capex_to_Jun_2014!L63,Capex_from_Jul_2014!L63) -> 2.231000183 | M63: =SUM(ICB_at_2000!M63,Vines!M63,WestNet!M63,Capex_to_Jun_2014!M63,Capex_from_Jul_2014!M63) -> 2.239981097 | N63: =SUM(ICB_at_2000!N63,Vines!N63,WestNet!N63,Capex_to_Jun_2014!N63,Capex_from_Jul_2014!N63) -> 2.248041609 | O63: =SUM(ICB_at_2000!O63,Vines!O63,WestNet!O63,Capex_to_Jun_2014!O63,Capex_from_Jul_2014!O63) -> 1.186682579 | P63: =SUM(ICB_at_2000!P63,Vines!P63,WestNet!P63,Capex_to_Jun_2014!P63,Capex_from_Jul_2014!P63) -> 2.462991476 | Q63: =SUM(ICB_at_2000!Q63,Vines!Q63,WestNet!Q63,Capex_to_Jun_2014!Q63,Capex_from_Jul_2014!Q63) -> 2.501993616 | R63: =SUM(ICB_at_2000!R63,Vines!R63,WestNet!R63,Capex_to_Jun_2014!R63,Capex_from_Jul_2014!R63) -> 2.567581284 | S63: =SUM(ICB_at_2000!S63,Vines!S63,WestNet!S63,Capex_to_Jun_2014!S63,Capex_from_Jul_2014!S63) -> 2.667367693 | T63: =SUM(ICB_at_2000!T63,Vines!T63,WestNet!T63,Capex_to_Jun_2014!T63,Capex_from_Jul_2014!T63) -> 1.848004773 | U63: =SUM(ICB_at_2000!U63,Vines!U63,WestNet!U63,Capex_to_Jun_2014!U63,Capex_from_Jul_2014!U63) -> 1.8512147 | V63: =SUM(ICB_at_2000!V63,Vines!V63,WestNet!V63,Capex_to_Jun_2014!V63,Capex_from_Jul_2014!V63) -> 1.8512147 | W63: =SUM(ICB_at_2000!W63,Vines!W63,WestNet!W63,Capex_to_Jun_2014!W63,Capex_from_Jul_2014!W63) -> 3.85005619 | X63: =SUM(ICB_at_2000!X63,Vines!X63,WestNet!X63,Capex_to_Jun_2014!X63,Capex_from_Jul_2014!X63) -> 4.403062405 | Y63: =SUM(ICB_at_2000!Y63,Vines!Y63,WestNet!Y63,Capex_to_Jun_2014!Y63,Capex_from_Jul_2014!Y63) -> 4.919777863 | Z63: =SUM(ICB_at_2000!Z63,Vines!Z63,WestNet!Z63,Capex_to_Jun_2014!Z63,Capex_from_Jul_2014!Z63) -> 5.34627758
B64: =Inputs!$B$308 -> High pressure mains - PE | C64: $m | E64: =SUM(ICB_at_2000!E64,Vines!E64,WestNet!E64,Capex_to_Jun_2014!E64,Capex_from_Jul_2014!E64) -> 0 | F64: =SUM(ICB_at_2000!F64,Vines!F64,WestNet!F64,Capex_to_Jun_2014!F64,Capex_from_Jul_2014!F64) -> 0 | G64: =SUM(ICB_at_2000!G64,Vines!G64,WestNet!G64,Capex_to_Jun_2014!G64,Capex_from_Jul_2014!G64) -> 0 | H64: =SUM(ICB_at_2000!H64,Vines!H64,WestNet!H64,Capex_to_Jun_2014!H64,Capex_from_Jul_2014!H64) -> 0 | I64: =SUM(ICB_at_2000!I64,Vines!I64,WestNet!I64,Capex_to_Jun_2014!I64,Capex_from_Jul_2014!I64) -> 0 | J64: =SUM(ICB_at_2000!J64,Vines!J64,WestNet!J64,Capex_to_Jun_2014!J64,Capex_from_Jul_2014!J64) -> 0 | K64: =SUM(ICB_at_2000!K64,Vines!K64,WestNet!K64,Capex_to_Jun_2014!K64,Capex_from_Jul_2014!K64) -> 0 | L64: =SUM(ICB_at_2000!L64,Vines!L64,WestNet!L64,Capex_to_Jun_2014!L64,Capex_from_Jul_2014!L64) -> 0 | M64: =SUM(ICB_at_2000!M64,Vines!M64,WestNet!M64,Capex_to_Jun_2014!M64,Capex_from_Jul_2014!M64) -> 0 | N64: =SUM(ICB_at_2000!N64,Vines!N64,WestNet!N64,Capex_to_Jun_2014!N64,Capex_from_Jul_2014!N64) -> 0 | O64: =SUM(ICB_at_2000!O64,Vines!O64,WestNet!O64,Capex_to_Jun_2014!O64,Capex_from_Jul_2014!O64) -> 0 | P64: =SUM(ICB_at_2000!P64,Vines!P64,WestNet!P64,Capex_to_Jun_2014!P64,Capex_from_Jul_2014!P64) -> 0 | Q64: =SUM(ICB_at_2000!Q64,Vines!Q64,WestNet!Q64,Capex_to_Jun_2014!Q64,Capex_from_Jul_2014!Q64) -> 0 | R64: =SUM(ICB_at_2000!R64,Vines!R64,WestNet!R64,Capex_to_Jun_2014!R64,Capex_from_Jul_2014!R64) -> 0 | S64: =SUM(ICB_at_2000!S64,Vines!S64,WestNet!S64,Capex_to_Jun_2014!S64,Capex_from_Jul_2014!S64) -> 0 | T64: =SUM(ICB_at_2000!T64,Vines!T64,WestNet!T64,Capex_to_Jun_2014!T64,Capex_from_Jul_2014!T64) -> -0.3768548129 | U64: =SUM(ICB_at_2000!U64,Vines!U64,WestNet!U64,Capex_to_Jun_2014!U64,Capex_from_Jul_2014!U64) -> 0.09850639842 | V64: =SUM(ICB_at_2000!V64,Vines!V64,WestNet!V64,Capex_to_Jun_2014!V64,Capex_from_Jul_2014!V64) -> 0.09850639842 | W64: =SUM(ICB_at_2000!W64,Vines!W64,WestNet!W64,Capex_to_Jun_2014!W64,Capex_from_Jul_2014!W64) -> 0.2217250633 | X64: =SUM(ICB_at_2000!X64,Vines!X64,WestNet!X64,Capex_to_Jun_2014!X64,Capex_from_Jul_2014!X64) -> 0.2217250633 | Y64: =SUM(ICB_at_2000!Y64,Vines!Y64,WestNet!Y64,Capex_to_Jun_2014!Y64,Capex_from_Jul_2014!Y64) -> 0.2217250633 | Z64: =SUM(ICB_at_2000!Z64,Vines!Z64,WestNet!Z64,Capex_to_Jun_2014!Z64,Capex_from_Jul_2014!Z64) -> 0.2784452232
B65: =Inputs!$B$309 -> Medium pressure mains | C65: $m | E65: =SUM(ICB_at_2000!E65,Vines!E65,WestNet!E65,Capex_to_Jun_2014!E65,Capex_from_Jul_2014!E65) -> 5.510801317 | F65: =SUM(ICB_at_2000!F65,Vines!F65,WestNet!F65,Capex_to_Jun_2014!F65,Capex_from_Jul_2014!F65) -> 5.610517265 | G65: =SUM(ICB_at_2000!G65,Vines!G65,WestNet!G65,Capex_to_Jun_2014!G65,Capex_from_Jul_2014!G65) -> 5.69120945 | H65: =SUM(ICB_at_2000!H65,Vines!H65,WestNet!H65,Capex_to_Jun_2014!H65,Capex_from_Jul_2014!H65) -> 5.739594618 | I65: =SUM(ICB_at_2000!I65,Vines!I65,WestNet!I65,Capex_to_Jun_2014!I65,Capex_from_Jul_2014!I65) -> 5.772545552 | J65: =SUM(ICB_at_2000!J65,Vines!J65,WestNet!J65,Capex_to_Jun_2014!J65,Capex_from_Jul_2014!J65) -> 6.100757131 | K65: =SUM(ICB_at_2000!K65,Vines!K65,WestNet!K65,Capex_to_Jun_2014!K65,Capex_from_Jul_2014!K65) -> 6.221306704 | L65: =SUM(ICB_at_2000!L65,Vines!L65,WestNet!L65,Capex_to_Jun_2014!L65,Capex_from_Jul_2014!L65) -> 6.333852608 | M65: =SUM(ICB_at_2000!M65,Vines!M65,WestNet!M65,Capex_to_Jun_2014!M65,Capex_from_Jul_2014!M65) -> 6.428737862 | N65: =SUM(ICB_at_2000!N65,Vines!N65,WestNet!N65,Capex_to_Jun_2014!N65,Capex_from_Jul_2014!N65) -> 6.53612263 | O65: =SUM(ICB_at_2000!O65,Vines!O65,WestNet!O65,Capex_to_Jun_2014!O65,Capex_from_Jul_2014!O65) -> 2.724141976 | P65: =SUM(ICB_at_2000!P65,Vines!P65,WestNet!P65,Capex_to_Jun_2014!P65,Capex_from_Jul_2014!P65) -> 5.448283951 | Q65: =SUM(ICB_at_2000!Q65,Vines!Q65,WestNet!Q65,Capex_to_Jun_2014!Q65,Capex_from_Jul_2014!Q65) -> 5.448283951 | R65: =SUM(ICB_at_2000!R65,Vines!R65,WestNet!R65,Capex_to_Jun_2014!R65,Capex_from_Jul_2014!R65) -> 5.448283951 | S65: =SUM(ICB_at_2000!S65,Vines!S65,WestNet!S65,Capex_to_Jun_2014!S65,Capex_from_Jul_2014!S65) -> 5.448283951 | T65: =SUM(ICB_at_2000!T65,Vines!T65,WestNet!T65,Capex_to_Jun_2014!T65,Capex_from_Jul_2014!T65) -> 2.724141976 | U65: =SUM(ICB_at_2000!U65,Vines!U65,WestNet!U65,Capex_to_Jun_2014!U65,Capex_from_Jul_2014!U65) -> 2.724141976 | V65: =SUM(ICB_at_2000!V65,Vines!V65,WestNet!V65,Capex_to_Jun_2014!V65,Capex_from_Jul_2014!V65) -> 2.724141976 | W65: =SUM(ICB_at_2000!W65,Vines!W65,WestNet!W65,Capex_to_Jun_2014!W65,Capex_from_Jul_2014!W65) -> 5.448283951 | X65: =SUM(ICB_at_2000!X65,Vines!X65,WestNet!X65,Capex_to_Jun_2014!X65,Capex_from_Jul_2014!X65) -> 5.448283951 | Y65: =SUM(ICB_at_2000!Y65,Vines!Y65,WestNet!Y65,Capex_to_Jun_2014!Y65,Capex_from_Jul_2014!Y65) -> 5.448283951 | Z65: =SUM(ICB_at_2000!Z65,Vines!Z65,WestNet!Z65,Capex_to_Jun_2014!Z65,Capex_from_Jul_2014!Z65) -> 5.448283951
B66: =Inputs!$B$310 -> Medium/low pressure mains | C66: $m | E66: =SUM(ICB_at_2000!E66,Vines!E66,WestNet!E66,Capex_to_Jun_2014!E66,Capex_from_Jul_2014!E66) -> 3.734679431 | F66: =SUM(ICB_at_2000!F66,Vines!F66,WestNet!F66,Capex_to_Jun_2014!F66,Capex_from_Jul_2014!F66) -> 3.736308886 | G66: =SUM(ICB_at_2000!G66,Vines!G66,WestNet!G66,Capex_to_Jun_2014!G66,Capex_from_Jul_2014!G66) -> 3.736412561 | H66: =SUM(ICB_at_2000!H66,Vines!H66,WestNet!H66,Capex_to_Jun_2014!H66,Capex_from_Jul_2014!H66) -> 3.736566872 | I66: =SUM(ICB_at_2000!I66,Vines!I66,WestNet!I66,Capex_to_Jun_2014!I66,Capex_from_Jul_2014!I66) -> 3.736695362 | J66: =SUM(ICB_at_2000!J66,Vines!J66,WestNet!J66,Capex_to_Jun_2014!J66,Capex_from_Jul_2014!J66) -> 3.75772434 | K66: =SUM(ICB_at_2000!K66,Vines!K66,WestNet!K66,Capex_to_Jun_2014!K66,Capex_from_Jul_2014!K66) -> 3.795774858 | L66: =SUM(ICB_at_2000!L66,Vines!L66,WestNet!L66,Capex_to_Jun_2014!L66,Capex_from_Jul_2014!L66) -> 3.835783345 | M66: =SUM(ICB_at_2000!M66,Vines!M66,WestNet!M66,Capex_to_Jun_2014!M66,Capex_from_Jul_2014!M66) -> 3.87483489 | N66: =SUM(ICB_at_2000!N66,Vines!N66,WestNet!N66,Capex_to_Jun_2014!N66,Capex_from_Jul_2014!N66) -> 3.919465081 | O66: =SUM(ICB_at_2000!O66,Vines!O66,WestNet!O66,Capex_to_Jun_2014!O66,Capex_from_Jul_2014!O66) -> 2.685650475 | P66: =SUM(ICB_at_2000!P66,Vines!P66,WestNet!P66,Capex_to_Jun_2014!P66,Capex_from_Jul_2014!P66) -> 5.472860043 | Q66: =SUM(ICB_at_2000!Q66,Vines!Q66,WestNet!Q66,Capex_to_Jun_2014!Q66,Capex_from_Jul_2014!Q66) -> 5.688920666 | R66: =SUM(ICB_at_2000!R66,Vines!R66,WestNet!R66,Capex_to_Jun_2014!R66,Capex_from_Jul_2014!R66) -> 5.915648777 | S66: =SUM(ICB_at_2000!S66,Vines!S66,WestNet!S66,Capex_to_Jun_2014!S66,Capex_from_Jul_2014!S66) -> 6.141330758 | T66: =SUM(ICB_at_2000!T66,Vines!T66,WestNet!T66,Capex_to_Jun_2014!T66,Capex_from_Jul_2014!T66) -> 3.238426102 | U66: =SUM(ICB_at_2000!U66,Vines!U66,WestNet!U66,Capex_to_Jun_2014!U66,Capex_from_Jul_2014!U66) -> 3.353824464 | V66: =SUM(ICB_at_2000!V66,Vines!V66,WestNet!V66,Capex_to_Jun_2014!V66,Capex_from_Jul_2014!V66) -> 3.353824464 | W66: =SUM(ICB_at_2000!W66,Vines!W66,WestNet!W66,Capex_to_Jun_2014!W66,Capex_from_Jul_2014!W66) -> 7.204988964 | X66: =SUM(ICB_at_2000!X66,Vines!X66,WestNet!X66,Capex_to_Jun_2014!X66,Capex_from_Jul_2014!X66) -> 7.700334167 | Y66: =SUM(ICB_at_2000!Y66,Vines!Y66,WestNet!Y66,Capex_to_Jun_2014!Y66,Capex_from_Jul_2014!Y66) -> 8.175727861 | Z66: =SUM(ICB_at_2000!Z66,Vines!Z66,WestNet!Z66,Capex_to_Jun_2014!Z66,Capex_from_Jul_2014!Z66) -> 8.674089731
B67: =Inputs!$B$311 -> Low pressure mains | C67: $m | E67: =SUM(ICB_at_2000!E67,Vines!E67,WestNet!E67,Capex_to_Jun_2014!E67,Capex_from_Jul_2014!E67) -> 1.374434567 | F67: =SUM(ICB_at_2000!F67,Vines!F67,WestNet!F67,Capex_to_Jun_2014!F67,Capex_from_Jul_2014!F67) -> 1.433861821 | G67: =SUM(ICB_at_2000!G67,Vines!G67,WestNet!G67,Capex_to_Jun_2014!G67,Capex_from_Jul_2014!G67) -> 1.494793485 | H67: =SUM(ICB_at_2000!H67,Vines!H67,WestNet!H67,Capex_to_Jun_2014!H67,Capex_from_Jul_2014!H67) -> 1.556976198 | I67: =SUM(ICB_at_2000!I67,Vines!I67,WestNet!I67,Capex_to_Jun_2014!I67,Capex_from_Jul_2014!I67) -> 1.621063589 | J67: =SUM(ICB_at_2000!J67,Vines!J67,WestNet!J67,Capex_to_Jun_2014!J67,Capex_from_Jul_2014!J67) -> 1.301747432 | K67: =SUM(ICB_at_2000!K67,Vines!K67,WestNet!K67,Capex_to_Jun_2014!K67,Capex_from_Jul_2014!K67) -> 1.301747432 | L67: =SUM(ICB_at_2000!L67,Vines!L67,WestNet!L67,Capex_to_Jun_2014!L67,Capex_from_Jul_2014!L67) -> 1.301747432 | M67: =SUM(ICB_at_2000!M67,Vines!M67,WestNet!M67,Capex_to_Jun_2014!M67,Capex_from_Jul_2014!M67) -> 1.301747432 | N67: =SUM(ICB_at_2000!N67,Vines!N67,WestNet!N67,Capex_to_Jun_2014!N67,Capex_from_Jul_2014!N67) -> 1.301747432 | O67: =SUM(ICB_at_2000!O67,Vines!O67,WestNet!O67,Capex_to_Jun_2014!O67,Capex_from_Jul_2014!O67) -> 0.6508737162 | P67: =SUM(ICB_at_2000!P67,Vines!P67,WestNet!P67,Capex_to_Jun_2014!P67,Capex_from_Jul_2014!P67) -> 1.301747432 | Q67: =SUM(ICB_at_2000!Q67,Vines!Q67,WestNet!Q67,Capex_to_Jun_2014!Q67,Capex_from_Jul_2014!Q67) -> 1.301747432 | R67: =SUM(ICB_at_2000!R67,Vines!R67,WestNet!R67,Capex_to_Jun_2014!R67,Capex_from_Jul_2014!R67) -> 1.301747432 | S67: =SUM(ICB_at_2000!S67,Vines!S67,WestNet!S67,Capex_to_Jun_2014!S67,Capex_from_Jul_2014!S67) -> 1.301747432 | T67: =SUM(ICB_at_2000!T67,Vines!T67,WestNet!T67,Capex_to_Jun_2014!T67,Capex_from_Jul_2014!T67) -> 0.6508737162 | U67: =SUM(ICB_at_2000!U67,Vines!U67,WestNet!U67,Capex_to_Jun_2014!U67,Capex_from_Jul_2014!U67) -> 0.6508737162 | V67: =SUM(ICB_at_2000!V67,Vines!V67,WestNet!V67,Capex_to_Jun_2014!V67,Capex_from_Jul_2014!V67) -> 0.6508737162 | W67: =SUM(ICB_at_2000!W67,Vines!W67,WestNet!W67,Capex_to_Jun_2014!W67,Capex_from_Jul_2014!W67) -> 1.301747432 | X67: =SUM(ICB_at_2000!X67,Vines!X67,WestNet!X67,Capex_to_Jun_2014!X67,Capex_from_Jul_2014!X67) -> 1.301747432 | Y67: =SUM(ICB_at_2000!Y67,Vines!Y67,WestNet!Y67,Capex_to_Jun_2014!Y67,Capex_from_Jul_2014!Y67) -> 1.301747432 | Z67: =SUM(ICB_at_2000!Z67,Vines!Z67,WestNet!Z67,Capex_to_Jun_2014!Z67,Capex_from_Jul_2014!Z67) -> 1.301747432
B68: =Inputs!$B$312 -> Regulators | C68: $m | E68: =SUM(ICB_at_2000!E68,Vines!E68,WestNet!E68,Capex_to_Jun_2014!E68,Capex_from_Jul_2014!E68) -> 0.5458118997 | F68: =SUM(ICB_at_2000!F68,Vines!F68,WestNet!F68,Capex_to_Jun_2014!F68,Capex_from_Jul_2014!F68) -> 0.5551319813 | G68: =SUM(ICB_at_2000!G68,Vines!G68,WestNet!G68,Capex_to_Jun_2014!G68,Capex_from_Jul_2014!G68) -> 0.5661780258 | H68: =SUM(ICB_at_2000!H68,Vines!H68,WestNet!H68,Capex_to_Jun_2014!H68,Capex_from_Jul_2014!H68) -> 0.5757196014 | I68: =SUM(ICB_at_2000!I68,Vines!I68,WestNet!I68,Capex_to_Jun_2014!I68,Capex_from_Jul_2014!I68) -> 0.5803951918 | J68: =SUM(ICB_at_2000!J68,Vines!J68,WestNet!J68,Capex_to_Jun_2014!J68,Capex_from_Jul_2014!J68) -> 0.5752161075 | K68: =SUM(ICB_at_2000!K68,Vines!K68,WestNet!K68,Capex_to_Jun_2014!K68,Capex_from_Jul_2014!K68) -> 0.5776643515 | L68: =SUM(ICB_at_2000!L68,Vines!L68,WestNet!L68,Capex_to_Jun_2014!L68,Capex_from_Jul_2014!L68) -> 0.5800675082 | M68: =SUM(ICB_at_2000!M68,Vines!M68,WestNet!M68,Capex_to_Jun_2014!M68,Capex_from_Jul_2014!M68) -> 0.5823204668 | N68: =SUM(ICB_at_2000!N68,Vines!N68,WestNet!N68,Capex_to_Jun_2014!N68,Capex_from_Jul_2014!N68) -> 0.5850966268 | O68: =SUM(ICB_at_2000!O68,Vines!O68,WestNet!O68,Capex_to_Jun_2014!O68,Capex_from_Jul_2014!O68) -> 0.3200133086 | P68: =SUM(ICB_at_2000!P68,Vines!P68,WestNet!P68,Capex_to_Jun_2014!P68,Capex_from_Jul_2014!P68) -> 0.6587845237 | Q68: =SUM(ICB_at_2000!Q68,Vines!Q68,WestNet!Q68,Capex_to_Jun_2014!Q68,Capex_from_Jul_2014!Q68) -> 0.6661125941 | R68: =SUM(ICB_at_2000!R68,Vines!R68,WestNet!R68,Capex_to_Jun_2014!R68,Capex_from_Jul_2014!R68) -> 0.6725476997 | S68: =SUM(ICB_at_2000!S68,Vines!S68,WestNet!S68,Capex_to_Jun_2014!S68,Capex_from_Jul_2014!S68) -> 0.6800403853 | T68: =SUM(ICB_at_2000!T68,Vines!T68,WestNet!T68,Capex_to_Jun_2014!T68,Capex_from_Jul_2014!T68) -> 0.3556296234 | U68: =SUM(ICB_at_2000!U68,Vines!U68,WestNet!U68,Capex_to_Jun_2014!U68,Capex_from_Jul_2014!U68) -> 0.3678276523 | V68: =SUM(ICB_at_2000!V68,Vines!V68,WestNet!V68,Capex_to_Jun_2014!V68,Capex_from_Jul_2014!V68) -> 0.3678276523 | W68: =SUM(ICB_at_2000!W68,Vines!W68,WestNet!W68,Capex_to_Jun_2014!W68,Capex_from_Jul_2014!W68) -> 0.8228197088 | X68: =SUM(ICB_at_2000!X68,Vines!X68,WestNet!X68,Capex_to_Jun_2014!X68,Capex_from_Jul_2014!X68) -> 0.8630566646 | Y68: =SUM(ICB_at_2000!Y68,Vines!Y68,WestNet!Y68,Capex_to_Jun_2014!Y68,Capex_from_Jul_2014!Y68) -> 0.9033035091 | Z68: =SUM(ICB_at_2000!Z68,Vines!Z68,WestNet!Z68,Capex_to_Jun_2014!Z68,Capex_from_Jul_2014!Z68) -> 0.9454981308
B69: =Inputs!$B$313 -> Secondary gate stations | C69: $m | E69: =SUM(ICB_at_2000!E69,Vines!E69,WestNet!E69,Capex_to_Jun_2014!E69,Capex_from_Jul_2014!E69) -> 0.1391117587 | F69: =SUM(ICB_at_2000!F69,Vines!F69,WestNet!F69,Capex_to_Jun_2014!F69,Capex_from_Jul_2014!F69) -> 0.1506164937 | G69: =SUM(ICB_at_2000!G69,Vines!G69,WestNet!G69,Capex_to_Jun_2014!G69,Capex_from_Jul_2014!G69) -> 0.1506164974 | H69: =SUM(ICB_at_2000!H69,Vines!H69,WestNet!H69,Capex_to_Jun_2014!H69,Capex_from_Jul_2014!H69) -> 0.150616501 | I69: =SUM(ICB_at_2000!I69,Vines!I69,WestNet!I69,Capex_to_Jun_2014!I69,Capex_from_Jul_2014!I69) -> 0.1506165045 | J69: =SUM(ICB_at_2000!J69,Vines!J69,WestNet!J69,Capex_to_Jun_2014!J69,Capex_from_Jul_2014!J69) -> 0.1227509392 | K69: =SUM(ICB_at_2000!K69,Vines!K69,WestNet!K69,Capex_to_Jun_2014!K69,Capex_from_Jul_2014!K69) -> 0.122998532 | L69: =SUM(ICB_at_2000!L69,Vines!L69,WestNet!L69,Capex_to_Jun_2014!L69,Capex_from_Jul_2014!L69) -> 0.1232415652 | M69: =SUM(ICB_at_2000!M69,Vines!M69,WestNet!M69,Capex_to_Jun_2014!M69,Capex_from_Jul_2014!M69) -> 0.1234694086 | N69: =SUM(ICB_at_2000!N69,Vines!N69,WestNet!N69,Capex_to_Jun_2014!N69,Capex_from_Jul_2014!N69) -> 0.1237501638 | O69: =SUM(ICB_at_2000!O69,Vines!O69,WestNet!O69,Capex_to_Jun_2014!O69,Capex_from_Jul_2014!O69) -> 0.08482006509 | P69: =SUM(ICB_at_2000!P69,Vines!P69,WestNet!P69,Capex_to_Jun_2014!P69,Capex_from_Jul_2014!P69) -> 0.2259547139 | Q69: =SUM(ICB_at_2000!Q69,Vines!Q69,WestNet!Q69,Capex_to_Jun_2014!Q69,Capex_from_Jul_2014!Q69) -> 0.2378575619 | R69: =SUM(ICB_at_2000!R69,Vines!R69,WestNet!R69,Capex_to_Jun_2014!R69,Capex_from_Jul_2014!R69) -> 0.2378575619 | S69: =SUM(ICB_at_2000!S69,Vines!S69,WestNet!S69,Capex_to_Jun_2014!S69,Capex_from_Jul_2014!S69) -> 0.2378575619 | T69: =SUM(ICB_at_2000!T69,Vines!T69,WestNet!T69,Capex_to_Jun_2014!T69,Capex_from_Jul_2014!T69) -> 0.1130192812 | U69: =SUM(ICB_at_2000!U69,Vines!U69,WestNet!U69,Capex_to_Jun_2014!U69,Capex_from_Jul_2014!U69) -> 0.1131204638 | V69: =SUM(ICB_at_2000!V69,Vines!V69,WestNet!V69,Capex_to_Jun_2014!V69,Capex_from_Jul_2014!V69) -> 0.1131204638 | W69: =SUM(ICB_at_2000!W69,Vines!W69,WestNet!W69,Capex_to_Jun_2014!W69,Capex_from_Jul_2014!W69) -> 0.2262409276 | X69: =SUM(ICB_at_2000!X69,Vines!X69,WestNet!X69,Capex_to_Jun_2014!X69,Capex_from_Jul_2014!X69) -> 0.2413381839 | Y69: =SUM(ICB_at_2000!Y69,Vines!Y69,WestNet!Y69,Capex_to_Jun_2014!Y69,Capex_from_Jul_2014!Y69) -> 0.464743438 | Z69: =SUM(ICB_at_2000!Z69,Vines!Z69,WestNet!Z69,Capex_to_Jun_2014!Z69,Capex_from_Jul_2014!Z69) -> 0.580283193
B70: =Inputs!$B$314 -> Buildings | C70: $m | E70: =SUM(ICB_at_2000!E70,Vines!E70,WestNet!E70,Capex_to_Jun_2014!E70,Capex_from_Jul_2014!E70) -> 0.1194121121 | F70: =SUM(ICB_at_2000!F70,Vines!F70,WestNet!F70,Capex_to_Jun_2014!F70,Capex_from_Jul_2014!F70) -> 0.1233141808 | G70: =SUM(ICB_at_2000!G70,Vines!G70,WestNet!G70,Capex_to_Jun_2014!G70,Capex_from_Jul_2014!G70) -> 0.1271972151 | H70: =SUM(ICB_at_2000!H70,Vines!H70,WestNet!H70,Capex_to_Jun_2014!H70,Capex_from_Jul_2014!H70) -> 0.1310613078 | I70: =SUM(ICB_at_2000!I70,Vines!I70,WestNet!I70,Capex_to_Jun_2014!I70,Capex_from_Jul_2014!I70) -> 0.1349065512 | J70: =SUM(ICB_at_2000!J70,Vines!J70,WestNet!J70,Capex_to_Jun_2014!J70,Capex_from_Jul_2014!J70) -> 0.1176814919 | K70: =SUM(ICB_at_2000!K70,Vines!K70,WestNet!K70,Capex_to_Jun_2014!K70,Capex_from_Jul_2014!K70) -> 0.118100451 | L70: =SUM(ICB_at_2000!L70,Vines!L70,WestNet!L70,Capex_to_Jun_2014!L70,Capex_from_Jul_2014!L70) -> 0.1185116945 | M70: =SUM(ICB_at_2000!M70,Vines!M70,WestNet!M70,Capex_to_Jun_2014!M70,Capex_from_Jul_2014!M70) -> 0.1188972351 | N70: =SUM(ICB_at_2000!N70,Vines!N70,WestNet!N70,Capex_to_Jun_2014!N70,Capex_from_Jul_2014!N70) -> 0.1193723093 | O70: =SUM(ICB_at_2000!O70,Vines!O70,WestNet!O70,Capex_to_Jun_2014!O70,Capex_from_Jul_2014!O70) -> 0.01869163097 | P70: =SUM(ICB_at_2000!P70,Vines!P70,WestNet!P70,Capex_to_Jun_2014!P70,Capex_from_Jul_2014!P70) -> 0.05807227823 | Q70: =SUM(ICB_at_2000!Q70,Vines!Q70,WestNet!Q70,Capex_to_Jun_2014!Q70,Capex_from_Jul_2014!Q70) -> 0.115820552 | R70: =SUM(ICB_at_2000!R70,Vines!R70,WestNet!R70,Capex_to_Jun_2014!R70,Capex_from_Jul_2014!R70) -> 0.3036590386 | S70: =SUM(ICB_at_2000!S70,Vines!S70,WestNet!S70,Capex_to_Jun_2014!S70,Capex_from_Jul_2014!S70) -> 0.3036590386 | T70: =SUM(ICB_at_2000!T70,Vines!T70,WestNet!T70,Capex_to_Jun_2014!T70,Capex_from_Jul_2014!T70) -> 0.2076084823 | U70: =SUM(ICB_at_2000!U70,Vines!U70,WestNet!U70,Capex_to_Jun_2014!U70,Capex_from_Jul_2014!U70) -> 0.2536653439 | V70: =SUM(ICB_at_2000!V70,Vines!V70,WestNet!V70,Capex_to_Jun_2014!V70,Capex_from_Jul_2014!V70) -> 0.2536653439 | W70: =SUM(ICB_at_2000!W70,Vines!W70,WestNet!W70,Capex_to_Jun_2014!W70,Capex_from_Jul_2014!W70) -> 0.765466873 | X70: =SUM(ICB_at_2000!X70,Vines!X70,WestNet!X70,Capex_to_Jun_2014!X70,Capex_from_Jul_2014!X70) -> 0.7820374319 | Y70: =SUM(ICB_at_2000!Y70,Vines!Y70,WestNet!Y70,Capex_to_Jun_2014!Y70,Capex_from_Jul_2014!Y70) -> 0.7934974612 | Z70: =SUM(ICB_at_2000!Z70,Vines!Z70,WestNet!Z70,Capex_to_Jun_2014!Z70,Capex_from_Jul_2014!Z70) -> 0.7940352001
B71: =Inputs!$B$315 -> Meter and services pipes | C71: $m | E71: =SUM(ICB_at_2000!E71,Vines!E71,WestNet!E71,Capex_to_Jun_2014!E71,Capex_from_Jul_2014!E71) -> 7.688903951 | F71: =SUM(ICB_at_2000!F71,Vines!F71,WestNet!F71,Capex_to_Jun_2014!F71,Capex_from_Jul_2014!F71) -> 8.171834892 | G71: =SUM(ICB_at_2000!G71,Vines!G71,WestNet!G71,Capex_to_Jun_2014!G71,Capex_from_Jul_2014!G71) -> 8.630997869 | H71: =SUM(ICB_at_2000!H71,Vines!H71,WestNet!H71,Capex_to_Jun_2014!H71,Capex_from_Jul_2014!H71) -> 9.075612343 | I71: =SUM(ICB_at_2000!I71,Vines!I71,WestNet!I71,Capex_to_Jun_2014!I71,Capex_from_Jul_2014!I71) -> 9.502104621 | J71: =SUM(ICB_at_2000!J71,Vines!J71,WestNet!J71,Capex_to_Jun_2014!J71,Capex_from_Jul_2014!J71) -> 13.34734578 | K71: =SUM(ICB_at_2000!K71,Vines!K71,WestNet!K71,Capex_to_Jun_2014!K71,Capex_from_Jul_2014!K71) -> 14.37171063 | L71: =SUM(ICB_at_2000!L71,Vines!L71,WestNet!L71,Capex_to_Jun_2014!L71,Capex_from_Jul_2014!L71) -> 15.35782674 | M71: =SUM(ICB_at_2000!M71,Vines!M71,WestNet!M71,Capex_to_Jun_2014!M71,Capex_from_Jul_2014!M71) -> 16.1278017 | N71: =SUM(ICB_at_2000!N71,Vines!N71,WestNet!N71,Capex_to_Jun_2014!N71,Capex_from_Jul_2014!N71) -> 17.0316917 | O71: =SUM(ICB_at_2000!O71,Vines!O71,WestNet!O71,Capex_to_Jun_2014!O71,Capex_from_Jul_2014!O71) -> 4.159002918 | P71: =SUM(ICB_at_2000!P71,Vines!P71,WestNet!P71,Capex_to_Jun_2014!P71,Capex_from_Jul_2014!P71) -> 8.72745767 | Q71: =SUM(ICB_at_2000!Q71,Vines!Q71,WestNet!Q71,Capex_to_Jun_2014!Q71,Capex_from_Jul_2014!Q71) -> 9.694348066 | R71: =SUM(ICB_at_2000!R71,Vines!R71,WestNet!R71,Capex_to_Jun_2014!R71,Capex_from_Jul_2014!R71) -> 10.79221962 | S71: =SUM(ICB_at_2000!S71,Vines!S71,WestNet!S71,Capex_to_Jun_2014!S71,Capex_from_Jul_2014!S71) -> 11.88473752 | T71: =SUM(ICB_at_2000!T71,Vines!T71,WestNet!T71,Capex_to_Jun_2014!T71,Capex_from_Jul_2014!T71) -> 6.128517809 | U71: =SUM(ICB_at_2000!U71,Vines!U71,WestNet!U71,Capex_to_Jun_2014!U71,Capex_from_Jul_2014!U71) -> 6.464503156 | V71: =SUM(ICB_at_2000!V71,Vines!V71,WestNet!V71,Capex_to_Jun_2014!V71,Capex_from_Jul_2014!V71) -> 6.464503156 | W71: =SUM(ICB_at_2000!W71,Vines!W71,WestNet!W71,Capex_to_Jun_2014!W71,Capex_from_Jul_2014!W71) -> 14.38988512 | X71: =SUM(ICB_at_2000!X71,Vines!X71,WestNet!X71,Capex_to_Jun_2014!X71,Capex_from_Jul_2014!X71) -> 15.7867428 | Y71: =SUM(ICB_at_2000!Y71,Vines!Y71,WestNet!Y71,Capex_to_Jun_2014!Y71,Capex_from_Jul_2014!Y71) -> 17.24773725 | Z71: =SUM(ICB_at_2000!Z71,Vines!Z71,WestNet!Z71,Capex_to_Jun_2014!Z71,Capex_from_Jul_2014!Z71) -> 18.80121891
B72: =Inputs!$B$316 -> Equipment and vehicles | C72: $m | E72: =SUM(ICB_at_2000!E72,Vines!E72,WestNet!E72,Capex_to_Jun_2014!E72,Capex_from_Jul_2014!E72) -> 4.8740127 | F72: =SUM(ICB_at_2000!F72,Vines!F72,WestNet!F72,Capex_to_Jun_2014!F72,Capex_from_Jul_2014!F72) -> 5.59983189 | G72: =SUM(ICB_at_2000!G72,Vines!G72,WestNet!G72,Capex_to_Jun_2014!G72,Capex_from_Jul_2014!G72) -> 5.902382579 | H72: =SUM(ICB_at_2000!H72,Vines!H72,WestNet!H72,Capex_to_Jun_2014!H72,Capex_from_Jul_2014!H72) -> 6.226664793 | I72: =SUM(ICB_at_2000!I72,Vines!I72,WestNet!I72,Capex_to_Jun_2014!I72,Capex_from_Jul_2014!I72) -> 6.53881058 | J72: =SUM(ICB_at_2000!J72,Vines!J72,WestNet!J72,Capex_to_Jun_2014!J72,Capex_from_Jul_2014!J72) -> 0 | K72: =SUM(ICB_at_2000!K72,Vines!K72,WestNet!K72,Capex_to_Jun_2014!K72,Capex_from_Jul_2014!K72) -> 4.868558045e-16 | L72: =SUM(ICB_at_2000!L72,Vines!L72,WestNet!L72,Capex_to_Jun_2014!L72,Capex_from_Jul_2014!L72) -> 0 | M72: =SUM(ICB_at_2000!M72,Vines!M72,WestNet!M72,Capex_to_Jun_2014!M72,Capex_from_Jul_2014!M72) -> 0 | N72: =SUM(ICB_at_2000!N72,Vines!N72,WestNet!N72,Capex_to_Jun_2014!N72,Capex_from_Jul_2014!N72) -> 0 | O72: =SUM(ICB_at_2000!O72,Vines!O72,WestNet!O72,Capex_to_Jun_2014!O72,Capex_from_Jul_2014!O72) -> 0 | P72: =SUM(ICB_at_2000!P72,Vines!P72,WestNet!P72,Capex_to_Jun_2014!P72,Capex_from_Jul_2014!P72) -> 0.656757309 | Q72: =SUM(ICB_at_2000!Q72,Vines!Q72,WestNet!Q72,Capex_to_Jun_2014!Q72,Capex_from_Jul_2014!Q72) -> 0.7296405631 | R72: =SUM(ICB_at_2000!R72,Vines!R72,WestNet!R72,Capex_to_Jun_2014!R72,Capex_from_Jul_2014!R72) -> 0.7296405631 | S72: =SUM(ICB_at_2000!S72,Vines!S72,WestNet!S72,Capex_to_Jun_2014!S72,Capex_from_Jul_2014!S72) -> 0.7296405631 | T72: =SUM(ICB_at_2000!T72,Vines!T72,WestNet!T72,Capex_to_Jun_2014!T72,Capex_from_Jul_2014!T72) -> 0.2488982536 | U72: =SUM(ICB_at_2000!U72,Vines!U72,WestNet!U72,Capex_to_Jun_2014!U72,Capex_from_Jul_2014!U72) -> 0.2596412592 | V72: =SUM(ICB_at_2000!V72,Vines!V72,WestNet!V72,Capex_to_Jun_2014!V72,Capex_from_Jul_2014!V72) -> 0.2596412592 | W72: =SUM(ICB_at_2000!W72,Vines!W72,WestNet!W72,Capex_to_Jun_2014!W72,Capex_from_Jul_2014!W72) -> 0.6748838798 | X72: =SUM(ICB_at_2000!X72,Vines!X72,WestNet!X72,Capex_to_Jun_2014!X72,Capex_from_Jul_2014!X72) -> 0.6094869046 | Y72: =SUM(ICB_at_2000!Y72,Vines!Y72,WestNet!Y72,Capex_to_Jun_2014!Y72,Capex_from_Jul_2014!Y72) -> 0.7354260852 | Z72: =SUM(ICB_at_2000!Z72,Vines!Z72,WestNet!Z72,Capex_to_Jun_2014!Z72,Capex_from_Jul_2014!Z72) -> 0.8437233429
B73: =Inputs!$B$317 -> Vehicles | C73: $m | E73: =SUM(ICB_at_2000!E73,Vines!E73,WestNet!E73,Capex_to_Jun_2014!E73,Capex_from_Jul_2014!E73) -> 0 | F73: =SUM(ICB_at_2000!F73,Vines!F73,WestNet!F73,Capex_to_Jun_2014!F73,Capex_from_Jul_2014!F73) -> 0 | G73: =SUM(ICB_at_2000!G73,Vines!G73,WestNet!G73,Capex_to_Jun_2014!G73,Capex_from_Jul_2014!G73) -> 0 | H73: =SUM(ICB_at_2000!H73,Vines!H73,WestNet!H73,Capex_to_Jun_2014!H73,Capex_from_Jul_2014!H73) -> 0 | I73: =SUM(ICB_at_2000!I73,Vines!I73,WestNet!I73,Capex_to_Jun_2014!I73,Capex_from_Jul_2014!I73) -> 0 | J73: =SUM(ICB_at_2000!J73,Vines!J73,WestNet!J73,Capex_to_Jun_2014!J73,Capex_from_Jul_2014!J73) -> 0 | K73: =SUM(ICB_at_2000!K73,Vines!K73,WestNet!K73,Capex_to_Jun_2014!K73,Capex_from_Jul_2014!K73) -> 0 | L73: =SUM(ICB_at_2000!L73,Vines!L73,WestNet!L73,Capex_to_Jun_2014!L73,Capex_from_Jul_2014!L73) -> 0 | M73: =SUM(ICB_at_2000!M73,Vines!M73,WestNet!M73,Capex_to_Jun_2014!M73,Capex_from_Jul_2014!M73) -> 0 | N73: =SUM(ICB_at_2000!N73,Vines!N73,WestNet!N73,Capex_to_Jun_2014!N73,Capex_from_Jul_2014!N73) -> 0 | O73: =SUM(ICB_at_2000!O73,Vines!O73,WestNet!O73,Capex_to_Jun_2014!O73,Capex_from_Jul_2014!O73) -> 0 | P73: =SUM(ICB_at_2000!P73,Vines!P73,WestNet!P73,Capex_to_Jun_2014!P73,Capex_from_Jul_2014!P73) -> 0 | Q73: =SUM(ICB_at_2000!Q73,Vines!Q73,WestNet!Q73,Capex_to_Jun_2014!Q73,Capex_from_Jul_2014!Q73) -> 0 | R73: =SUM(ICB_at_2000!R73,Vines!R73,WestNet!R73,Capex_to_Jun_2014!R73,Capex_from_Jul_2014!R73) -> 0 | S73: =SUM(ICB_at_2000!S73,Vines!S73,WestNet!S73,Capex_to_Jun_2014!S73,Capex_from_Jul_2014!S73) -> 0 | T73: =SUM(ICB_at_2000!T73,Vines!T73,WestNet!T73,Capex_to_Jun_2014!T73,Capex_from_Jul_2014!T73) -> 1.049501926 | U73: =SUM(ICB_at_2000!U73,Vines!U73,WestNet!U73,Capex_to_Jun_2014!U73,Capex_from_Jul_2014!U73) -> 1.353417193 | V73: =SUM(ICB_at_2000!V73,Vines!V73,WestNet!V73,Capex_to_Jun_2014!V73,Capex_from_Jul_2014!V73) -> 1.353417193 | W73: =SUM(ICB_at_2000!W73,Vines!W73,WestNet!W73,Capex_to_Jun_2014!W73,Capex_from_Jul_2014!W73) -> 2.822998536 | X73: =SUM(ICB_at_2000!X73,Vines!X73,WestNet!X73,Capex_to_Jun_2014!X73,Capex_from_Jul_2014!X73) -> 2.724405381 | Y73: =SUM(ICB_at_2000!Y73,Vines!Y73,WestNet!Y73,Capex_to_Jun_2014!Y73,Capex_from_Jul_2014!Y73) -> 2.470493163 | Z73: =SUM(ICB_at_2000!Z73,Vines!Z73,WestNet!Z73,Capex_to_Jun_2014!Z73,Capex_from_Jul_2014!Z73) -> 2.658910788
B74: =Inputs!$B$318 -> Information technology | C74: $m | E74: =SUM(ICB_at_2000!E74,Vines!E74,WestNet!E74,Capex_to_Jun_2014!E74,Capex_from_Jul_2014!E74) -> 0 | F74: =SUM(ICB_at_2000!F74,Vines!F74,WestNet!F74,Capex_to_Jun_2014!F74,Capex_from_Jul_2014!F74) -> 0 | G74: =SUM(ICB_at_2000!G74,Vines!G74,WestNet!G74,Capex_to_Jun_2014!G74,Capex_from_Jul_2014!G74) -> 0 | H74: =SUM(ICB_at_2000!H74,Vines!H74,WestNet!H74,Capex_to_Jun_2014!H74,Capex_from_Jul_2014!H74) -> 0 | I74: =SUM(ICB_at_2000!I74,Vines!I74,WestNet!I74,Capex_to_Jun_2014!I74,Capex_from_Jul_2014!I74) -> 0 | J74: =SUM(ICB_at_2000!J74,Vines!J74,WestNet!J74,Capex_to_Jun_2014!J74,Capex_from_Jul_2014!J74) -> 1.545271759 | K74: =SUM(ICB_at_2000!K74,Vines!K74,WestNet!K74,Capex_to_Jun_2014!K74,Capex_from_Jul_2014!K74) -> 2.401866928 | L74: =SUM(ICB_at_2000!L74,Vines!L74,WestNet!L74,Capex_to_Jun_2014!L74,Capex_from_Jul_2014!L74) -> 3.143101117 | M74: =SUM(ICB_at_2000!M74,Vines!M74,WestNet!M74,Capex_to_Jun_2014!M74,Capex_from_Jul_2014!M74) -> 3.765238323 | N74: =SUM(ICB_at_2000!N74,Vines!N74,WestNet!N74,Capex_to_Jun_2014!N74,Capex_from_Jul_2014!N74) -> 4.663408531 | O74: =SUM(ICB_at_2000!O74,Vines!O74,WestNet!O74,Capex_to_Jun_2014!O74,Capex_from_Jul_2014!O74) -> 0.4644940564 | P74: =SUM(ICB_at_2000!P74,Vines!P74,WestNet!P74,Capex_to_Jun_2014!P74,Capex_from_Jul_2014!P74) -> 1.628172155 | Q74: =SUM(ICB_at_2000!Q74,Vines!Q74,WestNet!Q74,Capex_to_Jun_2014!Q74,Capex_from_Jul_2014!Q74) -> 2.657120996 | R74: =SUM(ICB_at_2000!R74,Vines!R74,WestNet!R74,Capex_to_Jun_2014!R74,Capex_from_Jul_2014!R74) -> 3.43345429 | S74: =SUM(ICB_at_2000!S74,Vines!S74,WestNet!S74,Capex_to_Jun_2014!S74,Capex_from_Jul_2014!S74) -> 4.30406109 | T74: =SUM(ICB_at_2000!T74,Vines!T74,WestNet!T74,Capex_to_Jun_2014!T74,Capex_from_Jul_2014!T74) -> 0.9629602185 | U74: =SUM(ICB_at_2000!U74,Vines!U74,WestNet!U74,Capex_to_Jun_2014!U74,Capex_from_Jul_2014!U74) -> 2.036868268 | V74: =SUM(ICB_at_2000!V74,Vines!V74,WestNet!V74,Capex_to_Jun_2014!V74,Capex_from_Jul_2014!V74) -> 2.036868268 | W74: =SUM(ICB_at_2000!W74,Vines!W74,WestNet!W74,Capex_to_Jun_2014!W74,Capex_from_Jul_2014!W74) -> 5.276876942 | X74: =SUM(ICB_at_2000!X74,Vines!X74,WestNet!X74,Capex_to_Jun_2014!X74,Capex_from_Jul_2014!X74) -> 6.122849797 | Y74: =SUM(ICB_at_2000!Y74,Vines!Y74,WestNet!Y74,Capex_to_Jun_2014!Y74,Capex_from_Jul_2014!Y74) -> 6.457520537 | Z74: =SUM(ICB_at_2000!Z74,Vines!Z74,WestNet!Z74,Capex_to_Jun_2014!Z74,Capex_from_Jul_2014!Z74) -> 6.44793209
B75: =Inputs!$B$319 -> Full retail contestability | C75: $m | E75: =SUM(ICB_at_2000!E75,Vines!E75,WestNet!E75,Capex_to_Jun_2014!E75,Capex_from_Jul_2014!E75) -> 0 | F75: =SUM(ICB_at_2000!F75,Vines!F75,WestNet!F75,Capex_to_Jun_2014!F75,Capex_from_Jul_2014!F75) -> 0 | G75: =SUM(ICB_at_2000!G75,Vines!G75,WestNet!G75,Capex_to_Jun_2014!G75,Capex_from_Jul_2014!G75) -> 0 | H75: =SUM(ICB_at_2000!H75,Vines!H75,WestNet!H75,Capex_to_Jun_2014!H75,Capex_from_Jul_2014!H75) -> 0 | I75: =SUM(ICB_at_2000!I75,Vines!I75,WestNet!I75,Capex_to_Jun_2014!I75,Capex_from_Jul_2014!I75) -> 0 | J75: =SUM(ICB_at_2000!J75,Vines!J75,WestNet!J75,Capex_to_Jun_2014!J75,Capex_from_Jul_2014!J75) -> 3.103202795 | K75: =SUM(ICB_at_2000!K75,Vines!K75,WestNet!K75,Capex_to_Jun_2014!K75,Capex_from_Jul_2014!K75) -> 3.103202795 | L75: =SUM(ICB_at_2000!L75,Vines!L75,WestNet!L75,Capex_to_Jun_2014!L75,Capex_from_Jul_2014!L75) -> 3.103202795 | M75: =SUM(ICB_at_2000!M75,Vines!M75,WestNet!M75,Capex_to_Jun_2014!M75,Capex_from_Jul_2014!M75) -> 3.103202795 | N75: =SUM(ICB_at_2000!N75,Vines!N75,WestNet!N75,Capex_to_Jun_2014!N75,Capex_from_Jul_2014!N75) -> 3.103202795 | O75: =SUM(ICB_at_2000!O75,Vines!O75,WestNet!O75,Capex_to_Jun_2014!O75,Capex_from_Jul_2014!O75) -> 2.282946913e-20 | P75: =SUM(ICB_at_2000!P75,Vines!P75,WestNet!P75,Capex_to_Jun_2014!P75,Capex_from_Jul_2014!P75) -> 0 | Q75: =SUM(ICB_at_2000!Q75,Vines!Q75,WestNet!Q75,Capex_to_Jun_2014!Q75,Capex_from_Jul_2014!Q75) -> 0 | R75: =SUM(ICB_at_2000!R75,Vines!R75,WestNet!R75,Capex_to_Jun_2014!R75,Capex_from_Jul_2014!R75) -> 0 | S75: =SUM(ICB_at_2000!S75,Vines!S75,WestNet!S75,Capex_to_Jun_2014!S75,Capex_from_Jul_2014!S75) -> 0 | T75: =SUM(ICB_at_2000!T75,Vines!T75,WestNet!T75,Capex_to_Jun_2014!T75,Capex_from_Jul_2014!T75) -> 1.234254036e-15 | U75: =SUM(ICB_at_2000!U75,Vines!U75,WestNet!U75,Capex_to_Jun_2014!U75,Capex_from_Jul_2014!U75) -> 0 | V75: =SUM(ICB_at_2000!V75,Vines!V75,WestNet!V75,Capex_to_Jun_2014!V75,Capex_from_Jul_2014!V75) -> 0 | W75: =SUM(ICB_at_2000!W75,Vines!W75,WestNet!W75,Capex_to_Jun_2014!W75,Capex_from_Jul_2014!W75) -> 0 | X75: =SUM(ICB_at_2000!X75,Vines!X75,WestNet!X75,Capex_to_Jun_2014!X75,Capex_from_Jul_2014!X75) -> 0 | Y75: =SUM(ICB_at_2000!Y75,Vines!Y75,WestNet!Y75,Capex_to_Jun_2014!Y75,Capex_from_Jul_2014!Y75) -> 0 | Z75: =SUM(ICB_at_2000!Z75,Vines!Z75,WestNet!Z75,Capex_to_Jun_2014!Z75,Capex_from_Jul_2014!Z75) -> 0
B76: =Inputs!$B$320 -> Land | C76: $m | E76: =SUM(ICB_at_2000!E76,Vines!E76,WestNet!E76,Capex_to_Jun_2014!E76,Capex_from_Jul_2014!E76) -> 0 | F76: =SUM(ICB_at_2000!F76,Vines!F76,WestNet!F76,Capex_to_Jun_2014!F76,Capex_from_Jul_2014!F76) -> 0 | G76: =SUM(ICB_at_2000!G76,Vines!G76,WestNet!G76,Capex_to_Jun_2014!G76,Capex_from_Jul_2014!G76) -> 0 | H76: =SUM(ICB_at_2000!H76,Vines!H76,WestNet!H76,Capex_to_Jun_2014!H76,Capex_from_Jul_2014!H76) -> 0 | I76: =SUM(ICB_at_2000!I76,Vines!I76,WestNet!I76,Capex_to_Jun_2014!I76,Capex_from_Jul_2014!I76) -> 0 | J76: =SUM(ICB_at_2000!J76,Vines!J76,WestNet!J76,Capex_to_Jun_2014!J76,Capex_from_Jul_2014!J76) -> 0 | K76: =SUM(ICB_at_2000!K76,Vines!K76,WestNet!K76,Capex_to_Jun_2014!K76,Capex_from_Jul_2014!K76) -> 0 | L76: =SUM(ICB_at_2000!L76,Vines!L76,WestNet!L76,Capex_to_Jun_2014!L76,Capex_from_Jul_2014!L76) -> 0 | M76: =SUM(ICB_at_2000!M76,Vines!M76,WestNet!M76,Capex_to_Jun_2014!M76,Capex_from_Jul_2014!M76) -> 0 | N76: =SUM(ICB_at_2000!N76,Vines!N76,WestNet!N76,Capex_to_Jun_2014!N76,Capex_from_Jul_2014!N76) -> 0 | O76: =SUM(ICB_at_2000!O76,Vines!O76,WestNet!O76,Capex_to_Jun_2014!O76,Capex_from_Jul_2014!O76) -> 0 | P76: =SUM(ICB_at_2000!P76,Vines!P76,WestNet!P76,Capex_to_Jun_2014!P76,Capex_from_Jul_2014!P76) -> 0 | Q76: =SUM(ICB_at_2000!Q76,Vines!Q76,WestNet!Q76,Capex_to_Jun_2014!Q76,Capex_from_Jul_2014!Q76) -> 0 | R76: =SUM(ICB_at_2000!R76,Vines!R76,WestNet!R76,Capex_to_Jun_2014!R76,Capex_from_Jul_2014!R76) -> 0 | S76: =SUM(ICB_at_2000!S76,Vines!S76,WestNet!S76,Capex_to_Jun_2014!S76,Capex_from_Jul_2014!S76) -> 0 | T76: =SUM(ICB_at_2000!T76,Vines!T76,WestNet!T76,Capex_to_Jun_2014!T76,Capex_from_Jul_2014!T76) -> 0 | U76: =SUM(ICB_at_2000!U76,Vines!U76,WestNet!U76,Capex_to_Jun_2014!U76,Capex_from_Jul_2014!U76) -> 0 | V76: =SUM(ICB_at_2000!V76,Vines!V76,WestNet!V76,Capex_to_Jun_2014!V76,Capex_from_Jul_2014!V76) -> 0 | W76: =SUM(ICB_at_2000!W76,Vines!W76,WestNet!W76,Capex_to_Jun_2014!W76,Capex_from_Jul_2014!W76) -> 0 | X76: =SUM(ICB_at_2000!X76,Vines!X76,WestNet!X76,Capex_to_Jun_2014!X76,Capex_from_Jul_2014!X76) -> 0 | Y76: =SUM(ICB_at_2000!Y76,Vines!Y76,WestNet!Y76,Capex_to_Jun_2014!Y76,Capex_from_Jul_2014!Y76) -> 0 | Z76: =SUM(ICB_at_2000!Z76,Vines!Z76,WestNet!Z76,Capex_to_Jun_2014!Z76,Capex_from_Jul_2014!Z76) -> 0
B78: Total Depreciation | C78: $m | E78: =SUM(E63:E77) -> 26.20203866 | F78: 27.63701079 | G78: 28.59370101 | H78: 29.5196728 | I78: 30.39124669 | J78: 32.18660863 | K78: 34.23639195 | L78: 36.12833499 | M78: 37.66623121 | N78: 39.63189888 | O78: 12.29437072 | P78: 26.64108155 | Q78: 29.041846 | R78: 31.40264022 | S78: 33.69872599 | T78: 17.15072735 | U78: 19.52760459 | V78: 19.52760459 | W78: 43.00597359 | X78: 46.20507018 | Y78: 49.13998361 | Z78: 52.12044557
B80: ="Value of redundant assets: "&$B$4 -> Value of redundant assets:
B81: =Inputs!$B$307 -> High pressure mains - steel | C81: $m | E81: =SUM(ICB_at_2000!E81,Vines!E81,WestNet!E81,Capex_to_Jun_2014!E81,Capex_from_Jul_2014!E81) -> 0 | F81: =SUM(ICB_at_2000!F81,Vines!F81,WestNet!F81,Capex_to_Jun_2014!F81,Capex_from_Jul_2014!F81) -> 0 | G81: =SUM(ICB_at_2000!G81,Vines!G81,WestNet!G81,Capex_to_Jun_2014!G81,Capex_from_Jul_2014!G81) -> 0 | H81: =SUM(ICB_at_2000!H81,Vines!H81,WestNet!H81,Capex_to_Jun_2014!H81,Capex_from_Jul_2014!H81) -> 0 | I81: =SUM(ICB_at_2000!I81,Vines!I81,WestNet!I81,Capex_to_Jun_2014!I81,Capex_from_Jul_2014!I81) -> 0 | J81: =SUM(ICB_at_2000!J81,Vines!J81,WestNet!J81,Capex_to_Jun_2014!J81,Capex_from_Jul_2014!J81) -> 0 | K81: =SUM(ICB_at_2000!K81,Vines!K81,WestNet!K81,Capex_to_Jun_2014!K81,Capex_from_Jul_2014!K81) -> 0 | L81: =SUM(ICB_at_2000!L81,Vines!L81,WestNet!L81,Capex_to_Jun_2014!L81,Capex_from_Jul_2014!L81) -> 0 | M81: =SUM(ICB_at_2000!M81,Vines!M81,WestNet!M81,Capex_to_Jun_2014!M81,Capex_from_Jul_2014!M81) -> 0 | N81: =SUM(ICB_at_2000!N81,Vines!N81,WestNet!N81,Capex_to_Jun_2014!N81,Capex_from_Jul_2014!N81) -> 0 | O81: =SUM(ICB_at_2000!O81,Vines!O81,WestNet!O81,Capex_to_Jun_2014!O81,Capex_from_Jul_2014!O81) -> 0 | P81: =SUM(ICB_at_2000!P81,Vines!P81,WestNet!P81,Capex_to_Jun_2014!P81,Capex_from_Jul_2014!P81) -> 0 | Q81: =SUM(ICB_at_2000!Q81,Vines!Q81,WestNet!Q81,Capex_to_Jun_2014!Q81,Capex_from_Jul_2014!Q81) -> 0 | R81: =SUM(ICB_at_2000!R81,Vines!R81,WestNet!R81,Capex_to_Jun_2014!R81,Capex_from_Jul_2014!R81) -> 0 | S81: =SUM(ICB_at_2000!S81,Vines!S81,WestNet!S81,Capex_to_Jun_2014!S81,Capex_from_Jul_2014!S81) -> 0 | T81: =SUM(ICB_at_2000!T81,Vines!T81,WestNet!T81,Capex_to_Jun_2014!T81,Capex_from_Jul_2014!T81) -> 0 | U81: =SUM(ICB_at_2000!U81,Vines!U81,WestNet!U81,Capex_to_Jun_2014!U81,Capex_from_Jul_2014!U81) -> 0 | V81: =SUM(ICB_at_2000!V81,Vines!V81,WestNet!V81,Capex_to_Jun_2014!V81,Capex_from_Jul_2014!V81) -> 0 | W81: =SUM(ICB_at_2000!W81,Vines!W81,WestNet!W81,Capex_to_Jun_2014!W81,Capex_from_Jul_2014!W81) -> 0 | X81: =SUM(ICB_at_2000!X81,Vines!X81,WestNet!X81,Capex_to_Jun_2014!X81,Capex_from_Jul_2014!X81) -> 0 | Y81: =SUM(ICB_at_2000!Y81,Vines!Y81,WestNet!Y81,Capex_to_Jun_2014!Y81,Capex_from_Jul_2014!Y81) -> 0 | Z81: =SUM(ICB_at_2000!Z81,Vines!Z81,WestNet!Z81,Capex_to_Jun_2014!Z81,Capex_from_Jul_2014!Z81) -> 0
B82: =Inputs!$B$308 -> High pressure mains - PE | C82: $m | E82: =SUM(ICB_at_2000!E82,Vines!E82,WestNet!E82,Capex_to_Jun_2014!E82,Capex_from_Jul_2014!E82) -> 0 | F82: =SUM(ICB_at_2000!F82,Vines!F82,WestNet!F82,Capex_to_Jun_2014!F82,Capex_from_Jul_2014!F82) -> 0 | G82: =SUM(ICB_at_2000!G82,Vines!G82,WestNet!G82,Capex_to_Jun_2014!G82,Capex_from_Jul_2014!G82) -> 0 | H82: =SUM(ICB_at_2000!H82,Vines!H82,WestNet!H82,Capex_to_Jun_2014!H82,Capex_from_Jul_2014!H82) -> 0 | I82: =SUM(ICB_at_2000!I82,Vines!I82,WestNet!I82,Capex_to_Jun_2014!I82,Capex_from_Jul_2014!I82) -> 0 | J82: =SUM(ICB_at_2000!J82,Vines!J82,WestNet!J82,Capex_to_Jun_2014!J82,Capex_from_Jul_2014!J82) -> 0 | K82: =SUM(ICB_at_2000!K82,Vines!K82,WestNet!K82,Capex_to_Jun_2014!K82,Capex_from_Jul_2014!K82) -> 0 | L82: =SUM(ICB_at_2000!L82,Vines!L82,WestNet!L82,Capex_to_Jun_2014!L82,Capex_from_Jul_2014!L82) -> 0 | M82: =SUM(ICB_at_2000!M82,Vines!M82,WestNet!M82,Capex_to_Jun_2014!M82,Capex_from_Jul_2014!M82) -> 0 | N82: =SUM(ICB_at_2000!N82,Vines!N82,WestNet!N82,Capex_to_Jun_2014!N82,Capex_from_Jul_2014!N82) -> 0 | O82: =SUM(ICB_at_2000!O82,Vines!O82,WestNet!O82,Capex_to_Jun_2014!O82,Capex_from_Jul_2014!O82) -> 0 | P82: =SUM(ICB_at_2000!P82,Vines!P82,WestNet!P82,Capex_to_Jun_2014!P82,Capex_from_Jul_2014!P82) -> 0 | Q82: =SUM(ICB_at_2000!Q82,Vines!Q82,WestNet!Q82,Capex_to_Jun_2014!Q82,Capex_from_Jul_2014!Q82) -> 0 | R82: =SUM(ICB_at_2000!R82,Vines!R82,WestNet!R82,Capex_to_Jun_2014!R82,Capex_from_Jul_2014!R82) -> 0 | S82: =SUM(ICB_at_2000!S82,Vines!S82,WestNet!S82,Capex_to_Jun_2014!S82,Capex_from_Jul_2014!S82) -> 0 | T82: =SUM(ICB_at_2000!T82,Vines!T82,WestNet!T82,Capex_to_Jun_2014!T82,Capex_from_Jul_2014!T82) -> 0 | U82: =SUM(ICB_at_2000!U82,Vines!U82,WestNet!U82,Capex_to_Jun_2014!U82,Capex_from_Jul_2014!U82) -> 0 | V82: =SUM(ICB_at_2000!V82,Vines!V82,WestNet!V82,Capex_to_Jun_2014!V82,Capex_from_Jul_2014!V82) -> 0 | W82: =SUM(ICB_at_2000!W82,Vines!W82,WestNet!W82,Capex_to_Jun_2014!W82,Capex_from_Jul_2014!W82) -> 0 | X82: =SUM(ICB_at_2000!X82,Vines!X82,WestNet!X82,Capex_to_Jun_2014!X82,Capex_from_Jul_2014!X82) -> 0 | Y82: =SUM(ICB_at_2000!Y82,Vines!Y82,WestNet!Y82,Capex_to_Jun_2014!Y82,Capex_from_Jul_2014!Y82) -> 0 | Z82: =SUM(ICB_at_2000!Z82,Vines!Z82,WestNet!Z82,Capex_to_Jun_2014!Z82,Capex_from_Jul_2014!Z82) -> 0
B83: =Inputs!$B$309 -> Medium pressure mains | C83: $m | E83: =SUM(ICB_at_2000!E83,Vines!E83,WestNet!E83,Capex_to_Jun_2014!E83,Capex_from_Jul_2014!E83) -> 0 | F83: =SUM(ICB_at_2000!F83,Vines!F83,WestNet!F83,Capex_to_Jun_2014!F83,Capex_from_Jul_2014!F83) -> 0 | G83: =SUM(ICB_at_2000!G83,Vines!G83,WestNet!G83,Capex_to_Jun_2014!G83,Capex_from_Jul_2014!G83) -> 0 | H83: =SUM(ICB_at_2000!H83,Vines!H83,WestNet!H83,Capex_to_Jun_2014!H83,Capex_from_Jul_2014!H83) -> 0 | I83: =SUM(ICB_at_2000!I83,Vines!I83,WestNet!I83,Capex_to_Jun_2014!I83,Capex_from_Jul_2014!I83) -> 0 | J83: =SUM(ICB_at_2000!J83,Vines!J83,WestNet!J83,Capex_to_Jun_2014!J83,Capex_from_Jul_2014!J83) -> 0 | K83: =SUM(ICB_at_2000!K83,Vines!K83,WestNet!K83,Capex_to_Jun_2014!K83,Capex_from_Jul_2014!K83) -> 0 | L83: =SUM(ICB_at_2000!L83,Vines!L83,WestNet!L83,Capex_to_Jun_2014!L83,Capex_from_Jul_2014!L83) -> 0 | M83: =SUM(ICB_at_2000!M83,Vines!M83,WestNet!M83,Capex_to_Jun_2014!M83,Capex_from_Jul_2014!M83) -> 0 | N83: =SUM(ICB_at_2000!N83,Vines!N83,WestNet!N83,Capex_to_Jun_2014!N83,Capex_from_Jul_2014!N83) -> 0 | O83: =SUM(ICB_at_2000!O83,Vines!O83,WestNet!O83,Capex_to_Jun_2014!O83,Capex_from_Jul_2014!O83) -> 0 | P83: =SUM(ICB_at_2000!P83,Vines!P83,WestNet!P83,Capex_to_Jun_2014!P83,Capex_from_Jul_2014!P83) -> 0 | Q83: =SUM(ICB_at_2000!Q83,Vines!Q83,WestNet!Q83,Capex_to_Jun_2014!Q83,Capex_from_Jul_2014!Q83) -> 0 | R83: =SUM(ICB_at_2000!R83,Vines!R83,WestNet!R83,Capex_to_Jun_2014!R83,Capex_from_Jul_2014!R83) -> 0 | S83: =SUM(ICB_at_2000!S83,Vines!S83,WestNet!S83,Capex_to_Jun_2014!S83,Capex_from_Jul_2014!S83) -> 0 | T83: =SUM(ICB_at_2000!T83,Vines!T83,WestNet!T83,Capex_to_Jun_2014!T83,Capex_from_Jul_2014!T83) -> 0 | U83: =SUM(ICB_at_2000!U83,Vines!U83,WestNet!U83,Capex_to_Jun_2014!U83,Capex_from_Jul_2014!U83) -> 0 | V83: =SUM(ICB_at_2000!V83,Vines!V83,WestNet!V83,Capex_to_Jun_2014!V83,Capex_from_Jul_2014!V83) -> 0 | W83: =SUM(ICB_at_2000!W83,Vines!W83,WestNet!W83,Capex_to_Jun_2014!W83,Capex_from_Jul_2014!W83) -> 0 | X83: =SUM(ICB_at_2000!X83,Vines!X83,WestNet!X83,Capex_to_Jun_2014!X83,Capex_from_Jul_2014!X83) -> 0 | Y83: =SUM(ICB_at_2000!Y83,Vines!Y83,WestNet!Y83,Capex_to_Jun_2014!Y83,Capex_from_Jul_2014!Y83) -> 0 | Z83: =SUM(ICB_at_2000!Z83,Vines!Z83,WestNet!Z83,Capex_to_Jun_2014!Z83,Capex_from_Jul_2014!Z83) -> 0
B84: =Inputs!$B$310 -> Medium/low pressure mains | C84: $m | E84: =SUM(ICB_at_2000!E84,Vines!E84,WestNet!E84,Capex_to_Jun_2014!E84,Capex_from_Jul_2014!E84) -> 0 | F84: =SUM(ICB_at_2000!F84,Vines!F84,WestNet!F84,Capex_to_Jun_2014!F84,Capex_from_Jul_2014!F84) -> 0 | G84: =SUM(ICB_at_2000!G84,Vines!G84,WestNet!G84,Capex_to_Jun_2014!G84,Capex_from_Jul_2014!G84) -> 0 | H84: =SUM(ICB_at_2000!H84,Vines!H84,WestNet!H84,Capex_to_Jun_2014!H84,Capex_from_Jul_2014!H84) -> 0 | I84: =SUM(ICB_at_2000!I84,Vines!I84,WestNet!I84,Capex_to_Jun_2014!I84,Capex_from_Jul_2014!I84) -> 0 | J84: =SUM(ICB_at_2000!J84,Vines!J84,WestNet!J84,Capex_to_Jun_2014!J84,Capex_from_Jul_2014!J84) -> 0 | K84: =SUM(ICB_at_2000!K84,Vines!K84,WestNet!K84,Capex_to_Jun_2014!K84,Capex_from_Jul_2014!K84) -> 0 | L84: =SUM(ICB_at_2000!L84,Vines!L84,WestNet!L84,Capex_to_Jun_2014!L84,Capex_from_Jul_2014!L84) -> 0 | M84: =SUM(ICB_at_2000!M84,Vines!M84,WestNet!M84,Capex_to_Jun_2014!M84,Capex_from_Jul_2014!M84) -> 0 | N84: =SUM(ICB_at_2000!N84,Vines!N84,WestNet!N84,Capex_to_Jun_2014!N84,Capex_from_Jul_2014!N84) -> 0 | O84: =SUM(ICB_at_2000!O84,Vines!O84,WestNet!O84,Capex_to_Jun_2014!O84,Capex_from_Jul_2014!O84) -> 0 | P84: =SUM(ICB_at_2000!P84,Vines!P84,WestNet!P84,Capex_to_Jun_2014!P84,Capex_from_Jul_2014!P84) -> 0 | Q84: =SUM(ICB_at_2000!Q84,Vines!Q84,WestNet!Q84,Capex_to_Jun_2014!Q84,Capex_from_Jul_2014!Q84) -> 0 | R84: =SUM(ICB_at_2000!R84,Vines!R84,WestNet!R84,Capex_to_Jun_2014!R84,Capex_from_Jul_2014!R84) -> 0 | S84: =SUM(ICB_at_2000!S84,Vines!S84,WestNet!S84,Capex_to_Jun_2014!S84,Capex_from_Jul_2014!S84) -> 0 | T84: =SUM(ICB_at_2000!T84,Vines!T84,WestNet!T84,Capex_to_Jun_2014!T84,Capex_from_Jul_2014!T84) -> 0 | U84: =SUM(ICB_at_2000!U84,Vines!U84,WestNet!U84,Capex_to_Jun_2014!U84,Capex_from_Jul_2014!U84) -> 0 | V84: =SUM(ICB_at_2000!V84,Vines!V84,WestNet!V84,Capex_to_Jun_2014!V84,Capex_from_Jul_2014!V84) -> 0 | W84: =SUM(ICB_at_2000!W84,Vines!W84,WestNet!W84,Capex_to_Jun_2014!W84,Capex_from_Jul_2014!W84) -> 0 | X84: =SUM(ICB_at_2000!X84,Vines!X84,WestNet!X84,Capex_to_Jun_2014!X84,Capex_from_Jul_2014!X84) -> 0 | Y84: =SUM(ICB_at_2000!Y84,Vines!Y84,WestNet!Y84,Capex_to_Jun_2014!Y84,Capex_from_Jul_2014!Y84) -> 0 | Z84: =SUM(ICB_at_2000!Z84,Vines!Z84,WestNet!Z84,Capex_to_Jun_2014!Z84,Capex_from_Jul_2014!Z84) -> 0
B85: =Inputs!$B$311 -> Low pressure mains | C85: $m | E85: =SUM(ICB_at_2000!E85,Vines!E85,WestNet!E85,Capex_to_Jun_2014!E85,Capex_from_Jul_2014!E85) -> 0 | F85: =SUM(ICB_at_2000!F85,Vines!F85,WestNet!F85,Capex_to_Jun_2014!F85,Capex_from_Jul_2014!F85) -> 0 | G85: =SUM(ICB_at_2000!G85,Vines!G85,WestNet!G85,Capex_to_Jun_2014!G85,Capex_from_Jul_2014!G85) -> 0 | H85: =SUM(ICB_at_2000!H85,Vines!H85,WestNet!H85,Capex_to_Jun_2014!H85,Capex_from_Jul_2014!H85) -> 0 | I85: =SUM(ICB_at_2000!I85,Vines!I85,WestNet!I85,Capex_to_Jun_2014!I85,Capex_from_Jul_2014!I85) -> 0 | J85: =SUM(ICB_at_2000!J85,Vines!J85,WestNet!J85,Capex_to_Jun_2014!J85,Capex_from_Jul_2014!J85) -> 0 | K85: =SUM(ICB_at_2000!K85,Vines!K85,WestNet!K85,Capex_to_Jun_2014!K85,Capex_from_Jul_2014!K85) -> 0 | L85: =SUM(ICB_at_2000!L85,Vines!L85,WestNet!L85,Capex_to_Jun_2014!L85,Capex_from_Jul_2014!L85) -> 0 | M85: =SUM(ICB_at_2000!M85,Vines!M85,WestNet!M85,Capex_to_Jun_2014!M85,Capex_from_Jul_2014!M85) -> 0 | N85: =SUM(ICB_at_2000!N85,Vines!N85,WestNet!N85,Capex_to_Jun_2014!N85,Capex_from_Jul_2014!N85) -> 0 | O85: =SUM(ICB_at_2000!O85,Vines!O85,WestNet!O85,Capex_to_Jun_2014!O85,Capex_from_Jul_2014!O85) -> 0 | P85: =SUM(ICB_at_2000!P85,Vines!P85,WestNet!P85,Capex_to_Jun_2014!P85,Capex_from_Jul_2014!P85) -> 0 | Q85: =SUM(ICB_at_2000!Q85,Vines!Q85,WestNet!Q85,Capex_to_Jun_2014!Q85,Capex_from_Jul_2014!Q85) -> 0 | R85: =SUM(ICB_at_2000!R85,Vines!R85,WestNet!R85,Capex_to_Jun_2014!R85,Capex_from_Jul_2014!R85) -> 0 | S85: =SUM(ICB_at_2000!S85,Vines!S85,WestNet!S85,Capex_to_Jun_2014!S85,Capex_from_Jul_2014!S85) -> 0 | T85: =SUM(ICB_at_2000!T85,Vines!T85,WestNet!T85,Capex_to_Jun_2014!T85,Capex_from_Jul_2014!T85) -> 0 | U85: =SUM(ICB_at_2000!U85,Vines!U85,WestNet!U85,Capex_to_Jun_2014!U85,Capex_from_Jul_2014!U85) -> 0 | V85: =SUM(ICB_at_2000!V85,Vines!V85,WestNet!V85,Capex_to_Jun_2014!V85,Capex_from_Jul_2014!V85) -> 0 | W85: =SUM(ICB_at_2000!W85,Vines!W85,WestNet!W85,Capex_to_Jun_2014!W85,Capex_from_Jul_2014!W85) -> 0 | X85: =SUM(ICB_at_2000!X85,Vines!X85,WestNet!X85,Capex_to_Jun_2014!X85,Capex_from_Jul_2014!X85) -> 0 | Y85: =SUM(ICB_at_2000!Y85,Vines!Y85,WestNet!Y85,Capex_to_Jun_2014!Y85,Capex_from_Jul_2014!Y85) -> 0 | Z85: =SUM(ICB_at_2000!Z85,Vines!Z85,WestNet!Z85,Capex_to_Jun_2014!Z85,Capex_from_Jul_2014!Z85) -> 0
B86: =Inputs!$B$312 -> Regulators | C86: $m | E86: =SUM(ICB_at_2000!E86,Vines!E86,WestNet!E86,Capex_to_Jun_2014!E86,Capex_from_Jul_2014!E86) -> 0 | F86: =SUM(ICB_at_2000!F86,Vines!F86,WestNet!F86,Capex_to_Jun_2014!F86,Capex_from_Jul_2014!F86) -> 0 | G86: =SUM(ICB_at_2000!G86,Vines!G86,WestNet!G86,Capex_to_Jun_2014!G86,Capex_from_Jul_2014!G86) -> 0 | H86: =SUM(ICB_at_2000!H86,Vines!H86,WestNet!H86,Capex_to_Jun_2014!H86,Capex_from_Jul_2014!H86) -> 0 | I86: =SUM(ICB_at_2000!I86,Vines!I86,WestNet!I86,Capex_to_Jun_2014!I86,Capex_from_Jul_2014!I86) -> 0 | J86: =SUM(ICB_at_2000!J86,Vines!J86,WestNet!J86,Capex_to_Jun_2014!J86,Capex_from_Jul_2014!J86) -> 0 | K86: =SUM(ICB_at_2000!K86,Vines!K86,WestNet!K86,Capex_to_Jun_2014!K86,Capex_from_Jul_2014!K86) -> 0 | L86: =SUM(ICB_at_2000!L86,Vines!L86,WestNet!L86,Capex_to_Jun_2014!L86,Capex_from_Jul_2014!L86) -> 0 | M86: =SUM(ICB_at_2000!M86,Vines!M86,WestNet!M86,Capex_to_Jun_2014!M86,Capex_from_Jul_2014!M86) -> 0 | N86: =SUM(ICB_at_2000!N86,Vines!N86,WestNet!N86,Capex_to_Jun_2014!N86,Capex_from_Jul_2014!N86) -> 0 | O86: =SUM(ICB_at_2000!O86,Vines!O86,WestNet!O86,Capex_to_Jun_2014!O86,Capex_from_Jul_2014!O86) -> 0 | P86: =SUM(ICB_at_2000!P86,Vines!P86,WestNet!P86,Capex_to_Jun_2014!P86,Capex_from_Jul_2014!P86) -> 0 | Q86: =SUM(ICB_at_2000!Q86,Vines!Q86,WestNet!Q86,Capex_to_Jun_2014!Q86,Capex_from_Jul_2014!Q86) -> 0 | R86: =SUM(ICB_at_2000!R86,Vines!R86,WestNet!R86,Capex_to_Jun_2014!R86,Capex_from_Jul_2014!R86) -> 0 | S86: =SUM(ICB_at_2000!S86,Vines!S86,WestNet!S86,Capex_to_Jun_2014!S86,Capex_from_Jul_2014!S86) -> 0 | T86: =SUM(ICB_at_2000!T86,Vines!T86,WestNet!T86,Capex_to_Jun_2014!T86,Capex_from_Jul_2014!T86) -> 0 | U86: =SUM(ICB_at_2000!U86,Vines!U86,WestNet!U86,Capex_to_Jun_2014!U86,Capex_from_Jul_2014!U86) -> 0 | V86: =SUM(ICB_at_2000!V86,Vines!V86,WestNet!V86,Capex_to_Jun_2014!V86,Capex_from_Jul_2014!V86) -> 0 | W86: =SUM(ICB_at_2000!W86,Vines!W86,WestNet!W86,Capex_to_Jun_2014!W86,Capex_from_Jul_2014!W86) -> 0 | X86: =SUM(ICB_at_2000!X86,Vines!X86,WestNet!X86,Capex_to_Jun_2014!X86,Capex_from_Jul_2014!X86) -> 0 | Y86: =SUM(ICB_at_2000!Y86,Vines!Y86,WestNet!Y86,Capex_to_Jun_2014!Y86,Capex_from_Jul_2014!Y86) -> 0 | Z86: =SUM(ICB_at_2000!Z86,Vines!Z86,WestNet!Z86,Capex_to_Jun_2014!Z86,Capex_from_Jul_2014!Z86) -> 0
B87: =Inputs!$B$313 -> Secondary gate stations | C87: $m | E87: =SUM(ICB_at_2000!E87,Vines!E87,WestNet!E87,Capex_to_Jun_2014!E87,Capex_from_Jul_2014!E87) -> 0 | F87: =SUM(ICB_at_2000!F87,Vines!F87,WestNet!F87,Capex_to_Jun_2014!F87,Capex_from_Jul_2014!F87) -> 0 | G87: =SUM(ICB_at_2000!G87,Vines!G87,WestNet!G87,Capex_to_Jun_2014!G87,Capex_from_Jul_2014!G87) -> 0 | H87: =SUM(ICB_at_2000!H87,Vines!H87,WestNet!H87,Capex_to_Jun_2014!H87,Capex_from_Jul_2014!H87) -> 0 | I87: =SUM(ICB_at_2000!I87,Vines!I87,WestNet!I87,Capex_to_Jun_2014!I87,Capex_from_Jul_2014!I87) -> 0 | J87: =SUM(ICB_at_2000!J87,Vines!J87,WestNet!J87,Capex_to_Jun_2014!J87,Capex_from_Jul_2014!J87) -> 0 | K87: =SUM(ICB_at_2000!K87,Vines!K87,WestNet!K87,Capex_to_Jun_2014!K87,Capex_from_Jul_2014!K87) -> 0 | L87: =SUM(ICB_at_2000!L87,Vines!L87,WestNet!L87,Capex_to_Jun_2014!L87,Capex_from_Jul_2014!L87) -> 0 | M87: =SUM(ICB_at_2000!M87,Vines!M87,WestNet!M87,Capex_to_Jun_2014!M87,Capex_from_Jul_2014!M87) -> 0 | N87: =SUM(ICB_at_2000!N87,Vines!N87,WestNet!N87,Capex_to_Jun_2014!N87,Capex_from_Jul_2014!N87) -> 0 | O87: =SUM(ICB_at_2000!O87,Vines!O87,WestNet!O87,Capex_to_Jun_2014!O87,Capex_from_Jul_2014!O87) -> 0 | P87: =SUM(ICB_at_2000!P87,Vines!P87,WestNet!P87,Capex_to_Jun_2014!P87,Capex_from_Jul_2014!P87) -> 0 | Q87: =SUM(ICB_at_2000!Q87,Vines!Q87,WestNet!Q87,Capex_to_Jun_2014!Q87,Capex_from_Jul_2014!Q87) -> 0 | R87: =SUM(ICB_at_2000!R87,Vines!R87,WestNet!R87,Capex_to_Jun_2014!R87,Capex_from_Jul_2014!R87) -> 0 | S87: =SUM(ICB_at_2000!S87,Vines!S87,WestNet!S87,Capex_to_Jun_2014!S87,Capex_from_Jul_2014!S87) -> 0 | T87: =SUM(ICB_at_2000!T87,Vines!T87,WestNet!T87,Capex_to_Jun_2014!T87,Capex_from_Jul_2014!T87) -> 0 | U87: =SUM(ICB_at_2000!U87,Vines!U87,WestNet!U87,Capex_to_Jun_2014!U87,Capex_from_Jul_2014!U87) -> 0 | V87: =SUM(ICB_at_2000!V87,Vines!V87,WestNet!V87,Capex_to_Jun_2014!V87,Capex_from_Jul_2014!V87) -> 0 | W87: =SUM(ICB_at_2000!W87,Vines!W87,WestNet!W87,Capex_to_Jun_2014!W87,Capex_from_Jul_2014!W87) -> 0 | X87: =SUM(ICB_at_2000!X87,Vines!X87,WestNet!X87,Capex_to_Jun_2014!X87,Capex_from_Jul_2014!X87) -> 0 | Y87: =SUM(ICB_at_2000!Y87,Vines!Y87,WestNet!Y87,Capex_to_Jun_2014!Y87,Capex_from_Jul_2014!Y87) -> 0 | Z87: =SUM(ICB_at_2000!Z87,Vines!Z87,WestNet!Z87,Capex_to_Jun_2014!Z87,Capex_from_Jul_2014!Z87) -> 0
B88: =Inputs!$B$314 -> Buildings | C88: $m | E88: =SUM(ICB_at_2000!E88,Vines!E88,WestNet!E88,Capex_to_Jun_2014!E88,Capex_from_Jul_2014!E88) -> 0 | F88: =SUM(ICB_at_2000!F88,Vines!F88,WestNet!F88,Capex_to_Jun_2014!F88,Capex_from_Jul_2014!F88) -> 0 | G88: =SUM(ICB_at_2000!G88,Vines!G88,WestNet!G88,Capex_to_Jun_2014!G88,Capex_from_Jul_2014!G88) -> 0 | H88: =SUM(ICB_at_2000!H88,Vines!H88,WestNet!H88,Capex_to_Jun_2014!H88,Capex_from_Jul_2014!H88) -> 0 | I88: =SUM(ICB_at_2000!I88,Vines!I88,WestNet!I88,Capex_to_Jun_2014!I88,Capex_from_Jul_2014!I88) -> 0 | J88: =SUM(ICB_at_2000!J88,Vines!J88,WestNet!J88,Capex_to_Jun_2014!J88,Capex_from_Jul_2014!J88) -> 0 | K88: =SUM(ICB_at_2000!K88,Vines!K88,WestNet!K88,Capex_to_Jun_2014!K88,Capex_from_Jul_2014!K88) -> 0 | L88: =SUM(ICB_at_2000!L88,Vines!L88,WestNet!L88,Capex_to_Jun_2014!L88,Capex_from_Jul_2014!L88) -> 0 | M88: =SUM(ICB_at_2000!M88,Vines!M88,WestNet!M88,Capex_to_Jun_2014!M88,Capex_from_Jul_2014!M88) -> 0 | N88: =SUM(ICB_at_2000!N88,Vines!N88,WestNet!N88,Capex_to_Jun_2014!N88,Capex_from_Jul_2014!N88) -> 0 | O88: =SUM(ICB_at_2000!O88,Vines!O88,WestNet!O88,Capex_to_Jun_2014!O88,Capex_from_Jul_2014!O88) -> 0 | P88: =SUM(ICB_at_2000!P88,Vines!P88,WestNet!P88,Capex_to_Jun_2014!P88,Capex_from_Jul_2014!P88) -> 0 | Q88: =SUM(ICB_at_2000!Q88,Vines!Q88,WestNet!Q88,Capex_to_Jun_2014!Q88,Capex_from_Jul_2014!Q88) -> 0 | R88: =SUM(ICB_at_2000!R88,Vines!R88,WestNet!R88,Capex_to_Jun_2014!R88,Capex_from_Jul_2014!R88) -> 0 | S88: =SUM(ICB_at_2000!S88,Vines!S88,WestNet!S88,Capex_to_Jun_2014!S88,Capex_from_Jul_2014!S88) -> 0 | T88: =SUM(ICB_at_2000!T88,Vines!T88,WestNet!T88,Capex_to_Jun_2014!T88,Capex_from_Jul_2014!T88) -> 0 | U88: =SUM(ICB_at_2000!U88,Vines!U88,WestNet!U88,Capex_to_Jun_2014!U88,Capex_from_Jul_2014!U88) -> 0 | V88: =SUM(ICB_at_2000!V88,Vines!V88,WestNet!V88,Capex_to_Jun_2014!V88,Capex_from_Jul_2014!V88) -> 0 | W88: =SUM(ICB_at_2000!W88,Vines!W88,WestNet!W88,Capex_to_Jun_2014!W88,Capex_from_Jul_2014!W88) -> 0 | X88: =SUM(ICB_at_2000!X88,Vines!X88,WestNet!X88,Capex_to_Jun_2014!X88,Capex_from_Jul_2014!X88) -> 0 | Y88: =SUM(ICB_at_2000!Y88,Vines!Y88,WestNet!Y88,Capex_to_Jun_2014!Y88,Capex_from_Jul_2014!Y88) -> 0 | Z88: =SUM(ICB_at_2000!Z88,Vines!Z88,WestNet!Z88,Capex_to_Jun_2014!Z88,Capex_from_Jul_2014!Z88) -> 0
B89: =Inputs!$B$315 -> Meter and services pipes | C89: $m | E89: =SUM(ICB_at_2000!E89,Vines!E89,WestNet!E89,Capex_to_Jun_2014!E89,Capex_from_Jul_2014!E89) -> 0 | F89: =SUM(ICB_at_2000!F89,Vines!F89,WestNet!F89,Capex_to_Jun_2014!F89,Capex_from_Jul_2014!F89) -> 0 | G89: =SUM(ICB_at_2000!G89,Vines!G89,WestNet!G89,Capex_to_Jun_2014!G89,Capex_from_Jul_2014!G89) -> 0 | H89: =SUM(ICB_at_2000!H89,Vines!H89,WestNet!H89,Capex_to_Jun_2014!H89,Capex_from_Jul_2014!H89) -> 0 | I89: =SUM(ICB_at_2000!I89,Vines!I89,WestNet!I89,Capex_to_Jun_2014!I89,Capex_from_Jul_2014!I89) -> 0 | J89: =SUM(ICB_at_2000!J89,Vines!J89,WestNet!J89,Capex_to_Jun_2014!J89,Capex_from_Jul_2014!J89) -> 0 | K89: =SUM(ICB_at_2000!K89,Vines!K89,WestNet!K89,Capex_to_Jun_2014!K89,Capex_from_Jul_2014!K89) -> 0 | L89: =SUM(ICB_at_2000!L89,Vines!L89,WestNet!L89,Capex_to_Jun_2014!L89,Capex_from_Jul_2014!L89) -> 0 | M89: =SUM(ICB_at_2000!M89,Vines!M89,WestNet!M89,Capex_to_Jun_2014!M89,Capex_from_Jul_2014!M89) -> 0 | N89: =SUM(ICB_at_2000!N89,Vines!N89,WestNet!N89,Capex_to_Jun_2014!N89,Capex_from_Jul_2014!N89) -> 0 | O89: =SUM(ICB_at_2000!O89,Vines!O89,WestNet!O89,Capex_to_Jun_2014!O89,Capex_from_Jul_2014!O89) -> 0 | P89: =SUM(ICB_at_2000!P89,Vines!P89,WestNet!P89,Capex_to_Jun_2014!P89,Capex_from_Jul_2014!P89) -> 0 | Q89: =SUM(ICB_at_2000!Q89,Vines!Q89,WestNet!Q89,Capex_to_Jun_2014!Q89,Capex_from_Jul_2014!Q89) -> 0 | R89: =SUM(ICB_at_2000!R89,Vines!R89,WestNet!R89,Capex_to_Jun_2014!R89,Capex_from_Jul_2014!R89) -> 0 | S89: =SUM(ICB_at_2000!S89,Vines!S89,WestNet!S89,Capex_to_Jun_2014!S89,Capex_from_Jul_2014!S89) -> 0 | T89: =SUM(ICB_at_2000!T89,Vines!T89,WestNet!T89,Capex_to_Jun_2014!T89,Capex_from_Jul_2014!T89) -> 0 | U89: =SUM(ICB_at_2000!U89,Vines!U89,WestNet!U89,Capex_to_Jun_2014!U89,Capex_from_Jul_2014!U89) -> 0 | V89: =SUM(ICB_at_2000!V89,Vines!V89,WestNet!V89,Capex_to_Jun_2014!V89,Capex_from_Jul_2014!V89) -> 0 | W89: =SUM(ICB_at_2000!W89,Vines!W89,WestNet!W89,Capex_to_Jun_2014!W89,Capex_from_Jul_2014!W89) -> 0 | X89: =SUM(ICB_at_2000!X89,Vines!X89,WestNet!X89,Capex_to_Jun_2014!X89,Capex_from_Jul_2014!X89) -> 0 | Y89: =SUM(ICB_at_2000!Y89,Vines!Y89,WestNet!Y89,Capex_to_Jun_2014!Y89,Capex_from_Jul_2014!Y89) -> 0 | Z89: =SUM(ICB_at_2000!Z89,Vines!Z89,WestNet!Z89,Capex_to_Jun_2014!Z89,Capex_from_Jul_2014!Z89) -> 0
